Workbook

Sheet notes (hidden)
A1: FY24 Chapter 70
A3: Tabs | B3: What happens on this sheet | C3: Data source (if any) | D3: Notes
A4: Parameters | B4: Allows the user to adjust all of the policy levers in Chapter 70, except for changes to foundation. Foundation budget scenarios can be changed, but they must 1st be run separately and dropped into localcont (all the way to the right). Up to 11 alternatives can be included.
A5: Index | B5: Controls the district being viewed for all reports except regional dist members | C5: Dropdown box reads LEAs
A6: Rates | B6: CY and PY foundation budget rates Used to calculate foundation budget report | C6: Copied in from found file | D6: Copied in FY24 rates
A7: Foundation Budget | B7: 1 district report showing build-up of foundation budget | C7: Rates, dist435
A8: Municipal Contribution | B8: 1 city/town report showing build-up of required local contribution (municipal level) | C8: townwide contributions
A9: Regional Allocation | B9: 1 city/town report showing allocation of total municipal required local contribution based on proportion of foundation budget at each district to which it belongs | C9: localcont
A10: Summary | B10: 1 district report summarizing C70 calculation and comparison to PY | C10: aid436, disthist
A11: Regional Dist Members | B11: 1 regional district report summarizing enrollment and local contribution for each member town Changed in FY18 to vlookup on localcont | C11: localcont, leas
A12: LocalCont | B12: Results from distfrac get copied into the far right (up to 11 versions of foundation budget can be entered). Toggle is on parameters sheet. Data is organized in 5 row format for each city/town (municipality and its districts, blanks are 998 and total is 999). Used to calculate each municipal-district combination's RLC. | C12: found file, distfrac (allocate sheet) | D12: Copied in FY23 foundation budget, %s, RLCs and enro. Starting in FY24, Warwick will no longer be part of Pioneer. Removed Warwick/Pioneer combination on this tab.
A14: Comparison to FY23 | B14: 2 year comparison for operating districts | C14: aid436, disthist, localcont | D14: Only includes districts operating in both FY23 and FY24
A15: Townwide Contributions | B15: Calculates municipal required local contributions | C15: DOR (EQV, Income, MRGFs), PY file (RLCs), parameters | D15: Copied FY23 RLCs into PY RLC column; updated formulas in columns I, Q, and Y to return value = 0 if townwide foundation budget = 0
A16: Aid436 | B16: Calculates district Ch 70 aid | C16: disthist, localcont, frac, parameters Starting w/ LEA 406, in col J (target aid %), formula changes to pull from frac tab. | D16: min aid adjustment only applied to operating districts; adjusted base aid for Warwick and Pioneer Valley
A17: Frac | B17: Calculates target aid percentage for regional districts | D17: Copied from distfrac24
A18: DistHist | B18: ***Don't forget to copy in target aid %s from PY Historical C70 data used in summary report, and other places | D18: Copied in FY23 FB, RLC and Aid Copied in target aid %s from FY23
A19: Dist435 | B19: Data source for foundation budget report, shows detailed enrollment and budget columns | C19: found24
A21: Data | B21: Source | C21: Year | D21: Notes
A22: Inflation | B22: BEA website | C22: Q3 2021 to Q3 2022 | D22: Table 1.1.9. Implicit Price Deflators for Gross Domestic Product
A23: Wage Adjustment Factor Inputs | B23: EOLWD | C23: 2021
A24: EQV | B24: DOR | C24: 2022
A25: Income | B25: DOR | C25: 2020
A26: Enrollment incl. Postgrads | B26: DESE | C26: 2022-10-01 | D26: found24
A27: MRGFs | B27: DOR/ANF | C27: 2024
A30: 12/7/22: Starting in FY24, Warwick will no longer be part of Pioneer.

Sheet parameters (hidden)
A1: Cyr | B1: FY24 | C1: 24
A2: Pyr | B2: FY23 | C2: 23
A3: As of | B3: 2023-02-14
A5: Parameters | D5: Base | K5: Analysis of Aggregate Wealth Model Implementation
B6: Which version of foundation budget? | C6: 1 | D6: 1 | G6: FY23 C70 including Devens | H6: 5998209887
B7: Effort reduction | C7: 1 | D7: 0 | K7: Progress Towards Target Local Share
B8: Pct downpayment on target aid share | C8: 0 | D8: 0 | G8: FY24 foundation aid increase | H8: ='Aid436'!L448 -> 578427446
D9: 0 | L9: FY07 | M9: FY08 | N9: FY09 | O9: FY10 | P9: FY11 | Q9: FY12 | R9: FY13 | S9: FY14 | T9: FY15 | U9: FY16 | V9: FY17 | W9: FY18 | X9: FY19 | Y9: FY20 | Z9: FY21 | AA9: FY22 | AB9: FY23 | AC9: =CYr -> FY24
G10: Minimum per pupil aid increase | H10: ='Aid436'!R448 -> 7672269 | K10: excess effort before effort reduction | L10: 621.084157 | M10: 494.058912 | N10: 372.382091 | O10: 228.110232 | P10: 366 | Q10: 293.3 | R10: 229.8 | S10: 234.5 | T10: 307.903014 | U10: 235.358789 | V10: 299.86437 | W10: 151.670894 | X10: 68.664221 | Y10: 21.435137 | Z10: 104.649236 | AA10: 93.814687 | AB10: 3.87058 | AC10: ='Townwide Contributions'!V361/1000000 -> 2.463965
G11: Min aid adjustment increase | H11: ='Aid436'!U448 -> 354574 | K11: effort reduction | L11: 124.2168314 | M11: 123.514728 | N11: 122.88609 | O11: 34.216535 | P11: 109.8 | Q11: 58.7 | R11: 34.5 | S11: 35.2 | T11: 153.951507 | U11: 117.6793945 | V11: 254.8847145 | W11: 128.9202599 | X11: 68.664221 | Y11: 21.435137 | Z11: 104.649236 | AA11: 93.814687 | AB11: 3.87058 | AC11: ='Townwide Contributions'!V361/1000000 -> 2.463965
G12: Non-op reduction | H12: ='Aid436'!W448 -> 68265 | K12: net excess after effort reduction | L12: 496.8673256 | M12: 370.544184 | N12: 249.496001 | O12: 193.893697 | P12: 256.2 | Q12: =Q10-Q11 -> 234.6 | R12: =R10-R11 -> 195.3 | S12: 199.3 | T12: 152.0806983 | U12: 117.4829132 | V12: 44.97879348 | W12: 22.74921402 | X12: 0 | Y12: 0 | Z12: 0 | AA12: 0 | AB12: 0 | AC12: ='Townwide Contributions'!AC361/1000000 -> 0
G13: FY24 Chapter 70 | H13: ='Aid436'!Y448 -> 6584287353 | K13: shortfall below target before increment | L13: -321.452322 | M13: -352.174875 | N13: -359.193563 | O13: -427.2 | P13: -228 | Q13: -211 | R13: -200 | S13: -180.2 | T13: -162.972215 | U13: -132.627218 | V13: -96.928091 | W13: -103.17317 | X13: -117.254713 | Y13: -207.485209 | Z13: -163.71 | AA13: -228.999327 | AB13: -494.818496 | AC13: ='Townwide Contributions'!AA361/1000000 -> -746.81129
B14: Per pupil guaranteed increase | C14: 30 | D14: 0 | G14: Devens | H14: =308558 -> 308558 | K14: additional increments toward target | L14: 0 | M14: -19.739149 | N14: -21.387588 | O14: -121.2 | P14: -10.6 | Q14: -10 | R14: -4.2 | S14: -3.9 | T14: -7.563093 | U14: -5.848739 | V14: -2.474215 | W14: -3.628178 | X14: -5.320349 | Y14: -19.253945 | Z14: -9.378217 | AA14: -20.199768 | AB14: -56.264627 | AC14: =('Townwide Contributions'!T361/1000000*-1)+('Townwide Contributions'!W361/1000000*-1) -> -73.83496
B15: Which version of mrgf? | C15: 1 | D15: 1 | K15: net shortfall below target after increment | L15: -321.452322 | M15: -332.435726 | N15: -337.805975 | O15: -306 | P15: -217.4 | Q15: -200.9 | R15: -195.7 | S15: -176.3 | T15: -155.409122 | U15: -126.778479 | V15: -94.453876 | W15: -99.544992 | X15: -111.934364 | Y15: -188.231264 | Z15: -154.331783 | AA15: -208.799559 | AB15: -438.553869 | AC15: ='Townwide Contributions'!AB361/1000000 -> -672.97633
B16: Below effort threshold 1 | C16: 2.5 | D16: 2.5 | G16: Change in C70 Appropriation | H16: =H13+H14-H6 -> 586386024 | K16: n of municipalities with effort too high | L16: 232 | M16: 218 | N16: 214 | O16: 193 | P16: 282 | Q16: 257 | R16: 249 | S16: 255 | T16: 279 | U16: 278 | V16: 303 | W16: 291 | X16: 0 | Y16: 0 | Z16: 0 | AA16: 0 | AB16: 0 | AC16: ='Townwide Contributions'!AC364 -> 0
B17: Below effort threshold 2 | C17: 7.5 | D17: 7.5 | G17: Percent Change | H17: =H16/H6 -> 0.09776017097
B18: Below effort contribution increment, 5-10% under | C18: 0.01 | D18: 0.01
B19: Below effort contribution increment, >10% under | C19: 0.02 | D19: 0.02 | G19: N of Foundation Aid Districts | H19: ='Aid436'!P448 -> 203
B20: Maximum local contribution pct of foundation | C20: 0.825 | D20: 0.825 | G20: N of Operating Districts with an Aid Increase | H20: ='Comparison to FY23'!N331 -> 318
B21: Statewide target for local contribution % of foundation | C21: 0.59 | D21: 0.59 | G21: Total C70 Including Devens | H21: =H13+H14 -> 6584595911
B22: Cap contributions at fixed percentage of foundation | C22: 0.9 | D22: 0.9
D23: 0
A24: Eqv/income percentages
B26: Target effort | C26: =C21*localcont!K1765 -> 8239359811
B27: Effort based upon following percentages | C27: ='Townwide Contributions'!K361 -> 8239359807
B28: Difference from target | C28: =IF(ABS(C27-C26)<10,0,C27-C26) -> 0
B29: Percentage of EQV | C29: 0.003533667423
B30: Percentage of INCOME | C30: =C29*1/C34 -> 0.01532943984
B32: Total EQV | C32: ='Townwide Contributions'!C361 -> 1583183946900
B33: Total Income | C33: ='Townwide Contributions'!E361 -> 3.649478125e+11
B34: State Average % of EQV | C34: =C33/C32 -> 0.2305151042
A37: See Progress Towards Targets
K42: Progress Towards Target Aid Share
L44: FY07 | M44: FY08 | N44: FY09 | O44: FY10 | P44: FY11 | Q44: FY12 | R44: FY13 | S44: FY14 | T44: FY15 | U44: FY16 | V44: FY17 | W44: FY18 | X44: FY19 | Y44: FY20 | Z44: FY21 | AA44: FY22 | AB44: FY23 | AC44: =CYr -> FY24
K45: aid above target | L45: 394.9 | M45: 421 | N45: 440.4 | O45: 413.5991456 | P45: 489.2905867 | Q45: 360.5802896 | R45: 372.9139726 | S45: 385.3 | T45: 404.6539336 | U45: 419.0730779 | V45: 488.1362137 | W45: 497.4038449 | X45: 487.8069694 | Y45: 518.4487954 | Z45: 516.4943275 | AA45: 613.17696 | AB45: 712.8031016 | AC45: ='Aid436'!AE449/1000000 -> 858.5798619
K46: aid below target | L46: -176.3 | M46: -143 | N46: -105.5 | O46: -97.82363262 | P46: -75.73073977 | Q46: -110.4290612 | R46: -84.70629692 | S46: -66.9 | T46: -49.39921427 | U46: -44.48798888 | V46: -13.01302676 | W46: -7.202688836 | X46: -0.01809683687 | Y46: -0.001189981026 | Z46: -0.01283887927 | AA46: -0.001771922842 | AB46: -1.962882748e-06 | AC46: ='Aid436'!AE450/1000000 -> -2.834677999e-06
C50: =TEXT(effortred,"0%") -> 100%

Sheet localcont (hidden)
I1: c70fy23 | J1: c70fy23 | O1: c70fy23 | R1: c70fy23 | Z1: 2023-02-14 | CM1: Lookup table for foundation budget scenarios | CN1: 1 | CO1: 2
CN2: 2 | CO2: 8
D3: 1 | E3: 2 | F3: 3 | G3: 4 | H3: 5 | I3: 6 | J3: 7 | K3: 8 | L3: 9 | M3: 10 | N3: 11 | O3: 12 | P3: 13 | Q3: 14 | R3: 15 | S3: 16 | T3: 17 | U3: 18 | V3: 19 | W3: 20 | X3: 21 | Y3: 1 | BD3: 32 | BE3: 33 | BF3: 34 | BG3: 35 | BH3: 36 | BI3: 37 | BJ3: 38 | BK3: 39 | BL3: 40 | BM3: 41 | BN3: 42 | BO3: 43 | BP3: 44 | BQ3: 45 | BR3: 46 | BS3: 47 | BT3: 48 | BU3: 49 | BV3: 50 | BW3: 51 | BX3: 52 | BY3: 53 | BZ3: 54 | CA3: 55 | CB3: 56 | CC3: 57 | CD3: 58 | CE3: 59 | CF3: 60 | CG3: 61 | CH3: 62 | CI3: 63 | CJ3: 64 | CK3: 65 | CL3: 66 | CN3: 3 | CO3: 14
G4: lea1755 | K4: found1755 | N4: prelcont1755 | O4: pynetmin | R4: pyenro | W4: enro1755 | CN4: 4 | CO4: 20
Z5: 1 | AF5: 2 | BD5: 6 | BJ5: 7 | BP5: 8 | BV5: 9 | CB5: 10 | CH5: 11 | CN5: 5 | CO5: 26
T6: =parameters!$C$6 -> 1 | Z6: 3/6th SOA with inflation capped + incremental rate benefits inflation fix | CN6: 6 | CO6: 32
I7: =PYr -> FY23 | J7: =PYr -> FY23 | K7: =CYr -> FY24 | L7: =CYr -> FY24 | M7: =CYr -> FY24 | N7: =CYr -> FY24 | O7: =PYr -> FY23 | CN7: 7 | CO7: 38
I8: Foundation | J8: Share of Total | K8: Foundation | L8: Share of Total | M8: Townwide | N8: Net Minimum | O8: Net Minimum | P8: =PYr&" to "&CYr -> FY23 to FY24 | Q8: Percent | R8: =PYr -> FY23 | S8: =CYr -> FY24 | W8: final | X8: foundation | BG8: final | BH8: foundation | BM8: final | BN8: foundation | BS8: final | BT8: foundation | BY8: final | BZ8: foundation | CE8: final | CF8: foundation | CK8: final | CL8: foundation | CN8: 8 | CO8: 44
A9: TownLEA | B9: Town | C9: LEA | D9: Order | E9: Town | F9: City or Town | G9: LEA | H9: School District | I9: Budget | J9: Foundation | K9: Budget | L9: Foundation | M9: Contribution | N9: Contribution | O9: Contribution | P9: Change | Q9: Change | R9: Enrollment | S9: Enrollment | T9: Town | U9: LEA | V9: Order | W9: enrollment | X9: budget | BD9: Town | BE9: LEA | BF9: Order | BG9: enrollment | BH9: budget | BJ9: Town | BK9: LEA | BL9: Order | BM9: enrollment | BN9: budget | BP9: Town | BQ9: LEA | BR9: Order | BS9: enrollment | BT9: budget | BV9: Town | BW9: LEA | BX9: Order | BY9: enrollment | BZ9: budget | CB9: Town | CC9: LEA | CD9: Order | CE9: enrollment | CF9: budget | CH9: Town | CI9: LEA | CJ9: Order | CK9: enrollment | CL9: budget | CN9: 9 | CO9: 50
A10: =B10&C10 -> 00010001 | B10: 0001 | C10: 0001 | D10: 1 | E10: 1 | F10: Abington | G10: 1 | H10: Abington | I10: 29563170.92 | J10: 0.9398162374 | K10: =X10 -> 31287579.08 | L10: =IF(K14>0, K10/K14, 0) -> 0.9358639524 | N10: =ROUND(M14*L10,0) -> 17104459 | O10: 16599047 | P10: =N10-O10 -> 505412 | Q10: =IF(O10>0,P10*100/O10,IF(P10>0,100,0)) -> 3.044825405 | R10: 2238 | S10: =W10 -> 2206 | T10: =VLOOKUP($D10, foundoptions, VLOOKUP($T$6, foundoptcell, 2, FALSE), FALSE) -> 1 | U10: =VLOOKUP($D10, foundoptions, VLOOKUP($T$6, foundoptcell, 2, FALSE)+1, FALSE) -> 1 | V10: =VLOOKUP($D10, foundoptions, VLOOKUP($T$6, foundoptcell, 2, FALSE)+2, FALSE) -> 1 | W10: =VLOOKUP($D10, foundoptions, VLOOKUP($T$6, foundoptcell, 2, FALSE)+3, FALSE) -> 2206 | X10: =VLOOKUP($D10, foundoptions, VLOOKUP($T$6, foundoptcell, 2, FALSE)+4, FALSE) -> 31287579.08 | Y10: =D10 -> 1 | Z10: 1 | AA10: 1 | AB10: 1 | AC10: 2206 | AD10: 31287579.08 | CN10: 10 | CO10: 56
A11: 00010873 | B11: 0001 | C11: 0873 | D11: 2 | E11: 1 | F11: Abington | G11: 873 | H11: South Shore | I11: 1893160.376 | J11: 0.06018376262 | K11: =X11 -> 2144180.951 | L11: =IF(K14>0, K11/K14, 0) -> 0.06413604755 | N11: =ROUND(M14*L11,0) -> 1172192 | O11: 1062966 | P11: =N11-O11 -> 109226 | Q11: 10.27558737 | R11: 97 | S11: =W11 -> 103 | T11: 1 | U11: 873 | V11: 2 | W11: 103 | X11: 2144180.951 | Y11: =D11 -> 2 | Z11: 1 | AA11: 873 | AB11: 2 | AC11: 103 | AD11: 2144180.951 | CN11: 11 | CO11: 62
A12: 00010998 | B12: 0001 | C12: 0998 | D12: 3 | E12: 1 | G12: 998 | I12: 0 | J12: 0 | K12: =X12 -> 0 | L12: =IF(K14>0, K12/K14, 0) -> 0 | N12: =ROUND(M14*L12,0) -> 0 | O12: 0 | P12: =N12-O12 -> 0 | Q12: 0 | R12: 0 | S12: 0 | T12: 1 | U12: 998 | V12: 3 | W12: 0 | X12: 0 | Y12: 3 | Z12: 1 | AA12: 998 | AB12: 3 | AC12: 0 | AD12: 0
A13: 00010998 | B13: 0001 | C13: 0998 | D13: 4 | E13: 1 | G13: 998 | I13: 0 | J13: 0 | K13: =X13 -> 0 | L13: =IF(K14>0, K13/K14, 0) -> 0 | N13: =ROUND(M14*L13,0) -> 0 | O13: 0 | P13: =N13-O13 -> 0 | Q13: 0 | R13: 0 | S13: 0 | T13: 1 | U13: 998 | V13: 4 | W13: 0 | X13: 0 | Y13: 4 | Z13: 1 | AA13: 998 | AB13: 4 | AC13: 0 | AD13: 0
A14: 00010999 | B14: 0001 | C14: 0999 | D14: 5 | E14: 1 | F14: Abington | G14: 999 | H14: Total | I14: 31456331.29 | J14: 1 | K14: =SUM(K10:K13) -> 33431760.03 | L14: =SUM(L10:L13) -> 1 | M14: =VLOOKUP(E14,town351,24) -> 18276651 | N14: =SUM(N10:N13) -> 18276651 | O14: 17662013 | P14: =SUM(P10:P13) -> 614638 | Q14: 3.479999703 | R14: 2335 | S14: 2309 | T14: 1 | U14: 999 | V14: 5 | W14: 2309 | X14: 33431760.03 | Y14: 5 | Z14: 1 | AA14: 999 | AB14: 5 | AC14: 2309 | AD14: 33431760.03
A15: 00020002 | B15: 0002 | C15: 0002 | D15: 6 | E15: 2 | F15: Acton | G15: 2 | H15: Acton | I15: 0 | J15: 0 | K15: =X15 -> 0 | L15: =IF(K19>0, K15/K19, 0) -> 0 | N15: =ROUND(M19*L15,0) -> 0 | O15: 0 | P15: =N15-O15 -> 0 | Q15: 0 | R15: 0 | S15: 0 | T15: 2 | U15: 2 | V15: 6 | W15: 0 | X15: 0 | Y15: 6 | Z15: 2 | AA15: 2 | AB15: 6 | AC15: 0 | AD15: 0
A16: 00020600 | B16: 0002 | C16: 0600 | D16: 7 | E16: 2 | F16: Acton | G16: 600 | H16: Acton Boxborough | I16: 51261692.02 | J16: 0.969707218 | K16: 54393796.53 | L16: =IF(K19>0, K16/K19, 0) -> 0.9673476748 | N16: =ROUND(M19*L16,0) -> 41998078 | O16: 40380318 | P16: =N16-O16 -> 1617760 | Q16: 4.006308222 | R16: 4230.155832 | S16: 4243.060624 | T16: 2 | U16: 600 | V16: 7 | W16: 4243.060624 | X16: 54393796.53 | Y16: 7 | Z16: 2 | AA16: 600 | AB16: 7 | AC16: 4243.060624 | AD16: 54393796.53
A17: 00020830 | B17: 0002 | C17: 0830 | D17: 8 | E17: 2 | F17: Acton | G17: 830 | H17: Minuteman | I17: 1601369.189 | J17: 0.03029278201 | K17: 1836034.738 | L17: =IF(K19>0, K17/K19, 0) -> 0.03265232522 | N17: =ROUND(M19*L17,0) -> 1417624 | O17: 1261445 | P17: =N17-O17 -> 156179 | Q17: 12.38095993 | R17: 81.14727273 | S17: 88 | T17: 2 | U17: 830 | V17: 8 | W17: 88 | X17: 1836034.738 | Y17: 8 | Z17: 2 | AA17: 830 | AB17: 8 | AC17: 88 | AD17: 1836034.738
A18: 00020998 | B18: 0002 | C18: 0998 | D18: 9 | E18: 2 | G18: 998 | I18: 0 | J18: 0 | K18: 0 | L18: =IF(K19>0, K18/K19, 0) -> 0 | N18: =ROUND(M19*L18,0) -> 0 | O18: 0 | P18: =N18-O18 -> 0 | Q18: 0 | R18: 0 | S18: 0 | T18: 2 | U18: 998 | V18: 9 | W18: 0 | X18: 0 | Y18: 9 | Z18: 2 | AA18: 998 | AB18: 9 | AC18: 0 | AD18: 0
A19: 00020999 | B19: 0002 | C19: 0999 | D19: 10 | E19: 2 | F19: Acton | G19: 999 | H19: Total | I19: 52863061.21 | J19: 1 | K19: =SUM(K15:K18) -> 56229831.27 | L19: =SUM(L15:L18) -> 1 | M19: =VLOOKUP(E19,town351,24) -> 43415702 | N19: =SUM(N15:N18) -> 43415702 | O19: 41641763 | P19: =SUM(P15:P18) -> 1773939 | Q19: =IF(O19>0,P19*100/O19,IF(P19>0,100,0)) -> 4.259999751 | R19: 4311.303104 | S19: 4331.060624 | T19: 2 | U19: 999 | V19: 10 | W19: 4331.060624 | X19: 56229831.27 | Y19: 10 | Z19: 2 | AA19: 999 | AB19: 10 | AC19: 4331.060624 | AD19: 56229831.27
A20: 00030003 | B20: 0003 | C20: 0003 | D20: 11 | E20: 3 | F20: Acushnet | G20: 3 | H20: Acushnet | I20: 14410940.64 | J20: 0.8251669527 | K20: =X20 -> 15911255.39 | L20: =IF(K24>0, K20/K24, 0) -> 0.8184652571 | N20: =ROUND(M24*L20,0) -> 8740925 | O20: 8355453 | P20: =N20-O20 -> 385472 | Q20: 4.613418327 | R20: 1192 | S20: 1221 | T20: 3 | U20: 3 | V20: 11 | W20: 1221 | X20: 15911255.39 | Y20: 11 | Z20: 3 | AA20: 3 | AB20: 11 | AC20: 1221 | AD20: 15911255.39
A21: 00030855 | B21: 0003 | C21: 0855 | D21: 12 | E21: 3 | F21: Acushnet | G21: 855 | H21: Old Colony | I21: 2748814.139 | J21: 0.1573964284 | K21: 3264388.454 | L21: =IF(K24>0, K21/K24, 0) -> 0.1679181478 | N21: =ROUND(M24*L21,0) -> 1793308 | O21: 1593761 | P21: =N21-O21 -> 199547 | Q21: 12.52050966 | R21: 149.2865385 | S21: 168 | T21: 3 | U21: 855 | V21: 12 | W21: 168 | X21: 3264388.454 | Y21: 12 | Z21: 3 | AA21: 855 | AB21: 12 | AC21: 168 | AD21: 3264388.454
A22: 00030910 | B22: 0003 | C22: 0910 | D22: 13 | E22: 3 | F22: Acushnet | G22: 910 | H22: Bristol County | I22: 304517.8673 | J22: 0.01743661895 | K22: 264711.4466 | L22: =IF(K24>0, K22/K24, 0) -> 0.0136165951 | N22: =ROUND(M24*L22,0) -> 145421 | O22: 176559 | P22: =N22-O22 -> -31138 | Q22: -17.63603102 | R22: 16 | S22: 13 | T22: 3 | U22: 910 | V22: 13 | W22: 13 | X22: 264711.4466 | Y22: 13 | Z22: 3 | AA22: 910 | AB22: 13 | AC22: 13 | AD22: 264711.4466
A23: 00030998 | B23: 0003 | C23: 0998 | D23: 14 | E23: 3 | G23: 998 | I23: 0 | J23: 0 | K23: 0 | L23: =IF(K24>0, K23/K24, 0) -> 0 | N23: =ROUND(M24*L23,0) -> 0 | O23: 0 | P23: =N23-O23 -> 0 | Q23: 0 | R23: 0 | S23: 0 | T23: 3 | U23: 998 | V23: 14 | W23: 0 | X23: 0 | Y23: 14 | Z23: 3 | AA23: 998 | AB23: 14 | AC23: 0 | AD23: 0
A24: 00030999 | B24: 0003 | C24: 0999 | D24: 15 | E24: 3 | F24: Acushnet | G24: 999 | H24: Total | I24: 17464272.65 | J24: 1 | K24: =SUM(K20:K23) -> 19440355.29 | L24: =SUM(L20:L23) -> 1 | M24: =VLOOKUP(E24,town351,24) -> 10679653 | N24: =SUM(N20:N23) -> 10679654 | O24: 10125773 | P24: =SUM(P20:P23) -> 553881 | Q24: 5.470012018 | R24: 1357.286538 | S24: 1402 | T24: 3 | U24: 999 | V24: 15 | W24: 1402 | X24: 19440355.29 | Y24: 15 | Z24: 3 | AA24: 999 | AB24: 15 | AC24: 1402 | AD24: 19440355.29
A25: 00040004 | B25: 0004 | C25: 0004 | D25: 16 | E25: 4 | F25: Adams | G25: 4 | H25: Adams | I25: 0 | J25: 0 | K25: =X25 -> 0 | L25: =IF(K29>0, K25/K29, 0) -> 0 | N25: =ROUND(M29*L25,0) -> 0 | O25: 0 | P25: =N25-O25 -> 0 | Q25: 0 | R25: 0 | S25: 0 | T25: 4 | U25: 4 | V25: 16 | W25: 0 | X25: 0 | Y25: 16 | Z25: 4 | AA25: 4 | AB25: 16 | AC25: 0 | AD25: 0
A26: 00040603 | B26: 0004 | C26: 0603 | D26: 17 | E26: 4 | F26: Adams | G26: 603 | H26: Hoosac Valley | I26: 12093284.32 | J26: 0.8141090771 | K26: 12998538.14 | L26: =IF(K29>0, K26/K29, 0) -> 0.815497705 | N26: =ROUND(M29*L26,0) -> 3947597 | O26: 3790761 | P26: =N26-O26 -> 156836 | Q26: 4.137322295 | R26: 862.0552764 | S26: 856.0834753 | T26: 4 | U26: 603 | V26: 17 | W26: 856.0834753 | X26: 12998538.14 | Y26: 17 | Z26: 4 | AA26: 603 | AB26: 17 | AC26: 856.0834753 | AD26: 12998538.14
A27: 00040851 | B27: 0004 | C27: 0851 | D27: 18 | E27: 4 | F27: Adams | G27: 851 | H27: Northern Berkshire | I27: 2761339.784 | J27: 0.1858909229 | K27: 2940854.529 | L27: =IF(K29>0, K27/K29, 0) -> 0.184502295 | N27: =ROUND(M29*L27,0) -> 893124 | O27: 865570 | P27: =N27-O27 -> 27554 | Q27: 3.183335837 | R27: 138 | S27: 139 | T27: 4 | U27: 851 | V27: 18 | W27: 139 | X27: 2940854.529 | Y27: 18 | Z27: 4 | AA27: 851 | AB27: 18 | AC27: 139 | AD27: 2940854.529
A28: 00040998 | B28: 0004 | C28: 0998 | D28: 19 | E28: 4 | G28: 998 | I28: 0 | J28: 0 | K28: 0 | L28: =IF(K29>0, K28/K29, 0) -> 0 | N28: =ROUND(M29*L28,0) -> 0 | O28: 0 | P28: =N28-O28 -> 0 | Q28: 0 | R28: 0 | S28: 0 | T28: 4 | U28: 998 | V28: 19 | W28: 0 | X28: 0 | Y28: 19 | Z28: 4 | AA28: 998 | AB28: 19 | AC28: 0 | AD28: 0
A29: 00040999 | B29: 0004 | C29: 0999 | D29: 20 | E29: 4 | F29: Adams | G29: 999 | H29: Total | I29: 14854624.1 | J29: 1 | K29: =SUM(K25:K28) -> 15939392.67 | L29: =SUM(L25:L28) -> 1 | M29: =VLOOKUP(E29,town351,24) -> 4840721 | N29: =SUM(N25:N28) -> 4840721 | O29: 4656331 | P29: =SUM(P25:P28) -> 184390 | Q29: 3.959984803 | R29: 1000.055276 | S29: 995.0834753 | T29: 4 | U29: 999 | V29: 20 | W29: 995.0834753 | X29: 15939392.67 | Y29: 20 | Z29: 4 | AA29: 999 | AB29: 20 | AC29: 995.0834753 | AD29: 15939392.67
A30: 00050005 | B30: 0005 | C30: 0005 | D30: 21 | E30: 5 | F30: Agawam | G30: 5 | H30: Agawam | I30: 46476254.92 | J30: 1 | K30: =X30 -> 50397491.3 | L30: =IF(K34>0, K30/K34, 0) -> 1 | N30: =ROUND(M34*L30,0) -> 25373043 | O30: 24515018 | P30: =N30-O30 -> 858025 | Q30: 3.49999743 | R30: 3420 | S30: 3421 | T30: 5 | U30: 5 | V30: 21 | W30: 3421 | X30: 50397491.3 | Y30: 21 | Z30: 5 | AA30: 5 | AB30: 21 | AC30: 3421 | AD30: 50397491.3
A31: 00050998 | B31: 0005 | C31: 0998 | D31: 22 | E31: 5 | G31: 998 | I31: 0 | J31: 0 | K31: 0 | L31: =IF(K34>0, K31/K34, 0) -> 0 | N31: =ROUND(M34*L31,0) -> 0 | O31: 0 | P31: =N31-O31 -> 0 | Q31: 0 | R31: 0 | S31: 0 | T31: 5 | U31: 998 | V31: 22 | W31: 0 | X31: 0 | Y31: 22 | Z31: 5 | AA31: 998 | AB31: 22 | AC31: 0 | AD31: 0
A32: 00050998 | B32: 0005 | C32: 0998 | D32: 23 | E32: 5 | G32: 998 | I32: 0 | J32: 0 | K32: 0 | L32: =IF(K34>0, K32/K34, 0) -> 0 | N32: =ROUND(M34*L32,0) -> 0 | O32: 0 | P32: =N32-O32 -> 0 | Q32: 0 | R32: 0 | S32: 0 | T32: 5 | U32: 998 | V32: 23 | W32: 0 | X32: 0 | Y32: 23 | Z32: 5 | AA32: 998 | AB32: 23 | AC32: 0 | AD32: 0
A33: 00050998 | B33: 0005 | C33: 0998 | D33: 24 | E33: 5 | G33: 998 | I33: 0 | J33: 0 | K33: 0 | L33: =IF(K34>0, K33/K34, 0) -> 0 | N33: =ROUND(M34*L33,0) -> 0 | O33: 0 | P33: =N33-O33 -> 0 | Q33: 0 | R33: 0 | S33: 0 | T33: 5 | U33: 998 | V33: 24 | W33: 0 | X33: 0 | Y33: 24 | Z33: 5 | AA33: 998 | AB33: 24 | AC33: 0 | AD33: 0
A34: 00050999 | B34: 0005 | C34: 0999 | D34: 25 | E34: 5 | F34: Agawam | G34: 999 | H34: Total | I34: 46476254.92 | J34: 1 | K34: =SUM(K30:K33) -> 50397491.3 | L34: =SUM(L30:L33) -> 1 | M34: =VLOOKUP(E34,town351,24) -> 25373043 | N34: =SUM(N30:N33) -> 25373043 | O34: 24515018 | P34: =SUM(P30:P33) -> 858025 | Q34: 3.49999743 | R34: 3420 | S34: 3421 | T34: 5 | U34: 999 | V34: 25 | W34: 3421 | X34: 50397491.3 | Y34: 25 | Z34: 5 | AA34: 999 | AB34: 25 | AC34: 3421 | AD34: 50397491.3
A35: 00060006 | B35: 0006 | C35: 0006 | D35: 26 | E35: 6 | F35: Alford | G35: 6 | H35: Alford | I35: 0 | J35: 0 | K35: =X35 -> 0 | L35: =IF(K39>0, K35/K39, 0) -> 0 | N35: =ROUND(M39*L35,0) -> 0 | O35: 0 | P35: =N35-O35 -> 0 | Q35: 0 | R35: 0 | S35: 0 | T35: 6 | U35: 6 | V35: 26 | W35: 0 | X35: 0 | Y35: 26 | Z35: 6 | AA35: 6 | AB35: 26 | AC35: 0 | AD35: 0
A36: 00060765 | B36: 0006 | C36: 0765 | D36: 27 | E36: 6 | F36: Alford | G36: 765 | H36: Southern Berkshire | I36: 248350.6542 | J36: 1 | K36: 278259.7125 | L36: =IF(K39>0, K36/K39, 0) -> 1 | N36: =ROUND(M39*L36,0) -> 229564 | O36: 204889 | P36: =N36-O36 -> 24675 | Q36: 12.04310627 | R36: 18.43283582 | S36: 19.39849624 | T36: 6 | U36: 765 | V36: 27 | W36: 19.39849624 | X36: 278259.7125 | Y36: 27 | Z36: 6 | AA36: 765 | AB36: 27 | AC36: 19.39849624 | AD36: 278259.7125
A37: 00060998 | B37: 0006 | C37: 0998 | D37: 28 | E37: 6 | G37: 998 | I37: 0 | J37: 0 | K37: 0 | L37: =IF(K39>0, K37/K39, 0) -> 0 | N37: =ROUND(M39*L37,0) -> 0 | O37: 0 | P37: =N37-O37 -> 0 | Q37: 0 | R37: 0 | S37: 0 | T37: 6 | U37: 998 | V37: 28 | W37: 0 | X37: 0 | Y37: 28 | Z37: 6 | AA37: 998 | AB37: 28 | AC37: 0 | AD37: 0
A38: 00060998 | B38: 0006 | C38: 0998 | D38: 29 | E38: 6 | G38: 998 | I38: 0 | J38: 0 | K38: 0 | L38: =IF(K39>0, K38/K39, 0) -> 0 | N38: =ROUND(M39*L38,0) -> 0 | O38: 0 | P38: =N38-O38 -> 0 | Q38: 0 | R38: 0 | S38: 0 | T38: 6 | U38: 998 | V38: 29 | W38: 0 | X38: 0 | Y38: 29 | Z38: 6 | AA38: 998 | AB38: 29 | AC38: 0 | AD38: 0
A39: 00060999 | B39: 0006 | C39: 0999 | D39: 30 | E39: 6 | F39: Alford | G39: 999 | H39: Total | I39: 248350.6542 | J39: 1 | K39: =SUM(K35:K38) -> 278259.7125 | L39: =SUM(L35:L38) -> 1 | M39: =VLOOKUP(E39,town351,24) -> 229564 | N39: =SUM(N35:N38) -> 229564 | O39: 204889 | P39: =SUM(P35:P38) -> 24675 | Q39: 12.04310627 | R39: 18.43283582 | S39: 19.39849624 | T39: 6 | U39: 999 | V39: 30 | W39: 19.39849624 | X39: 278259.7125 | Y39: 30 | Z39: 6 | AA39: 999 | AB39: 30 | AC39: 19.39849624 | AD39: 278259.7125
A40: 00070007 | B40: 0007 | C40: 0007 | D40: 31 | E40: 7 | F40: Amesbury | G40: 7 | H40: Amesbury | I40: 23505262.73 | J40: 0.9127043153 | K40: =X40 -> 24965747.03 | L40: =IF(K44>0, K40/K44, 0) -> 0.9111821997 | N40: =ROUND(M44*L40,0) -> 18234602 | O40: 17438478 | P40: =N40-O40 -> 796124 | Q40: 4.565329612 | R40: 1878 | S40: 1847 | T40: 7 | U40: 7 | V40: 31 | W40: 1847 | X40: 24965747.03 | Y40: 31 | Z40: 7 | AA40: 7 | AB40: 31 | AC40: 1847 | AD40: 24965747.03
A41: 00070885 | B41: 0007 | C41: 0885 | D41: 32 | E41: 7 | F41: Amesbury | G41: 885 | H41: Whittier | I41: 2248162.925 | J41: 0.08729568468 | K41: 2433544.833 | L41: =IF(K44>0, K41/K44, 0) -> 0.08881780029 | N41: =ROUND(M44*L41,0) -> 1777424 | O41: 1667905 | P41: =N41-O41 -> 109519 | Q41: 6.566261268 | R41: 115 | S41: 117 | T41: 7 | U41: 885 | V41: 32 | W41: 117 | X41: 2433544.833 | Y41: 32 | Z41: 7 | AA41: 885 | AB41: 32 | AC41: 117 | AD41: 2433544.833
A42: 00070998 | B42: 0007 | C42: 0998 | D42: 33 | E42: 7 | G42: 998 | I42: 0 | J42: 0 | K42: 0 | L42: =IF(K44>0, K42/K44, 0) -> 0 | N42: =ROUND(M44*L42,0) -> 0 | O42: 0 | P42: =N42-O42 -> 0 | Q42: 0 | R42: 0 | S42: 0 | T42: 7 | U42: 998 | V42: 33 | W42: 0 | X42: 0 | Y42: 33 | Z42: 7 | AA42: 998 | AB42: 33 | AC42: 0 | AD42: 0
A43: 00070998 | B43: 0007 | C43: 0998 | D43: 34 | E43: 7 | G43: 998 | I43: 0 | J43: 0 | K43: 0 | L43: =IF(K44>0, K43/K44, 0) -> 0 | N43: =ROUND(M44*L43,0) -> 0 | O43: 0 | P43: =N43-O43 -> 0 | Q43: 0 | R43: 0 | S43: 0 | T43: 7 | U43: 998 | V43: 34 | W43: 0 | X43: 0 | Y43: 34 | Z43: 7 | AA43: 998 | AB43: 34 | AC43: 0 | AD43: 0
A44: 00070999 | B44: 0007 | C44: 0999 | D44: 35 | E44: 7 | F44: Amesbury | G44: 999 | H44: Total | I44: 25753425.66 | J44: 1 | K44: =SUM(K40:K43) -> 27399291.86 | L44: =SUM(L40:L43) -> 1 | M44: =VLOOKUP(E44,town351,24) -> 20012026 | N44: =SUM(N40:N43) -> 20012026 | O44: 19106383 | P44: =SUM(P40:P43) -> 905643 | Q44: 4.740002333 | R44: 1993 | S44: 1964 | T44: 7 | U44: 999 | V44: 35 | W44: 1964 | X44: 27399291.86 | Y44: 35 | Z44: 7 | AA44: 999 | AB44: 35 | AC44: 1964 | AD44: 27399291.86
A45: 00080008 | B45: 0008 | C45: 0008 | D45: 36 | E45: 8 | F45: Amherst | G45: 8 | H45: Amherst | I45: 13429756.49 | J45: 0.4916067962 | K45: =X45 -> 14207190.94 | L45: =IF(K49>0, K45/K49, 0) -> 0.501047366 | N45: =ROUND(M49*L45,0) -> 11168148 | O45: 10461831 | P45: =N45-O45 -> 706317 | Q45: 6.751370769 | R45: 1065 | S45: 1055 | T45: 8 | U45: 8 | V45: 36 | W45: 1055 | X45: 14207190.94 | Y45: 36 | Z45: 8 | AA45: 8 | AB45: 36 | AC45: 1055 | AD45: 14207190.94
A46: 00080605 | B46: 0008 | C46: 0605 | D46: 37 | E46: 8 | F46: Amherst | G46: 605 | H46: Amherst Pelham | I46: 13888329.01 | J46: 0.5083932038 | K46: 14147794.84 | L46: =IF(K49>0, K46/K49, 0) -> 0.498952634 | N46: =ROUND(M49*L46,0) -> 11121458 | O46: 10819061 | P46: =N46-O46 -> 302397 | Q46: 2.795039237 | R46: 1037 | S46: 997 | T46: 8 | U46: 605 | V46: 37 | W46: 997 | X46: 14147794.84 | Y46: 37 | Z46: 8 | AA46: 605 | AB46: 37 | AC46: 997 | AD46: 14147794.84
A47: 00080998 | B47: 0008 | C47: 0998 | D47: 38 | E47: 8 | G47: 998 | I47: 0 | J47: 0 | K47: 0 | L47: =IF(K49>0, K47/K49, 0) -> 0 | N47: =ROUND(M49*L47,0) -> 0 | O47: 0 | P47: =N47-O47 -> 0 | Q47: 0 | R47: 0 | S47: 0 | T47: 8 | U47: 998 | V47: 38 | W47: 0 | X47: 0 | Y47: 38 | Z47: 8 | AA47: 998 | AB47: 38 | AC47: 0 | AD47: 0
A48: 00080998 | B48: 0008 | C48: 0998 | D48: 39 | E48: 8 | G48: 998 | I48: 0 | J48: 0 | K48: 0 | L48: =IF(K49>0, K48/K49, 0) -> 0 | N48: =ROUND(M49*L48,0) -> 0 | O48: 0 | P48: =N48-O48 -> 0 | Q48: 0 | R48: 0 | S48: 0 | T48: 8 | U48: 998 | V48: 39 | W48: 0 | X48: 0 | Y48: 39 | Z48: 8 | AA48: 998 | AB48: 39 | AC48: 0 | AD48: 0
A49: 00080999 | B49: 0008 | C49: 0999 | D49: 40 | E49: 8 | F49: Amherst | G49: 999 | H49: Total | I49: 27318085.5 | J49: 1 | K49: =SUM(K45:K48) -> 28354985.78 | L49: =SUM(L45:L48) -> 1 | M49: =VLOOKUP(E49,town351,24) -> 22289606 | N49: =SUM(N45:N48) -> 22289606 | O49: 21280892 | P49: =SUM(P45:P48) -> 1008714 | Q49: 4.739998681 | R49: 2102 | S49: 2052 | T49: 8 | U49: 999 | V49: 40 | W49: 2052 | X49: 28354985.78 | Y49: 40 | Z49: 8 | AA49: 999 | AB49: 40 | AC49: 2052 | AD49: 28354985.78
A50: 00090009 | B50: 0009 | C50: 0009 | D50: 41 | E50: 9 | F50: Andover | G50: 9 | H50: Andover | I50: 67357496.13 | J50: 0.9822143534 | K50: =X50 -> 72244408.49 | L50: =IF(K54>0, K50/K54, 0) -> 0.9820397139 | N50: =ROUND(M54*L50,0) -> 58293608 | O50: 55569934 | P50: =N50-O50 -> 2723674 | Q50: 4.901344673 | R50: 5500 | S50: 5554 | T50: 9 | U50: 9 | V50: 41 | W50: 5554 | X50: 72244408.49 | Y50: 41 | Z50: 9 | AA50: 9 | AB50: 41 | AC50: 5554 | AD50: 72244408.49
A51: 00090823 | B51: 0009 | C51: 0823 | D51: 42 | E51: 9 | F51: Andover | G51: 823 | H51: Greater Lawrence | I51: 1219689.593 | J51: 0.01778564664 | K51: 1321260.461 | L51: =IF(K54>0, K51/K54, 0) -> 0.0179602861 | N51: =ROUND(M54*L51,0) -> 1066118 | O51: 1006244 | P51: =N51-O51 -> 59874 | Q51: 5.95024666 | R51: 52 | S51: 52.00000001 | T51: 9 | U51: 823 | V51: 42 | W51: 52.00000001 | X51: 1321260.461 | Y51: 42 | Z51: 9 | AA51: 823 | AB51: 42 | AC51: 52.00000001 | AD51: 1321260.461
A52: 00090998 | B52: 0009 | C52: 0998 | D52: 43 | E52: 9 | G52: 998 | I52: 0 | J52: 0 | K52: 0 | L52: =IF(K54>0, K52/K54, 0) -> 0 | N52: =ROUND(M54*L52,0) -> 0 | O52: 0 | P52: =N52-O52 -> 0 | Q52: 0 | R52: 0 | S52: 0 | T52: 9 | U52: 998 | V52: 43 | W52: 0 | X52: 0 | Y52: 43 | Z52: 9 | AA52: 998 | AB52: 43 | AC52: 0 | AD52: 0
A53: 00090998 | B53: 0009 | C53: 0998 | D53: 44 | E53: 9 | G53: 998 | I53: 0 | J53: 0 | K53: 0 | L53: =IF(K54>0, K53/K54, 0) -> 0 | N53: =ROUND(M54*L53,0) -> 0 | O53: 0 | P53: =N53-O53 -> 0 | Q53: 0 | R53: 0 | S53: 0 | T53: 9 | U53: 998 | V53: 44 | W53: 0 | X53: 0 | Y53: 44 | Z53: 9 | AA53: 998 | AB53: 44 | AC53: 0 | AD53: 0
A54: 00090999 | B54: 0009 | C54: 0999 | D54: 45 | E54: 9 | F54: Andover | G54: 999 | H54: Total | I54: 68577185.72 | J54: 1 | K54: =SUM(K50:K53) -> 73565668.95 | L54: =SUM(L50:L53) -> 1 | M54: =VLOOKUP(E54,town351,24) -> 59359726 | N54: =SUM(N50:N53) -> 59359726 | O54: 56576178 | P54: =SUM(P50:P53) -> 2783548 | Q54: 4.920000075 | R54: 5552 | S54: 5606 | T54: 9 | U54: 999 | V54: 45 | W54: 5606 | X54: 73565668.95 | Y54: 45 | Z54: 9 | AA54: 999 | AB54: 45 | AC54: 5606 | AD54: 73565668.95
A55: 00100010 | B55: 0010 | C55: 0010 | D55: 46 | E55: 10 | F55: Arlington | G55: 10 | H55: Arlington | I55: 69496899.57 | J55: 0.9464228844 | K55: =X55 -> 74896748.64 | L55: =IF(K59>0, K55/K59, 0) -> 0.9427484092 | N55: =ROUND(M59*L55,0) -> 56193340 | O55: 53603535 | P55: =N55-O55 -> 2589805 | Q55: 4.831407108 | R55: 5910 | S55: 6002 | T55: 10 | U55: 10 | V55: 46 | W55: 6002 | X55: 74896748.64 | Y55: 46 | Z55: 10 | AA55: 10 | AB55: 46 | AC55: 6002 | AD55: 74896748.64
A56: 00100830 | B56: 0010 | C56: 0830 | D56: 47 | E56: 10 | F56: Arlington | G56: 830 | H56: Minuteman | I56: 3934228.009 | J56: 0.05357711557 | K56: 4548358.782 | L56: =IF(K59>0, K56/K59, 0) -> 0.05725159081 | N56: =ROUND(M59*L56,0) -> 3412531 | O56: 3034503 | P56: =N56-O56 -> 378028 | Q56: 12.45765781 | R56: 199.3618182 | S56: 218 | T56: 10 | U56: 830 | V56: 47 | W56: 218 | X56: 4548358.782 | Y56: 47 | Z56: 10 | AA56: 830 | AB56: 47 | AC56: 218 | AD56: 4548358.782
A57: 00100998 | B57: 0010 | C57: 0998 | D57: 48 | E57: 10 | G57: 998 | I57: 0 | J57: 0 | K57: 0 | L57: =IF(K59>0, K57/K59, 0) -> 0 | N57: =ROUND(M59*L57,0) -> 0 | O57: 0 | P57: =N57-O57 -> 0 | Q57: 0 | R57: 0 | S57: 0 | T57: 10 | U57: 998 | V57: 48 | W57: 0 | X57: 0 | Y57: 48 | Z57: 10 | AA57: 998 | AB57: 48 | AC57: 0 | AD57: 0
A58: 00100998 | B58: 0010 | C58: 0998 | D58: 49 | E58: 10 | G58: 998 | I58: 0 | J58: 0 | K58: 0 | L58: =IF(K59>0, K58/K59, 0) -> 0 | N58: =ROUND(M59*L58,0) -> 0 | O58: 0 | P58: =N58-O58 -> 0 | Q58: 0 | R58: 0 | S58: 0 | T58: 10 | U58: 998 | V58: 49 | W58: 0 | X58: 0 | Y58: 49 | Z58: 10 | AA58: 998 | AB58: 49 | AC58: 0 | AD58: 0
A59: 00100999 | B59: 0010 | C59: 0999 | D59: 50 | E59: 10 | F59: Arlington | G59: 999 | H59: Total | I59: 73431127.58 | J59: 1 | K59: =SUM(K55:K58) -> 79445107.42 | L59: =SUM(L55:L58) -> 1 | M59: =VLOOKUP(E59,town351,24) -> 59605871 | N59: =SUM(N55:N58) -> 59605871 | O59: 56638038 | P59: =SUM(P55:P58) -> 2967833 | Q59: 5.239999662 | R59: 6109.361818 | S59: 6220 | T59: 10 | U59: 999 | V59: 50 | W59: 6220 | X59: 79445107.42 | Y59: 50 | Z59: 10 | AA59: 999 | AB59: 50 | AC59: 6220 | AD59: 79445107.42
A60: 00110011 | B60: 0011 | C60: 0011 | D60: 51 | E60: 11 | F60: Ashburnham | G60: 11 | H60: Ashburnham | I60: 0 | J60: 0 | K60: =X60 -> 0 | L60: =IF(K64>0, K60/K64, 0) -> 0 | N60: =ROUND(M64*L60,0) -> 0 | O60: 0 | P60: =N60-O60 -> 0 | Q60: 0 | R60: 0 | S60: 0 | T60: 11 | U60: 11 | V60: 51 | W60: 0 | X60: 0 | Y60: 51 | Z60: 11 | AA60: 11 | AB60: 51 | AC60: 0 | AD60: 0
A61: 00110610 | B61: 0011 | C61: 0610 | D61: 52 | E61: 11 | F61: Ashburnham | G61: 610 | H61: Ashburnham Westminster | I61: 12545194.17 | J61: 0.9076283984 | K61: 13603235.59 | L61: =IF(K64>0, K61/K64, 0) -> 0.9036077589 | N61: =ROUND(M64*L61,0) -> 5653276 | O61: 5386483 | P61: =N61-O61 -> 266793 | Q61: 4.953009227 | R61: 1042.153846 | S61: 1047.104696 | T61: 11 | U61: 610 | V61: 52 | W61: 1047.104696 | X61: 13603235.59 | Y61: 52 | Z61: 11 | AA61: 610 | AB61: 52 | AC61: 1047.104696 | AD61: 13603235.59
A62: 00110832 | B62: 0011 | C62: 0832 | D62: 53 | E62: 11 | F62: Ashburnham | G62: 832 | H62: Montachusett | I62: 1276755.641 | J62: 0.09237160158 | K62: 1451123.403 | L62: =IF(K64>0, K62/K64, 0) -> 0.09639224114 | N62: =ROUND(M64*L62,0) -> 603063 | O62: 548196 | P62: =N62-O62 -> 54867 | Q62: 10.00864654 | R62: 67.0457026 | S62: 72.09842789 | T62: 11 | U62: 832 | V62: 53 | W62: 72.09842789 | X62: 1451123.403 | Y62: 53 | Z62: 11 | AA62: 832 | AB62: 53 | AC62: 72.09842789 | AD62: 1451123.403
A63: 00110998 | B63: 0011 | C63: 0998 | D63: 54 | E63: 11 | G63: 998 | I63: 0 | J63: 0 | K63: 0 | L63: =IF(K64>0, K63/K64, 0) -> 0 | N63: =ROUND(M64*L63,0) -> 0 | O63: 0 | P63: =N63-O63 -> 0 | Q63: 0 | R63: 0 | S63: 0 | T63: 11 | U63: 998 | V63: 54 | W63: 0 | X63: 0 | Y63: 54 | Z63: 11 | AA63: 998 | AB63: 54 | AC63: 0 | AD63: 0
A64: 00110999 | B64: 0011 | C64: 0999 | D64: 55 | E64: 11 | F64: Ashburnham | G64: 999 | H64: Total | I64: 13821949.81 | J64: 1 | K64: =SUM(K60:K63) -> 15054359 | L64: =SUM(L60:L63) -> 1 | M64: =VLOOKUP(E64,town351,24) -> 6256339 | N64: =SUM(N60:N63) -> 6256339 | O64: 5934679 | P64: =SUM(P60:P63) -> 321660 | Q64: 5.42000671 | R64: 1109.199549 | S64: 1119.203124 | T64: 11 | U64: 999 | V64: 55 | W64: 1119.203124 | X64: 15054359 | Y64: 55 | Z64: 11 | AA64: 999 | AB64: 55 | AC64: 1119.203124 | AD64: 15054359
A65: 00120012 | B65: 0012 | C65: 0012 | D65: 56 | E65: 12 | F65: Ashby | G65: 12 | H65: Ashby | I65: 0 | J65: 0 | K65: =X65 -> 0 | L65: =IF(K69>0, K65/K69, 0) -> 0 | N65: =ROUND(M69*L65,0) -> 0 | O65: 0 | P65: =N65-O65 -> 0 | Q65: 0 | R65: 0 | S65: 0 | T65: 12 | U65: 12 | V65: 56 | W65: 0 | X65: 0 | Y65: 56 | Z65: 12 | AA65: 12 | AB65: 56 | AC65: 0 | AD65: 0
A66: 00120735 | B66: 0012 | C66: 0735 | D66: 57 | E66: 12 | F66: Ashby | G66: 735 | H66: North Middlesex | I66: 4822549.182 | J66: 0.8815627139 | K66: 5218991.298 | L66: =IF(K69>0, K66/K69, 0) -> 0.8749785813 | N66: =ROUND(M69*L66,0) -> 2618646 | O66: 2511041 | P66: =N66-O66 -> 107605 | Q66: 4.285274514 | R66: 393.1275773 | S66: 398.4657534 | T66: 12 | U66: 735 | V66: 57 | W66: 398.4657534 | X66: 5218991.298 | Y66: 57 | Z66: 12 | AA66: 735 | AB66: 57 | AC66: 398.4657534 | AD66: 5218991.298
A67: 00120832 | B67: 0012 | C67: 0832 | D67: 58 | E67: 12 | F67: Ashby | G67: 832 | H67: Montachusett | I67: 647905.8476 | J67: 0.1184372861 | K67: 745716.1928 | L67: =IF(K69>0, K67/K69, 0) -> 0.1250214187 | N67: =ROUND(M69*L67,0) -> 374166 | O67: 337357 | P67: =N67-O67 -> 36809 | Q67: 10.9109934 | R67: 34.02319235 | S67: 37.05058099 | T67: 12 | U67: 832 | V67: 58 | W67: 37.05058099 | X67: 745716.1928 | Y67: 58 | Z67: 12 | AA67: 832 | AB67: 58 | AC67: 37.05058099 | AD67: 745716.1928
A68: 00120998 | B68: 0012 | C68: 0998 | D68: 59 | E68: 12 | G68: 998 | I68: 0 | J68: 0 | K68: 0 | L68: =IF(K69>0, K68/K69, 0) -> 0 | N68: =ROUND(M69*L68,0) -> 0 | O68: 0 | P68: =N68-O68 -> 0 | Q68: 0 | R68: 0 | S68: 0 | T68: 12 | U68: 998 | V68: 59 | W68: 0 | X68: 0 | Y68: 59 | Z68: 12 | AA68: 998 | AB68: 59 | AC68: 0 | AD68: 0
A69: 00120999 | B69: 0012 | C69: 0999 | D69: 60 | E69: 12 | F69: Ashby | G69: 999 | H69: Total | I69: 5470455.03 | J69: 1 | K69: =SUM(K65:K68) -> 5964707.491 | L69: =SUM(L65:L68) -> 1 | M69: =VLOOKUP(E69,town351,24) -> 2992812 | N69: =SUM(N65:N68) -> 2992812 | O69: 2848398 | P69: =SUM(P65:P68) -> 144414 | Q69: 5.070007773 | R69: 427.1507697 | S69: 435.5163344 | T69: 12 | U69: 999 | V69: 60 | W69: 435.5163344 | X69: 5964707.491 | Y69: 60 | Z69: 12 | AA69: 999 | AB69: 60 | AC69: 435.5163344 | AD69: 5964707.491
A70: 00130013 | B70: 0013 | C70: 0013 | D70: 61 | E70: 13 | F70: Ashfield | G70: 13 | H70: Ashfield | I70: 141279.39 | J70: 0.07340423787 | K70: =X70 -> 245151 | L70: =IF(K74>0, K70/K74, 0) -> 0.1113203452 | N70: =ROUND(M74*L70,0) -> 179015 | O70: 110785 | P70: =N70-O70 -> 68230 | Q70: 61.58776008 | R70: 9 | S70: 13 | T70: 13 | U70: 13 | V70: 61 | W70: 13 | X70: 245151 | Y70: 61 | Z70: 13 | AA70: 13 | AB70: 61 | AC70: 13 | AD70: 245151
A71: 00130717 | B71: 0013 | C71: 0717 | D71: 62 | E71: 13 | F71: Ashfield | G71: 717 | H71: Mohawk Trail | I71: 1783396.815 | J71: 0.9265957621 | K71: 1957060.999 | L71: =IF(K74>0, K71/K74, 0) -> 0.8886796548 | N71: =ROUND(M74*L71,0) -> 1429088 | O71: 1398462 | P71: =N71-O71 -> 30626 | Q71: 2.189977275 | R71: 135.2625438 | S71: 136.0134146 | T71: 13 | U71: 717 | V71: 62 | W71: 136.0134146 | X71: 1957060.999 | Y71: 62 | Z71: 13 | AA71: 717 | AB71: 62 | AC71: 136.0134146 | AD71: 1957060.999
A72: 00130998 | B72: 0013 | C72: 0998 | D72: 63 | E72: 13 | G72: 998 | I72: 0 | J72: 0 | K72: 0 | L72: =IF(K74>0, K72/K74, 0) -> 0 | N72: =ROUND(M74*L72,0) -> 0 | O72: 0 | P72: =N72-O72 -> 0 | Q72: 0 | R72: 0 | S72: 0 | T72: 13 | U72: 998 | V72: 63 | W72: 0 | X72: 0 | Y72: 63 | Z72: 13 | AA72: 998 | AB72: 63 | AC72: 0 | AD72: 0
A73: 00130998 | B73: 0013 | C73: 0998 | D73: 64 | E73: 13 | G73: 998 | I73: 0 | J73: 0 | K73: 0 | L73: =IF(K74>0, K73/K74, 0) -> 0 | N73: =ROUND(M74*L73,0) -> 0 | O73: 0 | P73: =N73-O73 -> 0 | Q73: 0 | R73: 0 | S73: 0 | T73: 13 | U73: 998 | V73: 64 | W73: 0 | X73: 0 | Y73: 64 | Z73: 13 | AA73: 998 | AB73: 64 | AC73: 0 | AD73: 0
A74: =B74&C74 -> 00130999 | B74: 0013 | C74: 0999 | D74: 65 | E74: 13 | F74: Ashfield | G74: 999 | H74: Total | I74: 1924676.205 | J74: 1 | K74: =SUM(K70:K73) -> 2202211.999 | L74: =SUM(L70:L73) -> 1 | M74: =VLOOKUP(E74,town351,24) -> 1608103 | N74: =SUM(N70:N73) -> 1608103 | O74: 1509247 | P74: =SUM(P70:P73) -> 98856 | Q74: 6.550021302 | R74: 144.2625438 | S74: 149.0134146 | T74: =VLOOKUP($D74, foundoptions, VLOOKUP($T$6, foundoptcell, 2, FALSE), FALSE) -> 13 | U74: =VLOOKUP($D74, foundoptions, VLOOKUP($T$6, foundoptcell, 2, FALSE)+1, FALSE) -> 999 | V74: =VLOOKUP($D74, foundoptions, VLOOKUP($T$6, foundoptcell, 2, FALSE)+2, FALSE) -> 65 | W74: =VLOOKUP($D74, foundoptions, VLOOKUP($T$6, foundoptcell, 2, FALSE)+3, FALSE) -> 149.0134146 | X74: =VLOOKUP($D74, foundoptions, VLOOKUP($T$6, foundoptcell, 2, FALSE)+4, FALSE) -> 2202211.999 | Y74: 65 | Z74: 13 | AA74: 999 | AB74: 65 | AC74: 149.0134146 | AD74: 2202211.999
A75: 00140014 | B75: 0014 | C75: 0014 | D75: 66 | E75: 14 | F75: Ashland | G75: 14 | H75: Ashland | I75: 33942250.53 | J75: 0.9663356112 | K75: =X75 -> 36758230.61 | L75: =IF(K79>0, K75/K79, 0) -> 0.9645188383 | N75: =ROUND(M79*L75,0) -> 25484731 | O75: 24208528 | P75: =N75-O75 -> 1276203 | Q75: 5.271708383 | R75: 2814 | S75: =W75 -> 2839 | T75: 14 | U75: 14 | V75: 66 | W75: 2839 | X75: 36758230.61 | Y75: =D75 -> 66 | Z75: 14 | AA75: 14 | AB75: 66 | AC75: 2839 | AD75: 36758230.61
A76: 00140829 | B76: 0014 | C76: 0829 | D76: 67 | E76: 14 | F76: Ashland | G76: 829 | H76: South Middlesex | I76: 1182451.629 | J76: 0.03366438878 | K76: 1352202.437 | L76: =IF(K79>0, K76/K79, 0) -> 0.03548116169 | N76: =ROUND(M79*L76,0) -> 937491 | O76: 843356 | P76: =N76-O76 -> 94135 | Q76: 11.16195296 | R76: 55.13002364 | S76: 59.21121718 | T76: 14 | U76: 829 | V76: 67 | W76: 59.21121718 | X76: 1352202.437 | Y76: 67 | Z76: 14 | AA76: 829 | AB76: 67 | AC76: 59.21121718 | AD76: 1352202.437
A77: 00140998 | B77: 0014 | C77: 0998 | D77: 68 | E77: 14 | G77: 998 | I77: 0 | J77: 0 | K77: 0 | L77: =IF(K79>0, K77/K79, 0) -> 0 | N77: =ROUND(M79*L77,0) -> 0 | O77: 0 | P77: =N77-O77 -> 0 | Q77: 0 | R77: 0 | S77: 0 | T77: 14 | U77: 998 | V77: 68 | W77: 0 | X77: 0 | Y77: 68 | Z77: 14 | AA77: 998 | AB77: 68 | AC77: 0 | AD77: 0
A78: 00140998 | B78: 0014 | C78: 0998 | D78: 69 | E78: 14 | G78: 998 | I78: 0 | J78: 0 | K78: 0 | L78: =IF(K79>0, K78/K79, 0) -> 0 | N78: =ROUND(M79*L78,0) -> 0 | O78: 0 | P78: =N78-O78 -> 0 | Q78: 0 | R78: 0 | S78: 0 | T78: 14 | U78: 998 | V78: 69 | W78: 0 | X78: 0 | Y78: 69 | Z78: 14 | AA78: 998 | AB78: 69 | AC78: 0 | AD78: 0
A79: 00140999 | B79: 0014 | C79: 0999 | D79: 70 | E79: 14 | F79: Ashland | G79: 999 | H79: Total | I79: 35124702.16 | J79: 1 | K79: =SUM(K75:K78) -> 38110433.05 | L79: =SUM(L75:L78) -> 1 | M79: =VLOOKUP(E79,town351,24) -> 26422222 | N79: =SUM(N75:N78) -> 26422222 | O79: 25051884 | P79: =SUM(P75:P78) -> 1370338 | Q79: 5.469999781 | R79: 2869.130024 | S79: 2898.211217 | T79: 14 | U79: 999 | V79: 70 | W79: 2898.211217 | X79: 38110433.05 | Y79: 70 | Z79: 14 | AA79: 999 | AB79: 70 | AC79: 2898.211217 | AD79: 38110433.05
A80: 00150015 | B80: 0015 | C80: 0015 | D80: 71 | E80: 15 | F80: Athol | G80: 15 | H80: Athol | I80: 0 | J80: 0 | K80: =X80 -> 0 | L80: =IF(K84>0, K80/K84, 0) -> 0 | N80: =ROUND(M84*L80,0) -> 0 | O80: 0 | P80: =N80-O80 -> 0 | Q80: =IF(O80>0,P80*100/O80,IF(P80>0,100,0)) -> 0 | R80: 0 | S80: 0 | T80: 15 | U80: 15 | V80: 71 | W80: 0 | X80: 0 | Y80: 71 | Z80: 15 | AA80: 15 | AB80: 71 | AC80: 0 | AD80: 0
A81: 00150615 | B81: 0015 | C81: 0615 | D81: 72 | E81: 15 | F81: Athol | G81: 615 | H81: Athol Royalston | I81: 23336352.35 | J81: 0.9148374252 | K81: 25947947.7 | L81: =IF(K84>0, K81/K84, 0) -> 0.9206265412 | N81: =ROUND(M84*L81,0) -> 3730491 | O81: 3516775 | P81: =N81-O81 -> 213716 | Q81: =IF(O81>0,P81*100/O81,IF(P81>0,100,0)) -> 6.07704502 | R81: 1635.389292 | S81: 1632.087739 | T81: 15 | U81: 615 | V81: 72 | W81: 1632.087739 | X81: 25947947.7 | Y81: 72 | Z81: 15 | AA81: 615 | AB81: 72 | AC81: 1632.087739 | AD81: 25947947.7
A82: 00150832 | B82: 0015 | C82: 0832 | D82: 73 | E82: 15 | F82: Athol | G82: 832 | H82: Montachusett | I82: 2172390.195 | J82: 0.08516257482 | K82: 2237148.579 | L82: =IF(K84>0, K82/K84, 0) -> 0.07937345883 | N82: =ROUND(M84*L82,0) -> 321631 | O82: 327378 | P82: =N82-O82 -> -5747 | Q82: =IF(O82>0,P82*100/O82,IF(P82>0,100,0)) -> -1.755463104 | R82: 114.0777626 | S82: 111.151743 | T82: 15 | U82: 832 | V82: 73 | W82: 111.151743 | X82: 2237148.579 | Y82: 73 | Z82: 15 | AA82: 832 | AB82: 73 | AC82: 111.151743 | AD82: 2237148.579
A83: 00150998 | B83: 0015 | C83: 0998 | D83: 74 | E83: 15 | G83: 998 | I83: 0 | J83: 0 | K83: 0 | L83: =IF(K84>0, K83/K84, 0) -> 0 | N83: =ROUND(M84*L83,0) -> 0 | O83: 0 | P83: =N83-O83 -> 0 | Q83: =IF(O83>0,P83*100/O83,IF(P83>0,100,0)) -> 0 | R83: 0 | S83: 0 | T83: 15 | U83: 998 | V83: 74 | W83: 0 | X83: 0 | Y83: 74 | Z83: 15 | AA83: 998 | AB83: 74 | AC83: 0 | AD83: 0
A84: 00150999 | B84: 0015 | C84: 0999 | D84: 75 | E84: 15 | F84: Athol | G84: 999 | H84: Total | I84: 25508742.54 | J84: 1 | K84: =SUM(K80:K83) -> 28185096.27 | L84: =SUM(L80:L83) -> 1 | M84: =VLOOKUP(E84,town351,24) -> 4052122 | N84: =SUM(N80:N83) -> 4052122 | O84: 3844153 | P84: =SUM(P80:P83) -> 207969 | Q84: =IF(O84>0,P84*100/O84,IF(P84>0,100,0)) -> 5.410008395 | R84: 1749.467054 | S84: 1743.239482 | T84: 15 | U84: 999 | V84: 75 | W84: 1743.239482 | X84: 28185096.27 | Y84: 75 | Z84: 15 | AA84: 999 | AB84: 75 | AC84: 1743.239482 | AD84: 28185096.27
A85: 00160016 | B85: 0016 | C85: 0016 | D85: 76 | E85: 16 | F85: Attleboro | G85: 16 | H85: Attleboro | I85: 89310929.61 | J85: 0.9963903374 | K85: =X85 -> 97105120.72 | L85: =IF(K89>0, K85/K89, 0) -> 0.9960316135 | N85: =ROUND(M89*L85,0) -> 43712969 | O85: 41515915 | P85: =N85-O85 -> 2197054 | Q85: 5.292076545 | R85: 6237 | S85: 6238 | T85: 16 | U85: 16 | V85: 76 | W85: 6238 | X85: 97105120.72 | Y85: 76 | Z85: 16 | AA85: 16 | AB85: 76 | AC85: 6238 | AD85: 97105120.72
A86: 00160910 | B86: 0016 | C86: 0910 | D86: 77 | E86: 16 | F86: Attleboro | G86: 910 | H86: Bristol County | I86: 323550.234 | J86: 0.003609662649 | K86: 386885.9605 | L86: =IF(K89>0, K86/K89, 0) -> 0.003968386473 | N86: =ROUND(M89*L86,0) -> 174161 | O86: 150401 | P86: =N86-O86 -> 23760 | Q86: 15.7977673 | R86: 17 | S86: 19 | T86: 16 | U86: 910 | V86: 77 | W86: 19 | X86: 386885.9605 | Y86: 77 | Z86: 16 | AA86: 910 | AB86: 77 | AC86: 19 | AD86: 386885.9605
A87: 00160998 | B87: 0016 | C87: 0998 | D87: 78 | E87: 16 | G87: 998 | I87: 0 | J87: 0 | K87: 0 | L87: =IF(K89>0, K87/K89, 0) -> 0 | N87: =ROUND(M89*L87,0) -> 0 | O87: 0 | P87: =N87-O87 -> 0 | Q87: 0 | R87: 0 | S87: 0 | T87: 16 | U87: 998 | V87: 78 | W87: 0 | X87: 0 | Y87: 78 | Z87: 16 | AA87: 998 | AB87: 78 | AC87: 0 | AD87: 0
A88: 00160998 | B88: 0016 | C88: 0998 | D88: 79 | E88: 16 | G88: 998 | I88: 0 | J88: 0 | K88: 0 | L88: =IF(K89>0, K88/K89, 0) -> 0 | N88: =ROUND(M89*L88,0) -> 0 | O88: 0 | P88: =N88-O88 -> 0 | Q88: 0 | R88: 0 | S88: 0 | T88: 16 | U88: 998 | V88: 79 | W88: 0 | X88: 0 | Y88: 79 | Z88: 16 | AA88: 998 | AB88: 79 | AC88: 0 | AD88: 0
A89: 00160999 | B89: 0016 | C89: 0999 | D89: 80 | E89: 16 | F89: Attleboro | G89: 999 | H89: Total | I89: 89634479.84 | J89: 1 | K89: =SUM(K85:K88) -> 97492006.68 | L89: =SUM(L85:L88) -> 1 | M89: =VLOOKUP(E89,town351,24) -> 43887130 | N89: =SUM(N85:N88) -> 43887130 | O89: 41666316 | P89: =SUM(P85:P88) -> 2220814 | Q89: 5.329998457 | R89: 6254 | S89: 6257 | T89: 16 | U89: 999 | V89: 80 | W89: 6257 | X89: 97492006.68 | Y89: 80 | Z89: 16 | AA89: 999 | AB89: 80 | AC89: 6257 | AD89: 97492006.68
A90: 00170017 | B90: 0017 | C90: 0017 | D90: 81 | E90: 17 | F90: Auburn | G90: 17 | H90: Auburn | I90: 30252650.17 | J90: 0.9308607076 | K90: =X90 -> 32176028.36 | L90: =IF(K94>0, K90/K94, 0) -> 0.9315018494 | N90: =ROUND(M94*L90,0) -> 17041707 | O90: 16217482 | P90: =N90-O90 -> 824225 | Q90: 5.082324124 | R90: 2425 | S90: 2422 | T90: 17 | U90: 17 | V90: 81 | W90: 2422 | X90: 32176028.36 | Y90: 81 | Z90: 17 | AA90: 17 | AB90: 81 | AC90: 2422 | AD90: 32176028.36
A91: 00170876 | B91: 0017 | C91: 0876 | D91: 82 | E91: 17 | F91: Auburn | G91: 876 | H91: Southern Worcester | I91: 2247003.026 | J91: 0.06913929243 | K91: 2366069.846 | L91: =IF(K94>0, K91/K94, 0) -> 0.06849815063 | N91: =ROUND(M94*L91,0) -> 1253165 | O91: 1204547 | P91: =N91-O91 -> 48618 | Q91: 4.036206142 | R91: 118 | S91: 117 | T91: 17 | U91: 876 | V91: 82 | W91: 117 | X91: 2366069.846 | Y91: 82 | Z91: 17 | AA91: 876 | AB91: 82 | AC91: 117 | AD91: 2366069.846
A92: 00170998 | B92: 0017 | C92: 0998 | D92: 83 | E92: 17 | G92: 998 | I92: 0 | J92: 0 | K92: 0 | L92: =IF(K94>0, K92/K94, 0) -> 0 | N92: =ROUND(M94*L92,0) -> 0 | O92: 0 | P92: =N92-O92 -> 0 | Q92: 0 | R92: 0 | S92: 0 | T92: 17 | U92: 998 | V92: 83 | W92: 0 | X92: 0 | Y92: 83 | Z92: 17 | AA92: 998 | AB92: 83 | AC92: 0 | AD92: 0
A93: 00170998 | B93: 0017 | C93: 0998 | D93: 84 | E93: 17 | G93: 998 | I93: 0 | J93: 0 | K93: 0 | L93: =IF(K94>0, K93/K94, 0) -> 0 | N93: =ROUND(M94*L93,0) -> 0 | O93: 0 | P93: =N93-O93 -> 0 | Q93: 0 | R93: 0 | S93: 0 | T93: 17 | U93: 998 | V93: 84 | W93: 0 | X93: 0 | Y93: 84 | Z93: 17 | AA93: 998 | AB93: 84 | AC93: 0 | AD93: 0
A94: 00170999 | B94: 0017 | C94: 0999 | D94: 85 | E94: 17 | F94: Auburn | G94: 999 | H94: Total | I94: 32499653.2 | J94: 1 | K94: =SUM(K90:K93) -> 34542098.21 | L94: =SUM(L90:L93) -> 1 | M94: =VLOOKUP(E94,town351,24) -> 18294872 | N94: =SUM(N90:N93) -> 18294872 | O94: 17422029 | P94: =SUM(P90:P93) -> 872843 | Q94: 5.009996252 | R94: 2543 | S94: 2539 | T94: 17 | U94: 999 | V94: 85 | W94: 2539 | X94: 34542098.21 | Y94: 85 | Z94: 17 | AA94: 999 | AB94: 85 | AC94: 2539 | AD94: 34542098.21
A95: 00180018 | B95: 0018 | C95: 0018 | D95: 86 | E95: 18 | F95: Avon | G95: 18 | H95: Avon | I95: 8289241.66 | J95: 0.8825659136 | K95: =X95 -> 9536788.92 | L95: =IF(K99>0, K95/K99, 0) -> 0.8955437459 | N95: =ROUND(M99*L95,0) -> 5390722 | O95: 5081884 | P95: =N95-O95 -> 308838 | Q95: 6.077234349 | R95: 563 | S95: 586 | T95: 18 | U95: 18 | V95: 86 | W95: 586 | X95: 9536788.92 | Y95: 86 | Z95: 18 | AA95: 18 | AB95: 86 | AC95: 586 | AD95: 9536788.92
A96: 00180806 | B96: 0018 | C96: 0806 | D96: 87 | E96: 18 | F96: Avon | G96: 806 | H96: Blue Hills | I96: 1022255.474 | J96: 0.1088408172 | K96: 1090844.713 | L96: =IF(K99>0, K96/K99, 0) -> 0.10243481 | N96: =ROUND(M99*L96,0) -> 616606 | O96: 626714 | P96: =N96-O96 -> -10108 | Q96: -1.612856901 | R96: 50 | S96: 50 | T96: 18 | U96: 806 | V96: 87 | W96: 50 | X96: 1090844.713 | Y96: 87 | Z96: 18 | AA96: 806 | AB96: 87 | AC96: 50 | AD96: 1090844.713
A97: 00180915 | B97: 0018 | C97: 0915 | D97: 88 | E97: 18 | F97: Avon | G97: 915 | H97: Norfolk County | I97: 80709.76238 | J97: 0.008593269214 | K97: 21526.68295 | L97: =IF(K99>0, K97/K99, 0) -> 0.002021444162 | N97: =ROUND(M99*L97,0) -> 12168 | O97: 49481 | P97: =N97-O97 -> -37313 | Q97: -75.40874275 | R97: 4.000000001 | S97: 1 | T97: 18 | U97: 915 | V97: 88 | W97: 1 | X97: 21526.68295 | Y97: 88 | Z97: 18 | AA97: 915 | AB97: 88 | AC97: 1 | AD97: 21526.68295
A98: 00180998 | B98: 0018 | C98: 0998 | D98: 89 | E98: 18 | G98: 998 | I98: 0 | J98: 0 | K98: 0 | L98: =IF(K99>0, K98/K99, 0) -> 0 | N98: =ROUND(M99*L98,0) -> 0 | O98: 0 | P98: =N98-O98 -> 0 | Q98: 0 | R98: 0 | S98: 0 | T98: 18 | U98: 998 | V98: 89 | W98: 0 | X98: 0 | Y98: 89 | Z98: 18 | AA98: 998 | AB98: 89 | AC98: 0 | AD98: 0
A99: 00180999 | B99: 0018 | C99: 0999 | D99: 90 | E99: 18 | F99: Avon | G99: 999 | H99: Total | I99: 9392206.897 | J99: 1 | K99: =SUM(K95:K98) -> 10649160.32 | L99: =SUM(L95:L98) -> 1 | M99: =VLOOKUP(E99,town351,24) -> 6019496 | N99: =SUM(N95:N98) -> 6019496 | O99: 5758079 | P99: =SUM(P95:P98) -> 261417 | Q99: 4.540003706 | R99: 617 | S99: 637 | T99: 18 | U99: 999 | V99: 90 | W99: 637 | X99: 10649160.32 | Y99: 90 | Z99: 18 | AA99: 999 | AB99: 90 | AC99: 637 | AD99: 10649160.32
A100: 00190019 | B100: 0019 | C100: 0019 | D100: 91 | E100: 19 | F100: Ayer | G100: 19 | H100: Ayer | I100: 0 | J100: 0 | K100: =X100 -> 0 | L100: =IF(K104>0, K100/K104, 0) -> 0 | N100: =ROUND(M104*L100,0) -> 0 | O100: 0 | P100: =N100-O100 -> 0 | Q100: 0 | R100: 0 | S100: 0 | T100: 19 | U100: 19 | V100: 91 | W100: 0 | X100: 0 | Y100: 91 | Z100: 19 | AA100: 19 | AB100: 91 | AC100: 0 | AD100: 0
A101: 00190616 | B101: 0019 | C101: 0616 | D101: 92 | E101: 19 | F101: Ayer | G101: 616 | H101: Ayer Shirley | I101: 12015199.51 | J101: 0.9122241455 | K101: 13108566.87 | L101: =IF(K104>0, K101/K104, 0) -> 0.903259836 | N101: =ROUND(M104*L101,0) -> 9087237 | O101: 8677592 | P101: =N101-O101 -> 409645 | Q101: 4.720722062 | R101: 958.5781533 | S101: 970.6912018 | T101: 19 | U101: 616 | V101: 92 | W101: 970.6912018 | X101: 13108566.87 | Y101: 92 | Z101: 19 | AA101: 616 | AB101: 92 | AC101: 970.6912018 | AD101: 13108566.87
A102: 00190852 | B102: 0019 | C102: 0852 | D102: 93 | E102: 19 | F102: Ayer | G102: 852 | H102: Nashoba Valley | I102: 1156124.193 | J102: 0.08777585446 | K102: 1403942.541 | L102: =IF(K104>0, K102/K104, 0) -> 0.09674016403 | N102: =ROUND(M104*L102,0) -> 973253 | O102: 834974 | P102: =N102-O102 -> 138279 | Q102: 16.56087495 | R102: 61 | S102: 69 | T102: 19 | U102: 852 | V102: 93 | W102: 69 | X102: 1403942.541 | Y102: 93 | Z102: 19 | AA102: 852 | AB102: 93 | AC102: 69 | AD102: 1403942.541
A103: 00190998 | B103: 0019 | C103: 0998 | D103: 94 | E103: 19 | G103: 998 | I103: 0 | J103: 0 | K103: 0 | L103: =IF(K104>0, K103/K104, 0) -> 0 | N103: =ROUND(M104*L103,0) -> 0 | O103: 0 | P103: =N103-O103 -> 0 | Q103: 0 | R103: 0 | S103: 0 | T103: 19 | U103: 998 | V103: 94 | W103: 0 | X103: 0 | Y103: 94 | Z103: 19 | AA103: 998 | AB103: 94 | AC103: 0 | AD103: 0
A104: 00190999 | B104: 0019 | C104: 0999 | D104: 95 | E104: 19 | F104: Ayer | G104: 999 | H104: Total | I104: 13171323.71 | J104: 1 | K104: =SUM(K100:K103) -> 14512509.41 | L104: =SUM(L100:L103) -> 1 | M104: =VLOOKUP(E104,town351,24) -> 10060490 | N104: =SUM(N100:N103) -> 10060490 | O104: 9512566 | P104: =SUM(P100:P103) -> 547924 | Q104: 5.760002086 | R104: 1019.578153 | S104: 1039.691202 | T104: 19 | U104: 999 | V104: 95 | W104: 1039.691202 | X104: 14512509.41 | Y104: 95 | Z104: 19 | AA104: 999 | AB104: 95 | AC104: 1039.691202 | AD104: 14512509.41
A105: 00200020 | B105: 0020 | C105: 0020 | D105: 96 | E105: 20 | F105: Barnstable | G105: 20 | H105: Barnstable | I105: 75594779.84 | J105: 0.9519605426 | K105: =X105 -> 84542110.14 | L105: =IF(K109>0, K105/K109, 0) -> 0.9524161119 | N105: =ROUND(M109*L105,0) -> 59790057 | O105: 56888584 | P105: =N105-O105 -> 2901473 | Q105: 5.100272842 | R105: 5193 | S105: 5302 | T105: 20 | U105: 20 | V105: 96 | W105: 5302 | X105: 84542110.14 | Y105: 96 | Z105: 20 | AA105: 20 | AB105: 96 | AC105: 5302 | AD105: 84542110.14
A106: 00200815 | B106: 0020 | C106: 0815 | D106: 97 | E106: 20 | F106: Barnstable | G106: 815 | H106: Cape Cod | I106: 3814792.779 | J106: 0.04803945738 | K106: 4223828.492 | L106: =IF(K109>0, K106/K109, 0) -> 0.04758388811 | N106: =ROUND(M109*L106,0) -> 2987185 | O106: 2870809 | P106: =N106-O106 -> 116376 | Q106: 4.053770209 | R106: 186.2835366 | S106: 194.5817091 | T106: 20 | U106: 815 | V106: 97 | W106: 194.5817091 | X106: 4223828.492 | Y106: 97 | Z106: 20 | AA106: 815 | AB106: 97 | AC106: 194.5817091 | AD106: 4223828.492
A107: 00200998 | B107: 0020 | C107: 0998 | D107: 98 | E107: 20 | G107: 998 | I107: 0 | J107: 0 | K107: 0 | L107: =IF(K109>0, K107/K109, 0) -> 0 | N107: =ROUND(M109*L107,0) -> 0 | O107: 0 | P107: =N107-O107 -> 0 | Q107: 0 | R107: 0 | S107: 0 | T107: 20 | U107: 998 | V107: 98 | W107: 0 | X107: 0 | Y107: 98 | Z107: 20 | AA107: 998 | AB107: 98 | AC107: 0 | AD107: 0
A108: 00200998 | B108: 0020 | C108: 0998 | D108: 99 | E108: 20 | G108: 998 | I108: 0 | J108: 0 | K108: 0 | L108: =IF(K109>0, K108/K109, 0) -> 0 | N108: =ROUND(M109*L108,0) -> 0 | O108: 0 | P108: =N108-O108 -> 0 | Q108: 0 | R108: 0 | S108: 0 | T108: 20 | U108: 998 | V108: 99 | W108: 0 | X108: 0 | Y108: 99 | Z108: 20 | AA108: 998 | AB108: 99 | AC108: 0 | AD108: 0
A109: 00200999 | B109: 0020 | C109: 0999 | D109: 100 | E109: 20 | F109: Barnstable | G109: 999 | H109: Total | I109: 79409572.62 | J109: 1 | K109: =SUM(K105:K108) -> 88765938.63 | L109: =SUM(L105:L108) -> 1 | M109: =VLOOKUP(E109,town351,24) -> 62777242 | N109: =SUM(N105:N108) -> 62777242 | O109: 59759393 | P109: =SUM(P105:P108) -> 3017849 | Q109: 5.04999942 | R109: 5379.283537 | S109: 5496.581709 | T109: 20 | U109: 999 | V109: 100 | W109: 5496.581709 | X109: 88765938.63 | Y109: 100 | Z109: 20 | AA109: 999 | AB109: 100 | AC109: 5496.581709 | AD109: 88765938.63
A110: 00210021 | B110: 0021 | C110: 0021 | D110: 101 | E110: 21 | F110: Barre | G110: 21 | H110: Barre | I110: 0 | J110: 0 | K110: =X110 -> 0 | L110: =IF(K114>0, K110/K114, 0) -> 0 | N110: =ROUND(M114*L110,0) -> 0 | O110: 0 | P110: =N110-O110 -> 0 | Q110: 0 | R110: 0 | S110: 0 | T110: 21 | U110: 21 | V110: 101 | W110: 0 | X110: 0 | Y110: 101 | Z110: 21 | AA110: 21 | AB110: 101 | AC110: 0 | AD110: 0
A111: 00210753 | B111: 0021 | C111: 0753 | D111: 102 | E111: 21 | F111: Barre | G111: 753 | H111: Quabbin | I111: 9863169.767 | J111: 0.9119078087 | K111: 10294721.16 | L111: =IF(K114>0, K111/K114, 0) -> 0.9240218373 | N111: =ROUND(M114*L111,0) -> 3851659 | O111: 3621535 | P111: =N111-O111 -> 230124 | Q111: 6.354322131 | R111: 757.4253215 | S111: 742.776342 | T111: 21 | U111: 753 | V111: 102 | W111: 742.776342 | X111: 10294721.16 | Y111: 102 | Z111: 21 | AA111: 753 | AB111: 102 | AC111: 742.776342 | AD111: 10294721.16
A112: 00210832 | B112: 0021 | C112: 0832 | D112: 103 | E112: 21 | F112: Barre | G112: 832 | H112: Montachusett | I112: 952802.7174 | J112: 0.08809219132 | K112: 846488.6514 | L112: =IF(K114>0, K112/K114, 0) -> 0.07597816266 | N112: =ROUND(M114*L112,0) -> 316705 | O112: 349848 | P112: =N112-O112 -> -33143 | Q112: -9.473542796 | R112: 50.03410642 | S112: 42.05741627 | T112: 21 | U112: 832 | V112: 103 | W112: 42.05741627 | X112: 846488.6514 | Y112: 103 | Z112: 21 | AA112: 832 | AB112: 103 | AC112: 42.05741627 | AD112: 846488.6514
A113: 00210998 | B113: 0021 | C113: 0998 | D113: 104 | E113: 21 | G113: 998 | I113: 0 | J113: 0 | K113: 0 | L113: =IF(K114>0, K113/K114, 0) -> 0 | N113: =ROUND(M114*L113,0) -> 0 | O113: 0 | P113: =N113-O113 -> 0 | Q113: 0 | R113: 0 | S113: 0 | T113: 21 | U113: 998 | V113: 104 | W113: 0 | X113: 0 | Y113: 104 | Z113: 21 | AA113: 998 | AB113: 104 | AC113: 0 | AD113: 0
A114: 00210999 | B114: 0021 | C114: 0999 | D114: 105 | E114: 21 | F114: Barre | G114: 999 | H114: Total | I114: 10815972.48 | J114: 1 | K114: =SUM(K110:K113) -> 11141209.81 | L114: =SUM(L110:L113) -> 1 | M114: =VLOOKUP(E114,town351,24) -> 4168364 | N114: =SUM(N110:N113) -> 4168364 | O114: 3971383 | P114: =SUM(P110:P113) -> 196981 | Q114: 4.960010153 | R114: 807.4594279 | S114: 784.8337582 | T114: 21 | U114: 999 | V114: 105 | W114: 784.8337582 | X114: 11141209.81 | Y114: 105 | Z114: 21 | AA114: 999 | AB114: 105 | AC114: 784.8337582 | AD114: 11141209.81
A115: 00220022 | B115: 0022 | C115: 0022 | D115: 106 | E115: 22 | F115: Becket | G115: 22 | H115: Becket | I115: 202094.16 | J115: 0.07223187621 | K115: =X115 -> 261641.76 | L115: =IF(K119>0, K115/K119, 0) -> 0.08391660674 | N115: =ROUND(M119*L115,0) -> 189361 | O115: 153855 | P115: =N115-O115 -> 35506 | Q115: 23.07757304 | R115: 11 | S115: 14 | T115: 22 | U115: 22 | V115: 106 | W115: 14 | X115: 261641.76 | Y115: 106 | Z115: 22 | AA115: 22 | AB115: 106 | AC115: 14 | AD115: 261641.76
A116: 00220635 | B116: 0022 | C116: 0635 | D116: 107 | E116: 22 | F116: Becket | G116: 635 | H116: Central Berkshire | I116: 2595758.68 | J116: 0.9277681238 | K116: 2856236.455 | L116: =IF(K119>0, K116/K119, 0) -> 0.9160833933 | N116: =ROUND(M119*L116,0) -> 2067171 | O116: 1976155 | P116: =N116-O116 -> 91016 | Q116: 4.605711597 | R116: 193.6588389 | S116: 199.706684 | T116: 22 | U116: 635 | V116: 107 | W116: 199.706684 | X116: 2856236.455 | Y116: 107 | Z116: 22 | AA116: 635 | AB116: 107 | AC116: 199.706684 | AD116: 2856236.455
A117: 00220998 | B117: 0022 | C117: 0998 | D117: 108 | E117: 22 | G117: 998 | I117: 0 | J117: 0 | K117: 0 | L117: =IF(K119>0, K117/K119, 0) -> 0 | N117: =ROUND(M119*L117,0) -> 0 | O117: 0 | P117: =N117-O117 -> 0 | Q117: 0 | R117: 0 | S117: 0 | T117: 22 | U117: 998 | V117: 108 | W117: 0 | X117: 0 | Y117: 108 | Z117: 22 | AA117: 998 | AB117: 108 | AC117: 0 | AD117: 0
A118: 00220998 | B118: 0022 | C118: 0998 | D118: 109 | E118: 22 | G118: 998 | I118: 0 | J118: 0 | K118: 0 | L118: =IF(K119>0, K118/K119, 0) -> 0 | N118: =ROUND(M119*L118,0) -> 0 | O118: 0 | P118: =N118-O118 -> 0 | Q118: 0 | R118: 0 | S118: 0 | T118: 22 | U118: 998 | V118: 109 | W118: 0 | X118: 0 | Y118: 109 | Z118: 22 | AA118: 998 | AB118: 109 | AC118: 0 | AD118: 0
A119: 00220999 | B119: 0022 | C119: 0999 | D119: 110 | E119: 22 | F119: Becket | G119: 999 | H119: Total | I119: 2797852.84 | J119: 1 | K119: =SUM(K115:K118) -> 3117878.215 | L119: =SUM(L115:L118) -> 1 | M119: =VLOOKUP(E119,town351,24) -> 2256532 | N119: =SUM(N115:N118) -> 2256532 | O119: 2130010 | P119: =SUM(P115:P118) -> 126522 | Q119: 5.939972113 | R119: 204.6588389 | S119: 213.706684 | T119: 22 | U119: 999 | V119: 110 | W119: 213.706684 | X119: 3117878.215 | Y119: 110 | Z119: 22 | AA119: 999 | AB119: 110 | AC119: 213.706684 | AD119: 3117878.215
A120: 00230023 | B120: 0023 | C120: 0023 | D120: 111 | E120: 23 | F120: Bedford | G120: 23 | H120: Bedford | I120: 32246555.76 | J120: 0.9790095412 | K120: =X120 -> 33265363.04 | L120: =IF(K124>0, K120/K124, 0) -> 0.978446434 | N120: =ROUND(M124*L120,0) -> 27443924 | O120: 26379003 | P120: =N120-O120 -> 1064921 | Q120: 4.03700246 | R120: 2624 | S120: 2549 | T120: 23 | U120: 23 | V120: 111 | W120: 2549 | X120: 33265363.04 | Y120: 111 | Z120: 23 | AA120: 23 | AB120: 111 | AC120: 2549 | AD120: 33265363.04
A121: 00230871 | B121: 0023 | C121: 0871 | D121: 112 | E121: 23 | F121: Bedford | G121: 871 | H121: Shawsheen Valley | I121: 691382.4358 | J121: 0.02099045884 | K121: 732781.2478 | L121: =IF(K124>0, K121/K124, 0) -> 0.02155356603 | N121: =ROUND(M124*L121,0) -> 604545 | O121: 565579 | P121: =N121-O121 -> 38966 | Q121: 6.889576876 | R121: 38 | S121: 38 | T121: 23 | U121: 871 | V121: 112 | W121: 38 | X121: 732781.2478 | Y121: 112 | Z121: 23 | AA121: 871 | AB121: 112 | AC121: 38 | AD121: 732781.2478
A122: 00230998 | B122: 0023 | C122: 0998 | D122: 113 | E122: 23 | G122: 998 | I122: 0 | J122: 0 | K122: 0 | L122: =IF(K124>0, K122/K124, 0) -> 0 | N122: =ROUND(M124*L122,0) -> 0 | O122: 0 | P122: =N122-O122 -> 0 | Q122: 0 | R122: 0 | S122: 0 | T122: 23 | U122: 998 | V122: 113 | W122: 0 | X122: 0 | Y122: 113 | Z122: 23 | AA122: 998 | AB122: 113 | AC122: 0 | AD122: 0
A123: 00230998 | B123: 0023 | C123: 0998 | D123: 114 | E123: 23 | G123: 998 | I123: 0 | J123: 0 | K123: 0 | L123: =IF(K124>0, K123/K124, 0) -> 0 | N123: =ROUND(M124*L123,0) -> 0 | O123: 0 | P123: =N123-O123 -> 0 | Q123: 0 | R123: 0 | S123: 0 | T123: 23 | U123: 998 | V123: 114 | W123: 0 | X123: 0 | Y123: 114 | Z123: 23 | AA123: 998 | AB123: 114 | AC123: 0 | AD123: 0
A124: 00230999 | B124: 0023 | C124: 0999 | D124: 115 | E124: 23 | F124: Bedford | G124: 999 | H124: Total | I124: 32937938.19 | J124: 1 | K124: =SUM(K120:K123) -> 33998144.29 | L124: =SUM(L120:L123) -> 1 | M124: =VLOOKUP(E124,town351,24) -> 28048469 | N124: =SUM(N120:N123) -> 28048469 | O124: 26944582 | P124: =SUM(P120:P123) -> 1103887 | Q124: 4.096879291 | R124: 2662 | S124: 2587 | T124: 23 | U124: 999 | V124: 115 | W124: 2587 | X124: 33998144.29 | Y124: 115 | Z124: 23 | AA124: 999 | AB124: 115 | AC124: 2587 | AD124: 33998144.29
A125: 00240024 | B125: 0024 | C125: 0024 | D125: 116 | E125: 24 | F125: Belchertown | G125: 24 | H125: Belchertown | I125: 26384198.33 | J125: 0.9282611991 | K125: =X125 -> 27713334.38 | L125: =IF(K129>0, K125/K129, 0) -> 0.9248359154 | N125: =ROUND(M129*L125,0) -> 13763232 | O125: 13099002 | P125: =N125-O125 -> 664230 | Q125: 5.070844328 | R125: 2177 | S125: 2152 | T125: 24 | U125: 24 | V125: 116 | W125: 2152 | X125: 27713334.38 | Y125: 116 | Z125: 24 | AA125: 24 | AB125: 116 | AC125: 2152 | AD125: 27713334.38
A126: 00240860 | B126: 0024 | C126: 0860 | D126: 117 | E126: 24 | F126: Belchertown | G126: 860 | H126: Pathfinder | I126: 2039049.735 | J126: 0.07173880094 | K126: 2252342.687 | L126: =IF(K129>0, K126/K129, 0) -> 0.07516408462 | N126: =ROUND(M129*L126,0) -> 1118578 | O126: 1012330 | P126: =N126-O126 -> 106248 | Q126: 10.49539182 | R126: 103 | S126: 106 | T126: 24 | U126: 860 | V126: 117 | W126: 106 | X126: 2252342.687 | Y126: 117 | Z126: 24 | AA126: 860 | AB126: 117 | AC126: 106 | AD126: 2252342.687
A127: 00240998 | B127: 0024 | C127: 0998 | D127: 118 | E127: 24 | G127: 998 | I127: 0 | J127: 0 | K127: 0 | L127: =IF(K129>0, K127/K129, 0) -> 0 | N127: =ROUND(M129*L127,0) -> 0 | O127: 0 | P127: =N127-O127 -> 0 | Q127: 0 | R127: 0 | S127: 0 | T127: 24 | U127: 998 | V127: 118 | W127: 0 | X127: 0 | Y127: 118 | Z127: 24 | AA127: 998 | AB127: 118 | AC127: 0 | AD127: 0
A128: 00240998 | B128: 0024 | C128: 0998 | D128: 119 | E128: 24 | G128: 998 | I128: 0 | J128: 0 | K128: 0 | L128: =IF(K129>0, K128/K129, 0) -> 0 | N128: =ROUND(M129*L128,0) -> 0 | O128: 0 | P128: =N128-O128 -> 0 | Q128: 0 | R128: 0 | S128: 0 | T128: 24 | U128: 998 | V128: 119 | W128: 0 | X128: 0 | Y128: 119 | Z128: 24 | AA128: 998 | AB128: 119 | AC128: 0 | AD128: 0
A129: 00240999 | B129: 0024 | C129: 0999 | D129: 120 | E129: 24 | F129: Belchertown | G129: 999 | H129: Total | I129: 28423248.07 | J129: 1 | K129: =SUM(K125:K128) -> 29965677.07 | L129: =SUM(L125:L128) -> 1 | M129: =VLOOKUP(E129,town351,24) -> 14881810 | N129: =SUM(N125:N128) -> 14881810 | O129: 14111332 | P129: =SUM(P125:P128) -> 770478 | Q129: 5.459994847 | R129: 2280 | S129: 2258 | T129: 24 | U129: 999 | V129: 120 | W129: 2258 | X129: 29965677.07 | Y129: 120 | Z129: 24 | AA129: 999 | AB129: 120 | AC129: 2258 | AD129: 29965677.07
A130: 00250025 | B130: 0025 | C130: 0025 | D130: 121 | E130: 25 | F130: Bellingham | G130: 25 | H130: Bellingham | I130: 27015991.39 | J130: 0.9425162314 | K130: =X130 -> 29660512.23 | L130: =IF(K134>0, K130/K134, 0) -> 0.9433210962 | N130: =ROUND(M134*L130,0) -> 19686080 | O130: 18432465 | P130: =N130-O130 -> 1253615 | Q130: 6.80112508 | R130: 2158 | S130: 2175 | T130: 25 | U130: 25 | V130: 121 | W130: 2175 | X130: 29660512.23 | Y130: 121 | Z130: 25 | AA130: 25 | AB130: 121 | AC130: 2175 | AD130: 29660512.23
A131: 00250805 | B131: 0025 | C131: 0805 | D131: 122 | E131: 25 | F131: Bellingham | G131: 805 | H131: Blackstone Valley | I131: 1284502.891 | J131: 0.04481289642 | K131: 1416181.153 | L131: =IF(K134>0, K131/K134, 0) -> 0.04504013778 | N131: =ROUND(M134*L131,0) -> 939938 | O131: 876390 | P131: =N131-O131 -> 63548 | Q131: 7.251109666 | R131: 72 | S131: 75 | T131: 25 | U131: 805 | V131: 122 | W131: 75 | X131: 1416181.153 | Y131: 122 | Z131: 25 | AA131: 805 | AB131: 122 | AC131: 75 | AD131: 1416181.153
A132: 00250915 | B132: 0025 | C132: 0915 | D132: 123 | E132: 25 | F132: Bellingham | G132: 915 | H132: Norfolk County | I132: 363193.9306 | J132: 0.01267087222 | K132: 365953.6102 | L132: =IF(K134>0, K132/K134, 0) -> 0.01163876598 | N132: =ROUND(M134*L132,0) -> 242888 | O132: 247800 | P132: =N132-O132 -> -4912 | Q132: -1.982243745 | R132: 18 | S132: 17 | T132: 25 | U132: 915 | V132: 123 | W132: 17 | X132: 365953.6102 | Y132: 123 | Z132: 25 | AA132: 915 | AB132: 123 | AC132: 17 | AD132: 365953.6102
A133: 00250998 | B133: 0025 | C133: 0998 | D133: 124 | E133: 25 | G133: 998 | I133: 0 | J133: 0 | K133: 0 | L133: =IF(K134>0, K133/K134, 0) -> 0 | N133: =ROUND(M134*L133,0) -> 0 | O133: 0 | P133: =N133-O133 -> 0 | Q133: 0 | R133: 0 | S133: 0 | T133: 25 | U133: 998 | V133: 124 | W133: 0 | X133: 0 | Y133: 124 | Z133: 25 | AA133: 998 | AB133: 124 | AC133: 0 | AD133: 0
A134: 00250999 | B134: 0025 | C134: 0999 | D134: 125 | E134: 25 | F134: Bellingham | G134: 999 | H134: Total | I134: 28663688.21 | J134: 1 | K134: =SUM(K130:K133) -> 31442646.99 | L134: =SUM(L130:L133) -> 1 | M134: =VLOOKUP(E134,town351,24) -> 20868907 | N134: =SUM(N130:N133) -> 20868906 | O134: 19556655 | P134: =SUM(P130:P133) -> 1312251 | Q134: 6.709997185 | R134: 2248 | S134: 2267 | T134: 25 | U134: 999 | V134: 125 | W134: 2267 | X134: 31442646.99 | Y134: 125 | Z134: 25 | AA134: 999 | AB134: 125 | AC134: 2267 | AD134: 31442646.99
A135: 00260026 | B135: 0026 | C135: 0026 | D135: 126 | E135: 26 | F135: Belmont | G135: 26 | H135: Belmont | I135: 53256083.38 | J135: 1 | K135: =X135 -> 57423975.88 | L135: =IF(K139>0, K135/K139, 0) -> 1 | N135: =ROUND(M139*L135,0) -> 45639441 | O135: 43686648 | P135: =N135-O135 -> 1952793 | Q135: 4.469999621 | R135: 4449 | S135: 4505 | T135: 26 | U135: 26 | V135: 126 | W135: 4505 | X135: 57423975.88 | Y135: 126 | Z135: 26 | AA135: 26 | AB135: 126 | AC135: 4505 | AD135: 57423975.88
A136: 00260830 | B136: 0026 | C136: 0830 | D136: 127 | E136: 26 | G136: 998 | I136: 0 | J136: 0 | K136: 0 | L136: =IF(K139>0, K136/K139, 0) -> 0 | N136: =ROUND(M139*L136,0) -> 0 | O136: 0 | P136: =N136-O136 -> 0 | Q136: 0 | R136: 0 | S136: 0 | T136: 26 | U136: 830 | V136: 127 | W136: 0 | X136: 0 | Y136: 127 | Z136: 26 | AA136: 830 | AB136: 127 | AC136: 0 | AD136: 0
A137: 00260998 | B137: 0026 | C137: 0998 | D137: 128 | E137: 26 | G137: 998 | I137: 0 | J137: 0 | K137: 0 | L137: =IF(K139>0, K137/K139, 0) -> 0 | N137: =ROUND(M139*L137,0) -> 0 | O137: 0 | P137: =N137-O137 -> 0 | Q137: 0 | R137: 0 | S137: 0 | T137: 26 | U137: 998 | V137: 128 | W137: 0 | X137: 0 | Y137: 128 | Z137: 26 | AA137: 998 | AB137: 128 | AC137: 0 | AD137: 0
A138: =B138&C138 -> 00260998 | B138: 0026 | C138: 0998 | D138: 129 | E138: 26 | G138: 998 | I138: 0 | J138: 0 | K138: 0 | L138: =IF(K139>0, K138/K139, 0) -> 0 | N138: =ROUND(M139*L138,0) -> 0 | O138: 0 | P138: =N138-O138 -> 0 | Q138: 0 | R138: 0 | S138: 0 | T138: =VLOOKUP($D138, foundoptions, VLOOKUP($T$6, foundoptcell, 2, FALSE), FALSE) -> 26 | U138: =VLOOKUP($D138, foundoptions, VLOOKUP($T$6, foundoptcell, 2, FALSE)+1, FALSE) -> 998 | V138: =VLOOKUP($D138, foundoptions, VLOOKUP($T$6, foundoptcell, 2, FALSE)+2, FALSE) -> 129 | W138: =VLOOKUP($D138, foundoptions, VLOOKUP($T$6, foundoptcell, 2, FALSE)+3, FALSE) -> 0 | X138: =VLOOKUP($D138, foundoptions, VLOOKUP($T$6, foundoptcell, 2, FALSE)+4, FALSE) -> 0 | Y138: 129 | Z138: 26 | AA138: 998 | AB138: 129 | AC138: 0 | AD138: 0
A139: 00260999 | B139: 0026 | C139: 0999 | D139: 130 | E139: 26 | F139: Belmont | G139: 999 | H139: Total | I139: 53256083.38 | J139: 1 | K139: =SUM(K135:K138) -> 57423975.88 | L139: =SUM(L135:L138) -> 1 | M139: =VLOOKUP(E139,town351,24) -> 45639441 | N139: =SUM(N135:N138) -> 45639441 | O139: 43686648 | P139: =SUM(P135:P138) -> 1952793 | Q139: 4.469999621 | R139: 4449 | S139: =W139 -> 4505 | T139: 26 | U139: 999 | V139: 130 | W139: 4505 | X139: 57423975.88 | Y139: =D139 -> 130 | Z139: 26 | AA139: 999 | AB139: 130 | AC139: 4505 | AD139: 57423975.88
A140: 00270027 | B140: 0027 | C140: 0027 | D140: 131 | E140: 27 | F140: Berkley | G140: 27 | H140: Berkley | I140: 8601441.5 | J140: 0.6126300794 | K140: =X140 -> 8929788.14 | L140: =IF(K144>0, K140/K144, 0) -> 0.6046882925 | N140: =ROUND(M144*L140,0) -> 4777868 | O140: 4571797 | P140: =N140-O140 -> 206071 | Q140: 4.507439854 | R140: 725 | S140: 698 | T140: 27 | U140: 27 | V140: 131 | W140: 698 | X140: 8929788.14 | Y140: 131 | Z140: 27 | AA140: 27 | AB140: 131 | AC140: 698 | AD140: 8929788.14
A141: 00270763 | B141: 0027 | C141: 0763 | D141: 132 | E141: 27 | F141: Berkley | G141: 763 | H141: Somerset Berkley | I141: 3452748.819 | J141: 0.2459189873 | K141: 3647366.851 | L141: =IF(K144>0, K141/K144, 0) -> 0.2469845867 | N141: =ROUND(M144*L141,0) -> 1951517 | O141: 1835188 | P141: =N141-O141 -> 116329 | Q141: 6.338805616 | R141: 257 | S141: 257.5160643 | T141: 27 | U141: 763 | V141: 132 | W141: 257.5160643 | X141: 3647366.851 | Y141: 132 | Z141: 27 | AA141: 763 | AB141: 132 | AC141: 257.5160643 | AD141: 3647366.851
A142: 00270810 | B142: 0027 | C142: 0810 | D142: 133 | E142: 27 | F142: Berkley | G142: 810 | H142: Bristol Plymouth | I142: 1700512.198 | J142: 0.1211174805 | K142: 1864635.245 | L142: =IF(K144>0, K142/K144, 0) -> 0.1262653811 | N142: =ROUND(M144*L142,0) -> 997670 | O142: 903848 | P142: =N142-O142 -> 93822 | Q142: 10.38028518 | R142: 89.26292466 | S142: 92.49047982 | T142: 27 | U142: 810 | V142: 133 | W142: 92.49047982 | X142: 1864635.245 | Y142: 133 | Z142: 27 | AA142: 810 | AB142: 133 | AC142: 92.49047982 | AD142: 1864635.245
A143: 00270910 | B143: 0027 | C143: 0910 | D143: 134 | E143: 27 | F143: Berkley | G143: 910 | H143: Bristol County | I143: 285485.5006 | J143: 0.02033345281 | K143: 325798.7036 | L143: =IF(K144>0, K143/K144, 0) -> 0.02206173973 | N143: =ROUND(M144*L143,0) -> 174318 | O143: 151740 | P143: =N143-O143 -> 22578 | Q143: 14.87939897 | R143: 15 | S143: 16 | T143: 27 | U143: 910 | V143: 134 | W143: 16 | X143: 325798.7036 | Y143: 134 | Z143: 27 | AA143: 910 | AB143: 134 | AC143: 16 | AD143: 325798.7036
A144: 00270999 | B144: 0027 | C144: 0999 | D144: 135 | E144: 27 | F144: Berkley | G144: 999 | H144: Total | I144: 14040188.02 | J144: 1 | K144: =SUM(K140:K143) -> 14767588.94 | L144: =SUM(L140:L143) -> 1 | M144: =VLOOKUP(E144,town351,24) -> 7901373 | N144: =SUM(N140:N143) -> 7901373 | O144: 7462573 | P144: =SUM(P140:P143) -> 438800 | Q144: =IF(O144>0,P144*100/O144,IF(P144>0,100,0)) -> 5.880009482 | R144: 1086.262925 | S144: 1064.006544 | T144: 27 | U144: 999 | V144: 135 | W144: 1064.006544 | X144: 14767588.94 | Y144: 135 | Z144: 27 | AA144: 999 | AB144: 135 | AC144: 1064.006544 | AD144: 14767588.94
A145: 00280028 | B145: 0028 | C145: 0028 | D145: 136 | E145: 28 | F145: Berlin | G145: 28 | H145: Berlin | I145: 0 | J145: 0 | K145: =X145 -> 0 | L145: =IF(K149>0, K145/K149, 0) -> 0 | N145: =ROUND(M149*L145,0) -> 0 | O145: 0 | P145: =N145-O145 -> 0 | Q145: 0 | R145: 0 | S145: 0 | T145: 28 | U145: 28 | V145: 136 | W145: 0 | X145: 0 | Y145: 136 | Z145: 28 | AA145: 28 | AB145: 136 | AC145: 0 | AD145: 0
A146: 00280620 | B146: 0028 | C146: 0620 | D146: 137 | E146: 28 | F146: Berlin | G146: 620 | H146: Berlin Boylston | I146: 4346852.583 | J146: 0.8496911329 | K146: 4843565.867 | L146: =IF(K149>0, K146/K149, 0) -> 0.8329821868 | N146: =ROUND(M149*L146,0) -> 3383257 | O146: 3146824 | P146: =N146-O146 -> 236433 | Q146: 7.513384924 | R146: 371.7171923 | S146: 389.6712871 | T146: 28 | U146: 620 | V146: 137 | W146: 389.6712871 | X146: 4843565.867 | Y146: 137 | Z146: 28 | AA146: 620 | AB146: 137 | AC146: 389.6712871 | AD146: 4843565.867
A147: 00280801 | B147: 0028 | C147: 0801 | D147: 138 | E147: 28 | F147: Berlin | G147: 801 | H147: Assabet Valley | I147: 768950.5774 | J147: 0.1503088671 | K147: 971163.3599 | L147: =IF(K149>0, K147/K149, 0) -> 0.1670178132 | N147: =ROUND(M149*L147,0) -> 678363 | O147: 556668 | P147: =N147-O147 -> 121695 | Q147: 21.86132488 | R147: 37 | S147: 44 | T147: 28 | U147: 801 | V147: 138 | W147: 44 | X147: 971163.3599 | Y147: 138 | Z147: 28 | AA147: 801 | AB147: 138 | AC147: 44 | AD147: 971163.3599
A148: 00280998 | B148: 0028 | C148: 0998 | D148: 139 | E148: 28 | G148: 998 | I148: 0 | J148: 0 | K148: 0 | L148: =IF(K149>0, K148/K149, 0) -> 0 | N148: =ROUND(M149*L148,0) -> 0 | O148: 0 | P148: =N148-O148 -> 0 | Q148: 0 | R148: 0 | S148: 0 | T148: 28 | U148: 998 | V148: 139 | W148: 0 | X148: 0 | Y148: 139 | Z148: 28 | AA148: 998 | AB148: 139 | AC148: 0 | AD148: 0
A149: 00280999 | B149: 0028 | C149: 0999 | D149: 140 | E149: 28 | F149: Berlin | G149: 999 | H149: Total | I149: 5115803.16 | J149: 1 | K149: =SUM(K145:K148) -> 5814729.227 | L149: =SUM(L145:L148) -> 1 | M149: =VLOOKUP(E149,town351,24) -> 4061620 | N149: =SUM(N145:N148) -> 4061620 | O149: 3703492 | P149: =SUM(P145:P148) -> 358128 | Q149: 9.670008738 | R149: 408.7171923 | S149: 433.6712871 | T149: 28 | U149: 999 | V149: 140 | W149: 433.6712871 | X149: 5814729.227 | Y149: 140 | Z149: 28 | AA149: 999 | AB149: 140 | AC149: 433.6712871 | AD149: 5814729.227
A150: 00290029 | B150: 0029 | C150: 0029 | D150: 141 | E150: 29 | F150: Bernardston | G150: 29 | H150: Bernardston | I150: 0 | J150: 0 | K150: =X150 -> 0 | L150: =IF(K154>0, K150/K154, 0) -> 0 | N150: =ROUND(M154*L150,0) -> 0 | O150: 0 | P150: =N150-O150 -> 0 | Q150: 0 | R150: 0 | S150: 0 | T150: 29 | U150: 29 | V150: 141 | W150: 0 | X150: 0 | Y150: 141 | Z150: 29 | AA150: 29 | AB150: 141 | AC150: 0 | AD150: 0
A151: 00290750 | B151: 0029 | C151: 0750 | D151: 142 | E151: 29 | F151: Bernardston | G151: 750 | H151: Pioneer | I151: 2923168.882 | J151: 0.848563347 | K151: 3105454.882 | L151: =IF(K154>0, K151/K154, 0) -> 0.8532825645 | N151: =ROUND(M154*L151,0) -> 1622998 | O151: 1542305 | P151: =N151-O151 -> 80693 | Q151: 5.23197422 | R151: 227.1384137 | S151: 224.862543 | T151: 29 | U151: 750 | V151: 142 | W151: 224.862543 | X151: 3105454.882 | Y151: 142 | Z151: 29 | AA151: 750 | AB151: 142 | AC151: 224.862543 | AD151: 3105454.882
A152: 00290818 | B152: 0029 | C152: 0818 | D152: 143 | E152: 29 | F152: Bernardston | G152: 818 | H152: Franklin County | I152: 521675.7395 | J152: 0.151436653 | K152: 533966.5843 | L152: =IF(K154>0, K152/K154, 0) -> 0.1467174355 | N152: =ROUND(M154*L152,0) -> 279066 | O152: 275243 | P152: =N152-O152 -> 3823 | Q152: 1.388954487 | R152: 26 | S152: 25 | T152: 29 | U152: 818 | V152: 143 | W152: 25 | X152: 533966.5843 | Y152: 143 | Z152: 29 | AA152: 818 | AB152: 143 | AC152: 25 | AD152: 533966.5843
A153: 00290998 | B153: 0029 | C153: 0998 | D153: 144 | E153: 29 | G153: 998 | I153: 0 | J153: 0 | K153: 0 | L153: =IF(K154>0, K153/K154, 0) -> 0 | N153: =ROUND(M154*L153,0) -> 0 | O153: 0 | P153: =N153-O153 -> 0 | Q153: 0 | R153: 0 | S153: 0 | T153: 29 | U153: 998 | V153: 144 | W153: 0 | X153: 0 | Y153: 144 | Z153: 29 | AA153: 998 | AB153: 144 | AC153: 0 | AD153: 0
A154: 00290999 | B154: 0029 | C154: 0999 | D154: 145 | E154: 29 | F154: Bernardston | G154: 999 | H154: Total | I154: 3444844.622 | J154: 1 | K154: =SUM(K150:K153) -> 3639421.467 | L154: =SUM(L150:L153) -> 1 | M154: =VLOOKUP(E154,town351,24) -> 1902064 | N154: =SUM(N150:N153) -> 1902064 | O154: 1817548 | P154: =SUM(P150:P153) -> 84516 | Q154: 4.65000099 | R154: 253.1384137 | S154: 249.862543 | T154: 29 | U154: 999 | V154: 145 | W154: 249.862543 | X154: 3639421.467 | Y154: 145 | Z154: 29 | AA154: 999 | AB154: 145 | AC154: 249.862543 | AD154: 3639421.467
A155: 00300030 | B155: 0030 | C155: 0030 | D155: 146 | E155: 30 | F155: Beverly | G155: 30 | H155: Beverly | I155: 58610573.33 | J155: 0.9568606614 | K155: =X155 -> 61798815.26 | L155: =IF(K159>0, K155/K159, 0) -> 0.9479709501 | N155: =ROUND(M159*L155,0) -> 47254334 | O155: 45452132 | P155: =N155-O155 -> 1802202 | Q155: 3.965054929 | R155: 4595 | S155: 4541 | T155: 30 | U155: 30 | V155: 146 | W155: 4541 | X155: 61798815.26 | Y155: 146 | Z155: 30 | AA155: 30 | AB155: 146 | AC155: 4541 | AD155: 61798815.26
A156: 00300817 | B156: 0030 | C156: 0817 | D156: 147 | E156: 30 | F156: Beverly | G156: 817 | H156: Essex North Shore | I156: 2642413.334 | J156: 0.04313933864 | K156: 3391806.093 | L156: =IF(K159>0, K156/K159, 0) -> 0.05202904993 | N156: =ROUND(M159*L156,0) -> 2593537 | O156: 2049175 | P156: =N156-O156 -> 544362 | Q156: 26.56493467 | R156: 142 | S156: 172 | T156: 30 | U156: 817 | V156: 147 | W156: 172 | X156: 3391806.093 | Y156: 147 | Z156: 30 | AA156: 817 | AB156: 147 | AC156: 172 | AD156: 3391806.093
A157: 00300998 | B157: 0030 | C157: 0998 | D157: 148 | E157: 30 | G157: 998 | I157: 0 | J157: 0 | K157: 0 | L157: =IF(K159>0, K157/K159, 0) -> 0 | N157: =ROUND(M159*L157,0) -> 0 | O157: 0 | P157: =N157-O157 -> 0 | Q157: 0 | R157: 0 | S157: 0 | T157: 30 | U157: 998 | V157: 148 | W157: 0 | X157: 0 | Y157: 148 | Z157: 30 | AA157: 998 | AB157: 148 | AC157: 0 | AD157: 0
A158: 00300998 | B158: 0030 | C158: 0998 | D158: 149 | E158: 30 | G158: 998 | I158: 0 | J158: 0 | K158: 0 | L158: =IF(K159>0, K158/K159, 0) -> 0 | N158: =ROUND(M159*L158,0) -> 0 | O158: 0 | P158: =N158-O158 -> 0 | Q158: 0 | R158: 0 | S158: 0 | T158: 30 | U158: 998 | V158: 149 | W158: 0 | X158: 0 | Y158: 149 | Z158: 30 | AA158: 998 | AB158: 149 | AC158: 0 | AD158: 0
A159: 00300999 | B159: 0030 | C159: 0999 | D159: 150 | E159: 30 | F159: Beverly | G159: 999 | H159: Total | I159: 61252986.66 | J159: 1 | K159: =SUM(K155:K158) -> 65190621.35 | L159: =SUM(L155:L158) -> 1 | M159: =VLOOKUP(E159,town351,24) -> 49847871 | N159: =SUM(N155:N158) -> 49847871 | O159: 47501307 | P159: =SUM(P155:P158) -> 2346564 | Q159: 4.939998809 | R159: 4737 | S159: 4713 | T159: 30 | U159: 999 | V159: 150 | W159: 4713 | X159: 65190621.35 | Y159: 150 | Z159: 30 | AA159: 999 | AB159: 150 | AC159: 4713 | AD159: 65190621.35
A160: 00310031 | B160: 0031 | C160: 0031 | D160: 151 | E160: 31 | F160: Billerica | G160: 31 | H160: Billerica | I160: 57705837.69 | J160: 0.8671277339 | K160: =X160 -> 63590856.68 | L160: =IF(K164>0, K160/K164, 0) -> 0.8761838651 | N160: =ROUND(M164*L160,0) -> 49635324 | O160: 46197969 | P160: =N160-O160 -> 3437355 | Q160: 7.440489429 | R160: 4792 | S160: 4879 | T160: 31 | U160: 31 | V160: 151 | W160: 4879 | X160: 63590856.68 | Y160: 151 | Z160: 31 | AA160: 31 | AB160: 151 | AC160: 4879 | AD160: 63590856.68
A161: 00310871 | B161: 0031 | C161: 0871 | D161: 152 | E161: 31 | F161: Billerica | G161: 871 | H161: Shawsheen Valley | I161: 8842417.468 | J161: 0.1328722661 | K161: 8986212.146 | L161: =IF(K164>0, K161/K164, 0) -> 0.1238161349 | N161: =ROUND(M164*L161,0) -> 7014115 | O161: 7079036 | P161: =N161-O161 -> -64921 | Q161: -0.9170881459 | R161: 486 | S161: 466 | T161: 31 | U161: 871 | V161: 152 | W161: 466 | X161: 8986212.146 | Y161: 152 | Z161: 31 | AA161: 871 | AB161: 152 | AC161: 466 | AD161: 8986212.146
A162: 00310998 | B162: 0031 | C162: 0998 | D162: 153 | E162: 31 | G162: 998 | I162: 0 | J162: 0 | K162: 0 | L162: =IF(K164>0, K162/K164, 0) -> 0 | N162: =ROUND(M164*L162,0) -> 0 | O162: 0 | P162: =N162-O162 -> 0 | Q162: 0 | R162: 0 | S162: 0 | T162: 31 | U162: 998 | V162: 153 | W162: 0 | X162: 0 | Y162: 153 | Z162: 31 | AA162: 998 | AB162: 153 | AC162: 0 | AD162: 0
A163: 00310998 | B163: 0031 | C163: 0998 | D163: 154 | E163: 31 | G163: 998 | I163: 0 | J163: 0 | K163: 0 | L163: =IF(K164>0, K163/K164, 0) -> 0 | N163: =ROUND(M164*L163,0) -> 0 | O163: 0 | P163: =N163-O163 -> 0 | Q163: 0 | R163: 0 | S163: 0 | T163: 31 | U163: 998 | V163: 154 | W163: 0 | X163: 0 | Y163: 154 | Z163: 31 | AA163: 998 | AB163: 154 | AC163: 0 | AD163: 0
A164: 00310999 | B164: 0031 | C164: 0999 | D164: 155 | E164: 31 | F164: Billerica | G164: 999 | H164: Total | I164: 66548255.16 | J164: 1 | K164: =SUM(K160:K163) -> 72577068.83 | L164: =SUM(L160:L163) -> 1 | M164: =VLOOKUP(E164,town351,24) -> 56649439 | N164: =SUM(N160:N163) -> 56649439 | O164: 53277005 | P164: =SUM(P160:P163) -> 3372434 | Q164: 6.329999218 | R164: 5278 | S164: 5345 | T164: 31 | U164: 999 | V164: 155 | W164: 5345 | X164: 72577068.83 | Y164: 155 | Z164: 31 | AA164: 999 | AB164: 155 | AC164: 5345 | AD164: 72577068.83
A165: 00320032 | B165: 0032 | C165: 0032 | D165: 156 | E165: 32 | F165: Blackstone | G165: 32 | H165: Blackstone | I165: 437559.81 | J165: 0.02566271906 | K165: =X165 -> 393567.84 | L165: =IF(K169>0, K165/K169, 0) -> 0.02264964295 | N165: =ROUND(M169*L165,0) -> 197879 | O165: 213832 | P165: =N165-O165 -> -15953 | Q165: -7.460529762 | R165: 26 | S165: 22 | T165: 32 | U165: 32 | V165: 156 | W165: 22 | X165: 393567.84 | Y165: 156 | Z165: 32 | AA165: 32 | AB165: 156 | AC165: 22 | AD165: 393567.84
A166: 00320622 | B166: 0032 | C166: 0622 | D166: 157 | E166: 32 | F166: Blackstone | G166: 622 | H166: Blackstone Millville | I166: 15399705.78 | J166: 0.9031869791 | K166: 15849824.73 | L166: =IF(K169>0, K166/K169, 0) -> 0.9121499129 | N166: =ROUND(M169*L166,0) -> 7969016 | O166: 7525714 | P166: =N166-O166 -> 443302 | Q166: 5.890497566 | R166: 1225.135684 | S166: 1179.646695 | T166: 32 | U166: 622 | V166: 157 | W166: 1179.646695 | X166: 15849824.73 | Y166: 157 | Z166: 32 | AA166: 622 | AB166: 157 | AC166: 1179.646695 | AD166: 15849824.73
A167: 00320805 | B167: 0032 | C167: 0805 | D167: 158 | E167: 32 | F167: Blackstone | G167: 805 | H167: Blackstone Valley | I167: 1213141.619 | J167: 0.07115030183 | K167: 1132944.922 | L167: =IF(K169>0, K167/K169, 0) -> 0.06520044414 | N167: =ROUND(M169*L167,0) -> 569625 | O167: 592853 | P167: =N167-O167 -> -23228 | Q167: -3.918003282 | R167: 68 | S167: 59.99999999 | T167: 32 | U167: 805 | V167: 158 | W167: 59.99999999 | X167: 1132944.922 | Y167: 158 | Z167: 32 | AA167: 805 | AB167: 158 | AC167: 59.99999999 | AD167: 1132944.922
A168: 00320998 | B168: 0032 | C168: 0998 | D168: 159 | E168: 32 | G168: 998 | I168: 0 | J168: 0 | K168: 0 | L168: =IF(K169>0, K168/K169, 0) -> 0 | N168: =ROUND(M169*L168,0) -> 0 | O168: 0 | P168: =N168-O168 -> 0 | Q168: 0 | R168: 0 | S168: 0 | T168: 32 | U168: 998 | V168: 159 | W168: 0 | X168: 0 | Y168: 159 | Z168: 32 | AA168: 998 | AB168: 159 | AC168: 0 | AD168: 0
A169: 00320999 | B169: 0032 | C169: 0999 | D169: 160 | E169: 32 | F169: Blackstone | G169: 999 | H169: Total | I169: 17050407.21 | J169: 1 | K169: =SUM(K165:K168) -> 17376337.49 | L169: =SUM(L165:L168) -> 1 | M169: =VLOOKUP(E169,town351,24) -> 8736520 | N169: =SUM(N165:N168) -> 8736520 | O169: 8332399 | P169: =SUM(P165:P168) -> 404121 | Q169: 4.849995782 | R169: 1319.135684 | S169: 1261.646695 | T169: 32 | U169: 999 | V169: 160 | W169: 1261.646695 | X169: 17376337.49 | Y169: 160 | Z169: 32 | AA169: 999 | AB169: 160 | AC169: 1261.646695 | AD169: 17376337.49
A170: 00330033 | B170: 0033 | C170: 0033 | D170: 161 | E170: 33 | F170: Blandford | G170: 33 | H170: Blandford | I170: 156977.1 | J170: 0.119510177 | K170: =X170 -> 245151 | L170: =IF(K174>0, K170/K174, 0) -> 0.1633145869 | N170: =ROUND(M174*L170,0) -> 186549 | O170: 129506 | P170: =N170-O170 -> 57043 | Q170: 44.04660788 | R170: 10 | S170: 13 | T170: 33 | U170: 33 | V170: 161 | W170: 13 | X170: 245151 | Y170: 161 | Z170: 33 | AA170: 33 | AB170: 161 | AC170: 13 | AD170: 245151
A171: 00330672 | B171: 0033 | C171: 0672 | D171: 162 | E171: 33 | F171: Blandford | G171: 672 | H171: Gateway | I171: 1156526.937 | J171: 0.880489823 | K171: 1255945.777 | L171: =IF(K174>0, K171/K174, 0) -> 0.8366854131 | N171: =ROUND(M174*L171,0) -> 955717 | O171: 954135 | P171: =N171-O171 -> 1582 | Q171: 0.1658046293 | R171: 85.28534705 | S171: 85.3097561 | T171: 33 | U171: 672 | V171: 162 | W171: 85.3097561 | X171: 1255945.777 | Y171: 162 | Z171: 33 | AA171: 672 | AB171: 162 | AC171: 85.3097561 | AD171: 1255945.777
A172: 00330998 | B172: 0033 | C172: 0998 | D172: 163 | E172: 33 | G172: 998 | I172: 0 | J172: 0 | K172: 0 | L172: =IF(K174>0, K172/K174, 0) -> 0 | N172: =ROUND(M174*L172,0) -> 0 | O172: 0 | P172: =N172-O172 -> 0 | Q172: 0 | R172: 0 | S172: 0 | T172: 33 | U172: 998 | V172: 163 | W172: 0 | X172: 0 | Y172: 163 | Z172: 33 | AA172: 998 | AB172: 163 | AC172: 0 | AD172: 0
A173: 00330998 | B173: 0033 | C173: 0998 | D173: 164 | E173: 33 | G173: 998 | I173: 0 | J173: 0 | K173: 0 | L173: =IF(K174>0, K173/K174, 0) -> 0 | N173: =ROUND(M174*L173,0) -> 0 | O173: 0 | P173: =N173-O173 -> 0 | Q173: 0 | R173: 0 | S173: 0 | T173: 33 | U173: 998 | V173: 164 | W173: 0 | X173: 0 | Y173: 164 | Z173: 33 | AA173: 998 | AB173: 164 | AC173: 0 | AD173: 0
A174: 00330999 | B174: 0033 | C174: 0999 | D174: 165 | E174: 33 | F174: Blandford | G174: 999 | H174: Total | I174: 1313504.037 | J174: 1 | K174: =SUM(K170:K173) -> 1501096.777 | L174: =SUM(L170:L173) -> 1 | M174: =VLOOKUP(E174,town351,24) -> 1142266 | N174: =SUM(N170:N173) -> 1142266 | O174: 1083641 | P174: =SUM(P170:P173) -> 58625 | Q174: 5.410002021 | R174: 95.28534705 | S174: 98.3097561 | T174: 33 | U174: 999 | V174: 165 | W174: 98.3097561 | X174: 1501096.777 | Y174: 165 | Z174: 33 | AA174: 999 | AB174: 165 | AC174: 98.3097561 | AD174: 1501096.777
A175: 00340034 | B175: 0034 | C175: 0034 | D175: 166 | E175: 34 | F175: Bolton | G175: 34 | H175: Bolton | I175: 0 | J175: 0 | K175: =X175 -> 0 | L175: =IF(K179>0, K175/K179, 0) -> 0 | N175: =ROUND(M179*L175,0) -> 0 | O175: 0 | P175: =N175-O175 -> 0 | Q175: 0 | R175: 0 | S175: 0 | T175: 34 | U175: 34 | V175: 166 | W175: 0 | X175: 0 | Y175: 166 | Z175: 34 | AA175: 34 | AB175: 166 | AC175: 0 | AD175: 0
A176: 00340725 | B176: 0034 | C176: 0725 | D176: 167 | E176: 34 | F176: Bolton | G176: 725 | H176: Nashoba | I176: 12215898.24 | J176: 0.9626110617 | K176: 12637109.94 | L176: =IF(K179>0, K176/K179, 0) -> 0.9483316443 | N176: =ROUND(M179*L176,0) -> 10037536 | O176: 9705349 | P176: =N176-O176 -> 332187 | Q176: 3.422720811 | R176: 1030.459374 | S176: 1010.615532 | T176: 34 | U176: 725 | V176: 167 | W176: 1010.615532 | X176: 12637109.94 | Y176: 167 | Z176: 34 | AA176: 725 | AB176: 167 | AC176: 1010.615532 | AD176: 12637109.94
A177: 00340830 | B177: 0034 | C177: 0830 | D177: 168 | E177: 34 | F177: Bolton | G177: 830 | H177: Minuteman | I177: 474479.7599 | J177: 0.03738893828 | K177: 688513.0266 | L177: =IF(K179>0, K177/K179, 0) -> 0.05166835565 | N177: =ROUND(M179*L177,0) -> 546879 | O177: 376967 | P177: =N177-O177 -> 169912 | Q177: 45.07344144 | R177: 24.04363637 | S177: 33 | T177: 34 | U177: 830 | V177: 168 | W177: 33 | X177: 688513.0266 | Y177: 168 | Z177: 34 | AA177: 830 | AB177: 168 | AC177: 33 | AD177: 688513.0266
A178: 00340998 | B178: 0034 | C178: 0998 | D178: 169 | E178: 34 | G178: 998 | I178: 0 | J178: 0 | K178: 0 | L178: =IF(K179>0, K178/K179, 0) -> 0 | N178: =ROUND(M179*L178,0) -> 0 | O178: 0 | P178: =N178-O178 -> 0 | Q178: 0 | R178: 0 | S178: 0 | T178: 34 | U178: 998 | V178: 169 | W178: 0 | X178: 0 | Y178: 169 | Z178: 34 | AA178: 998 | AB178: 169 | AC178: 0 | AD178: 0
A179: 00340999 | B179: 0034 | C179: 0999 | D179: 170 | E179: 34 | F179: Bolton | G179: 999 | H179: Total | I179: 12690378 | J179: 1 | K179: =SUM(K175:K178) -> 13325622.96 | L179: =SUM(L175:L178) -> 1 | M179: =VLOOKUP(E179,town351,24) -> 10584415 | N179: =SUM(N175:N178) -> 10584415 | O179: 10082316 | P179: =SUM(P175:P178) -> 502099 | Q179: 4.979996659 | R179: 1054.50301 | S179: 1043.615532 | T179: 34 | U179: 999 | V179: 170 | W179: 1043.615532 | X179: 13325622.96 | Y179: 170 | Z179: 34 | AA179: 999 | AB179: 170 | AC179: 1043.615532 | AD179: 13325622.96
A180: 00350035 | B180: 0035 | C180: 0035 | D180: 171 | E180: 35 | F180: Boston | G180: 35 | H180: Boston | I180: 1012695286 | J180: 1 | K180: =X180 -> 1095713386 | L180: =IF(K184>0, K180/K184, 0) -> 1 | N180: =ROUND(M184*L180,0) -> 880485066 | O180: 827212576 | P180: =N180-O180 -> 53272490 | Q180: 6.440000013 | R180: 58339 | S180: 57738 | T180: 35 | U180: 35 | V180: 171 | W180: 57738 | X180: 1095713386 | Y180: 171 | Z180: 35 | AA180: 35 | AB180: 171 | AC180: 57738 | AD180: 1095713386
A181: 00350998 | B181: 0035 | C181: 0998 | D181: 172 | E181: 35 | G181: 998 | I181: 0 | J181: 0 | K181: 0 | L181: =IF(K184>0, K181/K184, 0) -> 0 | N181: =ROUND(M184*L181,0) -> 0 | O181: 0 | P181: =N181-O181 -> 0 | Q181: 0 | R181: 0 | S181: 0 | T181: 35 | U181: 998 | V181: 172 | W181: 0 | X181: 0 | Y181: 172 | Z181: 35 | AA181: 998 | AB181: 172 | AC181: 0 | AD181: 0
A182: 00350998 | B182: 0035 | C182: 0998 | D182: 173 | E182: 35 | G182: 998 | I182: 0 | J182: 0 | K182: 0 | L182: =IF(K184>0, K182/K184, 0) -> 0 | N182: =ROUND(M184*L182,0) -> 0 | O182: 0 | P182: =N182-O182 -> 0 | Q182: 0 | R182: 0 | S182: 0 | T182: 35 | U182: 998 | V182: 173 | W182: 0 | X182: 0 | Y182: 173 | Z182: 35 | AA182: 998 | AB182: 173 | AC182: 0 | AD182: 0
A183: 00350998 | B183: 0035 | C183: 0998 | D183: 174 | E183: 35 | G183: 998 | I183: 0 | J183: 0 | K183: 0 | L183: =IF(K184>0, K183/K184, 0) -> 0 | N183: =ROUND(M184*L183,0) -> 0 | O183: 0 | P183: =N183-O183 -> 0 | Q183: 0 | R183: 0 | S183: 0 | T183: 35 | U183: 998 | V183: 174 | W183: 0 | X183: 0 | Y183: 174 | Z183: 35 | AA183: 998 | AB183: 174 | AC183: 0 | AD183: 0
A184: 00350999 | B184: 0035 | C184: 0999 | D184: 175 | E184: 35 | F184: Boston | G184: 999 | H184: Total | I184: 1012695286 | J184: 1 | K184: =SUM(K180:K183) -> 1095713386 | L184: =SUM(L180:L183) -> 1 | M184: =VLOOKUP(E184,town351,24) -> 880485066 | N184: =SUM(N180:N183) -> 880485066 | O184: 827212576 | P184: =SUM(P180:P183) -> 53272490 | Q184: 6.440000013 | R184: 58339 | S184: 57738 | T184: 35 | U184: 999 | V184: 175 | W184: 57738 | X184: 1095713386 | Y184: 175 | Z184: 35 | AA184: 999 | AB184: 175 | AC184: 57738 | AD184: 1095713386
A185: 00360036 | B185: 0036 | C185: 0036 | D185: 176 | E185: 36 | F185: Bourne | G185: 36 | H185: Bourne | I185: 21855345.04 | J185: 0.8617195264 | K185: =X185 -> 22858350.51 | L185: =IF(K189>0, K185/K189, 0) -> 0.8498075635 | N185: =ROUND(M189*L185,0) -> 18409357 | O185: 17827720 | P185: =N185-O185 -> 581637 | Q185: 3.262542827 | R185: 1717 | S185: 1678 | T185: 36 | U185: 36 | V185: 176 | W185: 1678 | X185: 22858350.51 | Y185: 176 | Z185: 36 | AA185: 36 | AB185: 176 | AC185: 1678 | AD185: 22858350.51
A186: 00360879 | B186: 0036 | C186: 0879 | D186: 177 | E186: 36 | F186: Bourne | G186: 879 | H186: Upper Cape Cod | I186: 3507135.871 | J186: 0.1382804736 | K186: 4039916.218 | L186: =IF(K189>0, K186/K189, 0) -> 0.1501924365 | N186: =ROUND(M189*L186,0) -> 3253614 | O186: 2860821 | P186: =N186-O186 -> 392793 | Q186: 13.73007958 | R186: 179.9322917 | S186: 192.973384 | T186: 36 | U186: 879 | V186: 177 | W186: 192.973384 | X186: 4039916.218 | Y186: 177 | Z186: 36 | AA186: 879 | AB186: 177 | AC186: 192.973384 | AD186: 4039916.218
A187: 00360998 | B187: 0036 | C187: 0998 | D187: 178 | E187: 36 | G187: 998 | I187: 0 | J187: 0 | K187: 0 | L187: =IF(K189>0, K187/K189, 0) -> 0 | N187: =ROUND(M189*L187,0) -> 0 | O187: 0 | P187: =N187-O187 -> 0 | Q187: 0 | R187: 0 | S187: 0 | T187: 36 | U187: 998 | V187: 178 | W187: 0 | X187: 0 | Y187: 178 | Z187: 36 | AA187: 998 | AB187: 178 | AC187: 0 | AD187: 0
A188: 00360998 | B188: 0036 | C188: 0998 | D188: 179 | E188: 36 | G188: 998 | I188: 0 | J188: 0 | K188: 0 | L188: =IF(K189>0, K188/K189, 0) -> 0 | N188: =ROUND(M189*L188,0) -> 0 | O188: 0 | P188: =N188-O188 -> 0 | Q188: 0 | R188: 0 | S188: 0 | T188: 36 | U188: 998 | V188: 179 | W188: 0 | X188: 0 | Y188: 179 | Z188: 36 | AA188: 998 | AB188: 179 | AC188: 0 | AD188: 0
A189: 00360999 | B189: 0036 | C189: 0999 | D189: 180 | E189: 36 | F189: Bourne | G189: 999 | H189: Total | I189: 25362480.91 | J189: 1 | K189: =SUM(K185:K188) -> 26898266.73 | L189: =SUM(L185:L188) -> 1 | M189: =VLOOKUP(E189,town351,24) -> 21662971 | N189: =SUM(N185:N188) -> 21662971 | O189: 20688541 | P189: =SUM(P185:P188) -> 974430 | Q189: 4.709998641 | R189: 1896.932292 | S189: 1870.973384 | T189: 36 | U189: 999 | V189: 180 | W189: 1870.973384 | X189: 26898266.73 | Y189: 180 | Z189: 36 | AA189: 999 | AB189: 180 | AC189: 1870.973384 | AD189: 26898266.73
A190: 00370037 | B190: 0037 | C190: 0037 | D190: 181 | E190: 37 | F190: Boxborough | G190: 37 | H190: Boxborough | I190: 171344.577 | J190: 0.01701536653 | K190: =X190 -> 107478.8431 | L190: =IF(K194>0, K190/K194, 0) -> 0.009470020109 | N190: =ROUND(M194*L190,0) -> 81354 | O190: 138436 | P190: =N190-O190 -> -57082 | Q190: -41.23349418 | R190: 10 | S190: 6 | T190: 37 | U190: 37 | V190: 181 | W190: 6 | X190: 107478.8431 | Y190: 181 | Z190: 37 | AA190: 37 | AB190: 181 | AC190: 6 | AD190: 107478.8431
A191: 00370600 | B191: 0037 | C191: 0600 | D191: 182 | E191: 37 | F191: Boxborough | G191: 600 | H191: Acton Boxborough | I191: 9898645.785 | J191: 0.9829846335 | K191: 11241899.71 | L191: =IF(K194>0, K191/K194, 0) -> 0.9905299799 | N191: =ROUND(M194*L191,0) -> 8509388 | O191: 7997507 | P191: =N191-O191 -> 511881 | Q191: 6.400507058 | R191: 816.8441684 | S191: 876.9393761 | T191: 37 | U191: 600 | V191: 182 | W191: 876.9393761 | X191: 11241899.71 | Y191: 182 | Z191: 37 | AA191: 600 | AB191: 182 | AC191: 876.9393761 | AD191: 11241899.71
A192: 00370830 | B192: 0037 | C192: 0830 | D192: 183 | E192: 37 | G192: 998 | I192: 0 | J192: 0 | K192: 0 | L192: =IF(K194>0, K192/K194, 0) -> 0 | N192: =ROUND(M194*L192,0) -> 0 | O192: 0 | P192: =N192-O192 -> 0 | Q192: 0 | R192: 0 | S192: 0 | T192: 37 | U192: 998 | V192: 183 | W192: 0 | X192: 0 | Y192: 183 | Z192: 37 | AA192: 998 | AB192: 183 | AC192: 0 | AD192: 0
A193: 00370998 | B193: 0037 | C193: 0998 | D193: 184 | E193: 37 | G193: 998 | I193: 0 | J193: 0 | K193: 0 | L193: =IF(K194>0, K193/K194, 0) -> 0 | N193: =ROUND(M194*L193,0) -> 0 | O193: 0 | P193: =N193-O193 -> 0 | Q193: 0 | R193: 0 | S193: 0 | T193: 37 | U193: 998 | V193: 184 | W193: 0 | X193: 0 | Y193: 184 | Z193: 37 | AA193: 998 | AB193: 184 | AC193: 0 | AD193: 0
A194: 00370999 | B194: 0037 | C194: 0999 | D194: 185 | E194: 37 | F194: Boxborough | G194: 999 | H194: Total | I194: 10069990.36 | J194: 1 | K194: =SUM(K190:K193) -> 11349378.55 | L194: =SUM(L190:L193) -> 1 | M194: =VLOOKUP(E194,town351,24) -> 8590742 | N194: =SUM(N190:N193) -> 8590742 | O194: 8135943 | P194: =SUM(P190:P193) -> 454799 | Q194: 5.589997373 | R194: 826.8441684 | S194: 882.9393761 | T194: 37 | U194: 999 | V194: 185 | W194: 882.9393761 | X194: 11349378.55 | Y194: 185 | Z194: 37 | AA194: 999 | AB194: 185 | AC194: 882.9393761 | AD194: 11349378.55
A195: 00380038 | B195: 0038 | C195: 0038 | D195: 186 | E195: 38 | F195: Boxford | G195: 38 | H195: Boxford | I195: 8106140.946 | J195: 0.4986513913 | K195: =X195 -> 8528050.268 | L195: =IF(K199>0, K195/K199, 0) -> 0.508431322 | N195: =ROUND(M199*L195,0) -> 6718468 | O195: 6300062 | P195: =N195-O195 -> 418406 | Q195: 6.641299721 | R195: 729 | S195: 721 | T195: 38 | U195: 38 | V195: 186 | W195: 721 | X195: 8528050.268 | Y195: 186 | Z195: 38 | AA195: 38 | AB195: 186 | AC195: 721 | AD195: 8528050.268
A196: 00380705 | B196: 0038 | C196: 0705 | D196: 187 | E196: 38 | F196: Boxford | G196: 705 | H196: Masconomet | I196: 7684773.643 | J196: 0.4727308709 | K196: 7811373.11 | L196: =IF(K199>0, K196/K199, 0) -> 0.4657039572 | N196: =ROUND(M199*L196,0) -> 6153864 | O196: 5972577 | P196: =N196-O196 -> 181287 | Q196: 3.035322944 | R196: 630.7451212 | S196: 605.7510863 | T196: 38 | U196: 705 | V196: 187 | W196: 605.7510863 | X196: 7811373.11 | Y196: 187 | Z196: 38 | AA196: 705 | AB196: 187 | AC196: 605.7510863 | AD196: 7811373.11
A197: 00380817 | B197: 0038 | C197: 0817 | D197: 188 | E197: 38 | F197: Boxford | G197: 817 | H197: Essex North Shore | I197: 465213.6151 | J197: 0.02861773783 | K197: 433835.6629 | L197: =IF(K199>0, K197/K199, 0) -> 0.02586472086 | N197: =ROUND(M199*L197,0) -> 341779 | O197: 361562 | P197: =N197-O197 -> -19783 | Q197: -5.471537385 | R197: 24.99999999 | S197: 21.99999999 | T197: 38 | U197: 817 | V197: 188 | W197: 21.99999999 | X197: 433835.6629 | Y197: 188 | Z197: 38 | AA197: 817 | AB197: 188 | AC197: 21.99999999 | AD197: 433835.6629
A198: 00380998 | B198: 0038 | C198: 0998 | D198: 189 | E198: 38 | G198: 998 | I198: 0 | J198: 0 | K198: 0 | L198: =IF(K199>0, K198/K199, 0) -> 0 | N198: =ROUND(M199*L198,0) -> 0 | O198: 0 | P198: =N198-O198 -> 0 | Q198: 0 | R198: 0 | S198: 0 | T198: 38 | U198: 998 | V198: 189 | W198: 0 | X198: 0 | Y198: 189 | Z198: 38 | AA198: 998 | AB198: 189 | AC198: 0 | AD198: 0
A199: 00380999 | B199: 0038 | C199: 0999 | D199: 190 | E199: 38 | F199: Boxford | G199: 999 | H199: Total | I199: 16256128.2 | J199: 1 | K199: =SUM(K195:K198) -> 16773259.04 | L199: =SUM(L195:L198) -> 1 | M199: =VLOOKUP(E199,town351,24) -> 13214112 | N199: =SUM(N195:N198) -> 13214111 | O199: 12634201 | P199: =SUM(P195:P198) -> 579910 | Q199: 4.590001378 | R199: 1384.745121 | S199: 1348.751086 | T199: 38 | U199: 999 | V199: 190 | W199: 1348.751086 | X199: 16773259.04 | Y199: 190 | Z199: 38 | AA199: 999 | AB199: 190 | AC199: 1348.751086 | AD199: 16773259.04
A200: 00390039 | B200: 0039 | C200: 0039 | D200: 191 | E200: 39 | F200: Boylston | G200: 39 | H200: Boylston | I200: 500350.65 | J200: 0.06602226071 | K200: =X200 -> 377077.08 | L200: =IF(K204>0, K200/K204, 0) -> 0.04705753745 | N200: =ROUND(M204*L200,0) -> 311089 | O200: 412789 | P200: =N200-O200 -> -101700 | Q200: -24.63728442 | R200: 30 | S200: 21 | T200: 39 | U200: 39 | V200: 191 | W200: 21 | X200: 377077.08 | Y200: 191 | Z200: 39 | AA200: 39 | AB200: 191 | AC200: 21 | AD200: 377077.08
... 1565 more rows

Sheet Index
A1: Massachusetts Department of Elementary and Secondary Education | J1: 2023-02-23
A2: =parameters!B1& " Chapter 70 and Net School Spending Formula Spreadsheet" -> FY24 Chapter 70 and Net School Spending Formula Spreadsheet
B3: Select or type full district name below | C3: LEA code
A4: =C4 -> 999 | B4: Select a district | C4: =VLOOKUP(B4,leas!$E$4:$F$445,2,FALSE) -> 999
B6: Use the drop-down menu to select a municipal or regional district and then go to any of the first four links below.
B7: Only municipal district selections will activate the Municipal Contribution Requirement and Regional Allocation reports.
B8: A list of LEAs by code begins on row 26 of this sheet.
B10: We recommend that you save this workbook to your computer before proceeding, then leave this browser, and open the workbook using Excel or My Computer.
B12: Summary
B13: Foundation Budget
B14: Municipal Contribution Requirement
B15: Regional Allocation
B17: Regional District Detail | D17: (go to this sheet to see any particular regional district's comparison of enrollment and minimum contributions to the prior year)
B19: There are also a number of "hidden" sheets which contain the underlying spreadsheet calculations.
B20: They can be accessed by right-clicking on any of the tabs below and choosing a sheet to unhide.
B22: Questions or comments about Chapter 70 may be directed to:
B23: Rob Hanna | D23: Robert.Hanna@mass.gov | G23: 781-338-6525
B24: Rob O'Donnell | D24: Robert.F.O'Donnell@mass.gov | G24: 781-338-6512
B26: District | D26: LEA Number
B27: Abington | D27: 1
B28: Acton | D28: 2
B29: Acton Boxborough | D29: 600
B30: Acushnet | D30: 3
B31: Adams | D31: 4
B32: Agawam | D32: 5
B33: Alford | D33: 6
B34: Amesbury | D34: 7
B35: Amherst | D35: 8
B36: Amherst Pelham | D36: 605
B37: Andover | D37: 9
B38: Aquinnah | D38: 104
B39: Arlington | D39: 10
B40: Ashburnham | D40: 11
B41: Ashburnham Westminster | D41: 610
B42: Ashby | D42: 12
B43: Ashfield | D43: 13
B44: Ashland | D44: 14
B45: Assabet Valley | D45: 801
B46: Athol | D46: 15
B47: Athol Royalston | D47: 615
B48: Attleboro | D48: 16
B49: Auburn | D49: 17
B50: Avon | D50: 18
B51: Ayer | D51: 19
B52: Ayer Shirley | D52: 616
B53: Barnstable | D53: 20
B54: Barre | D54: 21
B55: Becket | D55: 22
B56: Bedford | D56: 23
B57: Belchertown | D57: 24
B58: Bellingham | D58: 25
B59: Belmont | D59: 26
B60: Berkley | D60: 27
B61: Berkshire Hills | D61: 618
B62: Berlin | D62: 28
B63: Berlin Boylston | D63: 620
B64: Bernardston | D64: 29
B65: Beverly | D65: 30
B66: Billerica | D66: 31
B67: Blackstone | D67: 32
B68: Blackstone Millville | D68: 622
B69: Blackstone Valley | D69: 805
B70: Blandford | D70: 33
B71: Blue Hills | D71: 806
B72: Bolton | D72: 34
B73: Boston | D73: 35
B74: Bourne | D74: 36
B75: Boxborough | D75: 37
B76: Boxford | D76: 38
B77: Boylston | D77: 39
B78: Braintree | D78: 40
B79: Brewster | D79: 41
B80: Bridgewater | D80: 42
B81: Bridgewater Raynham | D81: 625
B82: Brimfield | D82: 43
B83: Bristol County | D83: 910
B84: Bristol Plymouth | D84: 810
B85: Brockton | D85: 44
B86: Brookfield | D86: 45
B87: Brookline | D87: 46
B88: Buckland | D88: 47
B89: Burlington | D89: 48
B90: Cambridge | D90: 49
B91: Canton | D91: 50
B92: Cape Cod | D92: 815
B93: Carlisle | D93: 51
B94: Carver | D94: 52
B95: Central Berkshire | D95: 635
B96: Charlemont | D96: 53
B97: Charlton | D97: 54
B98: Chatham | D98: 55
B99: Chelmsford | D99: 56
B100: Chelsea | D100: 57
B101: Cheshire | D101: 58
B102: Chester | D102: 59
B103: Chesterfield | D103: 60
B104: Chesterfield Goshen | D104: 632
B105: Chicopee | D105: 61
B106: Chilmark | D106: 62
B107: Clarksburg | D107: 63
B108: Clinton | D108: 64
B109: Cohasset | D109: 65
B110: Colrain | D110: 66
B111: Concord | D111: 67
B112: Concord Carlisle | D112: 640
B113: Conway | D113: 68
B114: Cummington | D114: 69
B115: Dalton | D115: 70
B116: Danvers | D116: 71
B117: Dartmouth | D117: 72
B118: Dedham | D118: 73
B119: Deerfield | D119: 74
B120: Dennis | D120: 75
B121: Dennis Yarmouth | D121: 645
B122: Dighton | D122: 76
B123: Dighton Rehoboth | D123: 650
B124: Douglas | D124: 77
B125: Dover | D125: 78
B126: Dover Sherborn | D126: 655
B127: Dracut | D127: 79
B128: Dudley | D128: 80
B129: Dudley Charlton | D129: 658
B130: Dunstable | D130: 81
B131: Duxbury | D131: 82
B132: East Bridgewater | D132: 83
B133: East Brookfield | D133: 84
B134: East Longmeadow | D134: 87
B135: Eastham | D135: 85
B136: Easthampton | D136: 86
B137: Easton | D137: 88
B138: Edgartown | D138: 89
B139: Egremont | D139: 90
B140: Erving | D140: 91
B141: Essex | D141: 92
B142: Essex North Shore | D142: 817
B143: Everett | D143: 93
B144: Fairhaven | D144: 94
B145: Fall River | D145: 95
B146: Falmouth | D146: 96
B147: Farmington River | D147: 662
B148: Fitchburg | D148: 97
B149: Florida | D149: 98
B150: Foxborough | D150: 99
B151: Framingham | D151: 100
B152: Franklin | D152: 101
B153: Franklin County | D153: 818
B154: Freetown | D154: 102
B155: Freetown Lakeville | D155: 665
B156: Frontier | D156: 670
B157: Gardner | D157: 103
B158: Gateway | D158: 672
B159: Georgetown | D159: 105
B160: Gill | D160: 106
B161: Gill Montague | D161: 674
B162: Gloucester | D162: 107
B163: Goshen | D163: 108
B164: Gosnold | D164: 109
B165: Grafton | D165: 110
B166: Granby | D166: 111
B167: Granville | D167: 112
B168: Great Barrington | D168: 113
B169: Greater Fall River | D169: 821
B170: Greater Lawrence | D170: 823
B171: Greater Lowell | D171: 828
B172: Greater New Bedford | D172: 825
B173: Greenfield | D173: 114
B174: Groton | D174: 115
B175: Groton Dunstable | D175: 673
B176: Groveland | D176: 116
B177: Hadley | D177: 117
B178: Halifax | D178: 118
B179: Hamilton | D179: 119
B180: Hamilton Wenham | D180: 675
B181: Hampden | D181: 120
B182: Hampden Wilbraham | D182: 680
B183: Hampshire | D183: 683
B184: Hancock | D184: 121
B185: Hanover | D185: 122
B186: Hanson | D186: 123
B187: Hardwick | D187: 124
B188: Harvard | D188: 125
B189: Harwich | D189: 126
B190: Hatfield | D190: 127
B191: Haverhill | D191: 128
B192: Hawlemont | D192: 685
B193: Hawley | D193: 129
B194: Heath | D194: 130
B195: Hingham | D195: 131
B196: Hinsdale | D196: 132
B197: Holbrook | D197: 133
B198: Holden | D198: 134
B199: Holland | D199: 135
B200: Holliston | D200: 136
B201: Holyoke | D201: 137
B202: Hoosac Valley | D202: 603
B203: Hopedale | D203: 138
B204: Hopkinton | D204: 139
B205: Hubbardston | D205: 140
B206: Hudson | D206: 141
B207: Hull | D207: 142
... 257 more rows

Sheet MoreAboutData
B1: =CYr&" Chapter 70 and Net School Spending Formula" -> FY24 Chapter 70 and Net School Spending Formula | C1: FY18 Chapter 70 and Net School Spending Formula Spreadsheet | D1: FY18 Chapter 70 and Net School Spending Formula Spreadsheet | E1: FY18 Chapter 70 and Net School Spending Formula Spreadsheet | F1: FY18 Chapter 70 and Net School Spending Formula Spreadsheet | G1: Return to Index
B2: More about the data
A3: TABLE OF CONTENTS
A4: Index | E4: Back to the top
A5: Select the district you're interested in from the dropdown list on this sheet.
A6: Foundation Budget | E6: Back to the top
A7: This report displays the foundation enrollment and foundation budget for a single district. A district’s foundation budget is updated each year and it is derived by multiplying the number of pupils in thirteen enrollment categories by cost rates in eleven functional areas.
A9: Key Terms
A10: Foundation Enrollment: A count of the students for whom a school district is financially responsible on October 1st of any given year. Inflation: Foundation budget rates are adjusted each year by a statutorily defined inflationary factor. It affects all districts in the same way. Wage Adjustment Factor (WAF): Gives a district credit for having higher school costs if it is located in a geographic area where average wages are higher than in other areas of the state. Calculated using the latest available average wage data supplied by the state’s Executive Office of Labor and Workforce Development (EOLWD). Low-Income Group: Determined based on the relative concentration of low-income students served in the district. Corresponds to a foundation budget rate for low-income students.
A11: Municipal Contribution | E11: Back to the top
A12: This report displays the required local contribution for a single municipality. Each municipality has a target local share of its foundation budget, based on local ability to pay. The required local contribution for each municipality is based on the previous year's required contribution, and includes some transition factors so that the shift toward the target levels occurs over a period of several years.
A14: Key Terms
A15: Equalized Valuation (EQV): Calculated by DOR every two years. Full and fair cash value of all taxable property for each municipality. Income: Derived annually by DOR from state income tax returns. Includes all forms of wage, pension, interest, business, investment, and capital gains income. Combined Effort Yield (CEY): Sum of property and income effort. Based on DESE-calculated property and income percentages, which, when applied to all municipalities in the Commonwealth, yields 59% of statewide foundation coming from local revenue. Target Local Contribution/Share: Calculated for each municipality as an equitable share of its foundation budget based on property wealth and income. Municipal Revenue Growth Factor (MRGF): Calculated each year by DOR and quantifies the most recent annual percentage change in each community's local revenues (such as the annual increase in the Proposition 2½ levy limit) that should be available for schools.
A16: Regional Allocation | E16: Back to the top
A17: This report displays the allocation of a municipality's required local contribution across the districts to which it belongs. The municipality's required contribution is allocated in direct proportion to the district's share of the municipality's foundation budget.
A18: Summary | E18: Back to the top
A19: This report displays the Chapter 70 aid calculation for a single district. The aid calculation begins with each district's prior year Chapter 70 amount. The difference between each district's foundation budget and its required contribution equals foundation aid. On the right-hand side, there is a comparison to the prior year.
A20: Key Terms
A21: Foundation Aid: The amount of aid needed by a district to reach its foundation budget, after factoring in this year's required local contribution. Foundation budget - Required Local Contribution = Foundation Aid Minimum Aid: A guaranteed per pupil aid increase over the prior year. Required Net School Spending (NSS): The sum of this year's required local contribution and Chapter 70 aid. A district must spend this amount to be in compliance.
A22: Regional District Members | E22: Back to the top
A23: This report displays relevant data for municipal members of a single regional district.
A24: Key Terms
A25: Foundation Enrollment: Foundation enrollment for the selected district, in total and by member. Required Minimum Contribution: Total required minimum contribution for the selected district, in total and by member.
A26: ="Comparison to "&PYr -> Comparison to FY23 | E26: Back to the top
A27: This report displays prior year and current year foundation enrollment, foundation budget, required local contribution and Chapter 70 aid for all operating districts.
A29: Rates | E29: Back to the top
A30: ="This sheet displays the "&CYr&" foundation budget rates." -> This sheet displays the FY24 foundation budget rates.
A31: Townwide Contributions | E31: Back to the top
A32: ="This sheet calculates the "&CYr&" required local contribution for each municipality" -> This sheet calculates the FY24 required local contribution for each municipality
A33: Aid436 | E33: Back to the top
A34: ="This sheet calculates the "&CYr&" Chapter 70 aid for each district." -> This sheet calculates the FY24 Chapter 70 aid for each district.

Sheet Foundation Budget
A1: Return to Index | U1: More about the data
A2: Massachusetts Department of Elementary and Secondary Education
A3: Office of School Finance
A4: =parameters!B1&" Chapter 70 Foundation Budget" -> FY24 Chapter 70 Foundation Budget
A5: =lea -> 999 | B5: =IF(lea=999,"State total cannot be computed on this page; Please enter an lea code on the index sheet",VLOOKUP(A5,dist915,2)) -> State total cannot be computed on this page; Please enter an lea code on the index sheet | H5: 6 | I5: 8 | K5: 9 | L5: 10 | M5: 11 | N5: 12 | O5: 13 | P5: 14
C6: Base Foundation Components | K6: Incremental Costs Above the Base
C7: 1 | D7: 2 | E7: 3 | F7: 4 | G7: 5 | H7: 6 | I7: 7 | K7: 8 | L7: 9 | M7: 10 | N7: 11 | O7: 12 | P7: 13 | Q7: 14
D8: ------ Kindergarten ------ | G8: Junior/ | H8: High | K8: Special Ed | L8: Special Ed | M8: English learners | N8: English learners | O8: English learners
C9: Pre-school | D9: Half-Day | E9: Full-Day | F9: Elementary | G9: Middle | H9: School | I9: Vocational | K9: In-District | L9: Tuitioned-Out | M9: PK-5 | N9: 6-8 | O9: High School/Voc | P9: Low income | Q9: TOTAL
B10: Foundation Enrollment | C10: =IF($A$5<>999,VLOOKUP(lea,dist915,VALUE(C$7)+2),0) -> 0 | D10: 0 | E10: 0 | F10: 0 | G10: 0 | H10: 0 | I10: =IF($A$5<>999,VLOOKUP(lea,dist915,VALUE(I$7)+2),0) -> 0 | K10: =IF($A$5<>999,VLOOKUP(lea,dist915,VALUE(K$7)+2),0) -> 0 | L10: 0 | M10: 0 | N10: 0 | O10: 0 | P10: 0 | Q10: 0
A12: 1 | B12: Administration | C12: =(VLOOKUP(VALUE(C$7),newrates,$A12+2)*C$10*waf) -> 0 | D12: 0 | E12: 0 | F12: 0 | G12: 0 | H12: 0 | I12: 0 | K12: =(VLOOKUP(VALUE(K$7),newrates,$A12+2)*K$10*waf) -> 0 | L12: 0 | M12: 0 | N12: 0 | O12: 0 | P12: =IF(C29=0,0,(VLOOKUP(VALUE(P$7)+$C$29-1, newrates, $A12+2, FALSE))*P$10*waf) -> 0 | Q12: =SUM(C12:P12) -> 0
A13: 2 | B13: Instructional Leadership | C13: 0 | D13: 0 | E13: 0 | F13: 0 | G13: 0 | H13: 0 | I13: 0 | K13: 0 | L13: 0 | M13: 0 | N13: 0 | O13: 0 | P13: =IF(C29=0,0,(VLOOKUP(VALUE(P$7)+$C$29-1, newrates, $A13+2, FALSE))*P$10*waf) -> 0 | Q13: 0
A14: 3 | B14: Classroom & Specialist Teachers | C14: 0 | D14: 0 | E14: 0 | F14: 0 | G14: 0 | H14: 0 | I14: 0 | K14: 0 | L14: 0 | M14: 0 | N14: 0 | O14: 0 | P14: =IF(C29=0,0,(VLOOKUP(VALUE(P$7)+$C$29-1, newrates, $A14+2, FALSE))*P$10*waf) -> 0 | Q14: 0
A15: 4 | B15: Other Teaching Services | C15: 0 | D15: 0 | E15: 0 | F15: 0 | G15: 0 | H15: 0 | I15: 0 | K15: 0 | L15: 0 | M15: 0 | N15: 0 | O15: 0 | P15: =IF(C29=0,0,(VLOOKUP(VALUE(P$7)+$C$29-1, newrates, $A15+2, FALSE))*P$10*waf) -> 0 | Q15: 0
A16: 5 | B16: Professional Development | C16: 0 | D16: 0 | E16: 0 | F16: 0 | G16: 0 | H16: 0 | I16: 0 | K16: 0 | L16: 0 | M16: 0 | N16: 0 | O16: 0 | P16: =IF(C29=0,0,(VLOOKUP(VALUE(P$7)+$C$29-1, newrates, $A16+2, FALSE))*P$10*waf) -> 0 | Q16: 0
A17: 6 | B17: Instructional Materials, Equipment & Technology* | C17: =(VLOOKUP(VALUE(C$7),newrates,$A17+2)*C$10) -> 0 | D17: 0 | E17: 0 | F17: 0 | G17: 0 | H17: 0 | I17: 0 | K17: =(VLOOKUP(VALUE(K$7),newrates,$A17+2)*K$10) -> 0 | L17: =(VLOOKUP(VALUE(L$7),newrates,$A17+2)*L$10) -> 0 | M17: =(VLOOKUP(VALUE(M$7),newrates,$A17+2)*M$10) -> 0 | N17: =(VLOOKUP(VALUE(N$7),newrates,$A17+2)*N$10) -> 0 | O17: =(VLOOKUP(VALUE(O$7),newrates,$A17+2)*O$10) -> 0 | P17: =IF(C29=0,0,(VLOOKUP(VALUE(P$7)+$C$29-1, newrates, $A17+2, FALSE))*P$10) -> 0 | Q17: 0
A18: 7 | B18: Guidance & Psychological Services | C18: =(VLOOKUP(VALUE(C$7),newrates,$A18+2)*C$10*waf) -> 0 | D18: 0 | E18: 0 | F18: 0 | G18: 0 | H18: 0 | I18: 0 | K18: =(VLOOKUP(VALUE(K$7),newrates,$A18+2)*K$10*waf) -> 0 | L18: 0 | M18: 0 | N18: 0 | O18: 0 | P18: =IF(C29=0,0,(VLOOKUP(VALUE(P$7)+$C$29-1, newrates, $A18+2, FALSE))*P$10*waf) -> 0 | Q18: 0
A19: 8 | B19: Pupil Services | C19: 0 | D19: 0 | E19: 0 | F19: 0 | G19: 0 | H19: 0 | I19: 0 | K19: 0 | L19: 0 | M19: 0 | N19: 0 | O19: 0 | P19: =IF(C29=0,0,(VLOOKUP(VALUE(P$7)+$C$29-1, newrates, $A19+2, FALSE))*P$10*waf) -> 0 | Q19: 0
A20: 9 | B20: Operations & Maintenance | C20: 0 | D20: 0 | E20: 0 | F20: 0 | G20: 0 | H20: 0 | I20: 0 | K20: 0 | L20: 0 | M20: 0 | N20: 0 | O20: 0 | P20: =IF(C29=0,0,(VLOOKUP(VALUE(P$7)+$C$29-1, newrates, $A20+2, FALSE))*P$10*waf) -> 0 | Q20: 0
A21: 10 | B21: Employee Benefits/Fixed Charges* | C21: =(VLOOKUP(VALUE(C$7),newrates,$A21+2)*C$10) -> 0 | D21: 0 | E21: 0 | F21: 0 | G21: 0 | H21: 0 | I21: 0 | K21: =(VLOOKUP(VALUE(K$7),newrates,$A21+2)*K$10) -> 0 | L21: =(VLOOKUP(VALUE(L$7),newrates,$A21+2)*L$10) -> 0 | M21: =(VLOOKUP(VALUE(M$7),newrates,$A21+2)*M$10) -> 0 | N21: =(VLOOKUP(VALUE(N$7),newrates,$A21+2)*N$10) -> 0 | O21: =(VLOOKUP(VALUE(O$7),newrates,$A21+2)*O$10) -> 0 | P21: =IF(C29=0,0,(VLOOKUP(VALUE(P$7)+$C$29-1, newrates, $A21+2, FALSE))*P$10) -> 0 | Q21: 0
A22: 11 | B22: Special Education Tuition* | C22: 0 | D22: 0 | E22: 0 | F22: 0 | G22: 0 | H22: 0 | I22: 0 | K22: =(VLOOKUP(VALUE(K$7)-2,newrates,$A22+2)*K$10) -> 0 | L22: =(VLOOKUP(VALUE(L$7),newrates,$A22+2)*L$10) -> 0 | M22: =(VLOOKUP(VALUE(M$7),newrates,$A22+2)*M$10) -> 0 | N22: =(VLOOKUP(VALUE(N$7),newrates,$A22+2)*N$10) -> 0 | O22: =(VLOOKUP(VALUE(O$7)-2,newrates,$A22+2)*O$10) -> 0 | P22: =IF(C29=0,0,(VLOOKUP(VALUE(P$7)+$C$29-1, newrates, $A22+2, FALSE))*P$10) -> 0 | Q22: 0
A24: 12 | B24: Total | C24: =SUM(C12:C22) -> 0 | D24: =SUM(D12:D22) -> 0 | E24: =SUM(E12:E22) -> 0 | F24: 0 | G24: 0 | H24: 0 | I24: =SUM(I12:I22) -> 0 | K24: 0 | L24: 0 | M24: 0 | N24: 0 | O24: 0 | P24: 0 | Q24: =SUM(Q12:Q23) -> 0
A26: 13 | B26: Wage Adjustment Factor | C26: =VLOOKUP(lea,dist915,17) -> 0 | N26: Foundation Budget per Pupil | Q26: =IFERROR(IF(A5<>999,Q24/Q10," "),"") -> 
B27: *The wage adjustment factor is applied to underlying rates in all functions except instructional equipment, benefits and special education tuition.
A28: 14 | B28: Low-income percentage | C28: =VLOOKUP(lea,dist915,19) -> 0 | L28: English learner foundation budget as % total foundation budget | Q28: =IFERROR(IF(A5=999,"",SUM(M24:O24)/Q24),"") -> 
A29: 15 | B29: Low-income group | C29: =VLOOKUP(lea,dist915,18) -> 0 | L29: Low-income foundation budget as % total foundation budget | Q29: =IFERROR(IF(A5=999,"",P24/Q24),"") -> 
B32: Total foundation enrollment (column 14) does not include incremental costs above the base. The pupils are already counted in columns 1 to 7. | K32: Low-income group | L32: Low-income %
B33: Total foundation enrollment assigns pupils in pre-kindergarten and half-time kindergarten an enrollment count of .5. | K33: Group 1 | L33: 0-5.99%
B34: Special education in-district enrollment is an assumed percentage, representing 3.90 percent of K-12 non-vocational enrollment and | K34: Group 2 | L34: 6-11.99%
B35: 4.90 percent of vocational enrollment. | K35: Group 3 | L35: 12-17.99%
B36: Special education tuitioned-out enrollment is also an assumed percentage, representing 1 percent of non-vocational K-12 enrollment. | K36: Group 4 | L36: 18-23.99%
B37: Low-income enrollment is based on: (1) participation in Supplemental Nutrition Assistance Program (SNAP), | K37: Group 5 | L37: 24-29.99%
B38: the Transitional Assistance for Families with Dependent Children (TAFDC), MassHealth (Medicaid), or foster care; | K38: Group 6 | L38: 30-35.99%
B39: (2) homeless designation through the McKinney-Vento Homeless Education Assistance program; | K39: Group 7 | L39: 36-41.99%
B40: or (3) verification as low income through a supplemental data collection process. | K40: Group 8 | L40: 42-47.99%
B41: Low-income and English learner foundation budget increments are based on the number of students attending school in the district | K41: Group 9 | L41: 48-53.99%
B42: or district residents who attend charter schools. | K42: Group 10 | L42: 54-69.99%
B43: The low-income percentage is the ratio of the low-income enrollment to: | K43: Group 11 | L43: 70-79.99%
B44: the total students attending school in the district and the total resident students attending charter schools. | K44: Group 12 | L44: 80%+
B46: Each component of the foundation budget represents the enrollment in row 10 multiplied by the appropriate statewide foundation allotment.
B47: The foundation budget shown on this page may differ from the final number used in the formula, due to rounding error.
B50: Return to Index

Sheet Municipal Contribution
M1: =IF(VLOOKUP(A6,town351,18)>0,"lo","hi") -> hi
A2: Return to Index | G2: More about the data
A3: Massachusetts Department of Elementary and Secondary Education
A4: Office of School Finance
A5: =parameters!B1&" Chapter 70 Determination of City and Town Total Required Contribution" -> FY24 Chapter 70 Determination of City and Town Total Required Contribution
A6: =lea -> 999 | B6: =IF(lea>351, "This lea code does not refer to a city or a town - this table shows municipal data only.",VLOOKUP(A6,aidcalc,2)) -> This lea code does not refer to a city or a town - this table shows municipal data only.
A8: Effort Goal | E8: =parameters!B1&" Increments Toward Goal" -> FY24 Increments Toward Goal
A10: 1) | B10: 2022 equalized valuation | C10: =IF(A6<352,VLOOKUP($A$6,town351,3)," ") ->  | E10: 13) | F10: =PYr&" required local contribution" -> FY23 required local contribution | G10: =IF(A6<352,VLOOKUP($A$6,town351,14)," ") -> 
A11: 2) | B11: Uniform property percentage | C11: =IF(A6<352,'Townwide Contributions'!D5," ") ->  | E11: 14) | F11: Municipal revenue growth factor (DOR) | G11: =IF(A$6<352,VLOOKUP($A$6,town351,15)," ") -> 
A12: 3) | B12: Local effort from property wealth | C12: =IF(A6<352,VLOOKUP($A$6,town351,4)," ") ->  | E12: 15) | F12: =parameters!B1&" preliminary contribution (13 raised by 14)" -> FY24 preliminary contribution (13 raised by 14) | G12: =IF(A$6<352,VLOOKUP($A$6,town351,16)," ") -> 
E13: 16) | F13: Preliminary contribution pct of foundation (15 / 8) | G13: =IF(A$6<352,VLOOKUP($A$6,town351,17)/100," ") -> 
A14: 4) | B14: 2020 income | C14: =IF(A6<352,VLOOKUP($A$6,town351,5)," ") -> 
A15: 5) | B15: Uniform income percentage | C15: =IF(A6<352,'Townwide Contributions'!F5," ") ->  | E15: If preliminary contribution is above the target share:
A16: 6) | B16: Local effort from income | C16: =IF(A6<352,VLOOKUP($A$6,town351,6)," ") ->  | E16: 17) | F16: Excess local effort (15 - 10) | G16: =IF(AND(A$6<352,M$1="hi"),VLOOKUP($A$6,town351,21)," ") -> 
E17: 18) | F17: =parameters!$C$50&" reduction toward target (17 x "&parameters!$C$50&")" -> 100% reduction toward target (17 x 100%) | G17: =IF(AND(A$6<352,M$1="hi"),VLOOKUP($A$6,town351,22)," ") -> 
A18: 7) | B18: Combined effort yield (3 + 6) | C18: =IF(A6<352,VLOOKUP($A$6,town351,7)," ") ->  | E18: 19) | F18: =parameters!B1&" required local contribution (15 - 18), capped at 90% of foundation" -> FY24 required local contribution (15 - 18), capped at 90% of foundation | G18: =IF(AND(A$6<352,M$1="hi"),VLOOKUP($A$6,town351,24)," ") -> 
E19: 20) | F19: Contribution as percentage of foundation (19 / 8) | G19: =IF(AND(A$6<352,M$1="hi"),VLOOKUP($A$6,town351,25)/100," ") -> 
A20: 8) | B20: =parameters!B1&" Foundation budget" -> FY24 Foundation budget | C20: =IF(A6<352,VLOOKUP($A$6,town351,8)," ") -> 
A21: 9) | B21: Maximum local contribution (82.5% * 8) | C21: =IF(A6<352,VLOOKUP($A$6,town351,10)," ") ->  | E21: If preliminary contribution is below the target share:
E22: 21) | F22: Shortfall from target local share (10 - 15) | G22: =IF(AND(A$6<352,M1="lo"),-1*VLOOKUP($A$6,town351,27)," ") -> 
A23: 10) | B23: Target local contribution (lesser of 7 or 9) | C23: =IF(A6<352,VLOOKUP($A$6,town351,11)," ") ->  | E23: 22) | F23: Shortfall percentage (11 - 16) | G23: =IF(AND(A$6<352,M1="lo"),VLOOKUP($A$6,town351,18)/100," ") -> 
E24: 23) | F24: Added increment toward target (13 x 1% or 2%)* | G24: =IF(AND(A$6<352,M1="lo"),VLOOKUP($A$6,town351,20)," ") -> 
A25: 11) | B25: Target local share (10 as % of 8) | C25: =IF(A6<352,VLOOKUP(lea,town351,12)/100," ") ->  | F25: *1% if shortfall is between 2.5% and 7.5%; 2% if shortfall > 7.5%
A26: 12) | B26: Target aid share (100% minus 11) | C26: =IF(A6<352,VLOOKUP(lea,aidcalc,13)/100," ") ->  | E26: 24) | F26: Special increment toward 82.5% target** | G26: =IF(AND(A$6<352,M1="lo"),VLOOKUP($A$6,town351,23)," ") -> 
F27: **if combined effort yield > 175% foundation
F28: Combined effort yield as % of foundation | G28: =IF(AND(A$6<352,M1="lo"),IF(VLOOKUP($A$6,town351,9)>175%,VLOOKUP($A$6,town351,9)," "),"") -> 
B29: See a listing of all 351 communities | E29: 25) | F29: Shortfall from target after adding increments (10 - 15 - 23 - 24) | G29: =IF(AND(A$6<352,M1="lo"),-1*VLOOKUP($A$6,town351,28)," ") -> 
E30: 26) | F30: =parameters!B1&" required local contribution (15 + 23 + 24)" -> FY24 required local contribution (15 + 23 + 24) | G30: =IF(AND(A$6<352,M1="lo"),VLOOKUP($A$6,town351,24)," ") -> 
E31: 27) | F31: Contribution as percentage of foundation (26 / 8) | G31: =IF(AND(A$6<352,M1="lo"),VLOOKUP($A$6,town351,25)/100," ") -> 

Sheet Regional Allocation
J1: More about the data
D2: Return to Index
D3: Massachusetts Department of Elementary and Secondary Education
D4: Office of School Finance
D5: =CYr& " Chapter 70 Apportionment of Local Contribution Across School Districts" -> FY24 Chapter 70 Apportionment of Local Contribution Across School Districts
E7: 4 | F7: 4 | G7: 3 | H7: 2 | I7: 1
A9: 5 | D9: =lea -> 999 | E9: =IF($D$9>351, "", IF(AND($D$9>0, VLOOKUP($D$9*5-E$7, order1755, $A9)<>0), VLOOKUP($D$9*5-E$7, order1755, $A9), "")) ->  | F9: =IF(OR($D$9="", $D$9>351), "", IF(AND($D$9>0, VLOOKUP($D$9*5-F$7, order1755, $A9)<>0), VLOOKUP($D$9*5-F$7, order1755, $A9), "")) ->  | G9: =IF(OR($D$9="", $D$9>351), "", IF(AND($D$9>0, VLOOKUP($D$9*5-G$7, order1755, $A9)<>0), VLOOKUP($D$9*5-G$7, order1755, $A9), "")) ->  | H9: =IF(OR($D$9="", $D$9>351), "", IF(AND($D$9>0, VLOOKUP($D$9*5-H$7, order1755, $A9)<>0), VLOOKUP($D$9*5-H$7, order1755, $A9), "")) ->  | I9: =IF(OR($D$9="", $D$9>351), "", IF(AND($D$9>0, VLOOKUP($D$9*5-I$7, order1755, $A9)<>0), VLOOKUP($D$9*5-I$7, order1755, $A9), "")) ->  | J9: Combined Total for All Districts
A10: 6
E11: Prior Year Data (for comparison purposes)
A13: 15 | D13: 1 | E13: =parameters!B2&" foundation enrollment" -> FY23 foundation enrollment | F13: =IF(OR($D$9="", $D$9>351), "", IF(AND($D$9>0, VLOOKUP($D$9*5-F$7, order1755, $A13)<>0), VLOOKUP($D$9*5-F$7, order1755, $A13), "")) ->  | J13: =IF(OR($D$9="", $D$9>351), "", VLOOKUP($D$9*5, order1755, $A13)) -> 
A14: 6 | D14: 2 | E14: =parameters!B2&" foundation budget" -> FY23 foundation budget | J14: =IF(OR($D$9="", $D$9>351), "", VLOOKUP($D$9*5, order1755, $A14)) -> 
A15: 7 | D15: 3 | E15: ="Each district's share of municipality's combined "& parameters!B2&" foundation" -> Each district's share of municipality's combined FY23 foundation | J15: =IF(OR($D$9="", $D$9>351), "", VLOOKUP($D$9*5, order1755, $A15)) -> 
A16: 12 | D16: 4 | E16: =parameters!B2&" required contribution" -> FY23 required contribution | J16: =IF(OR($D$9="", $D$9>351), "", VLOOKUP($D$9*5, order1755, $A16)) -> 
E17: =parameters!B1& " apportionment of contribution among community's districts" -> FY24 apportionment of contribution among community's districts
D18: 5 | E18: =parameters!B1&" total unapportioned required contribution ('municipal contribution' tab row 19 or 25)" -> FY24 total unapportioned required contribution ('municipal contribution' tab row 19 or 25) | J18: =IF(OR($D$9="", $D$9>351), "", VLOOKUP($D$9,town351,24)) -> 
A19: 20 | D19: 6 | E19: =parameters!B1&" foundation enrollment" -> FY24 foundation enrollment | F19: =IF(OR($D$9="", $D$9>351), "", IF(AND($D$9>0, VLOOKUP($D$9*5-F$7, order1755, $A19)<>0), VLOOKUP($D$9*5-F$7, order1755, $A19), "")) ->  | J19: =IF(OR($D$9="", $D$9>351), "", VLOOKUP($D$9*5, order1755, $A19)) -> 
A20: 8 | D20: 7 | E20: =parameters!B1&" foundation budget" -> FY24 foundation budget | J20: =IF(OR($D$9="", $D$9>351), "", VLOOKUP($D$9*5, order1755, $A20)) -> 
A21: 9 | D21: 8 | E21: ="Each district's share of municipality's total "& parameters!B1&" foundation " -> Each district's share of municipality's total FY24 foundation | J21: =IF(OR($D$9="", $D$9>351), "", VLOOKUP($D$9*5, order1755, $A21)) -> 
A22: 11 | D22: 9 | E22: =parameters!B1&" Required Contribution" -> FY24 Required Contribution | J22: =VLOOKUP($D$9*5, order1755, $A22) -> 7566383475
A24: 13 | D24: 10 | E24: ="Change "&parameters!B1&" to "&parameters!B2& " (9 - 4)" -> Change FY24 to FY23 (9 - 4) | F24: =IF(OR($D$9="", $D$9>351), "", IF(AND($D$9>0, VLOOKUP($D$9*5-F$7, order1755, $A24)<>0), VLOOKUP($D$9*5-F$7, order1755, $A24), "")) ->  | G24: =IF(OR($D$9="", $D$9>351), "", IF(AND($D$9>0, VLOOKUP($D$9*5-G$7, order1755, $A24)<>0), VLOOKUP($D$9*5-G$7, order1755, $A24), "")) ->  | H24: =IF(OR($D$9="", $D$9>351), "", IF(AND($D$9>0, VLOOKUP($D$9*5-H$7, order1755, $A24)<>0), VLOOKUP($D$9*5-H$7, order1755, $A24), "")) ->  | I24: =IF(OR($D$9="", $D$9>351), "", IF(AND($D$9>0, VLOOKUP($D$9*5-I$7, order1755, $A24)<>0), VLOOKUP($D$9*5-I$7, order1755, $A24), "")) ->  | J24: =IF(OR($D$9="", $D$9>351), "", VLOOKUP($D$9*5, order1755, $A24)) -> 
E26: The combined totals on lines 5 and 9 may differ due to rounding.

Sheet Summary
A1: Return to Index | J1: More about the data
A3: Massachusetts Department of Elementary and Secondary Education
A4: =parameters!B1&" Chapter 70 Summary" -> FY24 Chapter 70 Summary
A6: =lea -> 999 | B6: =PROPER(VLOOKUP(A6,dist915,2)) -> State Total
A8: ="Aid Calculation "&CYr -> Aid Calculation FY24 | E8: ="Comparison to "&PYr -> Comparison to FY23
F10: =PYr -> FY23 | G10: =CYr -> FY24 | H10: Change | I10: Pct Chg | U10: FY06 | V10: FY07 | W10: FY08 | X10: FY09 | Y10: FY10 | Z10: FY11 | AA10: FY12 | AB10: FY13 | AC10: FY14 | AD10: FY15 | AE10: FY16 | AF10: FY17 | AG10: FY18 | AH10: FY19 | AI10: FY20 | AJ10: FY21 | AK10: FY22 | AL10: FY23 | AM10: FY24
A11: Prior Year Aid | E11: Enrollment | F11: =VLOOKUP(A6,aidcalc,14) -> 903751 | G11: =VLOOKUP(A6,aidcalc,15) -> 905239 | H11: =G11-F11 -> 1488 | I11: =IF(F11>0, H11/F11, 0) -> 0.001646471207 | T11: Required District Contribution | U11: =VLOOKUP($A$6,disthist,5) -> 4743946672 | V11: =VLOOKUP($A$6,disthist,8) -> 4876428772 | W11: =VLOOKUP($A$6,disthist,11) -> 4997705374 | X11: =VLOOKUP($A$6,disthist,14) -> 5110365426 | Y11: =VLOOKUP($A$6,disthist,18) -> 5250106061 | Z11: =VLOOKUP($A$6,disthist,22) -> 5302200670 | AA11: =VLOOKUP($A$6,disthist,27) -> 5413602268 | AB11: =VLOOKUP($A$6,disthist,30) -> 5582113529 | AC11: =VLOOKUP($A$6,disthist, 33) -> 5748475145 | AD11: =VLOOKUP($A$6,disthist, 36) -> 5817618237 | AE11: =VLOOKUP($A$6,disthist, 39) -> 5943909029 | AF11: =VLOOKUP($A$6,disthist, 42) -> 5926185567 | AG11: =VLOOKUP($A$6,disthist, 45) -> 6046916786 | AH11: =VLOOKUP($A$6,disthist, 48) -> 6246842886 | AI11: =VLOOKUP($A$6,disthist, 51) -> 6513607368 | AJ11: =VLOOKUP($A$6,disthist, 54) -> 6705321561 | AK11: =VLOOKUP($A$6,disthist, 57) -> 6827673657 | AL11: =VLOOKUP($A$6,disthist, 60) -> 7166744291 | AM11: =VLOOKUP($A$6,aidcalc,10 ) -> 7566383475
A12: 1 | B12: ="Chapter 70 "&PYr -> Chapter 70 FY23 | C12: =VLOOKUP(A6,aidcalc,6) -> 5997901329 | E12: Foundation budget | F12: =VLOOKUP(A6,disthist,59) -> 1.289033588e+10 | G12: =VLOOKUP(A6,aidcalc,9) -> 1.396501663e+10 | H12: =G12-F12 -> 1074680749 | I12: =IF(F12>0, H12/F12, 0) -> 0.08337104313 | T12: C70 Aid | U12: =VLOOKUP($A$6,disthist,6) -> 3288603062 | V12: =VLOOKUP($A$6,disthist,9) -> 3505192039 | W12: =VLOOKUP($A$6,disthist,12) -> 3725343327 | X12: =VLOOKUP($A$6,disthist,15)+VLOOKUP($A$6,disthist,16) -> 3948496062 | Y12: =VLOOKUP($A$6,disthist,19)+VLOOKUP($A$6,disthist,20) -> 4043156700 | Z12: =VLOOKUP($A$6,disthist,23)+VLOOKUP($A$6,disthist,24)+VLOOKUP($A$6,disthist,25) -> 4072032853 | AA12: =VLOOKUP($A$6,disthist,28) -> 3990504093 | AB12: =VLOOKUP($A$6,disthist,31) -> 4173223954 | AC12: =VLOOKUP($A$6,disthist,34) -> 4300854366 | AD12: =VLOOKUP($A$6,disthist,37) -> 4400335962 | AE12: =VLOOKUP($A$6,disthist,40) -> 4511521974 | AF12: =VLOOKUP($A$6,disthist,43) -> 4627705061 | AG12: =VLOOKUP($A$6,disthist,46) -> 4745645156 | AH12: =VLOOKUP($A$6,disthist,49) -> 4906614766 | AI12: =VLOOKUP($A$6,disthist,52) -> 5175694094 | AJ12: =VLOOKUP($A$6,disthist,55) -> 5283343073 | AK12: =VLOOKUP($A$6,disthist,58) -> 5502959667 | AL12: =VLOOKUP($A$6,disthist,61) -> 5997901329 | AM12: =VLOOKUP($A$6,aidcalc,25) -> 6584287353
E13: Required district contribution | F13: =VLOOKUP(A6,disthist,60) -> 7166744291 | G13: =VLOOKUP($A$6, aidcalc, 10) -> 7566383475 | H13: =G13-F13 -> 399639184 | I13: =IF(F13>0, H13/F13, 0) -> 0.05576300308 | T13: Foundation Budget | U13: =VLOOKUP($A$6,disthist,4) -> 7551933454 | V13: =VLOOKUP($A$6,disthist,7) -> 8014672861 | W13: =VLOOKUP($A$6,disthist,10) -> 8406096436 | X13: =VLOOKUP($A$6,disthist,13) -> 8811314229 | Y13: =VLOOKUP($A$6,disthist,17) -> 9088557473 | Z13: =VLOOKUP($A$6,disthist,21) -> 8921047970 | AA13: =VLOOKUP($A$6,disthist,26) -> 9119340580 | AB13: =VLOOKUP($A$6,disthist,29) -> 9467117141 | AC13: =VLOOKUP($A$6,disthist, 32) -> 9711217585 | AD13: =VLOOKUP($A$6,disthist, 35) -> 9866011313 | AE13: =VLOOKUP($A$6,disthist, 38) -> 1.009017727e+10 | AF13: =VLOOKUP($A$6,disthist, 41) -> 1.012823838e+10 | AG13: =VLOOKUP($A$6,disthist, 44) -> 1.037917384e+10 | AH13: =VLOOKUP($A$6,disthist, 47) -> 1.077758855e+10 | AI13: =VLOOKUP($A$6,disthist, 50) -> 1.135904851e+10 | AJ13: =VLOOKUP($A$6,disthist, 53) -> 1.16265311e+10 | AK13: =VLOOKUP($A$6,disthist, 56) -> 1.192622579e+10 | AL13: =VLOOKUP($A$6,disthist, 59) -> 1.289033588e+10 | AM13: =VLOOKUP($A$6,aidcalc,9 ) -> 1.396501663e+10
A14: Foundation Aid | E14: Chapter 70 aid | F14: =IF(A6=999,VLOOKUP(A6,disthist,61,0)+308558,VLOOKUP(A6,disthist,61,0)) -> 5998209887 | G14: =IF(A6=999,VLOOKUP($A$6,aidcalc,25,0)+308558,VLOOKUP($A$6,aidcalc,25,0)) -> 6584595911 | H14: =G14-F14 -> 586386024 | I14: =IF(F14>0, H14/F14, 0) -> 0.09776017097
A15: 2 | B15: ="Foundation budget "&CYr -> Foundation budget FY24 | C15: =VLOOKUP($A$6, aidcalc, 9) -> 1.396501663e+10 | E15: Required net school spending (NSS) | F15: =F13+F14 -> 1.316495418e+10 | G15: =G13+G14 -> 1.415097939e+10 | H15: =G15-F15 -> 986025208 | I15: =IF(F15>0, H15/F15, 0) -> 0.07489773186
A16: 3 | B16: ="Required district contribution "& CYr -> Required district contribution FY24 | C16: =VLOOKUP($A$6, aidcalc, 10) -> 7566383475
A17: 4 | B17: Foundation aid (2 -3) | C17: =VLOOKUP($A$6, aidcalc, 11) -> 6398633164 | E17: Target aid share | F17: =VLOOKUP(A$6,disthist,3)/100 -> 0.41 | G17: =VLOOKUP(A6,aidcalc,13)/100 -> 0.41
A18: 5 | B18: ="Increase over " & PYr&" (4 - 1)" -> Increase over FY23 (4 - 1) | C18: =VLOOKUP($A$6, aidcalc, 12) -> 578427446 | E18: C70 % of foundation | F18: =IF(F12>0,F14/F12,IF(F14>0,1,0)) -> 0.4653261127 | G18: =IF(G12>0,G14/G12,IF(G14>0,1,0)) -> 0.4715064855
A20: Minimum Aid | E20: Required NSS % of foundation | F20: =IF(F12>0,F15/F12,IF(F15>0,1,0)) -> 1.0213042 | G20: =IF(G12>0,G15/G12,IF(G15>0,1,0)) -> 1.013316329
A21: 6 | B21: ="Minimum $"&parameters!$C$14&" per pupil increase" -> Minimum $30 per pupil increase | C21: =IF(A6=999,"",VLOOKUP($A$6,aidcalc,17,0)) -> 
A22: 7 | B22: Minimum aid amount
B23: (if line 6 - line 5 > 0, then line 6 - line 5, otherwise 0) | C23: =VLOOKUP($A$6, aidcalc, 18,0) -> 7672269
A25: Subtotal
A26: 8 | B26: Sum of 1,5,7 | C26: =C12+C18+C23 -> 6584001044
A28: Minimum Aid Adjustment
A29: 9 | B29: Minimum aid adjustment | C29: =IF(A6=999,"",VLOOKUP($A$6, aidcalc, 20)) -> 
A30: 10 | B30: Aid adjustment increment
B31: (if line 9 - line 8 > 0, then line 9 - line 8, otherwise 0) | C31: =VLOOKUP($A$6, aidcalc, 21, FALSE) -> 354574
A33: Non-Operating District Reduction to Foundation
A34: 11 | B34: Reduction to foundation | C34: =VLOOKUP($A$6, aidcalc, 23) -> 68265
A36: =CYr&" Chapter 70 Aid" -> FY24 Chapter 70 Aid
A37: 12 | B37: Sum of 1,5,7,10 minus 11 | C37: =VLOOKUP($A$6, aidcalc, 25) -> 6584287353
B38: =IF(A6=999,"with Devens aid","") -> with Devens aid | C38: =IF(A6=999,C37+308558,"") -> 6584595911
A40: Note on Minimum Aid Adjustment on lines 9 and 10:
A41: The minimum aid adjustment is the sum of (a) the greater of foundation aid or base aid determined based on the FY21 base and incremental rates, inflated to FY24, and (b) foundation enrollment multiplied by $30. The aid adjustment increment (line 10) is the line 9 amount less the line 8 amount if the difference is positive. Otherwise, the increment is zero.

Sheet Regional District Members
E2: Return to Index
F3: Select or type full regional district name below
E4: =VLOOKUP(reg_order, regdistricts, 3, FALSE) -> 600 | F4: Acton Boxborough | G4: =VLOOKUP(F4,leas!$E$450:$H$536,4,FALSE) -> 1
E6: Massachusetts Department of Elementary and Secondary Education
E7: Office of School Finance
E8: =CYr&" Chapter 70" -> FY24 Chapter 70
E9: Regional District Enrollment and Contributions by Member City or Town
E10: The table below presents the minimum required local contribution for each member to the selected regional district.
E11: Note: A city or town might belong to more than one regional district (e.g., a regional district and a vocational district) and therefore be required to contribute to multiple districts. See the regional allocation tab for a full list of minimum required contributions for each city or town. Foundation enrollments are presented as whole numbers. The change column reflects differences prior to rounding.
B12: =VLOOKUP(E4, leas!D6:G445, 4, FALSE) -> 0600 | D12: 2 | E12: =VLOOKUP(reg_order, regdistricts, 2, FALSE) -> 600 Acton Boxborough
G14: Foundation Enrollment in Regional District | J14: Required Minimum Contribution to Regional District
B16: =VLOOKUP($E$4, regcount, 2, FALSE) -> 2 | E16: LEA | F16: Member | G16: =PYr -> FY23 | H16: =CYr -> FY24 | I16: Change | J16: =PYr -> FY23 | K16: =CYr -> FY24 | L16: Change
F18: Total | G18: =SUM(G20:G67) -> 5047 | H18: =SUM(H20:H67) -> 5120 | I18: =SUM(I20:I67) -> 73 | J18: =SUM(J20:J67) -> 48377825 | K18: =SUM(K20:K67) -> 50507466 | L18: =SUM(L20:L62) -> 2129641
A20: =IF($C20<=$B$16,VLOOKUP(E20,leas!D6:G445,4,FALSE),"") -> 0002 | B20: =$E$4*100+C20 -> 60001 | C20: 1 | E20: =IF($C20<=$B$16, VLOOKUP($B20, regdetail, 5), " ") -> 2 | F20: =IF($C20<=$B$16, VLOOKUP($B20, regdetail, 6), " ") -> Acton | G20: =IF($C20<=$B$16,VLOOKUP(A20&$B$12, localcont!A10:X1764, 18, FALSE), "") -> 4230.155832 | H20: =IF($C20<=$B$16,VLOOKUP(A20&$B$12, localcont!$A$10:$X$1764, 23, FALSE), "") -> 4243.060624 | I20: =IF($C20<=$B$16, H20-G20, " ") -> 12.90479229 | J20: =IF($C20<=$B$16,VLOOKUP(A20&$B$12, localcont!$A$10:$X$1764, 15, FALSE), "") -> 40380318 | K20: =IF($C20<=$B$16,VLOOKUP(A20&$B$12, localcont!$A$10:$X$1764, 14, FALSE),"") -> 41998078 | L20: =IF($C20<=$B$16, K20-J20, " ") -> 1617760
A21: =IF($C21<=$B$16,VLOOKUP(E21,leas!D7:G446,4,FALSE),"") -> 0037 | B21: =$E$4*100+C21 -> 60002 | C21: 2 | E21: 37 | F21: Boxborough | G21: =IF($C21<=$B$16,VLOOKUP(A21&$B$12, localcont!A11:X1765, 18, FALSE), "") -> 816.8441684 | H21: =IF($C21<=$B$16,VLOOKUP(A21&$B$12, localcont!$A$10:$X$1764, 23, FALSE), "") -> 876.9393761 | I21: =IF($C21<=$B$16, H21-G21, " ") -> 60.09520771 | J21: =IF($C21<=$B$16,VLOOKUP(A21&$B$12, localcont!$A$10:$X$1764, 15, FALSE), "") -> 7997507 | K21: =IF($C21<=$B$16,VLOOKUP(A21&$B$12, localcont!$A$10:$X$1764, 14, FALSE),"") -> 8509388 | L21: =IF($C21<=$B$16, K21-J21, " ") -> 511881
A22: =IF($C22<=$B$16,VLOOKUP(E22,leas!D8:G447,4,FALSE),"") ->  | B22: 60003 | C22: 3 | G22: =IF($C22<=$B$16,VLOOKUP(A22&$B$12, localcont!A12:X1766, 18, FALSE), "") ->  | H22: =IF($C22<=$B$16,VLOOKUP(A22&$B$12, localcont!$A$10:$X$1764, 23, FALSE), "") ->  | J22: =IF($C22<=$B$16,VLOOKUP(A22&$B$12, localcont!$A$10:$X$1764, 15, FALSE), "") ->  | K22: =IF($C22<=$B$16,VLOOKUP(A22&$B$12, localcont!$A$10:$X$1764, 14, FALSE),"") -> 
A23: =IF($C23<=$B$16,VLOOKUP(E23,leas!D9:G448,4,FALSE),"") ->  | B23: 60004 | C23: 4 | G23: =IF($C23<=$B$16,VLOOKUP(A23&$B$12, localcont!A13:X1767, 18, FALSE), "") ->  | H23: =IF($C23<=$B$16,VLOOKUP(A23&$B$12, localcont!$A$10:$X$1764, 23, FALSE), "") ->  | J23: =IF($C23<=$B$16,VLOOKUP(A23&$B$12, localcont!$A$10:$X$1764, 15, FALSE), "") ->  | K23: =IF($C23<=$B$16,VLOOKUP(A23&$B$12, localcont!$A$10:$X$1764, 14, FALSE),"") -> 
A24: =IF($C24<=$B$16,VLOOKUP(E24,leas!D10:G449,4,FALSE),"") ->  | B24: 60005 | C24: 5 | G24: =IF($C24<=$B$16,VLOOKUP(A24&$B$12, localcont!A14:X1768, 18, FALSE), "") ->  | H24: =IF($C24<=$B$16,VLOOKUP(A24&$B$12, localcont!$A$10:$X$1764, 23, FALSE), "") ->  | J24: =IF($C24<=$B$16,VLOOKUP(A24&$B$12, localcont!$A$10:$X$1764, 15, FALSE), "") ->  | K24: =IF($C24<=$B$16,VLOOKUP(A24&$B$12, localcont!$A$10:$X$1764, 14, FALSE),"") -> 
A25: =IF($C25<=$B$16,VLOOKUP(E25,leas!D11:G450,4,FALSE),"") ->  | B25: 60006 | C25: 6 | G25: =IF($C25<=$B$16,VLOOKUP(A25&$B$12, localcont!A15:X1769, 18, FALSE), "") ->  | H25: =IF($C25<=$B$16,VLOOKUP(A25&$B$12, localcont!$A$10:$X$1764, 23, FALSE), "") ->  | J25: =IF($C25<=$B$16,VLOOKUP(A25&$B$12, localcont!$A$10:$X$1764, 15, FALSE), "") ->  | K25: =IF($C25<=$B$16,VLOOKUP(A25&$B$12, localcont!$A$10:$X$1764, 14, FALSE),"") -> 
A26: =IF($C26<=$B$16,VLOOKUP(E26,leas!D12:G451,4,FALSE),"") ->  | B26: 60007 | C26: 7 | G26: =IF($C26<=$B$16,VLOOKUP(A26&$B$12, localcont!A16:X1770, 18, FALSE), "") ->  | H26: =IF($C26<=$B$16,VLOOKUP(A26&$B$12, localcont!$A$10:$X$1764, 23, FALSE), "") ->  | J26: =IF($C26<=$B$16,VLOOKUP(A26&$B$12, localcont!$A$10:$X$1764, 15, FALSE), "") ->  | K26: =IF($C26<=$B$16,VLOOKUP(A26&$B$12, localcont!$A$10:$X$1764, 14, FALSE),"") -> 
A27: =IF($C27<=$B$16,VLOOKUP(E27,leas!D13:G452,4,FALSE),"") ->  | B27: 60008 | C27: 8 | G27: =IF($C27<=$B$16,VLOOKUP(A27&$B$12, localcont!A17:X1771, 18, FALSE), "") ->  | H27: =IF($C27<=$B$16,VLOOKUP(A27&$B$12, localcont!$A$10:$X$1764, 23, FALSE), "") ->  | J27: =IF($C27<=$B$16,VLOOKUP(A27&$B$12, localcont!$A$10:$X$1764, 15, FALSE), "") ->  | K27: =IF($C27<=$B$16,VLOOKUP(A27&$B$12, localcont!$A$10:$X$1764, 14, FALSE),"") -> 
A28: =IF($C28<=$B$16,VLOOKUP(E28,leas!D14:G453,4,FALSE),"") ->  | B28: 60009 | C28: 9 | G28: =IF($C28<=$B$16,VLOOKUP(A28&$B$12, localcont!A18:X1772, 18, FALSE), "") ->  | H28: =IF($C28<=$B$16,VLOOKUP(A28&$B$12, localcont!$A$10:$X$1764, 23, FALSE), "") ->  | J28: =IF($C28<=$B$16,VLOOKUP(A28&$B$12, localcont!$A$10:$X$1764, 15, FALSE), "") ->  | K28: =IF($C28<=$B$16,VLOOKUP(A28&$B$12, localcont!$A$10:$X$1764, 14, FALSE),"") -> 
A29: =IF($C29<=$B$16,VLOOKUP(E29,leas!D15:G454,4,FALSE),"") ->  | B29: 60010 | C29: 10 | G29: =IF($C29<=$B$16,VLOOKUP(A29&$B$12, localcont!A19:X1773, 18, FALSE), "") ->  | H29: =IF($C29<=$B$16,VLOOKUP(A29&$B$12, localcont!$A$10:$X$1764, 23, FALSE), "") ->  | J29: =IF($C29<=$B$16,VLOOKUP(A29&$B$12, localcont!$A$10:$X$1764, 15, FALSE), "") ->  | K29: =IF($C29<=$B$16,VLOOKUP(A29&$B$12, localcont!$A$10:$X$1764, 14, FALSE),"") -> 
A30: =IF($C30<=$B$16,VLOOKUP(E30,leas!D16:G455,4,FALSE),"") ->  | B30: 60011 | C30: 11 | G30: =IF($C30<=$B$16,VLOOKUP(A30&$B$12, localcont!A20:X1774, 18, FALSE), "") ->  | H30: =IF($C30<=$B$16,VLOOKUP(A30&$B$12, localcont!$A$10:$X$1764, 23, FALSE), "") ->  | J30: =IF($C30<=$B$16,VLOOKUP(A30&$B$12, localcont!$A$10:$X$1764, 15, FALSE), "") ->  | K30: =IF($C30<=$B$16,VLOOKUP(A30&$B$12, localcont!$A$10:$X$1764, 14, FALSE),"") -> 
A31: =IF($C31<=$B$16,VLOOKUP(E31,leas!D17:G456,4,FALSE),"") ->  | B31: 60012 | C31: 12 | G31: =IF($C31<=$B$16,VLOOKUP(A31&$B$12, localcont!A21:X1775, 18, FALSE), "") ->  | H31: =IF($C31<=$B$16,VLOOKUP(A31&$B$12, localcont!$A$10:$X$1764, 23, FALSE), "") ->  | J31: =IF($C31<=$B$16,VLOOKUP(A31&$B$12, localcont!$A$10:$X$1764, 15, FALSE), "") ->  | K31: =IF($C31<=$B$16,VLOOKUP(A31&$B$12, localcont!$A$10:$X$1764, 14, FALSE),"") -> 
A32: =IF($C32<=$B$16,VLOOKUP(E32,leas!D18:G457,4,FALSE),"") ->  | B32: 60013 | C32: 13 | G32: =IF($C32<=$B$16,VLOOKUP(A32&$B$12, localcont!A22:X1776, 18, FALSE), "") ->  | H32: =IF($C32<=$B$16,VLOOKUP(A32&$B$12, localcont!$A$10:$X$1764, 23, FALSE), "") ->  | J32: =IF($C32<=$B$16,VLOOKUP(A32&$B$12, localcont!$A$10:$X$1764, 15, FALSE), "") ->  | K32: =IF($C32<=$B$16,VLOOKUP(A32&$B$12, localcont!$A$10:$X$1764, 14, FALSE),"") -> 
A33: =IF($C33<=$B$16,VLOOKUP(E33,leas!D19:G458,4,FALSE),"") ->  | B33: 60014 | C33: 14 | G33: =IF($C33<=$B$16,VLOOKUP(A33&$B$12, localcont!A23:X1777, 18, FALSE), "") ->  | H33: =IF($C33<=$B$16,VLOOKUP(A33&$B$12, localcont!$A$10:$X$1764, 23, FALSE), "") ->  | J33: =IF($C33<=$B$16,VLOOKUP(A33&$B$12, localcont!$A$10:$X$1764, 15, FALSE), "") ->  | K33: =IF($C33<=$B$16,VLOOKUP(A33&$B$12, localcont!$A$10:$X$1764, 14, FALSE),"") -> 
A34: =IF($C34<=$B$16,VLOOKUP(E34,leas!D20:G459,4,FALSE),"") ->  | B34: 60015 | C34: 15 | G34: =IF($C34<=$B$16,VLOOKUP(A34&$B$12, localcont!A24:X1778, 18, FALSE), "") ->  | H34: =IF($C34<=$B$16,VLOOKUP(A34&$B$12, localcont!$A$10:$X$1764, 23, FALSE), "") ->  | J34: =IF($C34<=$B$16,VLOOKUP(A34&$B$12, localcont!$A$10:$X$1764, 15, FALSE), "") ->  | K34: =IF($C34<=$B$16,VLOOKUP(A34&$B$12, localcont!$A$10:$X$1764, 14, FALSE),"") -> 
A35: =IF($C35<=$B$16,VLOOKUP(E35,leas!D21:G460,4,FALSE),"") ->  | B35: 60016 | C35: 16 | G35: =IF($C35<=$B$16,VLOOKUP(A35&$B$12, localcont!A25:X1779, 18, FALSE), "") ->  | H35: =IF($C35<=$B$16,VLOOKUP(A35&$B$12, localcont!$A$10:$X$1764, 23, FALSE), "") ->  | J35: =IF($C35<=$B$16,VLOOKUP(A35&$B$12, localcont!$A$10:$X$1764, 15, FALSE), "") ->  | K35: =IF($C35<=$B$16,VLOOKUP(A35&$B$12, localcont!$A$10:$X$1764, 14, FALSE),"") -> 
A36: =IF($C36<=$B$16,VLOOKUP(E36,leas!D22:G461,4,FALSE),"") ->  | B36: 60017 | C36: 17 | G36: =IF($C36<=$B$16,VLOOKUP(A36&$B$12, localcont!A26:X1780, 18, FALSE), "") ->  | H36: =IF($C36<=$B$16,VLOOKUP(A36&$B$12, localcont!$A$10:$X$1764, 23, FALSE), "") ->  | J36: =IF($C36<=$B$16,VLOOKUP(A36&$B$12, localcont!$A$10:$X$1764, 15, FALSE), "") ->  | K36: =IF($C36<=$B$16,VLOOKUP(A36&$B$12, localcont!$A$10:$X$1764, 14, FALSE),"") -> 
A37: =IF($C37<=$B$16,VLOOKUP(E37,leas!D23:G462,4,FALSE),"") ->  | B37: 60018 | C37: 18 | G37: =IF($C37<=$B$16,VLOOKUP(A37&$B$12, localcont!A27:X1781, 18, FALSE), "") ->  | H37: =IF($C37<=$B$16,VLOOKUP(A37&$B$12, localcont!$A$10:$X$1764, 23, FALSE), "") ->  | J37: =IF($C37<=$B$16,VLOOKUP(A37&$B$12, localcont!$A$10:$X$1764, 15, FALSE), "") ->  | K37: =IF($C37<=$B$16,VLOOKUP(A37&$B$12, localcont!$A$10:$X$1764, 14, FALSE),"") -> 
A38: =IF($C38<=$B$16,VLOOKUP(E38,leas!D24:G463,4,FALSE),"") ->  | B38: 60019 | C38: 19 | G38: =IF($C38<=$B$16,VLOOKUP(A38&$B$12, localcont!A28:X1782, 18, FALSE), "") ->  | H38: =IF($C38<=$B$16,VLOOKUP(A38&$B$12, localcont!$A$10:$X$1764, 23, FALSE), "") ->  | J38: =IF($C38<=$B$16,VLOOKUP(A38&$B$12, localcont!$A$10:$X$1764, 15, FALSE), "") ->  | K38: =IF($C38<=$B$16,VLOOKUP(A38&$B$12, localcont!$A$10:$X$1764, 14, FALSE),"") -> 
A39: =IF($C39<=$B$16,VLOOKUP(E39,leas!D25:G464,4,FALSE),"") ->  | B39: 60020 | C39: 20 | G39: =IF($C39<=$B$16,VLOOKUP(A39&$B$12, localcont!A29:X1783, 18, FALSE), "") ->  | H39: =IF($C39<=$B$16,VLOOKUP(A39&$B$12, localcont!$A$10:$X$1764, 23, FALSE), "") ->  | J39: =IF($C39<=$B$16,VLOOKUP(A39&$B$12, localcont!$A$10:$X$1764, 15, FALSE), "") ->  | K39: =IF($C39<=$B$16,VLOOKUP(A39&$B$12, localcont!$A$10:$X$1764, 14, FALSE),"") -> 
A40: =IF($C40<=$B$16,VLOOKUP(E40,leas!D26:G465,4,FALSE),"") ->  | B40: 60021 | C40: 21 | G40: =IF($C40<=$B$16,VLOOKUP(A40&$B$12, localcont!A30:X1784, 18, FALSE), "") ->  | H40: =IF($C40<=$B$16,VLOOKUP(A40&$B$12, localcont!$A$10:$X$1764, 23, FALSE), "") ->  | J40: =IF($C40<=$B$16,VLOOKUP(A40&$B$12, localcont!$A$10:$X$1764, 15, FALSE), "") ->  | K40: =IF($C40<=$B$16,VLOOKUP(A40&$B$12, localcont!$A$10:$X$1764, 14, FALSE),"") -> 
A41: =IF($C41<=$B$16,VLOOKUP(E41,leas!D27:G466,4,FALSE),"") ->  | B41: 60022 | C41: 22 | G41: =IF($C41<=$B$16,VLOOKUP(A41&$B$12, localcont!A31:X1785, 18, FALSE), "") ->  | H41: =IF($C41<=$B$16,VLOOKUP(A41&$B$12, localcont!$A$10:$X$1764, 23, FALSE), "") ->  | J41: =IF($C41<=$B$16,VLOOKUP(A41&$B$12, localcont!$A$10:$X$1764, 15, FALSE), "") ->  | K41: =IF($C41<=$B$16,VLOOKUP(A41&$B$12, localcont!$A$10:$X$1764, 14, FALSE),"") -> 
A42: =IF($C42<=$B$16,VLOOKUP(E42,leas!D28:G467,4,FALSE),"") ->  | B42: 60023 | C42: 23 | G42: =IF($C42<=$B$16,VLOOKUP(A42&$B$12, localcont!A32:X1786, 18, FALSE), "") ->  | H42: =IF($C42<=$B$16,VLOOKUP(A42&$B$12, localcont!$A$10:$X$1764, 23, FALSE), "") ->  | J42: =IF($C42<=$B$16,VLOOKUP(A42&$B$12, localcont!$A$10:$X$1764, 15, FALSE), "") ->  | K42: =IF($C42<=$B$16,VLOOKUP(A42&$B$12, localcont!$A$10:$X$1764, 14, FALSE),"") -> 
A43: =IF($C43<=$B$16,VLOOKUP(E43,leas!D29:G468,4,FALSE),"") ->  | B43: 60024 | C43: 24 | G43: =IF($C43<=$B$16,VLOOKUP(A43&$B$12, localcont!A33:X1787, 18, FALSE), "") ->  | H43: =IF($C43<=$B$16,VLOOKUP(A43&$B$12, localcont!$A$10:$X$1764, 23, FALSE), "") ->  | J43: =IF($C43<=$B$16,VLOOKUP(A43&$B$12, localcont!$A$10:$X$1764, 15, FALSE), "") ->  | K43: =IF($C43<=$B$16,VLOOKUP(A43&$B$12, localcont!$A$10:$X$1764, 14, FALSE),"") -> 
A44: =IF($C44<=$B$16,VLOOKUP(E44,leas!D30:G469,4,FALSE),"") ->  | B44: 60025 | C44: 25 | G44: =IF($C44<=$B$16,VLOOKUP(A44&$B$12, localcont!A34:X1788, 18, FALSE), "") ->  | H44: =IF($C44<=$B$16,VLOOKUP(A44&$B$12, localcont!$A$10:$X$1764, 23, FALSE), "") ->  | J44: =IF($C44<=$B$16,VLOOKUP(A44&$B$12, localcont!$A$10:$X$1764, 15, FALSE), "") ->  | K44: =IF($C44<=$B$16,VLOOKUP(A44&$B$12, localcont!$A$10:$X$1764, 14, FALSE),"") -> 
A45: =IF($C45<=$B$16,VLOOKUP(E45,leas!D31:G470,4,FALSE),"") ->  | B45: 60026 | C45: 26 | G45: =IF($C45<=$B$16,VLOOKUP(A45&$B$12, localcont!A35:X1789, 18, FALSE), "") ->  | H45: =IF($C45<=$B$16,VLOOKUP(A45&$B$12, localcont!$A$10:$X$1764, 23, FALSE), "") ->  | J45: =IF($C45<=$B$16,VLOOKUP(A45&$B$12, localcont!$A$10:$X$1764, 15, FALSE), "") ->  | K45: =IF($C45<=$B$16,VLOOKUP(A45&$B$12, localcont!$A$10:$X$1764, 14, FALSE),"") -> 
A46: =IF($C46<=$B$16,VLOOKUP(E46,leas!D32:G471,4,FALSE),"") ->  | B46: 60027 | C46: 27 | G46: =IF($C46<=$B$16,VLOOKUP(A46&$B$12, localcont!A36:X1790, 18, FALSE), "") ->  | H46: =IF($C46<=$B$16,VLOOKUP(A46&$B$12, localcont!$A$10:$X$1764, 23, FALSE), "") ->  | J46: =IF($C46<=$B$16,VLOOKUP(A46&$B$12, localcont!$A$10:$X$1764, 15, FALSE), "") ->  | K46: =IF($C46<=$B$16,VLOOKUP(A46&$B$12, localcont!$A$10:$X$1764, 14, FALSE),"") -> 
A47: =IF($C47<=$B$16,VLOOKUP(E47,leas!D33:G472,4,FALSE),"") ->  | B47: 60028 | C47: 28 | G47: =IF($C47<=$B$16,VLOOKUP(A47&$B$12, localcont!A37:X1791, 18, FALSE), "") ->  | H47: =IF($C47<=$B$16,VLOOKUP(A47&$B$12, localcont!$A$10:$X$1764, 23, FALSE), "") ->  | J47: =IF($C47<=$B$16,VLOOKUP(A47&$B$12, localcont!$A$10:$X$1764, 15, FALSE), "") ->  | K47: =IF($C47<=$B$16,VLOOKUP(A47&$B$12, localcont!$A$10:$X$1764, 14, FALSE),"") -> 
A48: =IF($C48<=$B$16,VLOOKUP(E48,leas!D34:G473,4,FALSE),"") ->  | B48: 60029 | C48: 29 | G48: =IF($C48<=$B$16,VLOOKUP(A48&$B$12, localcont!A38:X1792, 18, FALSE), "") ->  | H48: =IF($C48<=$B$16,VLOOKUP(A48&$B$12, localcont!$A$10:$X$1764, 23, FALSE), "") ->  | J48: =IF($C48<=$B$16,VLOOKUP(A48&$B$12, localcont!$A$10:$X$1764, 15, FALSE), "") ->  | K48: =IF($C48<=$B$16,VLOOKUP(A48&$B$12, localcont!$A$10:$X$1764, 14, FALSE),"") -> 
A49: =IF($C49<=$B$16,VLOOKUP(E49,leas!D35:G474,4,FALSE),"") ->  | B49: 60030 | C49: 30 | G49: =IF($C49<=$B$16,VLOOKUP(A49&$B$12, localcont!A39:X1793, 18, FALSE), "") ->  | H49: =IF($C49<=$B$16,VLOOKUP(A49&$B$12, localcont!$A$10:$X$1764, 23, FALSE), "") ->  | J49: =IF($C49<=$B$16,VLOOKUP(A49&$B$12, localcont!$A$10:$X$1764, 15, FALSE), "") ->  | K49: =IF($C49<=$B$16,VLOOKUP(A49&$B$12, localcont!$A$10:$X$1764, 14, FALSE),"") -> 
A50: =IF($C50<=$B$16,VLOOKUP(E50,leas!D36:G475,4,FALSE),"") ->  | B50: 60031 | C50: 31 | G50: =IF($C50<=$B$16,VLOOKUP(A50&$B$12, localcont!A40:X1794, 18, FALSE), "") ->  | H50: =IF($C50<=$B$16,VLOOKUP(A50&$B$12, localcont!$A$10:$X$1764, 23, FALSE), "") ->  | J50: =IF($C50<=$B$16,VLOOKUP(A50&$B$12, localcont!$A$10:$X$1764, 15, FALSE), "") ->  | K50: =IF($C50<=$B$16,VLOOKUP(A50&$B$12, localcont!$A$10:$X$1764, 14, FALSE),"") -> 
A51: =IF($C51<=$B$16,VLOOKUP(E51,leas!D37:G476,4,FALSE),"") ->  | B51: 60032 | C51: 32 | G51: =IF($C51<=$B$16,VLOOKUP(A51&$B$12, localcont!A41:X1795, 18, FALSE), "") ->  | H51: =IF($C51<=$B$16,VLOOKUP(A51&$B$12, localcont!$A$10:$X$1764, 23, FALSE), "") ->  | J51: =IF($C51<=$B$16,VLOOKUP(A51&$B$12, localcont!$A$10:$X$1764, 15, FALSE), "") ->  | K51: =IF($C51<=$B$16,VLOOKUP(A51&$B$12, localcont!$A$10:$X$1764, 14, FALSE),"") -> 
A52: =IF($C52<=$B$16,VLOOKUP(E52,leas!D38:G477,4,FALSE),"") ->  | B52: 60033 | C52: 33 | F52: =IF($C52<=$B$16, VLOOKUP($B52, regdetail, 6), " ") ->  | G52: =IF($C52<=$B$16,VLOOKUP(A52&$B$12, localcont!A42:X1796, 18, FALSE), "") ->  | H52: =IF($C52<=$B$16,VLOOKUP(A52&$B$12, localcont!$A$10:$X$1764, 23, FALSE), "") ->  | J52: =IF($C52<=$B$16,VLOOKUP(A52&$B$12, localcont!$A$10:$X$1764, 15, FALSE), "") ->  | K52: =IF($C52<=$B$16,VLOOKUP(A52&$B$12, localcont!$A$10:$X$1764, 14, FALSE),"") -> 
A53: =IF($C53<=$B$16,VLOOKUP(E53,leas!D39:G478,4,FALSE),"") ->  | B53: 60034 | C53: 34 | G53: =IF($C53<=$B$16,VLOOKUP(A53&$B$12, localcont!A43:X1797, 18, FALSE), "") ->  | H53: =IF($C53<=$B$16,VLOOKUP(A53&$B$12, localcont!$A$10:$X$1764, 23, FALSE), "") ->  | J53: =IF($C53<=$B$16,VLOOKUP(A53&$B$12, localcont!$A$10:$X$1764, 15, FALSE), "") ->  | K53: =IF($C53<=$B$16,VLOOKUP(A53&$B$12, localcont!$A$10:$X$1764, 14, FALSE),"") -> 
A54: =IF($C54<=$B$16,VLOOKUP(E54,leas!D40:G479,4,FALSE),"") ->  | B54: 60035 | C54: 35 | G54: =IF($C54<=$B$16,VLOOKUP(A54&$B$12, localcont!A44:X1798, 18, FALSE), "") ->  | H54: =IF($C54<=$B$16,VLOOKUP(A54&$B$12, localcont!$A$10:$X$1764, 23, FALSE), "") ->  | J54: =IF($C54<=$B$16,VLOOKUP(A54&$B$12, localcont!$A$10:$X$1764, 15, FALSE), "") ->  | K54: =IF($C54<=$B$16,VLOOKUP(A54&$B$12, localcont!$A$10:$X$1764, 14, FALSE),"") -> 
A55: =IF($C55<=$B$16,VLOOKUP(E55,leas!D41:G480,4,FALSE),"") ->  | B55: 60036 | C55: 36 | G55: =IF($C55<=$B$16,VLOOKUP(A55&$B$12, localcont!A45:X1799, 18, FALSE), "") ->  | H55: =IF($C55<=$B$16,VLOOKUP(A55&$B$12, localcont!$A$10:$X$1764, 23, FALSE), "") ->  | J55: =IF($C55<=$B$16,VLOOKUP(A55&$B$12, localcont!$A$10:$X$1764, 15, FALSE), "") ->  | K55: =IF($C55<=$B$16,VLOOKUP(A55&$B$12, localcont!$A$10:$X$1764, 14, FALSE),"") -> 
A56: =IF($C56<=$B$16,VLOOKUP(E56,leas!D42:G481,4,FALSE),"") ->  | B56: 60037 | C56: 37 | G56: =IF($C56<=$B$16,VLOOKUP(A56&$B$12, localcont!A46:X1800, 18, FALSE), "") ->  | H56: =IF($C56<=$B$16,VLOOKUP(A56&$B$12, localcont!$A$10:$X$1764, 23, FALSE), "") ->  | J56: =IF($C56<=$B$16,VLOOKUP(A56&$B$12, localcont!$A$10:$X$1764, 15, FALSE), "") ->  | K56: =IF($C56<=$B$16,VLOOKUP(A56&$B$12, localcont!$A$10:$X$1764, 14, FALSE),"") -> 
A57: =IF($C57<=$B$16,VLOOKUP(E57,leas!D43:G482,4,FALSE),"") ->  | B57: 60038 | C57: 38 | G57: =IF($C57<=$B$16,VLOOKUP(A57&$B$12, localcont!A47:X1801, 18, FALSE), "") ->  | H57: =IF($C57<=$B$16,VLOOKUP(A57&$B$12, localcont!$A$10:$X$1764, 23, FALSE), "") ->  | J57: =IF($C57<=$B$16,VLOOKUP(A57&$B$12, localcont!$A$10:$X$1764, 15, FALSE), "") ->  | K57: =IF($C57<=$B$16,VLOOKUP(A57&$B$12, localcont!$A$10:$X$1764, 14, FALSE),"") -> 
A58: =IF($C58<=$B$16,VLOOKUP(E58,leas!D44:G483,4,FALSE),"") ->  | B58: 60039 | C58: 39 | G58: =IF($C58<=$B$16,VLOOKUP(A58&$B$12, localcont!A48:X1802, 18, FALSE), "") ->  | H58: =IF($C58<=$B$16,VLOOKUP(A58&$B$12, localcont!$A$10:$X$1764, 23, FALSE), "") ->  | J58: =IF($C58<=$B$16,VLOOKUP(A58&$B$12, localcont!$A$10:$X$1764, 15, FALSE), "") ->  | K58: =IF($C58<=$B$16,VLOOKUP(A58&$B$12, localcont!$A$10:$X$1764, 14, FALSE),"") -> 
A59: =IF($C59<=$B$16,VLOOKUP(E59,leas!D45:G484,4,FALSE),"") ->  | B59: 60040 | C59: 40 | G59: =IF($C59<=$B$16,VLOOKUP(A59&$B$12, localcont!A49:X1803, 18, FALSE), "") ->  | H59: =IF($C59<=$B$16,VLOOKUP(A59&$B$12, localcont!$A$10:$X$1764, 23, FALSE), "") ->  | J59: =IF($C59<=$B$16,VLOOKUP(A59&$B$12, localcont!$A$10:$X$1764, 15, FALSE), "") ->  | K59: =IF($C59<=$B$16,VLOOKUP(A59&$B$12, localcont!$A$10:$X$1764, 14, FALSE),"") -> 
A60: =IF($C60<=$B$16,VLOOKUP(E60,leas!D46:G485,4,FALSE),"") ->  | B60: 60041 | C60: 41 | G60: =IF($C60<=$B$16,VLOOKUP(A60&$B$12, localcont!A50:X1804, 18, FALSE), "") ->  | H60: =IF($C60<=$B$16,VLOOKUP(A60&$B$12, localcont!$A$10:$X$1764, 23, FALSE), "") ->  | J60: =IF($C60<=$B$16,VLOOKUP(A60&$B$12, localcont!$A$10:$X$1764, 15, FALSE), "") ->  | K60: =IF($C60<=$B$16,VLOOKUP(A60&$B$12, localcont!$A$10:$X$1764, 14, FALSE),"") -> 
A61: =IF($C61<=$B$16,VLOOKUP(E61,leas!D47:G486,4,FALSE),"") ->  | B61: 60042 | C61: 42 | G61: =IF($C61<=$B$16,VLOOKUP(A61&$B$12, localcont!A51:X1805, 18, FALSE), "") ->  | H61: =IF($C61<=$B$16,VLOOKUP(A61&$B$12, localcont!$A$10:$X$1764, 23, FALSE), "") ->  | J61: =IF($C61<=$B$16,VLOOKUP(A61&$B$12, localcont!$A$10:$X$1764, 15, FALSE), "") ->  | K61: =IF($C61<=$B$16,VLOOKUP(A61&$B$12, localcont!$A$10:$X$1764, 14, FALSE),"") -> 
A62: =IF($C62<=$B$16,VLOOKUP(E62,leas!D48:G487,4,FALSE),"") ->  | B62: 60043 | C62: 43 | G62: =IF($C62<=$B$16,VLOOKUP(A62&$B$12, localcont!A52:X1806, 18, FALSE), "") ->  | H62: =IF($C62<=$B$16,VLOOKUP(A62&$B$12, localcont!$A$10:$X$1764, 23, FALSE), "") ->  | J62: =IF($C62<=$B$16,VLOOKUP(A62&$B$12, localcont!$A$10:$X$1764, 15, FALSE), "") ->  | K62: =IF($C62<=$B$16,VLOOKUP(A62&$B$12, localcont!$A$10:$X$1764, 14, FALSE),"") -> 
A63: =IF($C63<=$B$16,VLOOKUP(E63,leas!D49:G488,4,FALSE),"") ->  | B63: 60044 | C63: 44 | G63: =IF($C63<=$B$16,VLOOKUP(A63&$B$12, localcont!A53:X1807, 18, FALSE), "") ->  | H63: =IF($C63<=$B$16,VLOOKUP(A63&$B$12, localcont!$A$10:$X$1764, 23, FALSE), "") ->  | J63: =IF($C63<=$B$16,VLOOKUP(A63&$B$12, localcont!$A$10:$X$1764, 15, FALSE), "") ->  | K63: =IF($C63<=$B$16,VLOOKUP(A63&$B$12, localcont!$A$10:$X$1764, 14, FALSE),"") ->  | P63: =IF($C63>$B$16,"",O63*$P$13) -> 
A64: =IF($C64<=$B$16,VLOOKUP(E64,leas!D50:G489,4,FALSE),"") ->  | B64: 60045 | C64: 45 | G64: =IF($C64<=$B$16,VLOOKUP(A64&$B$12, localcont!A54:X1808, 18, FALSE), "") ->  | H64: =IF($C64<=$B$16,VLOOKUP(A64&$B$12, localcont!$A$10:$X$1764, 23, FALSE), "") ->  | J64: =IF($C64<=$B$16,VLOOKUP(A64&$B$12, localcont!$A$10:$X$1764, 15, FALSE), "") ->  | K64: =IF($C64<=$B$16,VLOOKUP(A64&$B$12, localcont!$A$10:$X$1764, 14, FALSE),"") -> 
A65: =IF($C65<=$B$16,VLOOKUP(E65,leas!D51:G490,4,FALSE),"") ->  | B65: 60046 | C65: 46 | G65: =IF($C65<=$B$16,VLOOKUP(A65&$B$12, localcont!A55:X1809, 18, FALSE), "") ->  | H65: =IF($C65<=$B$16,VLOOKUP(A65&$B$12, localcont!$A$10:$X$1764, 23, FALSE), "") ->  | J65: =IF($C65<=$B$16,VLOOKUP(A65&$B$12, localcont!$A$10:$X$1764, 15, FALSE), "") ->  | K65: =IF($C65<=$B$16,VLOOKUP(A65&$B$12, localcont!$A$10:$X$1764, 14, FALSE),"") -> 
A66: =IF($C66<=$B$16,VLOOKUP(E66,leas!D52:G491,4,FALSE),"") ->  | B66: 60047 | C66: 47 | G66: =IF($C66<=$B$16,VLOOKUP(A66&$B$12, localcont!A56:X1810, 18, FALSE), "") ->  | H66: =IF($C66<=$B$16,VLOOKUP(A66&$B$12, localcont!$A$10:$X$1764, 23, FALSE), "") ->  | J66: =IF($C66<=$B$16,VLOOKUP(A66&$B$12, localcont!$A$10:$X$1764, 15, FALSE), "") ->  | K66: =IF($C66<=$B$16,VLOOKUP(A66&$B$12, localcont!$A$10:$X$1764, 14, FALSE),"") -> 
A67: =IF($C67<=$B$16,VLOOKUP(E67,leas!D53:G492,4,FALSE),"") ->  | B67: 60048 | C67: 48 | G67: =IF($C67<=$B$16,VLOOKUP(A67&$B$12, localcont!A57:X1811, 18, FALSE), "") ->  | H67: =IF($C67<=$B$16,VLOOKUP(A67&$B$12, localcont!$A$10:$X$1764, 23, FALSE), "") ->  | J67: =IF($C67<=$B$16,VLOOKUP(A67&$B$12, localcont!$A$10:$X$1764, 15, FALSE), "") ->  | K67: =IF($C67<=$B$16,VLOOKUP(A67&$B$12, localcont!$A$10:$X$1764, 14, FALSE),"") -> 
A68: =IF($C68<=$B$16,VLOOKUP(E68,leas!D54:G493,4,FALSE),"") ->  | B68: 60049 | C68: 49 | G68: =IF($C68<=$B$16,VLOOKUP(A68&$B$12, localcont!A58:X1812, 18, FALSE), "") ->  | H68: =IF($C68<=$B$16,VLOOKUP(A68&$B$12, localcont!$A$10:$X$1764, 23, FALSE), "") ->  | J68: =IF($C68<=$B$16,VLOOKUP(A68&$B$12, localcont!$A$10:$X$1764, 15, FALSE), "") ->  | K68: =IF($C68<=$B$16,VLOOKUP(A68&$B$12, localcont!$A$10:$X$1764, 14, FALSE),"") -> 

Sheet Comparison to FY23
B1: Return to Index | P1: More about the data
A2: Massachusetts Department of Elementary and Secondary Education
A3: =CYr&" Chapter 70 Comparison to "&PYr -> FY24 Chapter 70 Comparison to FY23
C7: =PYr -> FY23 | D7: =CYr -> FY24 | F7: =PYr -> FY23 | G7: =CYr -> FY24 | I7: =PYr -> FY23 | J7: =CYr -> FY24 | L7: =PYr -> FY23 | M7: =CYr -> FY24
B8: Operating | C8: Foundation | D8: Foundation | F8: Foundation | G8: Foundation | I8: Minimum | J8: Minimum | L8: Chapter 70 | M8: Chapter 70
A9: LEA | B9: District name | C9: Enrollment | D9: Enrollment | E9: change | F9: Budget | G9: Budget | H9: change per pupil | I9: Contribution | J9: Contribution | K9: change per pupil | L9: aid | M9: aid | N9: change in aid | O9: change in aid per pupil | P9: % change in aid
A10: 1 | B10: Abington | C10: =VLOOKUP(A10,aidcalc,14,FALSE) -> 2238 | D10: =VLOOKUP(A10,aidcalc,15,FALSE) -> 2206 | E10: =D10-C10 -> -32 | F10: =VLOOKUP(A10,aidcalc,4,FALSE) -> 29563170.92 | G10: =VLOOKUP(A10,aidcalc,9,FALSE) -> 31287579.08 | H10: =(G10-F10)/$D10 -> 781.69001 | I10: =VLOOKUP(A10,aidcalc,5,FALSE) -> 16599047 | J10: =VLOOKUP(A10,aidcalc,10,FALSE) -> 17104459 | K10: =(J10-I10)/$D10 -> 229.1078876 | L10: =VLOOKUP(A10,aidcalc,6,FALSE) -> 12964124 | M10: =VLOOKUP(A10,aidcalc,25,FALSE) -> 14183120 | N10: =M10-L10 -> 1218996 | O10: =(M10-L10)/$D10 -> 552.582049 | P10: =ROUND(IF(F10>0,(M10-L10)/L10,100),2) -> 0.09
A11: 3 | B11: Acushnet | C11: 1192 | D11: 1221 | E11: 29 | F11: 14410940.64 | G11: 15911255.39 | H11: 1228.759009 | I11: 8355453 | J11: 8740925 | K11: 315.7018837 | L11: 6469222 | M11: 7170330 | N11: 701108 | O11: 574.2080262 | P11: 0.11
A12: 5 | B12: Agawam | C12: 3420 | D12: 3421 | E12: 1 | F12: 46476254.92 | G12: 50397491.3 | H12: 1146.225191 | I12: 24515018 | J12: 25373043 | K12: 250.8111663 | L12: 21961237 | M12: 25024448 | N12: 3063211 | O12: 895.4139141 | P12: 0.14
A13: 7 | B13: Amesbury | C13: 1878 | D13: 1847 | E13: -31 | F13: 23505262.73 | G13: 24965747.03 | H13: 790.7332431 | I13: 17438478 | J13: 18234602 | K13: 431.036275 | L13: 9361467 | M13: 9416877 | N13: 55410 | O13: 30 | P13: 0.01
A14: 8 | B14: Amherst | C14: 1065 | D14: 1055 | E14: -10 | F14: 13429756.49 | G14: 14207190.94 | H14: 736.9046919 | I14: 10461831 | J14: 11168148 | K14: 669.4947867 | L14: 6217473 | M14: 6249123 | N14: 31650 | O14: 30 | P14: 0.01
A15: 9 | B15: Andover | C15: 5500 | D15: 5554 | E15: 54 | F15: 67357496.13 | G15: 72244408.49 | H15: 879.8905951 | I15: 55569934 | J15: 58293608 | K15: 490.3986316 | L15: 12167131 | M15: 13950800 | N15: 1783669 | O15: 321.1503421 | P15: 0.15
A16: 10 | B16: Arlington | C16: 5910 | D16: 6002 | E16: 92 | F16: 69496899.57 | G16: 74896748.64 | H16: 899.674952 | I16: 53603535 | J16: 56193340 | K16: 431.4903366 | L16: 15893365 | M16: 18703409 | N16: 2810044 | O16: 468.1846051 | P16: 0.18
A17: 14 | B17: Ashland | C17: 2814 | D17: 2839 | E17: 25 | F17: 33942250.53 | G17: 36758230.61 | H17: 991.8915393 | I17: 24208528 | J17: 25484731 | K17: 449.5255372 | L17: 9733723 | M17: 11273500 | N17: 1539777 | O17: 542.3659739 | P17: 0.16
A18: 16 | B18: Attleboro | C18: 6237 | D18: 6238 | E18: 1 | F18: 89310929.61 | G18: 97105120.72 | H18: 1249.469559 | I18: 41515915 | J18: 43712969 | K18: 352.2048734 | L18: 47795015 | M18: 53392152 | N18: 5597137 | O18: 897.2646682 | P18: 0.12
A19: 17 | B19: Auburn | C19: 2425 | D19: 2422 | E19: -3 | F19: 30252650.17 | G19: 32176028.36 | H19: 794.1280718 | I19: 16217482 | J19: 17041707 | K19: 340.307597 | L19: 14035168 | M19: 15134321 | N19: 1099153 | O19: 453.8203964 | P19: 0.08
A20: 18 | B20: Avon | C20: 563 | D20: 586 | E20: 23 | F20: 8289241.66 | G20: 9536788.92 | H20: 2128.920239 | I20: 5081884 | J20: 5390722 | K20: 527.0273038 | L20: 3207358 | M20: 4146067 | N20: 938709 | O20: 1601.892491 | P20: 0.29
A21: 20 | B21: Barnstable | C21: 5193 | D21: 5302 | E21: 109 | F21: 75594779.84 | G21: 84542110.14 | H21: 1687.538721 | I21: 56888584 | J21: 59790057 | K21: 547.2412297 | L21: 18706196 | M21: 24752053 | N21: 6045857 | O21: 1140.297435 | P21: 0.32
A22: 23 | B22: Bedford | C22: 2624 | D22: 2549 | E22: -75 | F22: 32246555.76 | G22: 33265363.04 | H22: 399.6890099 | I22: 26379003 | J22: 27443924 | K22: 417.7799137 | L22: 5867553 | M22: 5944023 | N22: 76470 | O22: 30 | P22: 0.01
A23: 24 | B23: Belchertown | C23: 2177 | D23: 2152 | E23: -25 | F23: 26384198.33 | G23: 27713334.38 | H23: 617.628276 | I23: 13099002 | J23: 13763232 | K23: 308.6570632 | L23: 14080886 | M23: 14145446 | N23: 64560 | O23: 30 | P23: 0
A24: 25 | B24: Bellingham | C24: 2158 | D24: 2175 | E24: 17 | F24: 27015991.39 | G24: 29660512.23 | H24: 1215.871651 | I24: 18432465 | J24: 19686080 | K24: 576.3747126 | L24: 8837425 | M24: 9974432 | N24: 1137007 | O24: 522.7618391 | P24: 0.13
A25: 26 | B25: Belmont | C25: 4449 | D25: 4505 | E25: 56 | F25: 53256083.38 | G25: 57423975.88 | H25: 925.170367 | I25: 43686648 | J25: 45639441 | K25: 433.472364 | L25: 10158889 | M25: 11784535 | N25: 1625646 | O25: 360.8537181 | P25: 0.16
A26: 27 | B26: Berkley | C26: 725 | D26: 698 | E26: -27 | F26: 8601441.5 | G26: 8929788.14 | H26: 470.410659 | I26: 4571797 | J26: 4777868 | K26: 295.230659 | L26: 4068938 | M26: 4151920 | N26: 82982 | O26: 118.8853868 | P26: 0.02
A27: 30 | B27: Beverly | C27: 4595 | D27: 4541 | E27: -54 | F27: 58610573.33 | G27: 61798815.26 | H27: 702.1012839 | I27: 45452132 | J27: 47254334 | K27: 396.8733759 | L27: 13158441 | M27: 14544481 | N27: 1386040 | O27: 305.2279234 | P27: 0.11
A28: 31 | B28: Billerica | C28: 4792 | D28: 4879 | E28: 87 | F28: 57705837.69 | G28: 63590856.68 | H28: 1206.193685 | I28: 46197969 | J28: 49635324 | K28: 704.5203935 | L28: 19777194 | M28: 19923564 | N28: 146370 | O28: 30 | P28: 0.01
A29: 35 | B29: Boston | C29: 58339 | D29: 57738 | E29: -601 | F29: 1012695286 | G29: 1095713386 | H29: 1437.841631 | I29: 827212576 | J29: 880485066 | K29: 922.6590807 | L29: 227236505 | M29: 228968645 | N29: 1732140 | O29: 30 | P29: 0.01
A30: 36 | B30: Bourne | C30: 1717 | D30: 1678 | E30: -39 | F30: 21855345.04 | G30: 22858350.51 | H30: 597.7386591 | I30: 17827720 | J30: 18409357 | K30: 346.625149 | L30: 5371903 | M30: 5422243 | N30: 50340 | O30: 30 | P30: 0.01
A31: 38 | B31: Boxford | C31: 729 | D31: 721 | E31: -8 | F31: 8106140.946 | G31: 8528050.268 | H31: 585.1724298 | I31: 6300062 | J31: 6718468 | K31: 580.3134535 | L31: 1811833 | M31: 1833463 | N31: 21630 | O31: 30 | P31: 0.01
A32: 40 | B32: Braintree | C32: 5273 | D32: 5244 | E32: -29 | F32: 68308994.31 | G32: 72501248.64 | H32: 799.4382782 | I32: 48941926 | J32: 51848673 | K32: 554.2995805 | L32: 19367068 | M32: 20652576 | N32: 1285508 | O32: 245.1388253 | P32: 0.07
A33: 41 | B33: Brewster | C33: 440 | D33: 418 | E33: -22 | F33: 5580574.66 | G33: 5743102.11 | H33: 388.8216507 | I33: 4228204 | J33: 4394765 | K33: 398.4712919 | L33: 1352371 | M33: 1364911 | N33: 12540 | O33: 30 | P33: 0.01
A34: 43 | B34: Brimfield | C34: 256 | D34: 264 | E34: 8 | F34: 3134102.29 | G34: 3511281.75 | H34: 1428.710076 | I34: 1768013 | J34: 1913482 | K34: 551.0189394 | L34: 1388436 | M34: 1597800 | N34: 209364 | O34: 793.0454545 | P34: 0.15
A35: 44 | B35: Brockton | C35: 16975 | D35: 16619 | E35: -356 | F35: 276250953.1 | G35: 295646847.7 | H35: 1167.091557 | I35: 52190600 | J35: 54579267 | K35: 143.7310909 | L35: 224060353 | M35: 241067581 | N35: 17007228 | O35: 1023.360491 | P35: 0.08
A36: 45 | B36: Brookfield | C36: 228 | D36: 223 | E36: -5 | F36: 2950079.41 | G36: 3240938.55 | H36: 1304.301076 | I36: 1240313 | J36: 1329203 | K36: 398.6098655 | L36: 1721083 | M36: 1911736 | N36: 190653 | O36: 854.9461883 | P36: 0.11
A37: 46 | B37: Brookline | C37: 6799 | D37: 6913 | E37: 114 | F37: 82255132.52 | G37: 89394640.06 | H37: 1032.765448 | I37: 67860485 | J37: 73750578 | K37: 852.0313901 | L37: 15620467 | M37: 15827857 | N37: 207390 | O37: 30 | P37: 0.01
A38: 48 | B38: Burlington | C38: 3470 | D38: 3424 | E38: -46 | F38: 44168133.06 | G38: 46103747.99 | H38: 565.3080987 | I38: 35018289 | J38: 36818680 | K38: 525.8151285 | L38: 9149844 | M38: 9285068 | N38: 135224 | O38: 39.49299065 | P38: 0.01
A39: 49 | B39: Cambridge | C39: 7074 | D39: 7030 | E39: -44 | F39: 105936291.7 | G39: 112732473.5 | H39: 966.739943 | I39: 87397441 | J39: 93004291 | K39: 797.5604552 | L39: 18538851 | M39: 19728183 | N39: 1189332 | O39: 169.1795164 | P39: 0.06
A40: 50 | B40: Canton | C40: 3287 | D40: 3260 | E40: -27 | F40: 40961226.36 | G40: 43350134.77 | H40: 732.7939921 | I40: 33070790 | J40: 34684949 | K40: 495.1407975 | L40: 7890436 | M40: 8665186 | N40: 774750 | O40: 237.6533742 | P40: 0.1
A41: 51 | B41: Carlisle | C41: 580 | D41: 567 | E41: -13 | F41: 6420143.446 | G41: 6639945.163 | H41: 387.6573495 | I41: 5066173 | J41: 5477955 | K41: 726.2469136 | L41: 1353970 | M41: 1370980 | N41: 17010 | O41: 30 | P41: 0.01
A42: 52 | B42: Carver | C42: 1513 | D42: 1535 | E42: 22 | F42: 19740695.12 | G42: 21283331.5 | H42: 1004.974839 | I42: 10252128 | J42: 10820042 | K42: 369.9765472 | L42: 10144409 | M42: 10463289 | N42: 318880 | O42: 207.7394137 | P42: 0.03
A43: 56 | B43: Chelmsford | C43: 5047 | D43: 5108 | E43: 61 | F43: 59337599.05 | G43: 63812307.76 | H43: 876.0197161 | I43: 47375444 | J43: 49670508 | K43: 449.3077525 | L43: 11962155 | M43: 14141800 | N43: 2179645 | O43: 426.7120204 | P43: 0.18
A44: 57 | B44: Chelsea | C44: 7089 | D44: 7110 | E44: 21 | F44: 125093687.6 | G44: 138863180.5 | H44: 1936.63753 | I44: 20484593 | J44: 22081668 | K44: 224.6237693 | L44: 104609095 | M44: 116781512 | N44: 12172417 | O44: 1712.013643 | P44: 0.12
A45: 61 | B45: Chicopee | C45: 7202 | D45: 7166 | E45: -36 | F45: 112893440.5 | G45: 122693363.2 | H45: 1367.558292 | I45: 32109426 | J45: 33865812 | K45: 245.0999163 | L45: 80784014 | M45: 88827551 | N45: 8043537 | O45: 1122.458415 | P45: 0.1
A46: 63 | B46: Clarksburg | C46: 196 | D46: 171 | E46: -25 | F46: 2565630.8 | G46: 2395286.75 | H46: -996.1640351 | I46: 761205 | J46: 736864 | K46: -142.3450292 | L46: 1817095 | M46: 1822225 | N46: 5130 | O46: 30 | P46: 0
A47: 64 | B47: Clinton | C47: 2064 | D47: 2062 | E47: -2 | F47: 29918746 | G47: 32534279.41 | H47: 1268.444913 | I47: 12528207 | J47: 13217258 | K47: 334.1663434 | L47: 17390539 | M47: 19317021 | N47: 1926482 | O47: 934.2783705 | P47: 0.11
A48: 65 | B48: Cohasset | C48: 1381 | D48: 1367 | E48: -14 | F48: 15911489.33 | G48: 16687439.72 | H48: 567.6301304 | I48: 13126979 | J48: 13767138 | K48: 468.2948061 | L48: 2873722 | M48: 2920302 | N48: 46580 | O48: 34.07461595 | P48: 0.02
A49: 67 | B49: Concord | C49: 1977 | D49: 1925 | E49: -52 | F49: 22336390.43 | G49: 23075622.33 | H49: 384.0165748 | I49: 18427522 | J49: 19037389 | K49: 316.814026 | L49: 3916391 | M49: 4038233 | N49: 121842 | O49: 63.29454545 | P49: 0.03
A50: 68 | B50: Conway | C50: 78 | D50: 66 | E50: -12 | F50: 1051296.66 | G50: 941811.15 | H50: -1658.871364 | I50: 810426 | J50: 776994 | K50: -506.5454545 | L50: 633484 | M50: 635464 | N50: 1980 | O50: 30 | P50: 0
A51: 71 | B51: Danvers | C51: 3300 | D51: 3315 | E51: 15 | F51: 39586571.12 | G51: 42331707.48 | H51: 828.0954329 | I51: 31703302 | J51: 33039603 | K51: 403.1073906 | L51: 7883269 | M51: 9292104 | N51: 1408835 | O51: 424.9879336 | P51: 0.18
A52: 72 | B52: Dartmouth | C52: 3366 | D52: 3303 | E52: -63 | F52: 42137530.87 | G52: 43916766.76 | H52: 538.6726885 | I52: 33036538 | J52: 34831363 | K52: 543.3923706 | L52: 10251151 | M52: 10350241 | N52: 99090 | O52: 30 | P52: 0.01
A53: 73 | B53: Dedham | C53: 2566 | D53: 2529 | E53: -37 | F53: 33049835.11 | G53: 34648058.13 | H53: 631.958488 | I53: 26263407 | J53: 27655361 | K53: 550.3969949 | L53: 6786428 | M53: 6992697 | N53: 206269 | O53: 81.56148675 | P53: 0.03
A54: 74 | B54: Deerfield | C54: 284 | D54: 281 | E54: -3 | F54: 3310653.24 | G54: 3505682.31 | H54: 694.0536299 | I54: 2731289 | J54: 2863682 | K54: 471.1494662 | L54: 1140193 | M54: 1148623 | N54: 8430 | O54: 30 | P54: 0.01
A55: 77 | B55: Douglas | C55: 1114 | D55: 1132 | E55: 18 | F55: 13450769.33 | G55: 14574247.94 | H55: 992.4722703 | I55: 7945377 | J55: 8454786 | K55: 450.0079505 | L55: 8859605 | M55: 8893565 | N55: 33960 | O55: 30 | P55: 0
A56: 78 | B56: Dover | C56: 485 | D56: 500 | E56: 15 | F56: 5377259.147 | G56: 5901407.924 | H56: 1048.297554 | I56: 4436239 | J56: 4868661 | K56: 864.844 | L56: 941020 | M56: 1032747 | N56: 91727 | O56: 183.454 | P56: 0.1
A57: 79 | B57: Dracut | C57: 3936 | D57: 3900 | E57: -36 | F57: 50418700.75 | G57: 54539267.46 | H57: 1056.555567 | I57: 26100541 | J57: 27369124 | K57: 325.2776923 | L57: 24318160 | M57: 27170143 | N57: 2851983 | O57: 731.2776923 | P57: 0.12
A58: 82 | B58: Duxbury | C58: 2738 | D58: 2729 | E58: -9 | F58: 31970862.73 | G58: 33659011.2 | H58: 618.5959942 | I58: 25660838 | J58: 26987503 | K58: 486.1359472 | L58: 6310025 | M58: 6671508 | N58: 361483 | O58: 132.4598754 | P58: 0.06
A59: 83 | B59: East Bridgewater | C59: 2074 | D59: 2022 | E59: -52 | F59: 25682682.97 | G59: 26867274.06 | H59: 585.851182 | I59: 13482733 | J59: 13993957 | K59: 252.8308605 | L59: 12199950 | M59: 12873317 | N59: 673367 | O59: 333.020277 | P59: 0.06
A60: 85 | B60: Eastham | C60: 199 | D60: 197 | E60: -2 | F60: 2709776.23 | G60: 2896212.01 | H60: 946.3745178 | I60: 2235566 | J60: 2389375 | K60: 780.7563452 | L60: 474210 | M60: 506837 | N60: 32627 | O60: 165.6192893 | P60: 0.07
A61: 86 | B61: Easthampton | C61: 1608 | D61: 1591 | E61: -17 | F61: 21391869.32 | G61: 22559015.46 | H61: 733.592797 | I61: 13077217 | J61: 13894543 | K61: 513.7184161 | L61: 8314652 | M61: 8664472 | N61: 349820 | O61: 219.8742929 | P61: 0.04
A62: 87 | B62: East Longmeadow | C62: 2535 | D62: 2552 | E62: 17 | F62: 31009727.38 | G62: 33881345.88 | H62: 1125.242359 | I62: 17979103 | J62: 18843898 | K62: 338.8695141 | L62: 13030624 | M62: 15037448 | N62: 2006824 | O62: 786.3730408 | P62: 0.15
A63: 88 | B63: Easton | C63: 3345 | D63: 3418 | E63: 73 | F63: 39647570.75 | G63: 43192301.49 | H63: 1037.077455 | I63: 31564199 | J63: 33376275 | K63: 530.1568169 | L63: 10450341 | M63: 10552881 | N63: 102540 | O63: 30 | P63: 0.01
A64: 89 | B64: Edgartown | C64: 425 | D64: 438 | E64: 13 | F64: 5932989.49 | G64: 6660865.34 | H64: 1661.817009 | I64: 4894716 | J64: 5495214 | K64: 1371 | L64: 1038273 | M64: 1165651 | N64: 127378 | O64: 290.8173516 | P64: 0.12
A65: 91 | B65: Erving | C65: 205 | D65: 203 | E65: -2 | F65: 2504088.01 | G65: 2671388.78 | H65: 824.1417241 | I65: 2013666 | J65: 2115389 | K65: 501.0985222 | L65: 490422 | M65: 556000 | N65: 65578 | O65: 323.044335 | P65: 0.13
A66: 93 | B66: Everett | C66: 7437 | D66: 7937 | E66: 500 | F66: 131079661.9 | G66: 152643280.5 | H66: 2716.847498 | I66: 38446657 | J66: 40961068 | K66: 316.7961446 | L66: 92633005 | M66: 111682212 | N66: 19049207 | O66: 2400.051279 | P66: 0.21
A67: 94 | B67: Fairhaven | C67: 1679 | D67: 1659 | E67: -20 | F67: 22300570.94 | G67: 23768492.65 | H67: 884.8232128 | I67: 13273418 | J67: 14136790 | K67: 520.4171187 | L67: 9027153 | M67: 9631703 | N67: 604550 | O67: 364.4062688 | P67: 0.07
A68: 95 | B68: Fall River | C68: 12103 | D68: 12238 | E68: 135 | F68: 204753290.1 | G68: 226544925.6 | H68: 1780.653336 | I68: 36332032 | J68: 38520449 | K68: 178.8214578 | L68: 168421258 | M68: 188024477 | N68: 19603219 | O68: 1601.831917 | P68: 0.12
A69: 96 | B69: Falmouth | C69: 3025 | D69: 2959 | E69: -66 | F69: 41087216.11 | G69: 42847018.86 | H69: 594.728878 | I69: 32002344 | J69: 33524110 | K69: 514.2838797 | L69: 9084872 | M69: 9322909 | N69: 238037 | O69: 80.4450828 | P69: 0.03
A70: 97 | B70: Fitchburg | C70: 5658 | D70: 5661 | E70: 3 | F70: 88839002.54 | G70: 96678430.43 | H70: 1384.813264 | I70: 20577723 | J70: 21950317 | K70: 242.4649355 | L70: 68261280 | M70: 74728113 | N70: 6466833 | O70: 1142.348172 | P70: 0.09
A71: 98 | B71: Florida | C71: 64 | D71: 57 | E71: -7 | F71: 969371.98 | G71: 917915.93 | H71: -902.7377193 | I71: 458631 | J71: 425391 | K71: -583.1578947 | L71: 556297 | M71: 558007 | N71: 1710 | O71: 30 | P71: 0
A72: 99 | B72: Foxborough | C72: 2543 | D72: 2537 | E72: -6 | F72: 32116850.1 | G72: 34005786 | H72: 744.5549485 | I72: 25779824 | J72: 27296530 | K72: 597.8344501 | L72: 9275820 | M72: 9351930 | N72: 76110 | O72: 30 | P72: 0.01
A73: 100 | B73: Framingham | C73: 9344 | D73: 9759 | E73: 415 | F73: 139318256.6 | G73: 159351946.8 | H73: 2052.842524 | I73: 70464780 | J73: 74355413 | K73: 398.6712778 | L73: 68853477 | M73: 84996534 | N73: 16143057 | O73: 1654.171227 | P73: 0.23
A74: 101 | B74: Franklin | C74: =VLOOKUP(A74,aidcalc,14,FALSE) -> 5180 | D74: =VLOOKUP(A74,aidcalc,15,FALSE) -> 5104 | E74: =D74-C74 -> -76 | F74: =VLOOKUP(A74,aidcalc,4,FALSE) -> 62458712.61 | G74: =VLOOKUP(A74,aidcalc,9,FALSE) -> 65275976.23 | H74: =(G74-F74)/$D74 -> 551.9717129 | I74: =VLOOKUP(A74,aidcalc,5,FALSE) -> 44800360 | J74: =VLOOKUP(A74,aidcalc,10,FALSE) -> 47235495 | K74: =(J74-I74)/$D74 -> 477.1032524 | L74: =VLOOKUP(A74,aidcalc,6,FALSE) -> 28885721 | M74: =VLOOKUP(A74,aidcalc,25,FALSE) -> 29038841 | N74: =M74-L74 -> 153120 | O74: =(M74-L74)/$D74 -> 30 | P74: =ROUND(IF(F74>0,(M74-L74)/L74,100),2) -> 0.01
A75: 103 | B75: Gardner | C75: 2284 | D75: 2397 | E75: 113 | F75: 34029130.22 | G75: 38690363.83 | H75: 1944.611435 | I75: 10721731 | J75: 11262118 | K75: 225.4430538 | L75: 23307399 | M75: 27428246 | N75: 4120847 | O75: 1719.168544 | P75: 0.18
A76: 105 | B76: Georgetown | C76: 1247 | D76: 1229 | E76: -18 | F76: 14264533.8 | G76: 15011687.49 | H76: 607.9362815 | I76: 11007817 | J76: 11377637 | K76: 300.91131 | L76: 5639758 | M76: 5676628 | N76: 36870 | O76: 30 | P76: 0.01
A77: 107 | B77: Gloucester | C77: 3051 | D77: 3035 | E77: -16 | F77: 43648880.14 | G77: 47045109.89 | H77: 1119.021334 | I77: 33989778 | J77: 35714197 | K77: 568.1775947 | L77: 9659102 | M77: 11330913 | N77: 1671811 | O77: 550.8438221 | P77: 0.17
A78: 110 | B78: Grafton | C78: 3053 | D78: 2950 | E78: -103 | F78: 36001737.56 | G78: 36858149.16 | H78: 290.3090169 | I78: 23384218 | J78: 24436656 | K78: 356.7586441 | L78: 12617520 | M78: 12706020 | N78: 88500 | O78: 30 | P78: 0.01
A79: 111 | B79: Granby | C79: 663 | D79: 672 | E79: 9 | F79: 8631463.39 | G79: 9588488.89 | H79: 1424.145089 | I79: 5431578 | J79: 5667319 | K79: 350.8050595 | L79: 4725110 | M79: 4745270 | N79: 20160 | O79: 30 | P79: 0
A80: 114 | B80: Greenfield | C80: 1848 | D80: 1791 | E80: -57 | F80: 26326536.47 | G80: 27294290.69 | H80: 540.3429481 | I80: 10621969 | J80: 11091044 | K80: 261.906756 | L80: 15704567 | M80: 16203247 | N80: 498680 | O80: 278.4366276 | P80: 0.03
A81: 117 | B81: Hadley | C81: 473 | D81: 456 | E81: -17 | F81: 6025430.87 | G81: 6277106.59 | H81: 551.9204386 | I81: 4970980 | J81: 5178613 | K81: 455.3355263 | L81: 1322740 | M81: 1336420 | N81: 13680 | O81: 30 | P81: 0.01
A82: 118 | B82: Halifax | C82: 604 | D82: 613 | E82: 9 | F82: 7179616.249 | G82: 7849455.023 | H82: 1092.722308 | I82: 4006503 | J82: 4340378 | K82: 544.6574225 | L82: 3173113 | M82: 3509077 | N82: 335964 | O82: 548.0652529 | P82: 0.11
A83: 121 | B83: Hancock | C83: 81 | D83: 86 | E83: 5 | F83: 1024022.37 | G83: 1216494.75 | H83: 2238.05093 | I83: 729685 | J83: 780690 | K83: 593.0813953 | L83: 294337 | M83: 435805 | N83: 141468 | O83: 1644.976744 | P83: 0.48
A84: 122 | B84: Hanover | C84: 2528 | D84: 2481 | E84: -47 | F84: 29637166.85 | G84: 30800181.27 | H84: 468.7684077 | I84: 22439160 | J84: 23372172 | K84: 376.0628779 | L84: 7309583 | M84: 7428009 | N84: 118426 | O84: 47.73317211 | P84: 0.02
A85: 125 | B85: Harvard | C85: 873 | D85: 875 | E85: 2 | F85: 9947885.43 | G85: 10576374.95 | H85: 718.2737371 | I85: 8018632 | J85: 8379508 | K85: 412.4297143 | L85: 2061331 | M85: 2196867 | N85: 135536 | O85: 154.8982857 | P85: 0.07
A86: 127 | B86: Hatfield | C86: 331 | D86: 317 | E86: -14 | F86: 4125023.47 | G86: 4215602.35 | H86: 285.7377918 | I86: 3287596 | J86: 3472030 | K86: 581.8107256 | L86: 876136 | M86: 885646 | N86: 9510 | O86: 30 | P86: 0.01
A87: 128 | B87: Haverhill | C87: 8252 | D87: 8287 | E87: 35 | F87: 121331843.4 | G87: 132551888.2 | H87: 1353.93325 | I87: 47425533 | J87: 49918077 | K87: 300.7776035 | L87: 73906310 | M87: 82633811 | N87: 8727501 | O87: 1053.155666 | P87: 0.12
A88: 131 | B88: Hingham | C88: 3879 | D88: 3807 | E88: -72 | F88: 45163141.52 | G88: 47057670.47 | H88: 497.6435375 | I88: 37259592 | J88: 38822578 | K88: 410.5558182 | L88: 8306773 | M88: 8420983 | N88: 114210 | O88: 30 | P88: 0.01
A89: 133 | B89: Holbrook | C89: 1338 | D89: 1352 | E89: 14 | F89: 18684757.82 | G89: 20493828.68 | H89: 1338.070159 | I89: 8938395 | J89: 9611922 | K89: 498.170858 | L89: 9746363 | M89: 10881907 | N89: 1135544 | O89: 839.8994083 | P89: 0.12
A90: 135 | B90: Holland | C90: 171 | D90: 175 | E90: 4 | F90: 2386918.74 | G90: 2529520.89 | H90: 814.8694286 | I90: 1401973 | J90: 1516165 | K90: 652.5257143 | L90: 984946 | M90: 1013356 | N90: 28410 | O90: 162.3428571 | P90: 0.03
A91: 136 | B91: Holliston | C91: 2724 | D91: 2686 | E91: -38 | F91: 31404798.24 | G91: 32828254.54 | H91: 529.9539452 | I91: 22733659 | J91: 23937028 | K91: 448.0152643 | L91: 8671139 | M91: 8910063 | N91: 238924 | O91: 88.95160089 | P91: 0.03
A92: 137 | B92: Holyoke | C92: 6033 | D92: 5926 | E92: -107 | F92: 101613348.8 | G92: 109412142.3 | H92: 1316.029944 | I92: 11842864 | J92: 12452771 | K92: 102.9205197 | L92: 89770485 | M92: 96959371 | N92: 7188886 | O92: 1213.109349 | P92: 0.08
A93: 138 | B93: Hopedale | C93: 899 | D93: 875 | E93: -24 | F93: 11008174.74 | G93: 11489500.85 | H93: 550.0869829 | I93: 6377665 | J93: 6489561 | K93: 127.8811429 | L93: 6168750 | M93: 6195000 | N93: 26250 | O93: 30 | P93: 0
A94: 139 | B94: Hopkinton | C94: 3996 | D94: 4139 | E94: 143 | F94: 46722628.01 | G94: 50873294.83 | H94: 1002.818752 | I94: 37984044 | J94: 41073636 | K94: 746.4585649 | L94: 8738584 | M94: 9799659 | N94: 1061075 | O94: 256.3602319 | P94: 0.12
A95: 141 | B95: Hudson | C95: 2432 | D95: 2417 | E95: -15 | F95: 31921911.97 | G95: 34207457.53 | H95: 945.612561 | I95: 20140158 | J95: 21209511 | K95: 442.4298717 | L95: 12241726 | M95: 12997947 | N95: 756221 | O95: 312.8758792 | P95: 0.06
A96: 142 | B96: Hull | C96: 821 | D96: 791 | E96: -30 | F96: 10651125.81 | G96: 10986735.57 | H96: 424.2854112 | I96: 8780091 | J96: 9052274 | K96: 344.0998736 | L96: 3948836 | M96: 3972566 | N96: 23730 | O96: 30 | P96: 0.01
A97: 144 | B97: Ipswich | C97: 1602 | D97: 1557 | E97: -45 | F97: 19884295.04 | G97: 20567036.16 | H97: 438.4978291 | I97: 15849509 | J97: 16419694 | K97: 366.2074502 | L97: 4034786 | M97: 4147342 | N97: 112556 | O97: 72.29030186 | P97: 0.03
A98: 145 | B98: Kingston | C98: 1094 | D98: 1125 | E98: 31 | F98: 13087068.68 | G98: 14371240.41 | H98: 1141.48598 | I98: 8280400 | J98: 8940323 | K98: 586.5982222 | L98: 4806669 | M98: 5430917 | N98: 624248 | O98: 554.8871111 | P98: 0.13
A99: 149 | B99: Lawrence | C99: 14593 | D99: 14566 | E99: -27 | F99: 253714474.6 | G99: 279873222.1 | H99: 1795.877213 | I99: 13007684 | J99: 13728391 | K99: 49.47871756 | L99: 240706791 | M99: 266144831 | N99: 25438040 | O99: 1746.398462 | P99: 0.11
A100: 150 | B100: Lee | C100: 560 | D100: 570 | E100: 10 | F100: 7917418.48 | G100: 8739704.66 | H100: 1442.607333 | I100: 6383000 | J100: 6760874 | K100: 662.9368421 | L100: 2136039 | M100: 2153139 | N100: 17100 | O100: 30 | P100: 0.01
A101: 151 | B101: Leicester | C101: 1465 | D101: 1443 | E101: -22 | F101: 19402050.66 | G101: 20759208.56 | H101: 940.5113652 | I101: 9299222 | J101: 9660962 | K101: 250.6860707 | L101: 10102829 | M101: 11098247 | N101: 995418 | O101: 689.8253638 | P101: 0.1
A102: 152 | B102: Lenox | C102: 475 | D102: 489 | E102: 14 | F102: 6111653.49 | G102: 6717817.41 | H102: 1239.599018 | I102: 5042114 | J102: 5422289 | K102: 777.4539877 | L102: 1315905 | M102: 1330575 | N102: 14670 | O102: 30 | P102: 0.01
A103: 153 | B103: Leominster | C103: 5976 | D103: 6020 | E103: 44 | F103: 91159936.34 | G103: 99599000.58 | H103: 1401.837914 | I103: 33607699 | J103: 35204065 | K103: 265.1770764 | L103: 57552237 | M103: 64394936 | N103: 6842699 | O103: 1136.660963 | P103: 0.12
A104: 154 | B104: Leverett | C104: 112 | D104: 101 | E104: -11 | F104: 1361700.11 | G104: 1255147.3 | H104: -1054.978317 | I104: 970792 | J104: 954740 | K104: -158.9306931 | L104: 390908 | M104: 393938 | N104: 3030 | O104: 30 | P104: 0.01
A105: 155 | B105: Lexington | C105: 6850 | D105: 6893 | E105: 43 | F105: 84119411.74 | G105: 90646899.41 | H105: 946.973403 | I105: 69398514 | J105: 73037768 | K105: 527.9637313 | L105: 15058494 | M105: 17609131 | N105: 2550637 | O105: 370.032932 | P105: 0.17
A106: 157 | B106: Lincoln | C106: 607 | D106: 586 | E106: -21 | F106: 7110979.027 | G106: 7355301.967 | H106: 416.9333457 | I106: 5866558 | J106: 6068124 | K106: 343.9692833 | L106: 1244421 | M106: 1287178 | N106: 42757 | O106: 72.96416382 | P106: 0.03
A107: 158 | B107: Littleton | C107: 1624 | D107: 1665 | E107: 41 | F107: 18465845.97 | G107: 20056951.58 | H107: 955.618985 | I107: 14142192 | J107: 15207996 | K107: 640.1225225 | L107: 4323654 | M107: 4848956 | N107: 525302 | O107: 315.4966967 | P107: 0.12
A108: 159 | B108: Longmeadow | C108: 2742 | D108: 2725 | E108: -17 | F108: 31528951.4 | G108: 33192700.99 | H108: 610.5503083 | I108: 25041585 | J108: 26093332 | K108: 385.9622018 | L108: 6487366 | M108: 7099369 | N108: 612003 | O108: 224.5882569 | P108: 0.09
A109: 160 | B109: Lowell | C109: 16103 | D109: 16323 | E109: 220 | F109: 257876444.8 | G109: 288791629.5 | H109: 1893.964637 | I109: 56906426 | J109: 60097975 | K109: 195.5246585 | L109: 200970019 | M109: 228693655 | N109: 27723636 | O109: 1698.439993 | P109: 0.14
A110: 161 | B110: Ludlow | C110: 2311 | D110: 2248 | E110: -63 | F110: 30691074.19 | G110: 32627792.16 | H110: 861.5293461 | I110: 17421395 | J110: 18168773 | K110: 332.4635231 | L110: 14006073 | M110: 14459019 | N110: 452946 | O110: 201.4884342 | P110: 0.03
A111: 162 | B111: Lunenburg | C111: 1671 | D111: 1615 | E111: -56 | F111: 20056630.42 | G111: 20659694.91 | H111: 373.4145449 | I111: 11334402 | J111: 11910986 | K111: 357.0179567 | L111: 8722228 | M111: 8770678 | N111: 48450 | O111: 30 | P111: 0.01
A112: 163 | B112: Lynn | C112: 17808 | D112: 17895 | E112: 87 | F112: 299740597.4 | G112: 329943497.1 | H112: 1687.78428 | I112: 57821484 | J112: 60851330 | K112: 169.3124336 | L112: 241919113 | M112: 269092167 | N112: 27173054 | O112: 1518.471864 | P112: 0.11
A113: 164 | B113: Lynnfield | C113: 2177 | D113: 2207 | E113: 30 | F113: 25488528.22 | G113: 27452371.78 | H113: 889.8249019 | I113: 20492517 | J113: 21507362 | K113: 459.8300861 | L113: 4996011 | M113: 5945010 | N113: 948999 | O113: 429.9950159 | P113: 0.19
A114: 165 | B114: Malden | C114: 6803 | D114: 6940 | E114: 137 | F114: 105452144.2 | G114: 117616659.1 | H114: 1752.811943 | I114: 51377517 | J114: 54419682 | K114: 438.3523055 | L114: 54074627 | M114: 63196977 | N114: 9122350 | O114: 1314.459654 | P114: 0.17
A115: 167 | B115: Mansfield | C115: 3529 | D115: 3485 | E115: -44 | F115: 43764978.67 | G115: 46129087.01 | H115: 678.366811 | I115: 31365406 | J115: 32585038 | K115: 349.9661406 | L115: 19282049 | M115: 19386599 | N115: 104550 | O115: 30 | P115: 0.01
A116: 168 | B116: Marblehead | C116: 2659 | D116: 2658 | E116: -1 | F116: 30912361.05 | G116: 32681938.29 | H116: 665.7551693 | I116: 25502698 | J116: 26962599 | K116: 549.2479308 | L116: 6194847 | M116: 6274587 | N116: 79740 | O116: 30 | P116: 0.01
A117: 169 | B117: Marion | C117: 409 | D117: 401 | E117: -8 | F117: 4816493.63 | G117: 5068217.26 | H117: 627.7397257 | I117: 3774727 | J117: 3913467 | K117: 345.9850374 | L117: 1041767 | M117: 1154750 | N117: 112983 | O117: 281.7531172 | P117: 0.11
A118: 170 | B118: Marlborough | C118: 5218 | D118: 5370 | E118: 152 | F118: 77315386.54 | G118: 87221685 | H118: 1844.748316 | I118: 39639041 | J118: 41360456 | K118: 320.5614525 | L118: 37676346 | M118: 45861229 | N118: 8184883 | O118: 1524.186778 | P118: 0.22
A119: 171 | B119: Marshfield | C119: 3794 | D119: 3783 | E119: -11 | F119: 47025005.91 | G119: 49950295.56 | H119: 773.2724413 | I119: 37291361 | J119: 39070159 | K119: 470.2083003 | L119: 15006223 | M119: 15119713 | N119: 113490 | O119: 30 | P119: 0.01
A120: 172 | B120: Mashpee | C120: 1458 | D120: 1422 | E120: -36 | F120: 19613343.37 | G120: 20496134.48 | H120: 620.8095007 | I120: 15743229 | J120: 16524355 | K120: 549.3150492 | L120: 4772946 | M120: 4815606 | N120: 42660 | O120: 30 | P120: 0.01
A121: 173 | B121: Mattapoisett | C121: 424 | D121: 414 | E121: -10 | F121: 4913934.44 | G121: 5079932.73 | H121: 400.9620531 | I121: 3933553 | J121: 4120905 | K121: 452.5410628 | L121: 980381 | M121: 992801 | N121: 12420 | O121: 30 | P121: 0.01
A122: 174 | B122: Maynard | C122: 1239 | D122: 1240 | E122: 1 | F122: 16124411.02 | G122: 17768872.03 | H122: 1326.178235 | I122: 11396750 | J122: 12105654 | K122: 571.6967742 | L122: 5554961 | M122: 5663218 | N122: 108257 | O122: 87.30403226 | P122: 0.02
A123: 175 | B123: Medfield | C123: 2429 | D123: 2427 | E123: -2 | F123: 28101468.77 | G123: 29777089 | H123: 690.4080051 | I123: 22588503 | J123: 23849002 | K123: 519.3650597 | L123: 6507474 | M123: 6580284 | N123: 72810 | O123: 30 | P123: 0.01
A124: 176 | B124: Medford | C124: 4455 | D124: 4559 | E124: 104 | F124: 64950374.2 | G124: 71888258.34 | H124: 1521.799548 | I124: 51012133 | J124: 54480958 | K124: 760.8740952 | L124: 13938241 | M124: 17407300 | N124: 3469059 | O124: 760.9254222 | P124: 0.25
A125: 177 | B125: Medway | C125: 2121 | D125: 2120 | E125: -1 | F125: 25231553.77 | G125: 26890897.84 | H125: 782.7094702 | I125: 18439545 | J125: 19298650 | K125: 405.2382075 | L125: 10691349 | M125: 10754949 | N125: 63600 | O125: 30 | P125: 0.01
A126: 178 | B126: Melrose | C126: 3972 | D126: 4062 | E126: 90 | F126: 47377571.27 | G126: 51330398.77 | H126: 973.1234596 | I126: 37697349 | J126: 39070041 | K126: 337.9350074 | L126: 9680222 | M126: 12260358 | N126: 2580136 | O126: 635.1885771 | P126: 0.27
A127: 181 | B127: Methuen | C127: 6737 | D127: 6775 | E127: 38 | F127: 99305682 | G127: 109298849.8 | H127: 1475.006322 | I127: 42704657 | J127: 44617436 | K127: 282.3290037 | L127: 56601025 | M127: 64681414 | N127: 8080389 | O127: 1192.677343 | P127: 0.14
A128: 182 | B128: Middleborough | C128: 3113 | D128: 3137 | E128: 24 | F128: 40901731.94 | G128: 44333813.13 | H128: 1094.064772 | I128: 20691229 | J128: 22002952 | K128: 418.1456806 | L128: 20210503 | M128: 22330861 | N128: 2120358 | O128: 675.9190309 | P128: 0.1
A129: 184 | B129: Middleton | C129: 685 | D129: 703 | E129: 18 | F129: 7809075.674 | G129: 8542770.197 | H129: 1043.662195 | I129: 6381487 | J129: 6914393 | K129: 758.0455192 | L129: 1726991 | M129: 1748081 | N129: 21090 | O129: 30 | P129: 0.01
A130: 185 | B130: Milford | C130: 4521 | D130: 4704 | E130: 183 | F130: 66524190.05 | G130: 75437511.28 | H130: 1894.838698 | I130: 27110718 | J130: 28632172 | K130: 323.4383503 | L130: 39413472 | M130: 46805339 | N130: 7391867 | O130: 1571.400298 | P130: 0.19
A131: 186 | B131: Millbury | C131: 1618 | D131: 1638 | E131: 20 | F131: 20670955.99 | G131: 22434599.24 | H131: 1076.705281 | I131: 12891181 | J131: 13581840 | K131: 421.6477411 | L131: 8024392 | M131: 8852759 | N131: 828367 | O131: 505.7185592 | P131: 0.1
A132: 187 | B132: Millis | C132: 1064 | D132: 1089 | E132: 25 | F132: 12954292.11 | G132: 14054851.19 | H132: 1010.614402 | I132: 9957083 | J132: 11047181 | K132: 1001.008264 | L132: 4926682 | M132: 4959352 | N132: 32670 | O132: 30 | P132: 0.01
A133: 189 | B133: Milton | C133: 4316 | D133: 4294 | E133: -22 | F133: 51259127.09 | G133: 53957475.52 | H133: 628.3997272 | I133: 40535520 | J133: 42281594 | K133: 406.6311132 | L133: 10723607 | M133: 11675882 | N133: 952275 | O133: 221.7687471 | P133: 0.09
A134: 191 | B134: Monson | C134: 852 | D134: 810 | E134: -42 | F134: 11078294.98 | G134: 11361547.17 | H134: 349.6940617 | I134: 6264895 | J134: 6395027 | K134: 160.6567901 | L134: 7618685 | M134: 7642985 | N134: 24300 | O134: 30 | P134: 0
A135: 196 | B135: Nahant | C135: 252 | D135: 248 | E135: -4 | F135: 2856293.17 | G135: 2954392.42 | H135: 395.5614919 | I135: 2356441 | J135: 2437374 | K135: 326.3427419 | L135: 546523 | M135: 553963 | N135: 7440 | O135: 30 | P135: 0.01
A136: 197 | B136: Nantucket | C136: 1668 | D136: 1713 | E136: 45 | F136: 22613557.84 | G136: 25201462.49 | H136: 1510.744104 | I136: 18656185 | J136: 20791207 | K136: 1246.364273 | L136: 3957373 | M136: 4410255 | N136: 452882 | O136: 264.3794513 | P136: 0.11
A137: 198 | B137: Natick | C137: 5284 | D137: 5309 | E137: 25 | F137: 61356636.24 | G137: 65231071.03 | H137: 729.7861733 | I137: 49137791 | J137: 52065336 | K137: 551.4305896 | L137: 12218845 | M137: 13165735 | N137: 946890 | O137: 178.3556225 | P137: 0.08
A138: 199 | B138: Needham | C138: =VLOOKUP(A138,aidcalc,14,FALSE) -> 5565 | D138: =VLOOKUP(A138,aidcalc,15,FALSE) -> 5558 | E138: =D138-C138 -> -7 | F138: =VLOOKUP(A138,aidcalc,4,FALSE) -> 66681599.62 | G138: =VLOOKUP(A138,aidcalc,9,FALSE) -> 70773642.89 | H138: =(G138-F138)/$D138 -> 736.2438402 | I138: =VLOOKUP(A138,aidcalc,5,FALSE) -> 54310286 | J138: =VLOOKUP(A138,aidcalc,10,FALSE) -> 57461187 | K138: =(J138-I138)/$D138 -> 566.9127384 | L138: =VLOOKUP(A138,aidcalc,6,FALSE) -> 12371314 | M138: =VLOOKUP(A138,aidcalc,25,FALSE) -> 13312456 | N138: =M138-L138 -> 941142 | O138: =(M138-L138)/$D138 -> 169.3310543 | P138: =ROUND(IF(F138>0,(M138-L138)/L138,100),2) -> 0.08
A139: 201 | B139: New Bedford | C139: 14011 | D139: 14148 | E139: 137 | F139: 233389315.1 | G139: 259908138.3 | H139: 1874.386706 | I139: 34303277 | J139: 35809016 | K139: 106.427693 | L139: 199086038 | M139: 224099122 | N139: 25013084 | O139: 1767.959005 | P139: 0.13
A140: 204 | B140: Newburyport | C140: 2195 | D140: 2232 | E140: 37 | F140: 25407534.99 | G140: 27448207.99 | H140: 914.2800179 | I140: 20726102 | J140: 21788063 | K140: 475.7889785 | L140: 4681433 | M140: 5660145 | N140: 978712 | O140: 438.4910394 | P140: 0.21
A141: 207 | B141: Newton | C141: 12007 | D141: 11885 | E141: -122 | F141: 148413207.2 | G141: 156764603.6 | H141: 702.6837564 | I141: 122440896 | J141: 129330798 | K141: 579.7140934 | L141: 26212526 | M141: 27433806 | N141: 1221280 | O141: 102.7580984 | P141: 0.05
A142: 208 | B142: Norfolk | C142: 1023 | D142: 1010 | E142: -13 | F142: 11453635.65 | G142: 11993145.44 | H142: 534.1681158 | I142: 9052188 | J142: 9300692 | K142: 246.0435644 | L142: 3551805 | M142: 3582105 | N142: 30300 | O142: 30 | P142: 0.01
A143: 209 | B143: North Adams | C143: 1323 | D143: 1315 | E143: -8 | F143: 20196370.64 | G143: 21755055.92 | H143: 1185.312 | I143: 5276853 | J143: 5538974 | K143: 199.3315589 | L143: 14919518 | M143: 16216082 | N143: 1296564 | O143: 985.9802281 | P143: 0.09
A144: 210 | B144: Northampton | C144: 2676 | D144: 2668 | E144: -8 | F144: 33723796.18 | G144: 35618666.02 | H144: 710.2210795 | I144: 26638955 | J144: 28077001 | K144: 538.9977511 | L144: 7798609 | M144: 7878649 | N144: 80040 | O144: 30 | P144: 0.01
A145: 211 | B145: North Andover | C145: 4547 | D145: 4505 | E145: -42 | F145: 54375769.08 | G145: 57569717.3 | H145: 708.9785172 | I145: 43673850 | J145: 45627018 | K145: 433.5556049 | L145: 10701919 | M145: 11942699 | N145: 1240780 | O145: 275.4228635 | P145: 0.12
A146: 212 | B146: North Attleborough | C146: 4114 | D146: 4031 | E146: -83 | F146: 49368540.36 | G146: 51608133.33 | H146: 555.5924014 | I146: 30579150 | J146: 32183541 | K146: 398.0131481 | L146: 21051671 | M146: 21172601 | N146: 120930 | O146: 30 | P146: 0.01
A147: 213 | B147: Northborough | C147: 1590 | D147: 1618 | E147: 28 | F147: 18027328.71 | G147: 19538316.1 | H147: 933.8611805 | I147: 14581324 | J147: 15713655 | K147: 699.8337454 | L147: 4135910 | M147: 4184450 | N147: 48540 | O147: 30 | P147: 0.01
A148: 214 | B148: Northbridge | C148: 2024 | D148: 1997 | E148: -27 | F148: 26403426.61 | G148: 28109617.77 | H148: 854.3771457 | I148: 13630647 | J148: 14472856 | K148: 421.7371057 | L148: 15786061 | M148: 15845971 | N148: 59910 | O148: 30 | P148: 0
A149: 215 | B149: North Brookfield | C149: 585 | D149: 574 | E149: -11 | F149: 7789173.03 | G149: 8281136.67 | H149: 857.0795122 | I149: 3255249 | J149: 3375581 | K149: 209.6376307 | L149: 4533924 | M149: 4905556 | N149: 371632 | O149: 647.4425087 | P149: 0.08
A150: 217 | B150: North Reading | C150: 2248 | D150: 2269 | E150: 21 | F150: 27056349.75 | G150: 29062440.79 | H150: 884.1300317 | I150: 21810649 | J150: 23011257 | K150: 529.1353019 | L150: 7356107 | M150: 7424177 | N150: 68070 | O150: 30 | P150: 0.01
A151: 218 | B151: Norton | C151: 2213 | D151: 2189 | E151: -24 | F151: 27305331.41 | G151: 29128867.22 | H151: 833.0451393 | I151: 19965440 | J151: 20948264 | K151: 448.9830973 | L151: 13029200 | M151: 13094870 | N151: 65670 | O151: 30 | P151: 0.01
A152: 219 | B152: Norwell | C152: 2119 | D152: 2100 | E152: -19 | F152: 24690512.98 | G152: 25956168.81 | H152: 602.6932507 | I152: 19938599 | J152: 20944041 | K152: 478.7819048 | L152: 4751914 | M152: 5012128 | N152: 260214 | O152: 123.9114286 | P152: 0.05
A153: 220 | B153: Norwood | C153: 3521 | D153: 3547 | E153: 26 | F153: 48677498.67 | G153: 53483623.87 | H153: 1354.98314 | I153: 35990878 | J153: 37142187 | K153: 324.586693 | L153: 12686621 | M153: 16341437 | N153: 3654816 | O153: 1030.396391 | P153: 0.29
A154: 221 | B154: Oak Bluffs | C154: 451 | D154: 435 | E154: -16 | F154: 6081567.23 | G154: 6470637.93 | H154: 894.4154023 | I154: 4486599 | J154: 4519073 | K154: 74.65287356 | L154: 1594968 | M154: 1951565 | N154: 356597 | O154: 819.7632184 | P154: 0.22
A155: 223 | B155: Orange | C155: 590 | D155: 583 | E155: -7 | F155: 8547480.97 | G155: 9212499.92 | H155: 1140.684305 | I155: 2251919 | J155: 2332598 | K155: 138.3859348 | L155: 6295562 | M155: 6879902 | N155: 584340 | O155: 1002.298456 | P155: 0.09
A156: 224 | B156: Orleans | C156: 169 | D156: 149 | E156: -20 | F156: 2265527.71 | G156: 2114047.88 | H156: -1016.643154 | I156: 1869061 | J156: 1744090 | K156: -838.7315436 | L156: 445614 | M156: 450084 | N156: 4470 | O156: 30 | P156: 0.01
A157: 226 | B157: Oxford | C157: 1571 | D157: 1526 | E157: -45 | F157: 21026624.1 | G157: 21950126.81 | H157: 605.178709 | I157: 10588629 | J157: 10995071 | K157: 266.344692 | L157: 10708044 | M157: 10955056 | N157: 247012 | O157: 161.8689384 | P157: 0.02
A158: 227 | B158: Palmer | C158: 1297 | D158: 1244 | E158: -53 | F158: 18251116.6 | G158: 19001379.49 | H158: 603.105217 | I158: 7077995 | J158: 7280709 | K158: 162.9533762 | L158: 11173122 | M158: 11720670 | N158: 547548 | O158: 440.1511254 | P158: 0.05
A159: 229 | B159: Peabody | C159: 5940 | D159: 5959 | E159: 19 | F159: 83523634.24 | G159: 91177548.53 | H159: 1284.429315 | I159: 52837629 | J159: 55819170 | K159: 500.3425071 | L159: 30686005 | M159: 35358379 | N159: 4672374 | O159: 784.0869273 | P159: 0.15
A160: 230 | B160: Pelham | C160: 65 | D160: 63 | E160: -2 | F160: 789892.4 | G160: 858482.56 | H160: 1088.732698 | I160: 635687 | J160: 631932 | K160: -59.6031746 | L160: 244483 | M160: 246373 | N160: 1890 | O160: 30 | P160: 0.01
A161: 231 | B161: Pembroke | C161: 2700 | D161: 2599 | E161: -101 | F161: 33225728.81 | G161: 33926554.38 | H161: 269.6520097 | I161: 22712411 | J161: 23884371 | K161: 450.9272797 | L161: 13852952 | M161: 13930922 | N161: 77970 | O161: 30 | P161: 0.01
A162: 234 | B162: Petersham | C162: 65 | D162: 77 | E162: 12 | F162: 934128.69 | G162: 1133842.72 | H162: 2593.688701 | I162: 553478 | J162: 637636 | K162: 1092.961039 | L162: 441433 | M162: 496207 | N162: 54774 | O162: 711.3506494 | P162: 0.12
A163: 236 | B163: Pittsfield | C163: 5618 | D163: 5577 | E163: -41 | F163: 84729484.75 | G163: 92916030.26 | H163: 1467.912051 | I163: 30474674 | J163: 32068500 | K163: 285.7855478 | L163: 54254811 | M163: 60847530 | N163: 6592719 | O163: 1182.126412 | P163: 0.12
A164: 238 | B164: Plainville | C164: 670 | D164: 655 | E164: -15 | F164: 8036459.79 | G164: 8340185.27 | H164: 463.7030229 | I164: 5785122 | J164: 6122586 | K164: 515.2122137 | L164: 2987741 | M164: 3007391 | N164: 19650 | O164: 30 | P164: 0.01
A165: 239 | B165: Plymouth | C165: 7768 | D165: 7691 | E165: -77 | F165: 104649211.5 | G165: 111949866.6 | H165: 949.2465258 | I165: 79081066 | J165: 83683584 | K165: 598.4290729 | L165: 27066867 | M165: 28266283 | N165: 1199416 | O165: 155.9505916 | P165: 0.04
A166: 240 | B166: Plympton | C166: 248 | D166: 251 | E166: 3 | F166: 2979879.445 | G166: 3146739.094 | H166: 664.7794816 | I166: 2095520 | J166: 2196202 | K166: 401.123506 | L166: 884359 | M166: 950537 | N166: 66178 | O166: 263.6573705 | P166: 0.07
A167: 242 | B167: Provincetown | C167: 97 | D167: 98 | E167: 1 | F167: 1535068 | G167: 1708796.98 | H167: 1772.744694 | I167: 1266431 | J167: 1409758 | K167: 1462.520408 | L167: 299571 | M167: 302511 | N167: 2940 | O167: 30 | P167: 0.01
A168: 243 | B168: Quincy | C168: 9460 | D168: 9715 | E168: 255 | F168: 146803428.4 | G168: 164068488.8 | H168: 1777.154962 | I168: 111395437 | J168: 118960682 | K168: 778.7179619 | L168: 35407991 | M168: 45107807 | N168: 9699816 | O168: 998.4370561 | P168: 0.27
A169: 244 | B169: Randolph | C169: 3107 | D169: 3050 | E169: -57 | F169: 47526055.61 | G169: 50608513.31 | H169: 1010.641868 | I169: 24874680 | J169: 26405867 | K169: 502.0285246 | L169: 22651376 | M169: 24202646 | N169: 1551270 | O169: 508.6131148 | P169: 0.07
A170: 246 | B170: Reading | C170: 3699 | D170: 3708 | E170: 9 | F170: 43201150.09 | G170: 46064559.3 | H170: 772.224705 | I170: 35640949 | J170: 37284680 | K170: 443.2931499 | L170: 11171799 | M170: 11283039 | N170: 111240 | O170: 30 | P170: 0.01
A171: 248 | B171: Revere | C171: 7735 | D171: 7955 | E171: 220 | F171: 125462677.8 | G171: 142967579.1 | H171: 2200.490425 | I171: 41009518 | J171: 44549397 | K171: 444.9879321 | L171: 84453160 | M171: 98418182 | N171: 13965022 | O171: 1755.502451 | P171: 0.17
A172: 249 | B172: Richmond | C172: 122 | D172: 120 | E172: -2 | F172: 1633317.15 | G172: 1653453.75 | H172: 167.805 | I172: 1118062 | J172: 1364099 | K172: 2050.308333 | L172: 515255 | M172: 518855 | N172: 3600 | O172: 30 | P172: 0.01
A173: 250 | B173: Rochester | C173: 522 | D173: 499 | E173: -23 | F173: 6070731.01 | G173: 6163095.86 | H173: 185.0998998 | I173: 3686389 | J173: 3840072 | K173: 307.9819639 | L173: 2384342 | M173: 2399312 | N173: 14970 | O173: 30 | P173: 0.01
A174: 251 | B174: Rockland | C174: 2187 | D174: 2213 | E174: 26 | F174: 31695075.43 | G174: 34848972.48 | H174: 1425.168123 | I174: 15340167 | J174: 16311436 | K174: 438.8924537 | L174: 16354908 | M174: 18537536 | N174: 2182628 | O174: 986.2756439 | P174: 0.13
A175: 252 | B175: Rockport | C175: 593 | D175: 587 | E175: -6 | F175: 7658338.17 | G175: 8129580.119 | H175: 802.7971877 | I175: 6318129 | J175: 6706904 | K175: 662.3083475 | L175: 1555526 | M175: 1573136 | N175: 17610 | O175: 30 | P175: 0.01
A176: 253 | B176: Rowe | C176: 44 | D176: 41 | E176: -3 | F176: 687426.26 | G176: 751366.82 | H176: 1559.525854 | I176: 567127 | J176: 619878 | K176: 1286.609756 | L176: 143705 | M176: 144935 | N176: 1230 | O176: 30 | P176: 0.01
A177: 258 | B177: Salem | C177: 4139 | D177: 4202 | E177: 63 | F177: 62736825.24 | G177: 69935642.15 | H177: 1713.188222 | I177: 39750153 | J177: 42479762 | K177: 649.5975726 | L177: 26184942 | M177: 27455880 | N177: 1270938 | O177: 302.460257 | P177: 0.05
A178: 261 | B178: Sandwich | C178: 2422 | D178: 2276 | E178: -146 | F178: 29279714.52 | G178: 29251950.23 | H178: -12.19872144 | I178: 23596865 | J178: 24132859 | K178: 235.4982425 | L178: 7371508 | M178: 7439788 | N178: 68280 | O178: 30 | P178: 0.01
A179: 262 | B179: Saugus | C179: 2744 | D179: 2830 | E179: 86 | F179: 37560632.35 | G179: 42085454.03 | H179: 1598.876919 | I179: 28130603 | J179: 30096004 | K179: 694.4879859 | L179: 9430029 | M179: 11989450 | N179: 2559421 | O179: 904.3890459 | P179: 0.27
A180: 263 | B180: Savoy | C180: 45 | D180: 40 | E180: -5 | F180: 652497.03 | G180: 576479.4 | H180: -1900.44075 | I180: 427939 | J180: 429924 | K180: 49.625 | L180: 519899 | M180: 521099 | N180: 1200 | O180: 30 | P180: 0
A181: 264 | B181: Scituate | C181: 2787 | D181: 2763 | E181: -24 | F181: 32814594.94 | G181: 34295600.02 | H181: 536.0134212 | I181: 26600278 | J181: 27754773 | K181: 417.8411147 | L181: 6281773 | M181: 6540827 | N181: 259054 | O181: 93.7582338 | P181: 0.04
A182: 265 | B182: Seekonk | C182: 2087 | D182: 2067 | E182: -20 | F182: 24525300.48 | G182: 25865534.95 | H182: 648.39597 | I182: 17348780 | J182: 18110661 | K182: 368.5926463 | L182: 7176520 | M182: 7754874 | N182: 578354 | O182: 279.8035801 | P182: 0.08
A183: 266 | B183: Sharon | C183: 3525 | D183: 3495 | E183: -30 | F183: 42035594.01 | G183: 44179615.27 | H183: 613.4538649 | I183: 32315527 | J183: 33681121 | K183: 390.727897 | L183: 9720067 | M183: 10498494 | N183: 778427 | O183: 222.7258941 | P183: 0.08
A184: 269 | B184: Sherborn | C184: 401 | D184: 401 | E184: 0 | F184: 4431918.977 | G184: 4685609.032 | H184: 632.6435292 | I184: 3656333 | J184: 3865627 | K184: 521.9301746 | L184: 775586 | M184: 846957 | N184: 71371 | O184: 177.9825436 | P184: 0.09
A185: 271 | B185: Shrewsbury | C185: 6003 | D185: 5972 | E185: -31 | F185: 70918716.62 | G185: 74633713.99 | H185: 622.069218 | I185: 55216447 | J185: 57993834 | K185: 465.0681514 | L185: 20613148 | M185: 20792308 | N185: 179160 | O185: 30 | P185: 0.01
A186: 272 | B186: Shutesbury | C186: 100 | D186: 111 | E186: 11 | F186: 1228431.31 | G186: 1442294.22 | H186: 1926.692883 | I186: 719067 | J186: 820401 | K186: 912.9189189 | L186: 639326 | M186: 642656 | N186: 3330 | O186: 30 | P186: 0.01
A187: 273 | B187: Somerset | C187: 1688 | D187: 1628 | E187: -60 | F187: 20421920.32 | G187: 21144659.59 | H187: 443.9430405 | I187: 10007089 | J187: 10510731 | K187: 309.3624079 | L187: 10414831 | M187: 10633929 | N187: 219098 | O187: 134.5810811 | P187: 0.02
A188: 274 | B188: Somerville | C188: 5011 | D188: 5100 | E188: 89 | F188: 80143330.55 | G188: 88070540.98 | H188: 1554.354986 | I188: 66118248 | J188: 71896983 | K188: 1133.085294 | L188: 20939048 | M188: 21092048 | N188: 153000 | O188: 30 | P188: 0.01
A189: 275 | B189: Southampton | C189: 480 | D189: 492 | E189: 12 | F189: 5851647.49 | G189: 6284662 | H189: 880.1107927 | I189: 3885985 | J189: 4309371 | K189: 860.5406504 | L189: 2593726 | M189: 2608486 | N189: 14760 | O189: 30 | P189: 0.01
A190: 276 | B190: Southborough | C190: 1174 | D190: 1200 | E190: 26 | F190: 13166912.13 | G190: 14230837.13 | H190: 886.6041634 | I190: 10631673 | J190: 11416440 | K190: 653.9725 | L190: 3091171 | M190: 3127171 | N190: 36000 | O190: 30 | P190: 0.01
A191: 277 | B191: Southbridge | C191: 2159 | D191: 2165 | E191: 6 | F191: 34733982.75 | G191: 38095220.9 | H191: 1552.534942 | I191: 8618946 | J191: 9107735 | K191: 225.7685912 | L191: 26115037 | M191: 28987486 | N191: 2872449 | O191: 1326.766282 | P191: 0.11
A192: 278 | B192: South Hadley | C192: 1864 | D192: 1859 | E192: -5 | F192: 24351460.98 | G192: 25928069.82 | H192: 848.0951264 | I192: 14674595 | J192: 15249839 | K192: 309.4373319 | L192: 9676866 | M192: 10678231 | N192: 1001365 | O192: 538.6578806 | P192: 0.1
A193: 281 | B193: Springfield | C193: 28613 | D193: 28326 | E193: -287 | F193: 483882872.1 | G193: 525763852.9 | H193: 1478.534943 | I193: 44717025 | J193: 48026085 | K193: 116.8205889 | L193: 439165847 | M193: 477737768 | N193: 38571921 | O193: 1361.714361 | P193: 0.09
A194: 284 | B194: Stoneham | C194: 2369 | D194: 2425 | E194: 56 | F194: 29345841.39 | G194: 32165599.71 | H194: 1162.786935 | I194: 23608286 | J194: 24905971 | K194: 535.1278351 | L194: 5737555 | M194: 7259629 | N194: 1522074 | O194: 627.6593814 | P194: 0.27
A195: 285 | B195: Stoughton | C195: 3607 | D195: 3693 | E195: 86 | F195: 50610297.86 | G195: 56987020.3 | H195: 1726.705236 | I195: 29115684 | J195: 30547654 | K195: 387.7525047 | L195: 21494614 | M195: 26439366 | N195: 4944752 | O195: 1338.952613 | P195: 0.23
A196: 287 | B196: Sturbridge | C196: 846 | D196: 883 | E196: 37 | F196: 9620721.53 | G196: 10737439.59 | H196: 1264.686365 | I196: 5377239 | J196: 6009212 | K196: 715.7112118 | L196: 4243483 | M196: 4728228 | N196: 484745 | O196: 548.9750849 | P196: 0.11
A197: 288 | B197: Sudbury | C197: 2491 | D197: 2513 | E197: 22 | F197: 26839555.45 | G197: 28628096.43 | H197: 711.7154715 | I197: 21886829 | J197: 23070588 | K197: 471.0541186 | L197: 5215698 | M197: 5557508 | N197: 341810 | O197: 136.0167131 | P197: 0.07
A198: 289 | B198: Sunderland | C198: 161 | D198: 146 | E198: -15 | F198: 2091284.38 | G198: 1946645.52 | H198: -990.6771233 | I198: 1575365 | J198: 1555821 | K198: -133.8630137 | L198: 886728 | M198: 891108 | N198: 4380 | O198: 30 | P198: 0
A199: 290 | B199: Sutton | C199: 1236 | D199: 1294 | E199: 58 | F199: 14448148.28 | G199: 16076441.03 | H199: 1258.340611 | I199: 11629509 | J199: 12750768 | K199: 866.5061824 | L199: 5591685 | M199: 5630505 | N199: 38820 | O199: 30 | P199: 0.01
A200: 291 | B200: Swampscott | C200: 2029 | D200: 2024 | E200: -5 | F200: 24578055.19 | G200: 26012947.4 | H200: 708.9388389 | I200: 20086942 | J200: 20898493 | K200: 400.9639328 | L200: 4631706 | M200: 5114454 | N200: 482748 | O200: 238.5118577 | P200: 0.1
A201: 292 | B201: Swansea | C201: 2057 | D201: 2033 | E201: -24 | F201: 25270425.83 | G201: 26694462.58 | H201: 700.4607723 | I201: 15443111 | J201: 16252187 | K201: 397.9714707 | L201: 9827315 | M201: 10442276 | N201: 614961 | O201: 302.4894245 | P201: 0.06
A202: 293 | B202: Taunton | C202: =VLOOKUP(A202,aidcalc,14,FALSE) -> 7940 | D202: =VLOOKUP(A202,aidcalc,15,FALSE) -> 8075 | E202: =D202-C202 -> 135 | F202: =VLOOKUP(A202,aidcalc,4,FALSE) -> 118729147.7 | G202: =VLOOKUP(A202,aidcalc,9,FALSE) -> 131396476.3 | H202: =(G202-F202)/$D202 -> 1568.709422 | I202: =VLOOKUP(A202,aidcalc,5,FALSE) -> 40100760 | J202: =VLOOKUP(A202,aidcalc,10,FALSE) -> 42467828 | K202: =(J202-I202)/$D202 -> 293.135356 | L202: =VLOOKUP(A202,aidcalc,6,FALSE) -> 78628388 | M202: =VLOOKUP(A202,aidcalc,25,FALSE) -> 88928648 | N202: =M202-L202 -> 10300260 | O202: =(M202-L202)/$D202 -> 1275.573994 | P202: =ROUND(IF(F202>0,(M202-L202)/L202,100),2) -> 0.13
A203: 295 | B203: Tewksbury | C203: 3228 | D203: 3249 | E203: 21 | F203: 38546581.1 | G203: 41191248.02 | H203: 813.9941274 | I203: 30874054 | J203: 32555022 | K203: 517.380117 | L203: 13617575 | M203: 13715045 | N203: 97470 | O203: 30 | P203: 0.01
... 128 more rows

Sheet Rates
A3: Massachusetts Department of Elementary and Secondary Education
A4: Office of School Finance
A6: ="Foundation Budget Rates Per Pupil, "& CYr &" Chapter 70" -> Foundation Budget Rates Per Pupil, FY24 Chapter 70
C8: Administration | D8: Instructional Leadership | E8: Classroom & Specialist Teachers | F8: Other Teaching Services | G8: Professional Development | H8: Instructional Materials, Equipment & Technology | I8: Guidance & Psychological Services | J8: Pupil Services | K8: Operations & Maintenance | L8: Employee Benefits/Fixed Charges | M8: Special Education Tuition | N8: Total, All Categories
A10: 1 | B10: Pre-school | C10: 221.34 | D10: 399.74 | E10: 1832.98 | F10: 470.1 | G10: 72.49 | H10: 265.29 | I10: 173.4 | J10: 53.04 | K10: 509 | L10: 728.64 | M10: 0 | N10: 4726.02
A11: 2 | B11: Kindergarten half-day | C11: 221.34 | D11: 399.74 | E11: 1832.98 | F11: 470.1 | G11: 72.49 | H11: 265.29 | I11: 173.4 | J11: 53.04 | K11: 509 | L11: 728.64 | M11: 0 | N11: 4726.02
A12: 3 | B12: Kindergarten full-day | C12: 442.67 | D12: 799.51 | E12: 3665.96 | F12: 940.25 | G12: 145.06 | H12: 530.61 | I12: 346.82 | J12: 106.13 | K12: 1017.99 | L12: 1457.26 | M12: 0 | N12: 9452.26
A13: 4 | B13: Elementary | C13: 442.67 | D13: 799.51 | E13: 3665.91 | F13: 940.25 | G13: 145.08 | H13: 530.61 | I13: 346.82 | J13: 159.17 | K13: 1017.99 | L13: 1457.28 | M13: 0 | N13: 9505.29
A14: 5 | B14: Junior/Middle | C14: 442.67 | D14: 799.51 | E14: 3226.02 | F14: 676.84 | G14: 157.26 | H14: 530.61 | I14: 390.98 | J14: 260.01 | K14: 1103.62 | L14: 1544.05 | M14: 0 | N14: 9131.57
A15: 6 | B15: High School | C15: 442.67 | D15: 799.51 | E15: 4744.11 | F15: 563.46 | G15: 152.49 | H15: 848.96 | I15: 445.11 | J15: 599.57 | K15: 1070.08 | L15: 1376.63 | M15: 0 | N15: 11042.59
A16: 7 | B16: Vocational | C16: 442.67 | D16: 799.51 | E16: 8065.05 | F16: 563.46 | G16: 252.11 | H16: 1485.67 | I16: 445.11 | J16: 599.57 | K16: 2002.71 | L16: 1834.9 | M16: 0 | N16: 16490.76
A17: 8 | B17: Special Education in-district | C17: 3055.17 | D17: 0 | E17: 10081.28 | F17: 9412.75 | G17: 486.31 | H17: 424.47 | I17: 0 | J17: 0 | K17: 3412.76 | L17: 3898.38 | M17: 0 | N17: 30771.12
A18: 9 | B18: Special Education tuitioned-out | C18: 3531.53 | D18: 0 | E18: 0 | F18: 53.95 | G18: 0 | H18: 0 | I18: 0 | J18: 0 | K18: 0 | L18: 0 | M18: 33529.93 | N18: 37115.41
A19: 10 | B19: English learners PK-5 | C19: 107.66 | D19: 188.4 | E19: 1318.74 | F19: 188.4 | G19: 53.82 | H19: 134.56 | I19: 80.74 | J19: 26.92 | K19: 322.96 | L19: 301.97 | M19: 0 | N19: 2724.17
A20: 11 | B20: English learners 6-8 | C20: 114.12 | D20: 199.69 | E20: 1397.81 | F20: 199.69 | G20: 57.05 | H20: 142.63 | I20: 85.59 | J20: 28.53 | K20: 342.32 | L20: 320.07 | M20: 0 | N20: 2887.5
A21: 12 | B21: English learners high school/voc | C21: 114.6 | D21: 200.55 | E21: 1403.82 | F21: 200.55 | G21: 57.29 | H21: 143.24 | I21: 85.95 | J21: 28.65 | K21: 343.79 | L21: 321.45 | M21: 0 | N21: 2899.89
A22: 13 | B22: Low-income group 1 (0-5.99%) | C22: 55.76 | D22: 264.22 | E22: 2579.36 | F22: 0 | G22: 125.14 | H22: 19.18 | I22: 104.45 | J22: 542.73 | K22: 0 | L22: 425.57 | M22: 0 | N22: 4116.41
A23: 14 | B23: Low-income group 2 (6-11.99%) | C23: 57.77 | D23: 273.72 | E23: 2672.06 | F23: 0 | G23: 129.64 | H23: 19.87 | I23: 108.2 | J23: 562.24 | K23: 0 | L23: 440.88 | M23: 0 | N23: 4264.38
A24: 15 | B24: Low-income group 3 (12-17.99%) | C24: 59.77 | D24: 283.22 | E24: 2764.76 | F24: 0 | G24: 134.14 | H24: 20.56 | I24: 111.95 | J24: 581.75 | K24: 0 | L24: 456.17 | M24: 0 | N24: 4412.32
A25: 16 | B25: Low-income group 4 (18-23.99%) | C25: 61.78 | D25: 292.71 | E25: 2857.46 | F25: 0 | G25: 138.63 | H25: 21.25 | I25: 115.71 | J25: 601.25 | K25: 0 | L25: 471.47 | M25: 0 | N25: 4560.26
A26: 17 | B26: Low-income group 5 (24-29.99%) | C26: 63.78 | D26: 302.21 | E26: 2950.16 | F26: 0 | G26: 143.13 | H26: 21.94 | I26: 119.46 | J26: 620.75 | K26: 0 | L26: 486.76 | M26: 0 | N26: 4708.19
A27: 18 | B27: Low-income group 6 (30-35.99%) | C27: 69.89 | D27: 331.16 | E27: 3232.78 | F27: 0 | G27: 156.83 | H27: 24.05 | I27: 130.9 | J27: 680.22 | K27: 0 | L27: 533.39 | M27: 0 | N27: 5159.22
A28: 19 | B28: Low-income group 7 (36-41.99%) | C28: 74.71 | D28: 353.95 | E28: 3455.32 | F28: 0 | G28: 167.63 | H28: 25.7 | I28: 139.92 | J28: 727.05 | K28: 0 | L28: 570.1 | M28: 0 | N28: 5514.38
A29: 20 | B29: Low-income group 8 (42-47.99%) | C29: 79.52 | D29: 376.75 | E29: 3677.86 | F29: 0 | G29: 178.43 | H29: 27.36 | I29: 148.93 | J29: 773.87 | K29: 0 | L29: 606.82 | M29: 0 | N29: 5869.54
A30: 21 | B30: Low-income group 9 (48-53.99%) | C30: 84.33 | D30: 399.55 | E30: 3900.4 | F30: 0 | G30: 189.23 | H30: 29 | I30: 157.94 | J30: 820.7 | K30: 0 | L30: 643.54 | M30: 0 | N30: 6224.69
A31: 22 | B31: Low-income group 10 (54-69.99%) | C31: 89.14 | D31: 422.35 | E31: 4122.95 | F31: 0 | G31: 200.02 | H31: 30.66 | I31: 166.95 | J31: 867.52 | K31: 0 | L31: 680.27 | M31: 0 | N31: 6579.86
A32: 23 | B32: Low-income group 11 (70-79.99%) | C32: 95.89 | D32: 454.3 | E32: 4434.9 | F32: 0 | G32: 215.16 | H32: 32.98 | I32: 179.59 | J32: 933.16 | K32: 0 | L32: 731.73 | M32: 0 | N32: 7077.71
A33: 24 | B33: Low-income group 12 (80%+) | C33: 102.63 | D33: 486.26 | E33: 4746.85 | F33: 0 | G33: 230.29 | H33: 35.3 | I33: 192.22 | J33: 998.8 | K33: 0 | L33: 783.2 | M33: 0 | N33: 7575.55

Sheet Townwide Contributions
A1: 1 | C1: From DOR 3 | D1: 4 | E1: From DOR 5 | F1: 6 | G1: 7 | H1: 8 | I1: =H1+1 -> 9 | J1: =I1+1 -> 10 | K1: 11 | L1: 12 | M1: 13 | N1: c70fy22 14 | O1: From DOR 15 | P1: 16 | Q1: 17 | R1: 18 | S1: 19 | T1: 20 | U1: 21 | V1: 22 | W1: 23 | X1: 24 | Y1: 25 | Z1: 26 | AA1: 27 | AB1: 28 | AC1: 29 | AD1: 30 | AE1: 29
B2: Return to Index | C2: 1. Calculation of effort goal (target local share) | N2: 2. Calculation of annual increments toward goal (required local contribution) | AA2: Analysis of Gap Closing
B3: More about the data | S3: Increments | T3: Thresholds
D4: uniform property percentage | F4: uniform income percentage | S4: =parameters!C18 -> 0.01 | T4: =parameters!C16 -> 2.5 | V4: Effort Reduction | W4: OPTION TO ACTIVATE THIS INCREMENT
D5: =parameters!C29 -> 0.003533667423 | F5: =parameters!C30 -> 0.01532943984 | S5: =parameters!C19 -> 0.02 | T5: =parameters!C17 -> 7.5 | V5: =effortred -> 1 | W5: 1 | AG5: SUMMARY FOR EXPORT (reads from columns to the left)
J6: maximum | K6: target local | N6: required | Q6: preliminary | S6: percentage | T6: dollar
D7: local effort | F7: local effort | G7: combined | J7: local contribution | K7: contribution | L7: target | N7: local | P7: preliminary | Q7: contribution | R7: shortfall | S7: increment | T7: increment | V7: excess effort | X7: required | AA7: Before | AB7: After implementation | AI7: CEY% | AJ7: target
C8: total | D8: from property | E8: DOR total | F8: from income | G8: effort | H8: =CYr -> FY24 | I8: CEY % | J8: foundation pct= | K8: (lesser of max local | L8: local | N8: contribution | O8: mrgf | P8: contribution | Q8: percentage of | R8: from target | S8: toward | T8: toward | U8: excess | V8: times effort | W8: CEY% > 175% | X8: contribution | Y8: percentage | AA8: below effort | AB8: below effort | AC8: above effort | AD8: distance from | AI8: found | AJ8: local share | AK8: MRGF | AL8: RLC | AM8: distance from
A9: LEA | B9: Town | C9: EQV 2022 | D9: wealth | E9: income 2020 | F9: wealth | G9: yield | H9: foundation | I9: Found | J9: =maxloc -> 0.825 | K9: or effort yield) | L9: share | N9: FY23 | O9: FY24 | P9: =CYr -> FY24 | Q9: foundation | R9: local share | S9: target | T9: target | U9: effort | V9: reduction % | W9: increment | X9: =CYr -> FY24 | Y9: of foundation | AA9: shortfall | AB9: shortfall | AC9: excess | AD9: target | AG9: Town code | AH9: Town | AI9: =CYr -> FY24 | AJ9: =CYr -> FY24 | AK9: =CYr -> FY24 | AL9: =CYr -> FY24 | AM9: target
A10: 1 | B10: Abington | C10: 2693823800 | D10: =D$5*C10 -> 9519077.405 | E10: 689105000 | F10: =E10*F$5 -> 10563593.64 | G10: =ROUND(D10+F10,0) -> 20082671 | H10: =(SUMIF(town1755,A10,found1755)/2) -> 33431760.03 | I10: =IF(H10=0,0,G10/H10) -> 0.6007063637 | J10: =ROUND(H10*maxloc,0) -> 27581202 | K10: =MIN(G10,J10) -> 20082671 | L10: =IF(H10>0, ROUND((K10*100/H10), 2), 0) -> 60.07 | N10: 17662013 | O10: 0.0248 | P10: =ROUND(N10*(1+O10),0) -> 18100031 | Q10: =IF(H10=0,0,P10*100/H10) -> 54.14022769 | R10: =IF(L10>Q10,L10-Q10,0) -> 5.929772313 | S10: =IF(AND(R10>$T$4,R10<=$T$5),$S$4,IF(R10>$T$5,$S$5,0)) -> 0.01 | T10: =ROUND(S10*N10,0) -> 176620 | U10: =MAX(P10-K10,0) -> 0 | V10: =MAX(U10*(V$5),0) -> 0 | W10: =IF(AND(I10>1.75,$W$5=1),MAX(K10-(P10+T10),0),0) -> 0 | X10: =MIN(H10*parameters!C$22,ROUND(P10+T10-V10+W10,0)) -> 18276651 | Y10: =IF(H10=0,0,X10*100/H10) -> 54.66852772 | AA10: =IF(Q10<L10, P10-K10, 0) -> -1982640 | AB10: =-1*MAX(K10-(P10+T10+W10),0) -> -1806020 | AC10: =IF(Q10>L10, X10-K10,0) -> 0 | AD10: =Y10-L10 -> -5.401472278 | AG10: =TEXT(A10,"000") -> 001 | AH10: =B10 -> Abington | AI10: =I10 -> 0.6007063637 | AJ10: =L10 -> 60.07 | AK10: =O10 -> 0.0248 | AL10: =X10 -> 18276651 | AM10: =AD10 -> -5.401472278
A11: 2 | B11: Acton | C11: 5255138400 | D11: 18569911.37 | E11: 1933454000 | F11: =E11*F$5 -> 29638766.78 | G11: 48208678 | H11: =(SUMIF(town1755,A11,found1755)/2) -> 56229831.27 | I11: =IF(H11=0,0,G11/H11) -> 0.857350572 | J11: 46389611 | K11: =MIN(G11,J11) -> 46389611 | L11: =IF(H11>0, ROUND((K11*100/H11), 2), 0) -> 82.5 | N11: 41641763 | O11: 0.0326 | P11: =ROUND(N11*(1+O11),0) -> 42999284 | Q11: =IF(H11=0,0,P11*100/H11) -> 76.47059048 | R11: =IF(L11>Q11,L11-Q11,0) -> 6.029409516 | S11: =IF(AND(R11>$T$4,R11<=$T$5),$S$4,IF(R11>$T$5,$S$5,0)) -> 0.01 | T11: =ROUND(S11*N11,0) -> 416418 | U11: =MAX(P11-K11,0) -> 0 | V11: 0 | W11: =IF(AND(I11>1.75,$W$5=1),MAX(K11-(P11+T11),0),0) -> 0 | X11: =MIN(H11*parameters!C$22,ROUND(P11+T11-V11+W11,0)) -> 43415702 | Y11: =IF(H11=0,0,X11*100/H11) -> 77.21115468 | AA11: =IF(Q11<L11, P11-K11, 0) -> -3390327 | AB11: =-1*MAX(K11-(P11+T11+W11),0) -> -2973909 | AC11: =IF(Q11>L11, X11-K11,0) -> 0 | AD11: =Y11-L11 -> -5.288845316 | AG11: =TEXT(A11,"000") -> 002 | AH11: =B11 -> Acton | AI11: =I11 -> 0.857350572 | AJ11: 82.5 | AK11: =O11 -> 0.0326 | AL11: 43415702 | AM11: =AD11 -> -5.288845316
A12: 3 | B12: Acushnet | C12: 1630578800 | D12: 5761923.186 | E12: 407745000 | F12: =E12*F$5 -> 6250502.449 | G12: 12012426 | H12: 19440355.29 | I12: 0.617911855 | J12: 16038293 | K12: 12012426 | L12: 61.79 | N12: 10125773 | O12: 0.0447 | P12: 10578395 | Q12: 54.41461764 | R12: 7.375382355 | S12: 0.01 | T12: 101258 | U12: 0 | V12: 0 | W12: 0 | X12: =MIN(H12*parameters!C$22,ROUND(P12+T12-V12+W12,0)) -> 10679653 | Y12: 54.93548261 | AA12: -1434031 | AB12: -1332773 | AC12: 0 | AD12: -6.854517389 | AG12: 003 | AH12: Acushnet | AI12: 0.617911855 | AJ12: 61.79 | AK12: 0.0447 | AL12: 10679653 | AM12: -6.854517389
A13: 4 | B13: Adams | C13: 593584400 | D13: 2097529.857 | E13: 204832000 | F13: 3139959.822 | G13: 5237490 | H13: 15939392.67 | I13: 0.3285878018 | J13: 13149999 | K13: 5237490 | L13: 32.86 | N13: 4656331 | O13: 0.0296 | P13: 4794158 | Q13: 30.0774195 | R13: 2.782580497 | S13: 0.01 | T13: 46563 | U13: 0 | V13: 0 | W13: 0 | X13: =MIN(H13*parameters!C$22,ROUND(P13+T13-V13+W13,0)) -> 4840721 | Y13: 30.36954481 | AA13: -443332 | AB13: -396769 | AC13: 0 | AD13: -2.490455189 | AG13: 004 | AH13: Adams | AI13: 0.3285878018 | AJ13: 32.86 | AK13: 0.0296 | AL13: 4840721 | AM13: -2.490455189
A14: 5 | B14: Agawam | C14: 3580768800 | D14: 12653246.06 | E14: 973719000 | F14: 14926566.83 | G14: 27579813 | H14: 50397491.3 | I14: 0.5472457515 | J14: 41577930 | K14: 27579813 | L14: 54.72 | N14: 24515018 | O14: 0.025 | P14: 25127893 | Q14: 49.85941235 | R14: 4.860587653 | S14: 0.01 | T14: 245150 | U14: 0 | V14: 0 | W14: 0 | X14: =MIN(H14*parameters!C$22,ROUND(P14+T14-V14+W14,0)) -> 25373043 | Y14: 50.34584529 | AA14: -2451920 | AB14: -2206770 | AC14: 0 | AD14: -4.37415471 | AG14: 005 | AH14: Agawam | AI14: 0.5472457515 | AJ14: 54.72 | AK14: 0.025 | AL14: 25373043 | AM14: -4.37415471
A15: 6 | B15: Alford | C15: 308074200 | D15: 1088631.764 | E15: 18495000 | F15: 283517.9899 | G15: 1372150 | H15: 278259.7125 | I15: 4.931184568 | J15: 229564 | K15: 229564 | L15: 82.5 | N15: 204889 | O15: 0.0305 | P15: 211138 | Q15: 75.87803427 | R15: 6.621965729 | S15: 0.01 | T15: 2049 | U15: 0 | V15: 0 | W15: 16377 | X15: =MIN(H15*parameters!C$22,ROUND(P15+T15-V15+W15,0)) -> 229564 | Y15: 82.49990556 | AA15: -18426 | AB15: 0 | AC15: 0 | AD15: -9.444326817e-05 | AG15: 006 | AH15: Alford | AI15: 4.931184568 | AJ15: 82.5 | AK15: 0.0305 | AL15: 229564 | AM15: -9.444326817e-05
A16: 7 | B16: Amesbury | C16: 2989453900 | D16: 10563735.86 | E16: 733977000 | F16: 11251456.27 | G16: 21815192 | H16: 27399291.86 | I16: 0.7961954677 | J16: 22604416 | K16: 21815192 | L16: 79.62 | N16: 19106383 | O16: 0.0274 | P16: 19629898 | Q16: 71.6438151 | R16: 7.976184903 | S16: 0.02 | T16: 382128 | U16: 0 | V16: 0 | W16: 0 | X16: =MIN(H16*parameters!C$22,ROUND(P16+T16-V16+W16,0)) -> 20012026 | Y16: 73.03847888 | AA16: -2185294 | AB16: -1803166 | AC16: 0 | AD16: -6.581521122 | AG16: 007 | AH16: Amesbury | AI16: 0.7961954677 | AJ16: 79.62 | AK16: 0.0274 | AL16: 20012026 | AM16: -6.581521122
A17: 8 | B17: Amherst | C17: 2913802400 | D17: 10296408.62 | E17: 825705000 | F17: 12657595.13 | G17: 22954004 | H17: 28354985.78 | I17: 0.8095226771 | J17: 23392863 | K17: 22954004 | L17: 80.95 | N17: 21280892 | O17: 0.0374 | P17: 22076797 | Q17: 77.85860719 | R17: 3.091392812 | S17: 0.01 | T17: 212809 | U17: 0 | V17: 0 | W17: 0 | X17: =MIN(H17*parameters!C$22,ROUND(P17+T17-V17+W17,0)) -> 22289606 | Y17: 78.60912423 | AA17: -877207 | AB17: -664398 | AC17: 0 | AD17: -2.340875772 | AG17: 008 | AH17: Amherst | AI17: 0.8095226771 | AJ17: 80.95 | AK17: 0.0374 | AL17: 22289606 | AM17: -2.340875772
A18: 9 | B18: Andover | C18: 10204123200 | D18: 36057977.73 | E18: 3330265000 | F18: 51051096.98 | G18: 87109075 | H18: 73565668.95 | I18: 1.184099543 | J18: 60691677 | K18: 60691677 | L18: 82.5 | N18: 56576178 | O18: 0.0392 | P18: 58793964 | Q18: 79.92038248 | R18: 2.579617524 | S18: 0.01 | T18: 565762 | U18: 0 | V18: 0 | W18: 0 | X18: =MIN(H18*parameters!C$22,ROUND(P18+T18-V18+W18,0)) -> 59359726 | Y18: 80.68943958 | AA18: -1897713 | AB18: -1331951 | AC18: 0 | AD18: -1.810560424 | AG18: 009 | AH18: Andover | AI18: 1.184099543 | AJ18: 82.5 | AK18: 0.0392 | AL18: 59359726 | AM18: -1.810560424
A19: 10 | B19: Arlington | C19: 13535163100 | D19: 47828764.91 | E19: 3414061000 | F19: 52335642.72 | G19: 100164408 | H19: 79445107.42 | I19: 1.260800209 | J19: 65542214 | K19: 65542214 | L19: 82.5 | N19: 56638038 | O19: 0.0324 | P19: 58473110 | Q19: 73.60190187 | R19: 8.898098132 | S19: 0.02 | T19: 1132761 | U19: 0 | V19: 0 | W19: 0 | X19: =MIN(H19*parameters!C$22,ROUND(P19+T19-V19+W19,0)) -> 59605871 | Y19: 75.02774298 | AA19: -7069104 | AB19: -5936343 | AC19: 0 | AD19: -7.472257024 | AG19: 010 | AH19: Arlington | AI19: 1.260800209 | AJ19: 82.5 | AK19: 0.0324 | AL19: 59605871 | AM19: -7.472257024
A20: 11 | B20: Ashburnham | C20: 852436100 | D20: 3012225.676 | E20: 248272000 | F20: 3805870.689 | G20: 6818096 | H20: 15054359 | I20: 0.4528984596 | J20: 12419846 | K20: 6818096 | L20: 45.29 | N20: 5934679 | O20: 0.0442 | P20: 6196992 | Q20: 41.16410404 | R20: 4.125895958 | S20: 0.01 | T20: 59347 | U20: 0 | V20: 0 | W20: 0 | X20: =MIN(H20*parameters!C$22,ROUND(P20+T20-V20+W20,0)) -> 6256339 | Y20: 41.55832209 | AA20: -621104 | AB20: -561757 | AC20: 0 | AD20: -3.731677911 | AG20: 011 | AH20: Ashburnham | AI20: 0.4528984596 | AJ20: 45.29 | AK20: 0.0442 | AL20: 6256339 | AM20: -3.731677911
A21: 12 | B21: Ashby | C21: 417224700 | D21: 1474333.33 | E21: 122739000 | F21: 1881520.117 | G21: 3355853 | H21: 5964707.491 | I21: 0.5626182014 | J21: 4920884 | K21: 3355853 | L21: 56.26 | N21: 2848398 | O21: 0.0407 | P21: 2964328 | Q21: 49.69779331 | R21: 6.562206694 | S21: 0.01 | T21: 28484 | U21: 0 | V21: 0 | W21: 0 | X21: =MIN(H21*parameters!C$22,ROUND(P21+T21-V21+W21,0)) -> 2992812 | Y21: 50.17533558 | AA21: -391525 | AB21: -363041 | AC21: 0 | AD21: -6.084664417 | AG21: 012 | AH21: Ashby | AI21: 0.5626182014 | AJ21: 56.26 | AK21: 0.0407 | AL21: 2992812 | AM21: -6.084664417
A22: 13 | B22: Ashfield | C22: 293407600 | D22: 1036804.878 | E22: 50042000 | F22: 767115.8286 | G22: 1803921 | H22: 2202211.999 | I22: 0.8191404826 | J22: 1816825 | K22: 1803921 | L22: 81.91 | N22: 1509247 | O22: 0.0455 | P22: 1577918 | Q22: 71.65150315 | R22: 10.25849685 | S22: 0.02 | T22: 30185 | U22: 0 | V22: 0 | W22: 0 | X22: =MIN(H22*parameters!C$22,ROUND(P22+T22-V22+W22,0)) -> 1608103 | Y22: 73.02217046 | AA22: -226003 | AB22: -195818 | AC22: 0 | AD22: -8.887829543 | AG22: 013 | AH22: Ashfield | AI22: 0.8191404826 | AJ22: 81.91 | AK22: 0.0455 | AL22: 1608103 | AM22: -8.887829543
A23: 14 | B23: Ashland | C23: 3593981200 | D23: 12699934.28 | E23: 1101262000 | F23: 16881729.58 | G23: 29581664 | H23: 38110433.05 | I23: 0.7762090754 | J23: 31441107 | K23: 29581664 | L23: 77.62 | N23: 25051884 | O23: 0.0347 | P23: 25921184 | Q23: 68.01597864 | R23: 9.604021363 | S23: 0.02 | T23: 501038 | U23: 0 | V23: 0 | W23: 0 | X23: =MIN(H23*parameters!C$22,ROUND(P23+T23-V23+W23,0)) -> 26422222 | Y23: 69.330679 | AA23: -3660480 | AB23: -3159442 | AC23: 0 | AD23: -8.289321004 | AG23: 014 | AH23: Ashland | AI23: 0.7762090754 | AJ23: 77.62 | AK23: 0.0347 | AL23: 26422222 | AM23: -8.289321004
A24: 15 | B24: Athol | C24: 1060563000 | D24: 3747676.923 | E24: 279821000 | F24: 4289499.186 | G24: 8037176 | H24: 28185096.27 | I24: 0.2851569468 | J24: 23252704 | K24: 8037176 | L24: 28.52 | N24: 3844153 | O24: 0.0341 | P24: 3975239 | Q24: 14.1040462 | R24: 14.4159538 | S24: 0.02 | T24: 76883 | U24: 0 | V24: 0 | W24: 0 | X24: =MIN(H24*parameters!C$22,ROUND(P24+T24-V24+W24,0)) -> 4052122 | Y24: 14.37682512 | AA24: -4061937 | AB24: -3985054 | AC24: 0 | AD24: -14.14317488 | AG24: 015 | AH24: Athol | AI24: 0.2851569468 | AJ24: 28.52 | AK24: 0.0341 | AL24: 4052122 | AM24: -14.14317488
A25: 16 | B25: Attleboro | C25: 5949246000 | D25: 21022656.78 | E25: 1712285000 | F25: 26248369.9 | G25: 47271027 | H25: 97492006.68 | I25: 0.4848707972 | J25: 80430906 | K25: 47271027 | L25: 48.49 | N25: 41666316 | O25: 0.0433 | P25: 43470467 | Q25: 44.58874987 | R25: 3.901250132 | S25: 0.01 | T25: 416663 | U25: 0 | V25: 0 | W25: 0 | X25: =MIN(H25*parameters!C$22,ROUND(P25+T25-V25+W25,0)) -> 43887130 | Y25: 45.01613157 | AA25: -3800560 | AB25: -3383897 | AC25: 0 | AD25: -3.473868427 | AG25: 016 | AH25: Attleboro | AI25: 0.4848707972 | AJ25: 48.49 | AK25: 0.0433 | AL25: 43887130 | AM25: -3.473868427
A26: 17 | B26: Auburn | C26: 2748972400 | D26: 9713954.216 | E26: 673280000 | F26: 10321005.26 | G26: 20034959 | H26: 34542098.21 | I26: 0.5800156922 | J26: 28497231 | K26: 20034959 | L26: 58 | N26: 17422029 | O26: 0.0401 | P26: 18120652 | Q26: 52.45961578 | R26: 5.540384224 | S26: 0.01 | T26: 174220 | U26: 0 | V26: 0 | W26: 0 | X26: =MIN(H26*parameters!C$22,ROUND(P26+T26-V26+W26,0)) -> 18294872 | Y26: 52.96398583 | AA26: -1914307 | AB26: -1740087 | AC26: 0 | AD26: -5.036014168 | AG26: 017 | AH26: Auburn | AI26: 0.5800156922 | AJ26: 58 | AK26: 0.0401 | AL26: 18294872 | AM26: -5.036014168
A27: 18 | B27: Avon | C27: 1081305500 | D27: 3820974.019 | E27: 189294000 | F27: 2901770.986 | G27: 6722745 | H27: 10649160.32 | I27: 0.6312934354 | J27: 8785557 | K27: 6722745 | L27: 63.13 | N27: 5758079 | O27: 0.0354 | P27: 5961915 | Q27: 55.98483658 | R27: 7.145163421 | S27: 0.01 | T27: 57581 | U27: 0 | V27: 0 | W27: 0 | X27: =MIN(H27*parameters!C$22,ROUND(P27+T27-V27+W27,0)) -> 6019496 | Y27: 56.52554588 | AA27: -760830 | AB27: -703249 | AC27: 0 | AD27: -6.604454123 | AG27: 018 | AH27: Avon | AI27: 0.6312934354 | AJ27: 63.13 | AK27: 0.0354 | AL27: 6019496 | AM27: -6.604454123
A28: 19 | B28: Ayer | C28: 1529467100 | D28: 5404628.065 | E28: 338690000 | F28: 5191927.981 | G28: 10596556 | H28: 14512509.41 | I28: 0.7301670373 | J28: 11972820 | K28: 10596556 | L28: 73.02 | N28: 9512566 | O28: 0.0476 | P28: 9965364 | Q28: 68.66740767 | R28: 4.352592326 | S28: 0.01 | T28: 95126 | U28: 0 | V28: 0 | W28: 0 | X28: =MIN(H28*parameters!C$22,ROUND(P28+T28-V28+W28,0)) -> 10060490 | Y28: 69.32288356 | AA28: -631192 | AB28: -536066 | AC28: 0 | AD28: -3.697116438 | AG28: 019 | AH28: Ayer | AI28: 0.7301670373 | AJ28: 73.02 | AK28: 0.0476 | AL28: 10060490 | AM28: -3.697116438
A29: 20 | B29: Barnstable | C29: 18221137000 | D29: 64387438.22 | E29: 2220626000 | F29: 34040952.68 | G29: 98428391 | H29: 88765938.63 | I29: 1.108853154 | J29: 73231899 | K29: 73231899 | L29: 82.5 | N29: 59759393 | O29: 0.0305 | P29: 61582054 | Q29: 69.37577065 | R29: 13.12422935 | S29: 0.02 | T29: 1195188 | U29: 0 | V29: 0 | W29: 0 | X29: =MIN(H29*parameters!C$22,ROUND(P29+T29-V29+W29,0)) -> 62777242 | Y29: 70.72221954 | AA29: -11649845 | AB29: -10454657 | AC29: 0 | AD29: -11.77778046 | AG29: 020 | AH29: Barnstable | AI29: 1.108853154 | AJ29: 82.5 | AK29: 0.0305 | AL29: 62777242 | AM29: -11.77778046
A30: 21 | B30: Barre | C30: 583632100 | D30: 2062361.739 | E30: 166632000 | F30: 2554375.22 | G30: 4616737 | H30: 11141209.81 | I30: 0.4143838126 | J30: 9191498 | K30: 4616737 | L30: 41.44 | N30: 3971383 | O30: 0.0396 | P30: 4128650 | Q30: 37.05746565 | R30: 4.382534347 | S30: 0.01 | T30: 39714 | U30: 0 | V30: 0 | W30: 0 | X30: =MIN(H30*parameters!C$22,ROUND(P30+T30-V30+W30,0)) -> 4168364 | Y30: 37.41392604 | AA30: -488087 | AB30: -448373 | AC30: 0 | AD30: -4.026073957 | AG30: 021 | AH30: Barre | AI30: 0.4143838126 | AJ30: 41.44 | AK30: 0.0396 | AL30: 4168364 | AM30: -4.026073957
A31: 22 | B31: Becket | C31: 630004600 | D31: 2226226.731 | E31: 60838000 | F31: 932612.4612 | G31: 3158839 | H31: 3117878.215 | I31: 1.013137391 | J31: 2572250 | K31: 2572250 | L31: 82.5 | N31: 2130010 | O31: 0.0394 | P31: 2213932 | Q31: 71.0076484 | R31: 11.4923516 | S31: 0.02 | T31: 42600 | U31: 0 | V31: 0 | W31: 0 | X31: =MIN(H31*parameters!C$22,ROUND(P31+T31-V31+W31,0)) -> 2256532 | Y31: 72.37396219 | AA31: -358318 | AB31: -315718 | AC31: 0 | AD31: -10.12603781 | AG31: 022 | AH31: Becket | AI31: 1.013137391 | AJ31: 82.5 | AK31: 0.0394 | AL31: 2256532 | AM31: -10.12603781
A32: 23 | B32: Bedford | C32: 4632427000 | D32: 16369456.38 | E32: 1167550000 | F32: 17897887.49 | G32: 34267344 | H32: 33998144.29 | I32: 1.007918071 | J32: 28048469 | K32: 28048469 | L32: 82.5 | N32: 26944582 | O32: 0.0457 | P32: 28175949 | Q32: 82.87496152 | R32: 0 | S32: 0 | T32: 0 | U32: 127480 | V32: 127480 | W32: 0 | X32: =MIN(H32*parameters!C$22,ROUND(P32+T32-V32+W32,0)) -> 28048469 | Y32: 82.49999988 | AA32: 0 | AB32: 0 | AC32: 0 | AD32: -1.177205036e-07 | AG32: 023 | AH32: Bedford | AI32: 1.007918071 | AJ32: 82.5 | AK32: 0.0457 | AL32: 28048469 | AM32: -1.177205036e-07
A33: 24 | B33: Belchertown | C33: 1889367600 | D33: 6676396.738 | E33: 601153000 | F33: 9215338.75 | G33: 15891735 | H33: 29965677.07 | I33: 0.5303312508 | J33: 24721684 | K33: 15891735 | L33: 53.03 | N33: 14111332 | O33: 0.0446 | P33: 14740697 | Q33: 49.19193705 | R33: 3.838062948 | S33: 0.01 | T33: 141113 | U33: 0 | V33: 0 | W33: 0 | X33: =MIN(H33*parameters!C$22,ROUND(P33+T33-V33+W33,0)) -> 14881810 | Y33: 49.66285249 | AA33: -1151038 | AB33: -1009925 | AC33: 0 | AD33: -3.367147508 | AG33: 024 | AH33: Belchertown | AI33: 0.5303312508 | AJ33: 53.03 | AK33: 0.0446 | AL33: 14881810 | AM33: -3.367147508
A34: 25 | B34: Bellingham | C34: 3317158400 | D34: 11721734.57 | E34: 701592000 | F34: 10755012.36 | G34: 22476747 | H34: 31442646.99 | I34: 0.7148490712 | J34: 25940184 | K34: 22476747 | L34: 71.48 | N34: 19556655 | O34: 0.0571 | P34: 20673340 | Q34: 65.74936266 | R34: 5.730637344 | S34: 0.01 | T34: 195567 | U34: 0 | V34: 0 | W34: 0 | X34: =MIN(H34*parameters!C$22,ROUND(P34+T34-V34+W34,0)) -> 20868907 | Y34: 66.37134273 | AA34: -1803407 | AB34: -1607840 | AC34: 0 | AD34: -5.108657267 | AG34: 025 | AH34: Bellingham | AI34: 0.7148490712 | AJ34: 71.48 | AK34: 0.0571 | AL34: 20868907 | AM34: -5.108657267
A35: 26 | B35: Belmont | C35: 10384380400 | D35: 36694946.72 | E35: 3118752000 | F35: 47808721.17 | G35: =ROUND(D35+F35,0) -> 84503668 | H35: =(SUMIF(town1755,A35,found1755)/2) -> 57423975.88 | I35: 1.471574664 | J35: 47374780 | K35: 47374780 | L35: 82.5 | N35: 43686648 | O35: 0.0347 | P35: 45202575 | Q35: 78.7172506 | R35: =IF(L35>Q35,L35-Q35,0) -> 3.782749402 | S35: =IF(AND(R35>$T$4,R35<=$T$5),$S$4,IF(R35>$T$5,$S$5,0)) -> 0.01 | T35: =ROUND(S35*N35,0) -> 436866 | U35: 0 | V35: 0 | W35: 0 | X35: =MIN(H35*parameters!C$22,ROUND(P35+T35-V35+W35,0)) -> 45639441 | Y35: 79.47802342 | AA35: -2172205 | AB35: -1735339 | AC35: 0 | AD35: -3.021976583 | AG35: 026 | AH35: Belmont | AI35: 1.471574664 | AJ35: 82.5 | AK35: 0.0347 | AL35: 45639441 | AM35: -3.021976583
A36: 27 | B36: Berkley | C36: 1087861600 | D36: 3844141.096 | E36: 304656000 | F36: 4670205.825 | G36: 8514347 | H36: 14767588.94 | I36: 0.576556338 | J36: 12183261 | K36: 8514347 | L36: 57.66 | N36: 7462573 | O36: 0.0488 | P36: 7826747 | Q36: 52.9994912 | R36: 4.660508805 | S36: 0.01 | T36: 74626 | U36: 0 | V36: 0 | W36: 0 | X36: =MIN(H36*parameters!C$22,ROUND(P36+T36-V36+W36,0)) -> 7901373 | Y36: 53.50482758 | AA36: -687600 | AB36: -612974 | AC36: 0 | AD36: -4.15517242 | AG36: 027 | AH36: Berkley | AI36: 0.576556338 | AJ36: 57.66 | AK36: 0.0488 | AL36: 7901373 | AM36: -4.15517242
A37: 28 | B37: Berlin | C37: 775450700 | D37: 2740184.876 | E37: 198920000 | F37: 3049332.174 | G37: 5789517 | H37: 5814729.227 | I37: 0.9956640754 | J37: 4797152 | K37: 4797152 | L37: 82.5 | N37: 3703492 | O37: 0.0767 | P37: 3987550 | Q37: 68.57671001 | R37: 13.92328999 | S37: 0.02 | T37: 74070 | U37: 0 | V37: 0 | W37: 0 | X37: =MIN(H37*parameters!C$22,ROUND(P37+T37-V37+W37,0)) -> 4061620 | Y37: 69.85054404 | AA37: -809602 | AB37: -735532 | AC37: 0 | AD37: -12.64945596 | AG37: 028 | AH37: Berlin | AI37: 0.9956640754 | AJ37: 82.5 | AK37: 0.0767 | AL37: 4061620 | AM37: -12.64945596
A38: 29 | B38: Bernardston | C38: 289619100 | D38: 1023417.579 | E38: 69532000 | F38: 1065886.611 | G38: 2089304 | H38: 3639421.467 | I38: 0.5740758577 | J38: 3002523 | K38: 2089304 | L38: 57.41 | N38: 1817548 | O38: 0.0365 | P38: 1883889 | Q38: 51.76341947 | R38: 5.646580532 | S38: 0.01 | T38: 18175 | U38: 0 | V38: 0 | W38: 0 | X38: =MIN(H38*parameters!C$22,ROUND(P38+T38-V38+W38,0)) -> 1902064 | Y38: 52.26281203 | AA38: -205415 | AB38: -187240 | AC38: 0 | AD38: -5.147187973 | AG38: 029 | AH38: Bernardston | AI38: 0.5740758577 | AJ38: 57.41 | AK38: 0.0365 | AL38: 1902064 | AM38: -5.147187973
A39: 30 | B39: Beverly | C39: 8971044300 | D39: 31700686.99 | E39: 2289296000 | F39: 35093625.32 | G39: 66794312 | H39: 65190621.35 | I39: 1.024600021 | J39: 53782263 | K39: 53782263 | L39: 82.5 | N39: 47501307 | O39: 0.0394 | P39: 49372858 | Q39: 75.73613654 | R39: 6.763863459 | S39: 0.01 | T39: 475013 | U39: 0 | V39: 0 | W39: 0 | X39: =MIN(H39*parameters!C$22,ROUND(P39+T39-V39+W39,0)) -> 49847871 | Y39: 76.4647889 | AA39: -4409405 | AB39: -3934392 | AC39: 0 | AD39: -6.0352111 | AG39: 030 | AH39: Beverly | AI39: 1.024600021 | AJ39: 82.5 | AK39: 0.0394 | AL39: 49847871 | AM39: -6.0352111
A40: 31 | B40: Billerica | C40: 9046472000 | D40: 31967223.4 | E40: 1908930000 | F40: 29262827.6 | G40: 61230051 | H40: 72577068.83 | I40: 0.8436556063 | J40: 59876082 | K40: 59876082 | L40: 82.5 | N40: 53277005 | O40: 0.0533 | P40: 56116669 | Q40: 77.32010938 | R40: 5.179890621 | S40: 0.01 | T40: 532770 | U40: 0 | V40: 0 | W40: 0 | X40: =MIN(H40*parameters!C$22,ROUND(P40+T40-V40+W40,0)) -> 56649439 | Y40: 78.05418422 | AA40: -3759413 | AB40: -3226643 | AC40: 0 | AD40: -4.445815783 | AG40: 031 | AH40: Billerica | AI40: 0.8436556063 | AJ40: 82.5 | AK40: 0.0533 | AL40: 56649439 | AM40: -4.445815783
A41: 32 | B41: Blackstone | C41: 1231116000 | D41: 4350354.503 | E41: 346442000 | F41: 5310761.798 | G41: 9661116 | H41: 17376337.49 | I41: 0.555992654 | J41: 14335478 | K41: 9661116 | L41: 55.6 | N41: 8332399 | O41: 0.0385 | P41: 8653196 | Q41: 49.7987335 | R41: 5.801266501 | S41: 0.01 | T41: 83324 | U41: 0 | V41: 0 | W41: 0 | X41: =MIN(H41*parameters!C$22,ROUND(P41+T41-V41+W41,0)) -> 8736520 | Y41: 50.27825918 | AA41: -1007920 | AB41: -924596 | AC41: 0 | AD41: -5.321740824 | AG41: 032 | AH41: Blackstone | AI41: 0.555992654 | AJ41: 55.6 | AK41: 0.0385 | AL41: 8736520 | AM41: -5.321740824
A42: 33 | B42: Blandford | C42: 241062700 | D42: 851835.4098 | E42: 42921000 | F42: 657954.8875 | G42: 1509790 | H42: 1501096.777 | I42: 1.005791247 | J42: 1238405 | K42: 1238405 | L42: 82.5 | N42: 1083641 | O42: 0.0341 | P42: 1120593 | Q42: 74.65161587 | R42: 7.848384126 | S42: 0.02 | T42: 21673 | U42: 0 | V42: 0 | W42: 0 | X42: =MIN(H42*parameters!C$22,ROUND(P42+T42-V42+W42,0)) -> 1142266 | Y42: 76.09542685 | AA42: -117812 | AB42: -96139 | AC42: 0 | AD42: -6.404573152 | AG42: 033 | AH42: Blandford | AI42: 1.005791247 | AJ42: 82.5 | AK42: 0.0341 | AL42: 1142266 | AM42: -6.404573152
A43: 34 | B43: Bolton | C43: 1307897000 | D43: 4621673.021 | E43: 480253000 | F43: 7362009.473 | G43: 11983682 | H43: 13325622.96 | I43: 0.899296193 | J43: 10993639 | K43: 10993639 | L43: 82.5 | N43: 10082316 | O43: 0.0398 | P43: 10483592 | Q43: 78.67243452 | R43: 3.827565483 | S43: 0.01 | T43: 100823 | U43: 0 | V43: 0 | W43: 0 | X43: =MIN(H43*parameters!C$22,ROUND(P43+T43-V43+W43,0)) -> 10584415 | Y43: 79.42904455 | AA43: -510047 | AB43: -409224 | AC43: 0 | AD43: -3.070955452 | AG43: 034 | AH43: Bolton | AI43: 0.899296193 | AJ43: 82.5 | AK43: 0.0398 | AL43: 10584415 | AM43: -3.070955452
A44: 35 | B44: Boston | C44: 226367656500 | D44: 799908013.3 | E44: 40465641000 | F44: 620315609.4 | G44: 1420223623 | H44: 1095713386 | I44: 1.296163432 | J44: 903963544 | K44: 903963544 | L44: 82.5 | N44: 827212576 | O44: 0.0644 | P44: 880485066 | Q44: 80.3572428 | R44: 2.142757203 | S44: 0 | T44: 0 | U44: 0 | V44: 0 | W44: 0 | X44: =MIN(H44*parameters!C$22,ROUND(P44+T44-V44+W44,0)) -> 880485066 | Y44: 80.3572428 | AA44: -23478478 | AB44: -23478478 | AC44: 0 | AD44: -2.142757203 | AG44: 035 | AH44: Boston | AI44: 1.296163432 | AJ44: 82.5 | AK44: 0.0644 | AL44: 880485066 | AM44: -2.142757203
A45: 36 | B45: Bourne | C45: 5710427600 | D45: 20178751.98 | E45: 903301000 | F45: 13847098.34 | G45: 34025850 | H45: 26898266.73 | I45: 1.264982995 | J45: 22191070 | K45: 22191070 | L45: 82.5 | N45: 20688541 | O45: 0.0371 | P45: 21456086 | Q45: 79.76754122 | R45: 2.73245878 | S45: 0.01 | T45: 206885 | U45: 0 | V45: 0 | W45: 0 | X45: =MIN(H45*parameters!C$22,ROUND(P45+T45-V45+W45,0)) -> 21662971 | Y45: 80.53668 | AA45: -734984 | AB45: -528099 | AC45: 0 | AD45: -1.963320002 | AG45: 036 | AH45: Bourne | AI45: 1.264982995 | AJ45: 82.5 | AK45: 0.0371 | AL45: 21662971 | AM45: -1.963320002
A46: 37 | B46: Boxborough | C46: 1364276100 | D46: 4820898.01 | E46: 399275000 | F46: 6120662.093 | G46: 10941560 | H46: 11349378.55 | I46: 0.9640668825 | J46: 9363237 | K46: 9363237 | L46: 82.5 | N46: 8135943 | O46: 0.0359 | P46: 8428023 | Q46: 74.2597752 | R46: =IF(L46>Q46,L46-Q46,0) -> 8.2402248 | S46: 0.02 | T46: 162719 | U46: 0 | V46: 0 | W46: 0 | X46: =MIN(H46*parameters!C$22,ROUND(P46+T46-V46+W46,0)) -> 8590742 | Y46: 75.69350128 | AA46: -935214 | AB46: -772495 | AC46: 0 | AD46: -6.806498722 | AG46: 037 | AH46: Boxborough | AI46: 0.9640668825 | AJ46: 82.5 | AK46: 0.0359 | AL46: 8590742 | AM46: -6.806498722
A47: 38 | B47: Boxford | C47: 2248921600 | D47: 7946940.994 | E47: 935067000 | F47: 14334053.33 | G47: 22280994 | H47: 16773259.04 | I47: 1.328364031 | J47: 13837939 | K47: 13837939 | L47: 82.5 | N47: 12634202 | O47: 0.0359 | P47: 13087770 | Q47: 78.02759123 | R47: 4.472408772 | S47: 0.01 | T47: 126342 | U47: 0 | V47: 0 | W47: 0 | X47: =MIN(H47*parameters!C$22,ROUND(P47+T47-V47+W47,0)) -> 13214112 | Y47: 78.78082588 | AA47: -750169 | AB47: -623827 | AC47: 0 | AD47: -3.719174117 | AG47: 038 | AH47: Boxford | AI47: 1.328364031 | AJ47: 82.5 | AK47: 0.0359 | AL47: 13214112 | AM47: -3.719174117
A48: 39 | B48: Boylston | C48: 1023674500 | D48: 3617325.232 | E48: 320159000 | F48: 4907858.131 | G48: 8525183 | H48: 8013106.943 | I48: 1.063904808 | J48: 6610813 | K48: 6610813 | L48: 82.5 | N48: 6252274 | O48: 0.0621 | P48: 6640540 | Q48: 82.87097686 | R48: 0 | S48: 0 | T48: 0 | U48: 29727 | V48: 29727 | W48: 0 | X48: =MIN(H48*parameters!C$22,ROUND(P48+T48-V48+W48,0)) -> 6610813 | Y48: 82.49999716 | AA48: 0 | AB48: 0 | AC48: 0 | AD48: -2.840184067e-06 | AG48: 039 | AH48: Boylston | AI48: 1.063904808 | AJ48: 82.5 | AK48: 0.0621 | AL48: 6610813 | AM48: -2.840184067e-06
A49: 40 | B49: Braintree | C49: 8924863200 | D49: 31537498.34 | E49: 1882512000 | F49: 28857854.46 | G49: 60395353 | H49: 76400088.06 | I49: 0.7905141804 | J49: 63030073 | K49: 60395353 | L49: 79.05 | N49: 51456862 | O49: 0.0418 | P49: 53607759 | Q49: 70.16714294 | R49: 8.882857058 | S49: 0.02 | T49: 1029137 | U49: 0 | V49: 0 | W49: 0 | X49: =MIN(H49*parameters!C$22,ROUND(P49+T49-V49+W49,0)) -> 54636896 | Y49: 71.51417935 | AA49: -6787594 | AB49: -5758457 | AC49: 0 | AD49: -7.535820652 | AG49: 040 | AH49: Braintree | AI49: 0.7905141804 | AJ49: 79.05 | AK49: 0.0418 | AL49: 54636896 | AM49: -7.535820652
A50: 41 | B50: Brewster | C50: 4941374200 | D50: 17461173.03 | E50: 475689000 | F50: 7292045.91 | G50: 24753219 | H50: 15105816.91 | I50: 1.638654774 | J50: 12462299 | K50: 12462299 | L50: 82.5 | N50: 10967124 | O50: 0.044 | P50: 11449677 | Q50: 75.79647672 | R50: 6.703523284 | S50: 0.01 | T50: 109671 | U50: 0 | V50: 0 | W50: 0 | X50: =MIN(H50*parameters!C$22,ROUND(P50+T50-V50+W50,0)) -> 11559348 | Y50: 76.52249505 | AA50: -1012622 | AB50: -902951 | AC50: 0 | AD50: -5.977504952 | AG50: 041 | AH50: Brewster | AI50: 1.638654774 | AJ50: 82.5 | AK50: 0.044 | AL50: 11559348 | AM50: -5.977504952
A51: 42 | B51: Bridgewater | C51: 3904478200 | D51: 13797127.42 | E51: 1038010000 | F51: 15912111.85 | G51: 29709239 | H51: 47926998.55 | I51: 0.6198852401 | J51: 39539774 | K51: 29709239 | L51: 61.99 | N51: 25934625 | O51: 0.0566 | P51: 27402525 | Q51: 57.17554996 | R51: 4.814450038 | S51: 0.01 | T51: 259346 | U51: 0 | V51: 0 | W51: 0 | X51: =MIN(H51*parameters!C$22,ROUND(P51+T51-V51+W51,0)) -> 27661871 | Y51: 57.71667711 | AA51: -2306714 | AB51: -2047368 | AC51: 0 | AD51: -4.27332289 | AG51: 042 | AH51: Bridgewater | AI51: 0.6198852401 | AJ51: 61.99 | AK51: 0.0566 | AL51: 27661871 | AM51: -4.27332289
A52: 43 | B52: Brimfield | C52: 523323600 | D52: 1849251.557 | E52: 150946000 | F52: 2313917.627 | G52: 4163169 | H52: 7118101.137 | I52: 0.5848707288 | J52: 5872433 | K52: 4163169 | L52: 58.49 | N52: 3720533 | O52: 0.0326 | P52: 3841822 | Q52: 53.97256833 | R52: 4.517431672 | S52: 0.01 | T52: 37205 | U52: 0 | V52: 0 | W52: 0 | X52: =MIN(H52*parameters!C$22,ROUND(P52+T52-V52+W52,0)) -> 3879027 | Y52: 54.49524986 | AA52: -321347 | AB52: -284142 | AC52: 0 | AD52: -3.994750141 | AG52: 043 | AH52: Brimfield | AI52: 0.5848707288 | AJ52: 58.49 | AK52: 0.0326 | AL52: 3879027 | AM52: -3.994750141
A53: 44 | B53: Brockton | C53: 10593077300 | D53: 37432412.16 | E53: 2544461000 | F53: 39005161.83 | G53: 76437574 | H53: 316988351.5 | I53: 0.2411368545 | J53: 261515390 | K53: 76437574 | L53: 24.11 | N53: 55945617 | O53: 0.036 | P53: 57959659 | Q53: 18.28447598 | R53: 5.825524015 | S53: 0.01 | T53: 559456 | U53: 0 | V53: 0 | W53: 0 | X53: =MIN(H53*parameters!C$22,ROUND(P53+T53-V53+W53,0)) -> 58519115 | Y53: 18.46096701 | AA53: -18477915 | AB53: -17918459 | AC53: 0 | AD53: -5.649032987 | AG53: 044 | AH53: Brockton | AI53: 0.2411368545 | AJ53: 24.11 | AK53: 0.036 | AL53: 58519115 | AM53: -5.649032987
A54: 45 | B54: Brookfield | C54: 370083900 | D54: 1307753.421 | E54: 109563000 | F54: 1679539.418 | G54: 2987293 | H54: 6547189.655 | I54: 0.456271035 | J54: 5401431 | K54: 2987293 | L54: 45.63 | N54: 2547621 | O54: 0.044 | P54: 2659716 | Q54: 40.6237812 | R54: 5.006218803 | S54: 0.01 | T54: 25476 | U54: 0 | V54: 0 | W54: 0 | X54: =MIN(H54*parameters!C$22,ROUND(P54+T54-V54+W54,0)) -> 2685192 | Y54: 41.01289472 | AA54: -327577 | AB54: -302101 | AC54: 0 | AD54: -4.617105285 | AG54: 045 | AH54: Brookfield | AI54: 0.456271035 | AJ54: 45.63 | AK54: 0.044 | AL54: 2685192 | AM54: -4.617105285
A55: 46 | B55: Brookline | C55: 29895594800 | D55: 105641089.4 | E55: 5733167000 | F55: 87886238.64 | G55: 193527328 | H55: 89394640.06 | I55: 2.164865006 | J55: 73750578 | K55: 73750578 | L55: 82.5 | N55: 67877131 | O55: 0.0422 | P55: 70741546 | Q55: 79.13399053 | R55: 3.366009472 | S55: 0.01 | T55: 678771 | U55: 0 | V55: 0 | W55: 2330261 | X55: =MIN(H55*parameters!C$22,ROUND(P55+T55-V55+W55,0)) -> 73750578 | Y55: 82.49999994 | AA55: -3009032 | AB55: 0 | AC55: 0 | AD55: -5.838101913e-08 | AG55: 046 | AH55: Brookline | AI55: 2.164865006 | AJ55: 82.5 | AK55: 0.0422 | AL55: 73750578 | AM55: -5.838101913e-08
A56: 47 | B56: Buckland | C56: 270428900 | D56: 955605.7941 | E56: 45752968.5 | F56: 701367.3783 | G56: 1656973 | H56: 2933483.242 | I56: 0.5648482923 | J56: 2420124 | K56: 1656973 | L56: 56.48 | N56: 1452901 | O56: 0.0319 | P56: 1499249 | Q56: 51.10814947 | R56: 5.371850534 | S56: 0.01 | T56: 14529 | U56: 0 | V56: 0 | W56: 0 | X56: =MIN(H56*parameters!C$22,ROUND(P56+T56-V56+W56,0)) -> 1513778 | Y56: 51.60343097 | AA56: -157724 | AB56: -143195 | AC56: 0 | AD56: -4.876569028 | AG56: 047 | AH56: Buckland | AI56: 0.5648482923 | AJ56: 56.48 | AK56: 0.0319 | AL56: 1513778 | AM56: -4.876569028
A57: 48 | B57: Burlington | C57: 9008541100 | D57: 31833188.21 | E57: 1535659000 | F57: 23540792.26 | G57: 55373980 | H57: 48572063.77 | I57: 1.14003762 | J57: 40071953 | K57: 40071953 | L57: 82.5 | N57: 36893560 | O57: 0.0414 | P57: 38420953 | Q57: 79.1009276 | R57: 3.399072395 | S57: 0.01 | T57: 368936 | U57: 0 | V57: 0 | W57: 0 | X57: =MIN(H57*parameters!C$22,ROUND(P57+T57-V57+W57,0)) -> 38789889 | Y57: 79.86049179 | AA57: -1651000 | AB57: -1282064 | AC57: 0 | AD57: -2.639508211 | AG57: 048 | AH57: Burlington | AI57: 1.14003762 | AJ57: 82.5 | AK57: 0.0414 | AL57: 38789889 | AM57: -2.639508211
A58: 49 | B58: Cambridge | C58: 70337058800 | D58: 248547773.3 | E58: 8671847000 | F58: 132934556.9 | G58: 381482330 | H58: 112732473.5 | I58: 3.383961321 | J58: 93004291 | K58: 93004291 | L58: 82.5 | N58: 87397441 | O58: 0.0556 | P58: 92256739 | Q58: 81.83687994 | R58: 0.6631200595 | S58: 0 | T58: 0 | U58: 0 | V58: 0 | W58: 747552 | X58: =MIN(H58*parameters!C$22,ROUND(P58+T58-V58+W58,0)) -> 93004291 | Y58: 82.50000031 | AA58: -747552 | AB58: 0 | AC58: 0 | AD58: 3.144956793e-07 | AG58: 049 | AH58: Cambridge | AI58: 3.383961321 | AJ58: 82.5 | AK58: 0.0556 | AL58: 93004291 | AM58: 3.144956793e-07
A59: 50 | B59: Canton | C59: 6376735000 | D59: 22533260.73 | E59: 1577502000 | F59: 24182222.01 | G59: 46715483 | H59: 45332860.25 | I59: 1.03049935 | J59: 37399610 | K59: 37399610 | L59: 82.5 | N59: 34471917 | O59: 0.0422 | P59: 35926632 | Q59: 79.25075057 | R59: 3.249249429 | S59: 0.01 | T59: 344719 | U59: 0 | V59: 0 | W59: 0 | X59: =MIN(H59*parameters!C$22,ROUND(P59+T59-V59+W59,0)) -> 36271351 | Y59: 80.01116807 | AA59: -1472978 | AB59: -1128259 | AC59: 0 | AD59: -2.488831934 | AG59: 050 | AH59: Canton | AI59: 1.03049935 | AJ59: 82.5 | AK59: 0.0422 | AL59: 36271351 | AM59: -2.488831934
A60: 51 | B60: Carlisle | C60: 1841728700 | D60: 6508056.709 | E60: 1187097000 | F60: 18197532.05 | G60: 24705589 | H60: 10979567.35 | I60: 2.250142307 | J60: 9058143 | K60: 9058143 | L60: 82.5 | N60: 8213130 | O60: 0.0375 | P60: 8521122 | Q60: 77.60890506 | R60: 4.891094936 | S60: 0.01 | T60: 82131 | U60: 0 | V60: 0 | W60: 454890 | X60: =MIN(H60*parameters!C$22,ROUND(P60+T60-V60+W60,0)) -> 9058143 | Y60: 82.49999943 | AA60: -537021 | AB60: 0 | AC60: 0 | AD60: -5.703780204e-07 | AG60: 051 | AH60: Carlisle | AI60: 2.250142307 | AJ60: 82.5 | AK60: 0.0375 | AL60: 9058143 | AM60: -5.703780204e-07
A61: 52 | B61: Carver | C61: 1736816700 | D61: 6137332.592 | E61: 427548000 | F61: 6554071.346 | G61: 12691404 | H61: 23032111.03 | I61: 0.5510308623 | J61: 19001492 | K61: 12691404 | L61: 55.1 | N61: 11047351 | O61: 0.0499 | P61: 11598614 | Q61: 50.3584495 | R61: 4.741550504 | S61: 0.01 | T61: 110474 | U61: 0 | V61: 0 | W61: 0 | X61: =MIN(H61*parameters!C$22,ROUND(P61+T61-V61+W61,0)) -> 11709088 | Y61: 50.83810158 | AA61: -1092790 | AB61: -982316 | AC61: 0 | AD61: -4.261898422 | AG61: 052 | AH61: Carver | AI61: 0.5510308623 | AJ61: 55.1 | AK61: 0.0499 | AL61: 11709088 | AM61: -4.261898422
A62: 53 | B62: Charlemont | C62: 155406800 | D62: 549155.9464 | E62: 31481000 | F62: 482586.0957 | G62: 1031742 | H62: 1907915.699 | I62: 0.5407691757 | J62: 1574030 | K62: 1031742 | L62: 54.08 | N62: 921731 | O62: 0.0414 | P62: 959891 | Q62: 50.3109755 | R62: 3.769024501 | S62: 0.01 | T62: 9217 | U62: 0 | V62: 0 | W62: 0 | X62: =MIN(H62*parameters!C$22,ROUND(P62+T62-V62+W62,0)) -> 969108 | Y62: 50.79406812 | AA62: -71851 | AB62: -62634 | AC62: 0 | AD62: -3.285931878 | AG62: 053 | AH62: Charlemont | AI62: 0.5407691757 | AJ62: 54.08 | AK62: 0.0414 | AL62: 969108 | AM62: -3.285931878
A63: 54 | B63: Charlton | C63: 2225215400 | D63: 7863171.167 | E63: 577568000 | F63: 8853793.911 | G63: 16716965 | H63: 28289494.55 | I63: 0.5909248387 | J63: 23338833 | K63: 16716965 | L63: 59.09 | N63: 13922162 | O63: 0.0674 | P63: 14860516 | Q63: 52.53015736 | R63: 6.559842643 | S63: 0.01 | T63: 139222 | U63: 0 | V63: 0 | W63: 0 | X63: =MIN(H63*parameters!C$22,ROUND(P63+T63-V63+W63,0)) -> 14999738 | Y63: 53.02229058 | AA63: -1856449 | AB63: -1717227 | AC63: 0 | AD63: -6.067709425 | AG63: 054 | AH63: Charlton | AI63: 0.5909248387 | AJ63: 59.09 | AK63: 0.0674 | AL63: 14999738 | AM63: -6.067709425
A64: 55 | B64: Chatham | C64: 8768778800 | D64: 30985947.98 | E64: 473368000 | F64: 7256466.28 | G64: 38242414 | H64: 5818388.221 | I64: 6.572681737 | J64: 4800170 | K64: 4800170 | L64: 82.5 | N64: 4494197 | O64: 0.0731 | P64: 4822723 | Q64: 82.88761108 | R64: 0 | S64: 0 | T64: 0 | U64: 22553 | V64: 22553 | W64: 0 | X64: =MIN(H64*parameters!C$22,ROUND(P64+T64-V64+W64,0)) -> 4800170 | Y64: 82.49999514 | AA64: 0 | AB64: 0 | AC64: 0 | AD64: -4.857764068e-06 | AG64: 055 | AH64: Chatham | AI64: 6.572681737 | AJ64: 82.5 | AK64: 0.0731 | AL64: 4800170 | AM64: -4.857764068e-06
A65: 56 | B65: Chelmsford | C65: 7194279300 | D65: 25422190.39 | E65: 2220847000 | F65: 34044340.49 | G65: 59466531 | H65: 68125870.35 | I65: 0.8728920555 | J65: 56203843 | K65: 56203843 | L65: 82.5 | N65: 50507780 | O65: 0.0399 | P65: 52523040 | Q65: 77.09705539 | R65: 5.402944607 | S65: 0.01 | T65: 505078 | U65: 0 | V65: 0 | W65: 0 | X65: =MIN(H65*parameters!C$22,ROUND(P65+T65-V65+W65,0)) -> 53028118 | Y65: 77.83844482 | AA65: -3680803 | AB65: -3175725 | AC65: 0 | AD65: -4.66155518 | AG65: 056 | AH65: Chelmsford | AI65: 0.8728920555 | AJ65: 82.5 | AK65: 0.0399 | AL65: 53028118 | AM65: -4.66155518
A66: 57 | B66: Chelsea | C66: 5133648900 | D66: 18140607.88 | E66: 903878000 | F66: 13855943.43 | G66: 31996551 | H66: 144199375.3 | I66: 0.2218910514 | J66: 118964485 | K66: 31996551 | L66: 22.19 | N66: 21330434 | O66: 0.065 | P66: 22716912 | Q66: 15.75382137 | R66: 6.436178635 | S66: 0.01 | T66: 213304 | U66: 0 | V66: 0 | W66: 0 | X66: =MIN(H66*parameters!C$22,ROUND(P66+T66-V66+W66,0)) -> 22930216 | Y66: 15.90174434 | AA66: -9279639 | AB66: -9066335 | AC66: 0 | AD66: -6.288255664 | AG66: 057 | AH66: Chelsea | AI66: 0.2218910514 | AJ66: 22.19 | AK66: 0.065 | AL66: 22930216 | AM66: -6.288255664
A67: 58 | B67: Cheshire | C67: 380218700 | D67: 1343566.434 | E67: 104289000 | F67: 1598691.952 | G67: 2942258 | H67: 5492856.349 | I67: 0.5356517289 | J67: 4531606 | K67: 2942258 | L67: 53.57 | N67: 2583513 | O67: 0.0621 | P67: 2743949 | Q67: 49.95486548 | R67: 3.61513452 | S67: 0.01 | T67: 25835 | U67: 0 | V67: 0 | W67: 0 | X67: =MIN(H67*parameters!C$22,ROUND(P67+T67-V67+W67,0)) -> 2769784 | Y67: 50.42520365 | AA67: -198309 | AB67: -172474 | AC67: 0 | AD67: -3.14479635 | AG67: 058 | AH67: Cheshire | AI67: 0.5356517289 | AJ67: 53.57 | AK67: 0.0621 | AL67: 2769784 | AM67: -3.14479635
A68: 59 | B68: Chester | C68: 150115400 | D68: 530457.8986 | E68: 35523000 | F68: 544547.6916 | G68: 1075006 | H68: 1989919.101 | I68: 0.5402259818 | J68: 1641683 | K68: 1075006 | L68: 54.02 | N68: 923970 | O68: 0.0349 | P68: 956217 | Q68: 48.05305902 | R68: 5.96694098 | S68: 0.01 | T68: 9240 | U68: 0 | V68: 0 | W68: 0 | X68: =MIN(H68*parameters!C$22,ROUND(P68+T68-V68+W68,0)) -> 965457 | Y68: 48.5173995 | AA68: -118789 | AB68: -109549 | AC68: 0 | AD68: -5.502600495 | AG68: 059 | AH68: Chester | AI68: 0.5402259818 | AJ68: 54.02 | AK68: 0.0349 | AL68: 965457 | AM68: -5.502600495
A69: 60 | B69: Chesterfield | C69: 190606900 | D69: 673541.3931 | E69: 26625000 | F69: 408146.3358 | G69: 1081688 | H69: 1417826.791 | I69: 0.7629197069 | J69: 1169707 | K69: 1081688 | L69: 76.29 | N69: 996225 | O69: 0.037 | P69: 1033085 | Q69: 72.86397791 | R69: 3.426022089 | S69: 0.01 | T69: 9962 | U69: 0 | V69: 0 | W69: 0 | X69: =MIN(H69*parameters!C$22,ROUND(P69+T69-V69+W69,0)) -> 1043047 | Y69: 73.56660252 | AA69: -48603 | AB69: -38641 | AC69: 0 | AD69: -2.723397476 | AG69: 060 | AH69: Chesterfield | AI69: 0.7629197069 | AJ69: 76.29 | AK69: 0.037 | AL69: 1043047 | AM69: -2.723397476
A70: 61 | B70: Chicopee | C70: 4667842700 | D70: 16494603.68 | E70: 1322114000 | F70: 20267267.03 | G70: 36761871 | H70: 122693363.2 | I70: 0.2996239572 | J70: 101222025 | K70: 36761871 | L70: 29.96 | N70: 32109426 | O70: 0.0547 | P70: 33865812 | Q70: 27.60199176 | R70: 2.35800824 | S70: 0 | T70: 0 | U70: 0 | V70: 0 | W70: 0 | X70: =MIN(H70*parameters!C$22,ROUND(P70+T70-V70+W70,0)) -> 33865812 | Y70: 27.60199176 | AA70: -2896059 | AB70: -2896059 | AC70: 0 | AD70: -2.35800824 | AG70: 061 | AH70: Chicopee | AI70: 0.2996239572 | AJ70: 29.96 | AK70: 0.0547 | AL70: 33865812 | AM70: -2.35800824
A71: 62 | B71: Chilmark | C71: 3878126000 | D71: 13704007.51 | E71: 130673000 | F71: 2003143.893 | G71: 15707151 | H71: 1598151.739 | I71: 9.82832269 | J71: 1318475 | K71: 1318475 | L71: 82.5 | N71: 1233011 | O71: 0.0544 | P71: 1300087 | Q71: 81.34940933 | R71: 1.150590672 | S71: 0 | T71: 0 | U71: 0 | V71: 0 | W71: 18388 | X71: =MIN(H71*parameters!C$22,ROUND(P71+T71-V71+W71,0)) -> 1318475 | Y71: 82.49998843 | AA71: -18388 | AB71: 0 | AC71: 0 | AD71: -1.156607507e-05 | AG71: 062 | AH71: Chilmark | AI71: 9.82832269 | AJ71: 82.5 | AK71: 0.0544 | AL71: 1318475 | AM71: -1.156607507e-05
A72: 63 | B72: Clarksburg | C72: 149674900 | D72: 528901.3181 | E72: 45309000 | F72: 694561.5899 | G72: 1223463 | H72: 3537776.999 | I72: 0.3458281855 | J72: 2918666 | K72: 1223463 | L72: 34.58 | N72: 1046168 | O72: 0.0303 | P72: 1077867 | Q72: 30.46735282 | R72: 4.112647185 | S72: 0.01 | T72: 10462 | U72: 0 | V72: 0 | W72: 0 | X72: =MIN(H72*parameters!C$22,ROUND(P72+T72-V72+W72,0)) -> 1088329 | Y72: 30.76307524 | AA72: -145596 | AB72: -135134 | AC72: 0 | AD72: -3.816924758 | AG72: 063 | AH72: Clarksburg | AI72: 0.3458281855 | AJ72: 34.58 | AK72: 0.0303 | AL72: 1088329 | AM72: -3.816924758
A73: 64 | B73: Clinton | C73: 1853848200 | D73: 6550882.991 | E73: 513914000 | F73: 7878013.748 | G73: 14428897 | H73: 32534279.41 | I73: 0.4434982812 | J73: 26840781 | K73: 14428897 | L73: 44.35 | N73: 12528207 | O73: 0.045 | P73: 13091976 | Q73: 40.2405593 | R73: 4.109440696 | S73: 0.01 | T73: 125282 | U73: 0 | V73: 0 | W73: 0 | X73: =MIN(H73*parameters!C$22,ROUND(P73+T73-V73+W73,0)) -> 13217258 | Y73: 40.62563622 | AA73: -1336921 | AB73: -1211639 | AC73: 0 | AD73: -3.72436378 | AG73: 064 | AH73: Clinton | AI73: 0.4434982812 | AJ73: 44.35 | AK73: 0.045 | AL73: 13217258 | AM73: -3.72436378
A74: 65 | B74: Cohasset | C74: 3547050800 | D74: 12534097.86 | E74: 1235202000 | F74: 18934954.75 | G74: 31469053 | H74: 16916429.92 | I74: 1.860265621 | J74: =ROUND(H74*maxloc,0) -> 13956055 | K74: 13956055 | L74: 82.5 | N74: 13255792 | O74: 0.0415 | P74: 13805907 | Q74: 81.61241508 | R74: 0.8875849175 | S74: 0 | T74: 0 | U74: 0 | V74: =MAX(U74*(V$5),0) -> 0 | W74: 150148 | X74: =MIN(H74*parameters!C$22,ROUND(P74+T74-V74+W74,0)) -> 13956055 | Y74: 82.50000189 | AA74: -150148 | AB74: 0 | AC74: 0 | AD74: 1.888578666e-06 | AG74: 065 | AH74: Cohasset | AI74: 1.860265621 | AJ74: =L74 -> 82.5 | AK74: 0.0415 | AL74: =X74 -> 13956055 | AM74: 1.888578666e-06
A75: 66 | B75: Colrain | C75: 203121700 | D75: =D$5*C75 -> 717764.5341 | E75: 48424000 | F75: 742312.795 | G75: =ROUND(D75+F75,0) -> 1460077 | H75: =(SUMIF(town1755,A75,found1755)/2) -> 2447232.526 | I75: =IF(H75=0,0,G75/H75) -> 0.5966237309 | J75: 2018967 | K75: =MIN(G75,J75) -> 1460077 | L75: =IF(H75>0, ROUND((K75*100/H75), 2), 0) -> 59.66 | N75: 1361271 | O75: 0.0408 | P75: =ROUND(N75*(1+O75),0) -> 1416811 | Q75: =IF(H75=0,0,P75*100/H75) -> 57.89441685 | R75: =IF(L75>Q75,L75-Q75,0) -> 1.765583146 | S75: =IF(AND(R75>$T$4,R75<=$T$5),$S$4,IF(R75>$T$5,$S$5,0)) -> 0 | T75: =ROUND(S75*N75,0) -> 0 | U75: =MAX(P75-K75,0) -> 0 | V75: 0 | W75: =IF(AND(I75>1.75,$W$5=1),MAX(K75-(P75+T75),0),0) -> 0 | X75: =MIN(H75*parameters!C$22,ROUND(P75+T75-V75+W75,0)) -> 1416811 | Y75: =IF(H75=0,0,X75*100/H75) -> 57.89441685 | AA75: =IF(Q75<L75, P75-K75, 0) -> -43266 | AB75: =-1*MAX(K75-(P75+T75+W75),0) -> -43266 | AC75: =IF(Q75>L75, X75-K75,0) -> 0 | AD75: =Y75-L75 -> -1.765583146 | AG75: =TEXT(A75,"000") -> 066 | AH75: =B75 -> Colrain | AI75: =I75 -> 0.5966237309 | AJ75: 59.66 | AK75: =O75 -> 0.0408 | AL75: 1416811 | AM75: =AD75 -> -1.765583146
A76: 67 | B76: Concord | C76: 7337635800 | D76: 25928764.59 | E76: 3022133000 | F76: =E76*F$5 -> 46327606.02 | G76: 72256371 | H76: 37693400.99 | I76: 1.916950158 | J76: 31097056 | K76: 31097056 | L76: 82.5 | N76: 30168420 | O76: 0.0474 | P76: 31598403 | Q76: 83.83006619 | R76: 0 | S76: 0 | T76: 0 | U76: 501347 | V76: 501347 | W76: 0 | X76: =MIN(H76*parameters!C$22,ROUND(P76+T76-V76+W76,0)) -> 31097056 | Y76: 82.50000048 | AA76: 0 | AB76: 0 | AC76: 0 | AD76: 4.802536893e-07 | AG76: 067 | AH76: Concord | AI76: 1.916950158 | AJ76: 82.5 | AK76: 0.0474 | AL76: 31097056 | AM76: 4.802536893e-07
A77: 68 | B77: Conway | C77: 298724500 | D77: 1055593.034 | E77: 76835000 | F77: 1177837.51 | G77: 2233431 | H77: 2331265.972 | I77: 0.9580335434 | J77: 1923294 | K77: 1923294 | L77: 82.5 | N77: 1940883 | O77: 0.0481 | P77: 2034239 | Q77: 87.25898393 | R77: 0 | S77: 0 | T77: 0 | U77: 110945 | V77: 110945 | W77: 0 | X77: =MIN(H77*parameters!C$22,ROUND(P77+T77-V77+W77,0)) -> 1923294 | Y77: 82.49998168 | AA77: 0 | AB77: 0 | AC77: 0 | AD77: -1.831930734e-05 | AG77: 068 | AH77: Conway | AI77: 0.9580335434 | AJ77: 82.5 | AK77: 0.0481 | AL77: 1923294 | AM77: -1.831930734e-05
A78: 69 | B78: Cummington | C78: 153578200 | D78: 542694.2822 | E78: 46884000 | F78: 718705.4576 | G78: 1261400 | H78: 788380.9456 | I78: 1.599987934 | J78: 650414 | K78: 650414 | L78: 82.5 | N78: 632612 | O78: 0.035 | P78: 654753 | Q78: 83.05033292 | R78: 0 | S78: 0 | T78: 0 | U78: 4339 | V78: 4339 | W78: 0 | X78: =MIN(H78*parameters!C$22,ROUND(P78+T78-V78+W78,0)) -> 650414 | Y78: 82.49996447 | AA78: 0 | AB78: 0 | AC78: 0 | AD78: -3.553178972e-05 | AG78: 069 | AH78: Cummington | AI78: 1.599987934 | AJ78: 82.5 | AK78: 0.035 | AL78: 650414 | AM78: -3.553178972e-05
A79: 70 | B79: Dalton | C79: 732087000 | D79: 2586951.982 | E79: 236562000 | F79: 3626362.948 | G79: 6213315 | H79: 12748655.59 | I79: 0.4873702136 | J79: 10517641 | K79: 6213315 | L79: 48.74 | N79: 5647767 | O79: 0.0304 | P79: 5819459 | Q79: 45.64762894 | R79: 3.092371061 | S79: 0.01 | T79: 56478 | U79: 0 | V79: 0 | W79: 0 | X79: =MIN(H79*parameters!C$22,ROUND(P79+T79-V79+W79,0)) -> 5875937 | Y79: 46.09064036 | AA79: -393856 | AB79: -337378 | AC79: 0 | AD79: -2.649359642 | AG79: 070 | AH79: Dalton | AI79: 0.4873702136 | AJ79: 48.74 | AK79: 0.0304 | AL79: 5875937 | AM79: -2.649359642
A80: 71 | B80: Danvers | C80: 6417792300 | D80: 22678343.58 | E80: 1490275000 | F80: 22845080.96 | G80: 45523425 | H80: 47182778.99 | I80: 0.9648313639 | J80: 38925793 | K80: 38925793 | L80: 82.5 | N80: 35145858 | O80: 0.0378 | P80: 36474371 | Q80: 77.30441442 | R80: 5.195585583 | S80: 0.01 | T80: 351459 | U80: 0 | V80: 0 | W80: 0 | X80: =MIN(H80*parameters!C$22,ROUND(P80+T80-V80+W80,0)) -> 36825830 | Y80: 78.04930272 | AA80: -2451422 | AB80: -2099963 | AC80: 0 | AD80: -4.450697284 | AG80: 071 | AH80: Danvers | AI80: 0.9648313639 | AJ80: 82.5 | AK80: 0.0378 | AL80: 36825830 | AM80: -4.450697284
A81: 72 | B81: Dartmouth | C81: 6798935400 | D81: 24025176.53 | E81: 1424744000 | F81: 21840527.44 | G81: 45865704 | H81: 51589779.44 | I81: 0.8890463285 | J81: 42561568 | K81: 42561568 | L81: 82.5 | N81: 39005720 | O81: 0.039 | P81: 40526943 | Q81: 78.55614705 | R81: 3.943852949 | S81: 0.01 | T81: 390057 | U81: 0 | V81: 0 | W81: 0 | X81: =MIN(H81*parameters!C$22,ROUND(P81+T81-V81+W81,0)) -> 40917000 | Y81: 79.31222123 | AA81: -2034625 | AB81: -1644568 | AC81: 0 | AD81: -3.187778773 | AG81: 072 | AH81: Dartmouth | AI81: 0.8890463285 | AJ81: 82.5 | AK81: 0.039 | AL81: 40917000 | AM81: -3.187778773
A82: 73 | B82: Dedham | C82: 6593838900 | D82: 23300433.71 | E82: 1724313000 | F82: 26432752.4 | G82: 49733186 | H82: 37109884.65 | I82: 1.340160081 | J82: 30615655 | K82: 30615655 | L82: 82.5 | N82: 28209848 | O82: 0.04 | P82: 29338242 | Q82: 79.05775585 | R82: 3.442244149 | S82: 0.01 | T82: 282098 | U82: 0 | V82: 0 | W82: 0 | X82: =MIN(H82*parameters!C$22,ROUND(P82+T82-V82+W82,0)) -> 29620340 | Y82: 79.81792528 | AA82: -1277413 | AB82: -995315 | AC82: 0 | AD82: -2.682074715 | AG82: 073 | AH82: Dedham | AI82: 1.340160081 | AJ82: 82.5 | AK82: 0.04 | AL82: 29620340 | AM82: -2.682074715
A83: 74 | B83: Deerfield | C83: 869370900 | D83: 3072067.628 | E83: 259714000 | F83: 3981270.139 | G83: 7053338 | H83: 7208778.796 | I83: 0.9784372914 | J83: 5947243 | K83: 5947243 | L83: 82.5 | N83: 5658876 | O83: 0.0406 | P83: 5888626 | Q83: 81.68687327 | R83: 0.8131267251 | S83: 0 | T83: 0 | U83: 0 | V83: 0 | W83: 0 | X83: =MIN(H83*parameters!C$22,ROUND(P83+T83-V83+W83,0)) -> 5888626 | Y83: 81.68687327 | AA83: -58617 | AB83: -58617 | AC83: 0 | AD83: -0.8131267251 | AG83: 074 | AH83: Deerfield | AI83: 0.9784372914 | AJ83: 82.5 | AK83: 0.0406 | AL83: 5888626 | AM83: -0.8131267251
A84: 75 | B84: Dennis | C84: 8912902400 | D84: 31495232.85 | E84: 636102000 | F84: 9751087.343 | G84: 41246320 | H84: 16702897.84 | I84: 2.469411021 | J84: 13779891 | K84: 13779891 | L84: 82.5 | N84: 12713719 | O84: 0.0386 | P84: 13204469 | Q84: 79.05495877 | R84: 3.445041232 | S84: 0.01 | T84: 127137 | U84: 0 | V84: 0 | W84: 448285 | X84: =MIN(H84*parameters!C$22,ROUND(P84+T84-V84+W84,0)) -> 13779891 | Y84: 82.50000169 | AA84: -575422 | AB84: 0 | AC84: 0 | AD84: 1.691594179e-06 | AG84: 075 | AH84: Dennis | AI84: 2.469411021 | AJ84: 82.5 | AK84: 0.0386 | AL84: 13779891 | AM84: 1.691594179e-06
A85: 76 | B85: Dighton | C85: 1314856400 | D85: 4646265.226 | E85: 325010000 | F85: 4982221.243 | G85: 9628486 | H85: 17361014.54 | I85: 0.5546038785 | J85: 14322837 | K85: 9628486 | L85: 55.46 | N85: 8366481 | O85: 0.0353 | P85: 8661818 | Q85: 49.8923492 | R85: 5.567650802 | S85: 0.01 | T85: 83665 | U85: 0 | V85: 0 | W85: 0 | X85: =MIN(H85*parameters!C$22,ROUND(P85+T85-V85+W85,0)) -> 8745483 | Y85: 50.37426228 | AA85: -966668 | AB85: -883003 | AC85: 0 | AD85: -5.085737721 | AG85: 076 | AH85: Dighton | AI85: 0.5546038785 | AJ85: 55.46 | AK85: 0.0353 | AL85: 8745483 | AM85: -5.085737721
A86: 77 | B86: Douglas | C86: 1302158500 | D86: 4601395.071 | E86: 384308000 | F86: 5891226.367 | G86: 10492621 | H86: 16745725.71 | I86: 0.6265850273 | J86: 13815224 | K86: 10492621 | L86: 62.66 | N86: 9188895 | O86: 0.0472 | P86: 9622611 | Q86: 57.46308741 | R86: 5.196912594 | S86: 0.01 | T86: 91889 | U86: 0 | V86: 0 | W86: 0 | X86: =MIN(H86*parameters!C$22,ROUND(P86+T86-V86+W86,0)) -> 9714500 | Y86: 58.01181848 | AA86: -870010 | AB86: -778121 | AC86: 0 | AD86: -4.648181523 | AG86: 077 | AH86: Douglas | AI86: 0.6265850273 | AJ86: 62.66 | AK86: 0.0472 | AL86: 9714500 | AM86: -4.648181523
A87: 78 | B87: Dover | C87: 2854881300 | D87: 10088201.05 | E87: 1599975000 | F87: 24526720.51 | G87: 34614922 | H87: 14085683.97 | I87: 2.457454112 | J87: 11620689 | K87: 11620689 | L87: 82.5 | N87: 11027534 | O87: 0.0317 | P87: 11377107 | Q87: 80.77071034 | R87: 1.729289658 | S87: 0 | T87: 0 | U87: 0 | V87: 0 | W87: 243582 | X87: =MIN(H87*parameters!C$22,ROUND(P87+T87-V87+W87,0)) -> 11620689 | Y87: 82.49999804 | AA87: -243582 | AB87: 0 | AC87: 0 | AD87: -1.960557924e-06 | AG87: 078 | AH87: Dover | AI87: 2.457454112 | AJ87: 82.5 | AK87: 0.0317 | AL87: 11620689 | AM87: -1.960557924e-06
A88: 79 | B88: Dracut | C88: 4790569000 | D88: 16928277.61 | E88: 1282742000 | F88: 19663716.32 | G88: 36591994 | H88: 64634623.91 | I88: 0.5661361015 | J88: 53323565 | K88: 36591994 | L88: 56.61 | N88: 31011777 | O88: 0.0359 | P88: 32125100 | Q88: 49.70261767 | R88: 6.907382335 | S88: 0.01 | T88: 310118 | U88: 0 | V88: 0 | W88: 0 | X88: =MIN(H88*parameters!C$22,ROUND(P88+T88-V88+W88,0)) -> 32435218 | Y88: 50.18241933 | AA88: -4466894 | AB88: -4156776 | AC88: 0 | AD88: -6.427580672 | AG88: 079 | AH88: Dracut | AI88: 0.5661361015 | AJ88: 56.61 | AK88: 0.0359 | AL88: 32435218 | AM88: -6.427580672
A89: 80 | B89: Dudley | C89: 1305684900 | D89: 4613856.195 | E89: 379271000 | F89: 5814011.979 | G89: 10427868 | H89: 23430727.6 | I89: 0.445050968 | J89: 19330350 | K89: 10427868 | L89: 44.51 | N89: 8082334 | O89: 0.0155 | P89: 8207610 | Q89: 35.02925791 | R89: 9.480742094 | S89: 0.02 | T89: 161647 | U89: 0 | V89: 0 | W89: 0 | X89: =MIN(H89*parameters!C$22,ROUND(P89+T89-V89+W89,0)) -> 8369257 | Y89: 35.71915112 | AA89: -2220258 | AB89: -2058611 | AC89: 0 | AD89: -8.790848879 | AG89: 080 | AH89: Dudley | AI89: 0.445050968 | AJ89: 44.51 | AK89: 0.0155 | AL89: 8369257 | AM89: -8.790848879
A90: 81 | B90: Dunstable | C90: 708127800 | D90: 2502288.138 | E90: 262400000 | F90: 4022445.015 | G90: 6524733 | H90: 6540863.773 | I90: 0.9975338467 | J90: 5396213 | K90: 5396213 | L90: 82.5 | N90: 5000353 | O90: 0.0431 | P90: 5215868 | Q90: 79.74280127 | R90: 2.757198727 | S90: 0.01 | T90: 50004 | U90: 0 | V90: 0 | W90: 0 | X90: =MIN(H90*parameters!C$22,ROUND(P90+T90-V90+W90,0)) -> 5265872 | Y90: 80.50728746 | AA90: -180345 | AB90: -130341 | AC90: 0 | AD90: -1.992712541 | AG90: 081 | AH90: Dunstable | AI90: 0.9975338467 | AJ90: 82.5 | AK90: 0.0431 | AL90: 5265872 | AM90: -1.992712541
A91: 82 | B91: Duxbury | C91: 5389486400 | D91: 19044652.52 | E91: 1615722000 | F91: 24768113.2 | G91: 43812766 | H91: 33659011.2 | I91: 1.301665273 | J91: 27768684 | K91: 27768684 | L91: 82.5 | N91: 25660838 | O91: 0.0417 | P91: 26730895 | Q91: 79.4167566 | R91: 3.083243399 | S91: 0.01 | T91: 256608 | U91: 0 | V91: 0 | W91: 0 | X91: =MIN(H91*parameters!C$22,ROUND(P91+T91-V91+W91,0)) -> 26987503 | Y91: 80.17913194 | AA91: -1037789 | AB91: -781181 | AC91: 0 | AD91: -2.320868063 | AG91: 082 | AH91: Duxbury | AI91: 1.301665273 | AJ91: 82.5 | AK91: 0.0417 | AL91: 26987503 | AM91: -2.320868063
A92: 83 | B92: East Bridgewater | C92: 2211733200 | D92: 7815529.557 | E92: 580322000 | F92: 8896011.189 | G92: 16711541 | H92: 29001424.44 | I92: 0.5762317309 | J92: 23926175 | K92: 16711541 | L92: 57.62 | N92: 14455062 | O92: 0.035 | P92: 14960989 | Q92: 51.58708336 | R92: 6.032916637 | S92: 0.01 | T92: 144551 | U92: 0 | V92: 0 | W92: 0 | X92: =MIN(H92*parameters!C$22,ROUND(P92+T92-V92+W92,0)) -> 15105540 | Y92: 52.08551061 | AA92: -1750552 | AB92: -1606001 | AC92: 0 | AD92: -5.534489395 | AG92: 083 | AH92: East Bridgewater | AI92: 0.5762317309 | AJ92: 57.62 | AK92: 0.035 | AL92: 15105540 | AM92: -5.534489395
A93: 84 | B93: East Brookfield | C93: 319420900 | D93: 1128727.228 | E93: 81327000 | F93: 1246697.354 | G93: 2375425 | H93: 4100026.389 | I93: 0.5793682221 | J93: 3382522 | K93: 2375425 | L93: 57.94 | N93: 2031297 | O93: 0.0385 | P93: 2109502 | Q93: 51.45093713 | R93: 6.489062869 | S93: 0.01 | T93: 20313 | U93: 0 | V93: 0 | W93: 0 | X93: =MIN(H93*parameters!C$22,ROUND(P93+T93-V93+W93,0)) -> 2129815 | Y93: 51.94637297 | AA93: -265923 | AB93: -245610 | AC93: 0 | AD93: -5.993627034 | AG93: 084 | AH93: East Brookfield | AI93: 0.5793682221 | AJ93: 57.94 | AK93: 0.0385 | AL93: 2129815 | AM93: -5.993627034
A94: 85 | B94: Eastham | C94: 3597520100 | D94: 12712439.58 | E94: 227530000 | F94: 3487907.448 | G94: 16200347 | H94: 6632883.949 | I94: 2.442428833 | J94: 5472129 | K94: 5472129 | L94: 82.5 | N94: 5168714 | O94: 0.0461 | P94: 5406992 | Q94: 81.51796476 | R94: 0.9820352385 | S94: 0 | T94: 0 | U94: 0 | V94: 0 | W94: 65137 | X94: =MIN(H94*parameters!C$22,ROUND(P94+T94-V94+W94,0)) -> 5472129 | Y94: 82.49999611 | AA94: -65137 | AB94: 0 | AC94: 0 | AD94: -3.885312694e-06 | AG94: 085 | AH94: Eastham | AI94: 2.442428833 | AJ94: 82.5 | AK94: 0.0461 | AL94: 5472129 | AM94: -3.885312694e-06
A95: 86 | B95: Easthampton | C95: 1916129500 | D95: 6770964.392 | E95: 543044000 | F95: 8324560.33 | G95: 15095525 | H95: 22559015.46 | I95: 0.6691570839 | J95: 18611188 | K95: 15095525 | L95: 66.92 | N95: 13077217 | O95: 0.0525 | P95: 13763771 | Q95: 61.01228586 | R95: 5.907714138 | S95: 0.01 | T95: 130772 | U95: 0 | V95: 0 | W95: 0 | X95: =MIN(H95*parameters!C$22,ROUND(P95+T95-V95+W95,0)) -> 13894543 | Y95: 61.59197428 | AA95: -1331754 | AB95: -1200982 | AC95: 0 | AD95: -5.32802572 | AG95: 086 | AH95: Easthampton | AI95: 0.6691570839 | AJ95: 66.92 | AK95: 0.0525 | AL95: 13894543 | AM95: -5.32802572
A96: 87 | B96: East Longmeadow | C96: 2311361300 | D96: 8167582.128 | E96: 792930000 | F96: 12155172.74 | G96: 20322755 | H96: 33881345.88 | I96: 0.5998213611 | J96: 27952110 | K96: 20322755 | L96: 59.98 | N96: 17979103 | O96: 0.0381 | P96: 18664107 | Q96: 55.08667532 | R96: 4.893324677 | S96: 0.01 | T96: 179791 | U96: 0 | V96: 0 | W96: 0 | X96: =MIN(H96*parameters!C$22,ROUND(P96+T96-V96+W96,0)) -> 18843898 | Y96: 55.61732425 | AA96: -1658648 | AB96: -1478857 | AC96: 0 | AD96: -4.362675745 | AG96: 087 | AH96: East Longmeadow | AI96: 0.5998213611 | AJ96: 59.98 | AK96: 0.0381 | AL96: 18843898 | AM96: -4.362675745
A97: 88 | B97: Easton | C97: 4412594900 | D97: 15592642.85 | E97: 1443511000 | F97: 22128215.04 | G97: 37720858 | H97: 44955813.62 | I97: 0.8390651833 | J97: 37088546 | K97: 37088546 | L97: 82.5 | N97: 33128939 | O97: 0.0386 | P97: 34407716 | Q97: 76.53674403 | R97: 5.963255969 | S97: 0.01 | T97: 331289 | U97: 0 | V97: 0 | W97: 0 | X97: =MIN(H97*parameters!C$22,ROUND(P97+T97-V97+W97,0)) -> 34739005 | Y97: 77.27366541 | AA97: -2680830 | AB97: -2349541 | AC97: 0 | AD97: -5.226334594 | AG97: 088 | AH97: Easton | AI97: 0.8390651833 | AJ97: 82.5 | AK97: 0.0386 | AL97: 34739005 | AM97: -5.226334594
A98: 89 | B98: Edgartown | C98: 11072643200 | D98: 39127038.56 | E98: 356693000 | F98: 5467903.886 | G98: 44594942 | H98: 10033161.87 | I98: 4.444754564 | J98: 8277359 | K98: 8277359 | L98: 82.5 | N98: 7299644 | O98: 0.0386 | P98: 7581410 | Q98: 75.56351726 | R98: 6.936482736 | S98: 0.01 | T98: 72996 | U98: 0 | V98: 0 | W98: 622953 | X98: =MIN(H98*parameters!C$22,ROUND(P98+T98-V98+W98,0)) -> 8277359 | Y98: 82.50000458 | AA98: -695949 | AB98: 0 | AC98: 0 | AD98: 4.576129541e-06 | AG98: 089 | AH98: Edgartown | AI98: 4.444754564 | AJ98: 82.5 | AK98: 0.0386 | AL98: 8277359 | AM98: 4.576129541e-06
A99: 90 | B99: Egremont | C99: 616396400 | D99: 2178139.878 | E99: 46823000 | F99: 717770.3618 | G99: 2895910 | H99: 1293907.663 | I99: 2.238111793 | J99: 1067474 | K99: 1067474 | L99: 82.5 | N99: 981312 | O99: 0.0589 | P99: 1039111 | Q99: 80.30797171 | R99: 2.192028289 | S99: 0 | T99: 0 | U99: 0 | V99: 0 | W99: 28363 | X99: =MIN(H99*parameters!C$22,ROUND(P99+T99-V99+W99,0)) -> 1067474 | Y99: 82.50001376 | AA99: -28363 | AB99: 0 | AC99: 0 | AD99: 1.375640144e-05 | AG99: 090 | AH99: Egremont | AI99: 2.238111793 | AJ99: 82.5 | AK99: 0.0589 | AL99: 1067474 | AM99: 1.375640144e-05
A100: 91 | B100: Erving | C100: 969923800 | D100: 3427388.135 | E100: 45620000 | F100: 699329.0457 | G100: 4126717 | H100: 3269431.354 | I100: 1.262212462 | J100: 2697281 | K100: 2697281 | L100: 82.5 | N100: 2465442 | O100: 0.0401 | P100: 2564306 | Q100: 78.43278301 | R100: 4.067216988 | S100: 0.01 | T100: 24654 | U100: 0 | V100: 0 | W100: 0 | X100: =MIN(H100*parameters!C$22,ROUND(P100+T100-V100+W100,0)) -> 2588960 | Y100: 79.1868591 | AA100: -132975 | AB100: -108321 | AC100: 0 | AD100: -3.313140902 | AG100: 091 | AH100: Erving | AI100: 1.262212462 | AJ100: 82.5 | AK100: 0.0401 | AL100: 2588960 | AM100: -3.313140902
A101: 92 | B101: Essex | C101: 1081249700 | D101: 3820776.841 | E101: 267890000 | F101: 4106603.64 | G101: 7927380 | H101: 6772177.21 | I101: 1.170580709 | J101: 5587046 | K101: 5587046 | L101: 82.5 | N101: 4933832 | O101: 0.0379 | P101: 5120824 | Q101: 75.61562317 | R101: 6.884376827 | S101: 0.01 | T101: 49338 | U101: 0 | V101: 0 | W101: 0 | X101: =MIN(H101*parameters!C$22,ROUND(P101+T101-V101+W101,0)) -> 5170162 | Y101: 76.34416288 | AA101: -466222 | AB101: -416884 | AC101: 0 | AD101: -6.15583712 | AG101: 092 | AH101: Essex | AI101: 1.170580709 | AJ101: 82.5 | AK101: 0.0379 | AL101: 5170162 | AM101: -6.15583712
A102: 93 | B102: Everett | C102: 9500450600 | D102: 33571432.79 | E102: 1182995000 | F102: 18134650.69 | G102: 51706083 | H102: 152643280.5 | I102: 0.3387380226 | J102: 125930706 | K102: 51706083 | L102: 33.87 | N102: 38446657 | O102: 0.0454 | P102: 40192135 | Q102: 26.33075945 | R102: 7.539240551 | S102: 0.02 | T102: 768933 | U102: 0 | V102: 0 | W102: 0 | X102: =MIN(H102*parameters!C$22,ROUND(P102+T102-V102+W102,0)) -> 40961068 | Y102: 26.83450452 | AA102: -11513948 | AB102: -10745015 | AC102: 0 | AD102: -7.035495481 | AG102: 093 | AH102: Everett | AI102: 0.3387380226 | AJ102: 33.87 | AK102: 0.0454 | AL102: 40961068 | AM102: -7.035495481
A103: 94 | B103: Fairhaven | C103: 2882044000 | D103: 10184184.99 | E103: 556302000 | F103: 8527798.044 | G103: 18711983 | H103: 28118515.01 | I103: 0.6654683931 | J103: 23197775 | K103: 18711983 | L103: 66.55 | N103: 15599341 | O103: 0.0521 | P103: 16412067 | Q103: 58.36747423 | R103: 8.182525775 | S103: 0.02 | T103: 311987 | U103: 0 | V103: 0 | W103: 0 | X103: =MIN(H103*parameters!C$22,ROUND(P103+T103-V103+W103,0)) -> 16724054 | Y103: 59.47701717 | AA103: -2299916 | AB103: -1987929 | AC103: 0 | AD103: -7.072982828 | AG103: 094 | AH103: Fairhaven | AI103: 0.6654683931 | AJ103: 66.55 | AK103: 0.0521 | AL103: 16724054 | AM103: -7.072982828
A104: 95 | B104: Fall River | C104: 7843860400 | D104: 27717593.96 | E104: 1943127000 | F104: 29787048.45 | G104: 57504642 | H104: 250169029.5 | I104: 0.2298631533 | J104: 206389449 | K104: 57504642 | L104: 22.99 | N104: 40266340 | O104: 0.0464 | P104: 42134698 | Q104: 16.84249168 | R104: 6.147508315 | S104: 0.01 | T104: 402663 | U104: 0 | V104: 0 | W104: 0 | X104: =MIN(H104*parameters!C$22,ROUND(P104+T104-V104+W104,0)) -> 42537361 | Y104: 17.00344806 | AA104: -15369944 | AB104: -14967281 | AC104: 0 | AD104: -5.986551941 | AG104: 095 | AH104: Fall River | AI104: 0.2298631533 | AJ104: 22.99 | AK104: 0.0464 | AL104: 42537361 | AM104: -5.986551941
A105: 96 | B105: Falmouth | C105: 15449979300 | D105: 54595088.53 | E105: 1676190000 | F105: 25695053.77 | G105: 80290142 | H105: 46781728.93 | I105: 1.71627137 | J105: 38594926 | K105: 38594926 | L105: 82.5 | N105: 34962921 | O105: 0.0369 | P105: 36253053 | Q105: 77.49404272 | R105: 5.005957279 | S105: 0.01 | T105: 349629 | U105: 0 | V105: 0 | W105: 0 | X105: =MIN(H105*parameters!C$22,ROUND(P105+T105-V105+W105,0)) -> 36602682 | Y105: 78.24140501 | AA105: -2341873 | AB105: -1992244 | AC105: 0 | AD105: -4.258594991 | AG105: 096 | AH105: Falmouth | AI105: 1.71627137 | AJ105: 82.5 | AK105: 0.0369 | AL105: 36602682 | AM105: -4.258594991
A106: 97 | B106: Fitchburg | C106: 3678508500 | D106: 12998625.65 | E106: 987011000 | F106: 15130325.75 | G106: 28128951 | H106: 103994510.9 | I106: 0.2704849588 | J106: 85795472 | K106: 28128951 | L106: 27.05 | N106: 22232951 | O106: 0.052 | P106: 23389064 | Q106: 22.49067166 | R106: 4.559328335 | S106: 0.01 | T106: 222330 | U106: 0 | V106: 0 | W106: 0 | X106: =MIN(H106*parameters!C$22,ROUND(P106+T106-V106+W106,0)) -> 23611394 | Y106: 22.70446179 | AA106: -4739887 | AB106: -4517557 | AC106: 0 | AD106: -4.345538205 | AG106: 097 | AH106: Fitchburg | AI106: 0.2704849588 | AJ106: 27.05 | AK106: 0.052 | AL106: 23611394 | AM106: -4.345538205
A107: 98 | B107: Florida | C107: 185906300 | D107: 656931.036 | E107: 16322000 | F107: 250207.1171 | G107: 907138 | H107: 1616104.415 | I107: 0.561311504 | J107: 1333286 | K107: 907138 | L107: 56.13 | N107: 714241 | O107: 0.0286 | P107: 734668 | Q107: 45.45919144 | R107: 10.67080856 | S107: 0.02 | T107: 14285 | U107: 0 | V107: 0 | W107: 0 | X107: =MIN(H107*parameters!C$22,ROUND(P107+T107-V107+W107,0)) -> 748953 | Y107: 46.3431071 | AA107: -172470 | AB107: -158185 | AC107: 0 | AD107: -9.7868929 | AG107: 098 | AH107: Florida | AI107: 0.561311504 | AJ107: 56.13 | AK107: 0.0286 | AL107: 748953 | AM107: -9.7868929
A108: 99 | B108: Foxborough | C108: 3825226800 | D108: 13517079.33 | E108: 1054905000 | F108: 16171102.74 | G108: 29688182 | H108: 35181790.86 | I108: 0.8438507897 | J108: 29024977 | K108: 29024977 | L108: 82.5 | N108: 26821647 | O108: 0.0529 | P108: 28240512 | Q108: 80.27025149 | R108: 2.229748511 | S108: 0 | T108: 0 | U108: 0 | V108: 0 | W108: 0 | X108: =MIN(H108*parameters!C$22,ROUND(P108+T108-V108+W108,0)) -> 28240512 | Y108: 80.27025149 | AA108: -784465 | AB108: -784465 | AC108: 0 | AD108: -2.229748511 | AG108: 099 | AH108: Foxborough | AI108: 0.8438507897 | AJ108: 82.5 | AK108: 0.0529 | AL108: 28240512 | AM108: -2.229748511
A109: 100 | B109: Framingham | C109: 12640216800 | D109: 44666322.32 | E109: 2934837000 | F109: 44989407.24 | G109: 89655730 | H109: 173974068.1 | I109: 0.5153396193 | J109: 143528606 | K109: 89655730 | L109: 51.53 | N109: 77467562 | O109: 0.0379 | P109: 80403583 | Q109: 46.21584349 | R109: 5.314156512 | S109: 0.01 | T109: 774676 | U109: 0 | V109: 0 | W109: 0 | X109: =MIN(H109*parameters!C$22,ROUND(P109+T109-V109+W109,0)) -> 81178259 | Y109: 46.66112594 | AA109: -9252147 | AB109: -8477471 | AC109: 0 | AD109: -4.868874058 | AG109: 100 | AH109: Framingham | AI109: 0.5153396193 | AJ109: 51.53 | AK109: 0.0379 | AL109: 81178259 | AM109: -4.868874058
A110: 101 | B110: Franklin | C110: 6739455100 | D110: 23814992.93 | E110: 1943889000 | F110: 29798729.49 | G110: 53613722 | H110: 68983378.45 | I110: 0.7771976845 | J110: 56911287 | K110: 53613722 | L110: 77.72 | N110: 47212970 | O110: 0.0473 | P110: 49446143 | Q110: 71.67834355 | R110: 6.041656447 | S110: 0.01 | T110: 472130 | U110: 0 | V110: 0 | W110: 0 | X110: =MIN(H110*parameters!C$22,ROUND(P110+T110-V110+W110,0)) -> 49918273 | Y110: 72.3627548 | AA110: -4167579 | AB110: -3695449 | AC110: 0 | AD110: -5.357245201 | AG110: 101 | AH110: Franklin | AI110: 0.7771976845 | AJ110: 77.72 | AK110: 0.0473 | AL110: 49918273 | AM110: -5.357245201
A111: 102 | B111: Freetown | C111: 1813071700 | D111: 6406792.401 | E111: 386936000 | F111: 5931512.135 | G111: 12338305 | H111: 16653710.18 | I111: 0.7408742477 | J111: 13739311 | K111: 12338305 | L111: 74.09 | N111: 11052908 | O111: 0.0412 | P111: 11508288 | Q111: 69.10344828 | R111: 4.986551717 | S111: 0.01 | T111: 110529 | U111: 0 | V111: 0 | W111: 0 | X111: =MIN(H111*parameters!C$22,ROUND(P111+T111-V111+W111,0)) -> 11618817 | Y111: 69.76713823 | AA111: -830017 | AB111: -719488 | AC111: 0 | AD111: -4.322861772 | AG111: 102 | AH111: Freetown | AI111: 0.7408742477 | AJ111: 74.09 | AK111: 0.0412 | AL111: 11618817 | AM111: -4.322861772
A112: 103 | B112: Gardner | C112: 1722018500 | D112: 6085040.675 | E112: 511170000 | F112: 7835949.765 | G112: 13920990 | H112: 42177090.89 | I112: 0.3300604595 | J112: 34796100 | K112: 13920990 | L112: 33.01 | N112: 11784455 | O112: 0.0318 | P112: 12159201 | Q112: 28.82892286 | R112: 4.181077137 | S112: 0.01 | T112: 117845 | U112: 0 | V112: 0 | W112: 0 | X112: =MIN(H112*parameters!C$22,ROUND(P112+T112-V112+W112,0)) -> 12277046 | Y112: 29.1083281 | AA112: -1761789 | AB112: -1643944 | AC112: 0 | AD112: -3.901671901 | AG112: 103 | AH112: Gardner | AI112: 0.3300604595 | AJ112: 33.01 | AK112: 0.0318 | AL112: 12277046 | AM112: -3.901671901
A113: 104 | B113: Aquinnah | C113: 860784100 | D113: 3041724.732 | E113: 22767000 | F113: 349005.3569 | G113: 3390730 | H113: 885152.9458 | I113: 3.830671316 | J113: 730251 | K113: 730251 | L113: 82.5 | N113: 649755 | O113: 0.0313 | P113: 670092 | Q113: 75.70352708 | R113: 6.796472918 | S113: 0.01 | T113: 6498 | U113: 0 | V113: 0 | W113: 53661 | X113: =MIN(H113*parameters!C$22,ROUND(P113+T113-V113+W113,0)) -> 730251 | Y113: 82.49997964 | AA113: -60159 | AB113: 0 | AC113: 0 | AD113: -2.0363115e-05 | AG113: 104 | AH113: Aquinnah | AI113: 3.830671316 | AJ113: 82.5 | AK113: 0.0313 | AL113: 730251 | AM113: -2.0363115e-05
A114: 105 | B114: Georgetown | C114: 1648088700 | D114: 5823797.349 | E114: 486653000 | F114: 7460117.888 | G114: 13283915 | H114: 16155661.56 | I114: 0.8222451896 | J114: 13328421 | K114: 13283915 | L114: 82.22 | N114: 11671600 | O114: 0.0391 | P114: 12127960 | Q114: 75.06941116 | R114: 7.150588838 | S114: 0.01 | T114: 116716 | U114: 0 | V114: 0 | W114: 0 | X114: =MIN(H114*parameters!C$22,ROUND(P114+T114-V114+W114,0)) -> 12244676 | Y114: 75.79185759 | AA114: -1155955 | AB114: -1039239 | AC114: 0 | AD114: -6.428142409 | AG114: 105 | AH114: Georgetown | AI114: 0.8222451896 | AJ114: 82.22 | AK114: 0.0391 | AL114: 12244676 | AM114: -6.428142409
A115: 106 | B115: Gill | C115: 183855300 | D115: 649683.4841 | E115: 39377000 | F115: 603627.3527 | G115: 1253311 | H115: 1929344.185 | I115: 0.6496046737 | J115: 1591709 | K115: 1253311 | L115: 64.96 | N115: 1175268 | O115: 0.0345 | P115: 1215815 | Q115: 63.01700905 | R115: 1.942990949 | S115: 0 | T115: 0 | U115: 0 | V115: 0 | W115: 0 | X115: =MIN(H115*parameters!C$22,ROUND(P115+T115-V115+W115,0)) -> 1215815 | Y115: 63.01700905 | AA115: -37496 | AB115: -37496 | AC115: 0 | AD115: -1.942990949 | AG115: 106 | AH115: Gill | AI115: 0.6496046737 | AJ115: 64.96 | AK115: 0.0345 | AL115: 1215815 | AM115: -1.942990949
A116: 107 | B116: Gloucester | C116: 8654554400 | D116: 30582316.94 | E116: 1370978000 | F116: 21016324.78 | G116: 51598642 | H116: 49155128.8 | I116: 1.049710239 | J116: 40552981 | K116: 40552981 | L116: 82.5 | N116: 35424352 | O116: 0.0434 | P116: 36961769 | Q116: 75.19412502 | R116: 7.30587498 | S116: 0.01 | T116: 354244 | U116: 0 | V116: 0 | W116: 0 | X116: =MIN(H116*parameters!C$22,ROUND(P116+T116-V116+W116,0)) -> 37316013 | Y116: 75.91479041 | AA116: -3591212 | AB116: -3236968 | AC116: 0 | AD116: -6.585209592 | AG116: 107 | AH116: Gloucester | AI116: 1.049710239 | AJ116: 82.5 | AK116: 0.0434 | AL116: 37316013 | AM116: -6.585209592
A117: 108 | B117: Goshen | C117: 175826700 | D117: 621313.0818 | E117: 16656000 | F117: 255327.15 | G117: 876640 | H117: 1417669.824 | I117: 0.6183668334 | J117: 1169578 | K117: 876640 | L117: 61.84 | N117: 819313 | O117: 0.0376 | P117: 850119 | Q117: 59.96593744 | R117: 1.874062555 | S117: 0 | T117: 0 | U117: 0 | V117: 0 | W117: 0 | X117: =MIN(H117*parameters!C$22,ROUND(P117+T117-V117+W117,0)) -> 850119 | Y117: 59.96593744 | AA117: -26521 | AB117: -26521 | AC117: 0 | AD117: -1.874062555 | AG117: 108 | AH117: Goshen | AI117: 0.6183668334 | AJ117: 61.84 | AK117: 0.0376 | AL117: 850119 | AM117: -1.874062555
A118: 109 | B118: Gosnold | C118: 238470900 | D118: 842676.8506 | E118: 86000 | F118: 1318.331827 | G118: 843995 | H118: 0 | I118: 0 | J118: 0 | K118: 0 | L118: 0 | N118: 7111 | O118: 0.0453 | P118: 7433 | Q118: 0 | R118: 0 | S118: 0 | T118: 0 | U118: 7433 | V118: 7433 | W118: 0 | X118: =MIN(H118*parameters!C$22,ROUND(P118+T118-V118+W118,0)) -> 0 | Y118: 0 | AA118: 0 | AB118: 0 | AC118: 0 | AD118: 0 | AG118: 109 | AH118: Gosnold | AI118: 0 | AJ118: 0 | AK118: 0.0453 | AL118: 0 | AM118: 0
A119: 110 | B119: Grafton | C119: 3144522000 | D119: 11111694.95 | E119: 1105898000 | F119: 16952796.86 | G119: 28064492 | H119: 38689743.45 | I119: 0.7253729153 | J119: 31919038 | K119: 28064492 | L119: 72.54 | N119: 24403947 | O119: 0.0411 | P119: 25406949 | Q119: 65.66843492 | R119: 6.871565077 | S119: 0.01 | T119: 244039 | U119: 0 | V119: 0 | W119: 0 | X119: =MIN(H119*parameters!C$22,ROUND(P119+T119-V119+W119,0)) -> 25650988 | Y119: 66.29919382 | AA119: -2657543 | AB119: -2413504 | AC119: 0 | AD119: -6.240806177 | AG119: 110 | AH119: Grafton | AI119: 0.7253729153 | AJ119: 72.54 | AK119: 0.0411 | AL119: 25650988 | AM119: -6.240806177
A120: 111 | B120: Granby | C120: 766960200 | D120: 2710182.273 | E120: 244165000 | F120: 3742912.679 | G120: 6453095 | H120: 9949713.661 | I120: 0.6485709258 | J120: 8208514 | K120: 6453095 | L120: 64.86 | N120: 5618441 | O120: 0.0367 | P120: 5824638 | Q120: 58.54076005 | R120: 6.319239947 | S120: 0.01 | T120: 56184 | U120: 0 | V120: 0 | W120: 0 | X120: =MIN(H120*parameters!C$22,ROUND(P120+T120-V120+W120,0)) -> 5880822 | Y120: 59.10543962 | AA120: -628457 | AB120: -572273 | AC120: 0 | AD120: -5.75456038 | AG120: 111 | AH120: Granby | AI120: 0.6485709258 | AJ120: 64.86 | AK120: 0.0367 | AL120: 5880822 | AM120: -5.75456038
A121: 112 | B121: Granville | C121: 236031700 | D121: 834057.529 | E121: 59362000 | F121: 909986.208 | G121: 1744044 | H121: 2332677.357 | I121: 0.7476576196 | J121: 1924459 | K121: 1744044 | L121: 74.77 | N121: 1556263 | O121: 0.0382 | P121: 1615712 | Q121: 69.26427246 | R121: 5.505727542 | S121: 0.01 | T121: 15563 | U121: 0 | V121: 0 | W121: 0 | X121: =MIN(H121*parameters!C$22,ROUND(P121+T121-V121+W121,0)) -> 1631275 | Y121: 69.93144574 | AA121: -128332 | AB121: -112769 | AC121: 0 | AD121: -4.838554264 | AG121: 112 | AH121: Granville | AI121: 0.7476576196 | AJ121: 74.77 | AK121: 0.0382 | AL121: 1631275 | AM121: -4.838554264
A122: 113 | B122: Great Barrington | C122: 1741152600 | D122: 6152654.221 | E122: 329164000 | F122: 5045899.737 | G122: 11198554 | H122: 10476266.95 | I122: 1.068945078 | J122: 8642920 | K122: 8642920 | L122: 82.5 | N122: 7696400 | O122: 0.0412 | P122: 8013492 | Q122: 76.49186524 | R122: 6.00813476 | S122: 0.01 | T122: 76964 | U122: 0 | V122: 0 | W122: 0 | X122: =MIN(H122*parameters!C$22,ROUND(P122+T122-V122+W122,0)) -> 8090456 | Y122: 77.22651624 | AA122: -629428 | AB122: -552464 | AC122: 0 | AD122: -5.273483759 | AG122: 113 | AH122: Great Barrington | AI122: 1.068945078 | AJ122: 82.5 | AK122: 0.0412 | AL122: 8090456 | AM122: -5.273483759
A123: 114 | B123: Greenfield | C123: 1751876500 | D123: 6190548.917 | E123: 439014000 | F123: 6729838.703 | G123: 12920388 | H123: 29793254.3 | I123: 0.4336682347 | J123: 24579435 | K123: 12920388 | L123: 43.37 | N123: 11609608 | O123: 0.0328 | P123: 11990403 | Q123: 40.24536184 | R123: 3.124638156 | S123: 0.01 | T123: 116096 | U123: 0 | V123: 0 | W123: 0 | X123: =MIN(H123*parameters!C$22,ROUND(P123+T123-V123+W123,0)) -> 12106499 | Y123: 40.63503394 | AA123: -929985 | AB123: -813889 | AC123: 0 | AD123: -2.734966055 | AG123: 114 | AH123: Greenfield | AI123: 0.4336682347 | AJ123: 43.37 | AK123: 0.0328 | AL123: 12106499 | AM123: -2.734966055
A124: 115 | B124: Groton | C124: 2199159100 | D124: 7771096.869 | E124: 964370000 | F124: 14783251.9 | G124: 22554349 | H124: 21966300.54 | I124: 1.026770482 | J124: 18122198 | K124: 18122198 | L124: 82.5 | N124: 16741397 | O124: 0.0368 | P124: 17357480 | Q124: 79.01867665 | R124: 3.481323348 | S124: 0.01 | T124: 167414 | U124: 0 | V124: 0 | W124: 0 | X124: =MIN(H124*parameters!C$22,ROUND(P124+T124-V124+W124,0)) -> 17524894 | Y124: 79.78081682 | AA124: -764718 | AB124: -597304 | AC124: 0 | AD124: -2.719183179 | AG124: 115 | AH124: Groton | AI124: 1.026770482 | AJ124: 82.5 | AK124: 0.0368 | AL124: 17524894 | AM124: -2.719183179
A125: 116 | B125: Groveland | C125: 1255397100 | D125: 4436155.835 | E125: 312895000 | F125: 4796505.08 | G125: 9232661 | H125: 11817597.54 | I125: 0.7812637863 | J125: 9749518 | K125: 9232661 | L125: 78.13 | N125: 8096465 | O125: 0.037 | P125: 8396034 | Q125: 71.04687709 | R125: 7.083122912 | S125: 0.01 | T125: 80965 | U125: 0 | V125: 0 | W125: 0 | X125: =MIN(H125*parameters!C$22,ROUND(P125+T125-V125+W125,0)) -> 8476999 | Y125: 71.73199942 | AA125: -836627 | AB125: -755662 | AC125: 0 | AD125: -6.398000579 | AG125: 116 | AH125: Groveland | AI125: 0.7812637863 | AJ125: 78.13 | AK125: 0.037 | AL125: 8476999 | AM125: -6.398000579
A126: 117 | B126: Hadley | C126: 1161298900 | D126: 4103644.091 | E126: 202889000 | F126: 3110174.72 | G126: 7213819 | H126: 6277106.59 | I126: 1.149226781 | J126: 5178613 | K126: 5178613 | L126: 82.5 | N126: 4970980 | O126: 0.0657 | P126: 5297573 | Q126: 84.39514168 | R126: 0 | S126: 0 | T126: 0 | U126: 118960 | V126: 118960 | W126: 0 | X126: =MIN(H126*parameters!C$22,ROUND(P126+T126-V126+W126,0)) -> 5178613 | Y126: 82.50000101 | AA126: 0 | AB126: 0 | AC126: 0 | AD126: 1.007629862e-06 | AG126: 117 | AH126: Hadley | AI126: 1.149226781 | AJ126: 82.5 | AK126: 0.0657 | AL126: 5178613 | AM126: 1.007629862e-06
A127: 118 | B127: Halifax | C127: 1210894200 | D127: 4278897.387 | E127: 305436000 | F127: 4682162.788 | G127: 8961060 | H127: 15105645.59 | I127: 0.5932258867 | J127: 12462158 | K127: 8961060 | L127: 59.32 | N127: 7899289 | O127: 0.0474 | P127: 8273715 | Q127: 54.77233627 | R127: 4.547663726 | S127: 0.01 | T127: 78993 | U127: 0 | V127: 0 | W127: 0 | X127: =MIN(H127*parameters!C$22,ROUND(P127+T127-V127+W127,0)) -> 8352708 | Y127: 55.29527321 | AA127: -687345 | AB127: -608352 | AC127: 0 | AD127: -4.024726791 | AG127: 118 | AH127: Halifax | AI127: 0.5932258867 | AJ127: 59.32 | AK127: 0.0474 | AL127: 8352708 | AM127: -4.024726791
A128: 119 | B128: Hamilton | C128: 1912849100 | D128: 6759372.549 | E128: 713484000 | F128: 10937310.06 | G128: 17696683 | H128: 13563537.24 | I128: 1.304724769 | J128: 11189918 | K128: 11189918 | L128: 82.5 | N128: 10381569 | O128: 0.0369 | P128: 10764649 | Q128: 79.36461417 | R128: 3.135385827 | S128: 0.01 | T128: 103816 | U128: 0 | V128: 0 | W128: 0 | X128: =MIN(H128*parameters!C$22,ROUND(P128+T128-V128+W128,0)) -> 10868465 | Y128: 80.13001923 | AA128: -425269 | AB128: -321453 | AC128: 0 | AD128: -2.36998077 | AG128: 119 | AH128: Hamilton | AI128: 1.304724769 | AJ128: 82.5 | AK128: 0.0369 | AL128: 10868465 | AM128: -2.36998077
A129: 120 | B129: Hampden | C129: 758719700 | D129: 2681063.087 | E129: 229767000 | F129: 3522199.404 | G129: 6203262 | H129: 7147465.391 | I129: 0.8678967523 | J129: 5896659 | K129: 5896659 | L129: 82.5 | N129: 5471360 | O129: 0.0386 | P129: 5682554 | Q129: 79.50446332 | R129: 2.995536682 | S129: 0.01 | T129: 54714 | U129: 0 | V129: 0 | W129: 0 | X129: =MIN(H129*parameters!C$22,ROUND(P129+T129-V129+W129,0)) -> 5737268 | Y129: 80.26996545 | AA129: -214105 | AB129: -159391 | AC129: 0 | AD129: -2.230034549 | AG129: 120 | AH129: Hampden | AI129: 0.8678967523 | AJ129: 82.5 | AK129: 0.0386 | AL129: 5737268 | AM129: -2.230034549
A130: 121 | B130: Hancock | C130: 338870100 | D130: 1197454.233 | E130: 12643000 | F130: 193810.1079 | G130: 1391264 | H130: 1216494.75 | I130: 1.143666259 | J130: 1003608 | K130: 1003608 | L130: 82.5 | N130: 729685 | O130: 0.0499 | P130: 766096 | Q130: 62.97569307 | R130: 19.52430693 | S130: 0.02 | T130: 14594 | U130: 0 | V130: 0 | W130: 0 | X130: =MIN(H130*parameters!C$22,ROUND(P130+T130-V130+W130,0)) -> 780690 | Y130: 64.17536944 | AA130: -237512 | AB130: -222918 | AC130: 0 | AD130: -18.32463056 | AG130: 121 | AH130: Hancock | AI130: 1.143666259 | AJ130: 82.5 | AK130: 0.0499 | AL130: 780690 | AM130: -18.32463056
A131: 122 | B131: Hanover | C131: 3333802700 | D131: 11780549.99 | E131: 946537000 | F131: 14509882 | G131: 26290432 | H131: 32194939.76 | I131: 0.8166013727 | J131: 26560825 | K131: 26290432 | L131: 81.66 | N131: 23340556 | O131: 0.0367 | P131: 24197154 | Q131: 75.15825215 | R131: 6.501747855 | S131: 0.01 | T131: 233406 | U131: 0 | V131: 0 | W131: 0 | X131: =MIN(H131*parameters!C$22,ROUND(P131+T131-V131+W131,0)) -> 24430560 | Y131: 75.88322943 | AA131: -2093278 | AB131: -1859872 | AC131: 0 | AD131: -5.77677057 | AG131: 122 | AH131: Hanover | AI131: 0.8166013727 | AJ131: 81.66 | AK131: 0.0367 | AL131: 24430560 | AM131: -5.77677057
A132: 123 | B132: Hanson | C132: 1705096200 | D132: 6025242.894 | E132: 450387000 | F132: 6904180.423 | G132: 12929423 | H132: 20447146.08 | I132: 0.6323338693 | J132: 16868896 | K132: 12929423 | L132: 63.23 | N132: 11135828 | O132: 0.0379 | P132: 11557876 | Q132: 56.52561953 | R132: 6.70438047 | S132: 0.01 | T132: 111358 | U132: 0 | V132: 0 | W132: 0 | X132: =MIN(H132*parameters!C$22,ROUND(P132+T132-V132+W132,0)) -> 11669234 | Y132: 57.07023343 | AA132: -1371547 | AB132: -1260189 | AC132: 0 | AD132: -6.159766568 | AG132: 123 | AH132: Hanson | AI132: 0.6323338693 | AJ132: 63.23 | AK132: 0.0379 | AL132: 11669234 | AM132: -6.159766568
A133: 124 | B133: Hardwick | C133: 290003700 | D133: 1024776.627 | E133: 78259000 | F133: 1199666.633 | G133: 2224443 | H133: 4806274.625 | I133: 0.4628206196 | J133: 3965177 | K133: 2224443 | L133: 46.28 | N133: 1834775 | O133: 0.0343 | P133: 1897708 | Q133: 39.48396936 | R133: 6.796030644 | S133: 0.01 | T133: 18348 | U133: 0 | V133: 0 | W133: 0 | X133: =MIN(H133*parameters!C$22,ROUND(P133+T133-V133+W133,0)) -> 1916056 | Y133: 39.86572033 | AA133: -326735 | AB133: -308387 | AC133: 0 | AD133: -6.414279674 | AG133: 124 | AH133: Hardwick | AI133: 0.4628206196 | AJ133: 46.28 | AK133: 0.0343 | AL133: 1916056 | AM133: -6.414279674
A134: 125 | B134: Harvard | C134: 1434003000 | D134: 5067289.685 | E134: 502274000 | F134: 7699579.068 | G134: 12766869 | H134: 10697301.9 | I134: 1.19346627 | J134: 8825274 | K134: 8825274 | L134: 82.5 | N134: 8141515 | O134: 0.031 | P134: 8393902 | Q134: 78.46746851 | R134: 4.032531491 | S134: 0.01 | T134: 81415 | U134: 0 | V134: 0 | W134: 0 | X134: =MIN(H134*parameters!C$22,ROUND(P134+T134-V134+W134,0)) -> 8475317 | Y134: 79.22854827 | AA134: -431372 | AB134: -349957 | AC134: 0 | AD134: -3.271451727 | AG134: 125 | AH134: Harvard | AI134: 1.19346627 | AJ134: 82.5 | AK134: 0.031 | AL134: 8475317 | AM134: -3.271451727
A135: 126 | B135: Harwich | C135: 7143004400 | D135: 25241001.95 | E135: 628667000 | F135: 9637112.958 | G135: 34878115 | H135: 19695371.88 | I135: 1.770878723 | J135: 16248682 | K135: 16248682 | L135: 82.5 | N135: 14805161 | O135: 0.0461 | P135: 15487679 | Q135: 78.63613388 | R135: 3.863866115 | S135: 0.01 | T135: 148052 | U135: 0 | V135: 0 | W135: 612951 | X135: =MIN(H135*parameters!C$22,ROUND(P135+T135-V135+W135,0)) -> 16248682 | Y135: 82.50000101 | AA135: -761003 | AB135: 0 | AC135: 0 | AD135: 1.013775773e-06 | AG135: 126 | AH135: Harwich | AI135: 1.770878723 | AJ135: 82.5 | AK135: 0.0461 | AL135: 16248682 | AM135: 1.013775773e-06
A136: 127 | B136: Hatfield | C136: 664037600 | D136: 2346488.035 | E136: 131826000 | F136: 2020818.737 | G136: 4367307 | H136: 4215602.35 | I136: 1.035986471 | J136: 3477872 | K136: 3477872 | L136: 82.5 | N136: 3287596 | O136: 0.0561 | P136: 3472030 | Q136: 82.36142102 | R136: 0.1385789803 | S136: 0 | T136: 0 | U136: 0 | V136: 0 | W136: 0 | X136: =MIN(H136*parameters!C$22,ROUND(P136+T136-V136+W136,0)) -> 3472030 | Y136: 82.36142102 | AA136: -5842 | AB136: -5842 | AC136: 0 | AD136: -0.1385789803 | AG136: 127 | AH136: Hatfield | AI136: 1.035986471 | AJ136: 82.5 | AK136: 0.0561 | AL136: 3472030 | AM136: -0.1385789803
A137: 128 | B137: Haverhill | C137: 8774764300 | D137: 31007098.75 | E137: 2194463000 | F137: 33639888.55 | G137: 64646987 | H137: 150585079.4 | I137: 0.4293053949 | J137: 124232691 | K137: 64646987 | L137: 42.93 | N137: 54096390 | O137: 0.0383 | P137: 56168282 | Q137: 37.30003145 | R137: 5.629968545 | S137: 0.01 | T137: 540964 | U137: 0 | V137: 0 | W137: 0 | X137: =MIN(H137*parameters!C$22,ROUND(P137+T137-V137+W137,0)) -> 56709246 | Y137: 37.65927289 | AA137: -8478705 | AB137: -7937741 | AC137: 0 | AD137: -5.270727111 | AG137: 128 | AH137: Haverhill | AI137: 0.4293053949 | AJ137: 42.93 | AK137: 0.0383 | AL137: 56709246 | AM137: -5.270727111
A138: 129 | B138: Hawley | C138: 52571500 | D138: 185770.1969 | E138: 7716000 | F138: 118281.9578 | G138: 304052 | H138: 357343.3782 | I138: 0.8508678727 | J138: =ROUND(H138*maxloc,0) -> 294808 | K138: 294808 | L138: 82.5 | N138: 288215 | O138: 0.0319 | P138: 297409 | Q138: 83.22779102 | R138: 0 | S138: 0 | T138: 0 | U138: 2601 | V138: =MAX(U138*(V$5),0) -> 2601 | W138: 0 | X138: =MIN(H138*parameters!C$22,ROUND(P138+T138-V138+W138,0)) -> 294808 | Y138: 82.49991969 | AA138: 0 | AB138: 0 | AC138: 0 | AD138: -8.030952336e-05 | AG138: 129 | AH138: Hawley | AI138: 0.8508678727 | AJ138: =L138 -> 82.5 | AK138: 0.0319 | AL138: =X138 -> 294808 | AM138: -8.030952336e-05
A139: 130 | B139: Heath | C139: 105196700 | D139: =D$5*C139 -> 371730.1518 | E139: 11348000 | F139: 173958.4833 | G139: =ROUND(D139+F139,0) -> 545689 | H139: =(SUMIF(town1755,A139,found1755)/2) -> 1309018.257 | I139: =IF(H139=0,0,G139/H139) -> 0.4168688993 | J139: 1079940 | K139: =MIN(G139,J139) -> 545689 | L139: =IF(H139>0, ROUND((K139*100/H139), 2), 0) -> 41.69 | N139: 470212 | O139: 0.0315 | P139: =ROUND(N139*(1+O139),0) -> 485024 | Q139: =IF(H139=0,0,P139*100/H139) -> 37.05250079 | R139: =IF(L139>Q139,L139-Q139,0) -> 4.637499213 | S139: =IF(AND(R139>$T$4,R139<=$T$5),$S$4,IF(R139>$T$5,$S$5,0)) -> 0.01 | T139: =ROUND(S139*N139,0) -> 4702 | U139: =MAX(P139-K139,0) -> 0 | V139: 0 | W139: =IF(AND(I139>1.75,$W$5=1),MAX(K139-(P139+T139),0),0) -> 0 | X139: =MIN(H139*parameters!C$22,ROUND(P139+T139-V139+W139,0)) -> 489726 | Y139: =IF(H139=0,0,X139*100/H139) -> 37.41170128 | AA139: =IF(Q139<L139, P139-K139, 0) -> -60665 | AB139: =-1*MAX(K139-(P139+T139+W139),0) -> -55963 | AC139: =IF(Q139>L139, X139-K139,0) -> 0 | AD139: =Y139-L139 -> -4.278298722 | AG139: =TEXT(A139,"000") -> 130 | AH139: =B139 -> Heath | AI139: =I139 -> 0.4168688993 | AJ139: 41.69 | AK139: =O139 -> 0.0315 | AL139: 489726 | AM139: =AD139 -> -4.278298722
A140: 131 | B140: Hingham | C140: 8672525700 | D140: 30645821.54 | E140: 3411281000 | F140: =E140*F$5 -> 52293026.88 | G140: 82938848 | H140: 47057670.47 | I140: 1.762493706 | J140: 38822578 | K140: 38822578 | L140: 82.5 | N140: 37259592 | O140: 0.0433 | P140: 38872932 | Q140: 82.60700458 | R140: 0 | S140: 0 | T140: 0 | U140: 50354 | V140: 50354 | W140: 0 | X140: =MIN(H140*parameters!C$22,ROUND(P140+T140-V140+W140,0)) -> 38822578 | Y140: 82.49999971 | AA140: 0 | AB140: 0 | AC140: 0 | AD140: -2.87536551e-07 | AG140: 131 | AH140: Hingham | AI140: 1.762493706 | AJ140: 82.5 | AK140: 0.0433 | AL140: 38822578 | AM140: -2.87536551e-07
A141: 132 | B141: Hinsdale | C141: 363382200 | D141: 1284071.842 | E141: 80264000 | F141: 1230402.16 | G141: 2514474 | H141: 2805250.84 | I141: 0.8963455117 | J141: 2314332 | K141: 2314332 | L141: 82.5 | N141: 1967962 | O141: 0.0509 | P141: 2068131 | Q141: 73.72356761 | R141: 8.776432386 | S141: 0.02 | T141: 39359 | U141: 0 | V141: 0 | W141: 0 | X141: =MIN(H141*parameters!C$22,ROUND(P141+T141-V141+W141,0)) -> 2107490 | Y141: 75.12661505 | AA141: -246201 | AB141: -206842 | AC141: 0 | AD141: -7.37338495 | AG141: 132 | AH141: Hinsdale | AI141: 0.8963455117 | AJ141: 82.5 | AK141: 0.0509 | AL141: 2107490 | AM141: -7.37338495
